{"text_format":"1","workbook":"xlsx","n_sheets":26,"sheets":["GuiadeUso","Panel","Afiliación débito","configuracion","Cotizador","Solicitud.Manual","PagodePrimasLocal1","PagodePrimasLocal2","PagodePrimasLocal3","CoberturasaElegirLocal1","CoberturasaElegirLocal2","CoberturasaElegirLocal3","Solicitud","CartillaVentaPyme","slipcotizador","Slip CONSOLIDADO","Slip Final","ACCO","CuestionarioTransporte","TransportistaTerrestre","PropietarioMercaderia","tablaTransportes","Hoja1","DatosdelNegocioLocal1","DatosdelNegocioLocal2","DatosdelNegocioLocal3"],"not_rendered":{"charts":0,"images":17,"macros":1,"external_links":5,"defined_names":39,"comments":0,"pivot_tables":0},"unopened":[],"bounds":{"document_bytes":16777216,"sheet_cells":100000,"rows_first":2000,"rows_last":500,"rows_between":2000,"halvings":0,"cell_chars":16384,"cell_head_chars":4096},"cells_cut":0,"cells_raw":0,"read":"whole","date_system":"1900"}

{"sheet":"GuiadeUso","index":0,"n_rows":46,"n_cols":5,"rows_kept":46,"cut":false,"hidden":false,"merged":[[3,4,4,9],[7,4,7,9],[9,2,11,9],[12,2,14,9]]}
[]
[]
[]
[]
[]
[]
[]
[null,null,null,null,"GUÍA DE USO - COTIZADOR PYME"]
[]
[null,null,"Este archivo debe usarse con versiones de Excel 2003 en adelante. Además, debe tener instalado el complemento de \"Guardar como PDF para Office\" en su PC."]
[]
[]
[null,null,"Si le apareciera el botón Habilitar Contenido, haga click en el mismo. Luego le aparecerá una ventana en la cual debe seleccionar la opción \"Habilitar Macros\" y dar click en Aceptar."]
[]
[]
[]
[null,null,"REALIZAR COTIZACIÓN"]
[null,null,"1. Los campos de color celeste  son obligatorios. Debe llenarlos sino no podrá continuar."]
[null,null,"2. Ud.  cuenta con 4 secciones:"]
[null,null,"(i)   Declaración de Bienes"]
[null,null,"(ii)  Coberturas"]
[null,null,"(iii) Datos del Negocio"]
[null,null,"(iv) Pago de Primas"]
[null,null,"3. Para obtener un archivo PDF de la Cotización de Seguro, debe presionar el botón: \"COTIZACIÓN EN PDF\""]
[]
[]
[null,null,"INGRESAR SOLICITUD"]
[null,null,"1. Los campos de color celeste  son obligatorios. Debe llenarlos sino no podrá continuar."]
[null,null,"2. Ud.  cuenta con 6 secciones:"]
[null,null,"(i)   Datos Generales -> Informacion del Asegurado"]
[null,null,"(ii)  Datos Generales -> Informacion del Contratante"]
[null,null,"(iii) Datos del Negocio (Datos vienen de la hoja Cotizador)"]
[null,null,"(iv) Declaracion Jurada"]
[null,null,"(v)  Pago de Primas (Datos vienen de la hoja Cotizador)"]
[null,null,"(vi) Datos del Corredor de Seguros"]
[null,null,"3. Para obtener un archivo PDF de la Solicitud de Seguro, debe presionar el botón: \"SOLICITUD DE SEGURO EN PDF\""]
[]
[]
[null,null,"SOLICITUD EN BLANCO"]
[null,null,"1.- Para imprimir una solicitud en blanco se presiona el botón: \"SOLICITUD EN BLANCO\""]
[]
[]
[null,null,"PARA EMISIÓN"]
[null,null,"1.- Enviar al buzon emisionrapida@pacifico.com.pe "]
[null,null,"(I)   Solicitud PDF firmada"]
[null,null,"(ii)  Slip de cotizacion"]

{"sheet":"Panel","index":1,"n_rows":27,"n_cols":10,"rows_kept":27,"cut":false,"hidden":false,"merged":[]}
[]
[]
[]
[]
[]
[]
[]
[]
[]
[]
[]
[]
[]
[]
[]
[]
[]
[]
[]
[]
[]
[]
[]
[]
[]
[]
[null,null,null,null,null,null,null,null,null,{"$f":"configuracion!$G$2","v":"OCTUBRE 2021"}]

{"sheet":"Afiliación débito","index":2,"n_rows":90,"n_cols":41,"rows_kept":90,"cut":false,"hidden":false,"merged":[[82,2,84,37],[86,2,87,37],[89,2,91,37],[92,3,92,9],[43,2,45,37],[49,26,49,38],[60,2,60,3],[60,5,60,8],[76,2,77,37],[79,2,80,37],[13,26,13,28],[14,5,14,38],[16,35,16,37],[23,26,23,38],[34,2,34,3],[34,5,34,8],[33,29,33,31]]}
[null,null,null,null,null,null,null,null,null,null,null,null,null,null,null,null,null,null,null,null,null,null,null,null,null,null,null,null,null,null,null,null,null,null,null,null,null,null,null,null,"Ir a Panel"]
[]
[]
[]
[]
[]
[]
[]
[]
[]
[]
[]
[]
[null,null,"Modalidad de Pago"]
[null,null,"Contratante"]
[]
[null,null,"Tipo de documento",null,null,null,null,null,null,null,null,"Número",null,null,null,null,null,null,null,null,null,null,null,null,null,"Fecha",null,null,null,null,null,"Importe máximo"]
[null,null,null,null,null,null,null,null,null,null,null,null,null,null,null,null,null,null,null,null,null,null,null,null,null,null,null,"dd/","mm/","aa"]
[]
[null,null,"Producto: Pyme"]
[]
[null,null,"Formato de pago del depósito inicial (*)"]
[]
[null,null,"A) TARJETA DE CRÉDITO"]
[]
[null,null,"Entidad",null,null,null,null,null,null,null,null,"VISA",null,null,null,null,null,"MASTERCARD",null,null,null,null,null,null,null,"AMEX",null,null,null,null,"DINNERS"]
[]
[null,null,"Número de tarjeta"]
[]
[]
[]
[null,null,"Fecha de Vencimiento"]
[]
[null,null,null,null,"/",null,null,null,null,null,null,null,null,"Importe",null,null,null,null,null,null,".",null,null,null,null,null,"Moneda"]
[null,null,"mes",null,null,"año"]
[]
[null,null,"B) ABONO EN EFECTIVO EN LA CUENTA DE PACÍFICO SEGUROS"]
[null,null,"(En las cuentas que a continuación se indican solo deberá abonarse el monto del depósito inicial)"]
[]
[]
[]
[null,null,"Autorización de débito automático para cobranzas futuras"]
[]
[null,null,"Como titular de la cuenta bancaria y/o tarjeta de crédito indicada en el presente formato, autorizo sin requerir visto ni confirmación posterior se realicen los cargos automáticos de las primas que resulten de la contratación de la(s) pólizas(s) solicitadas(s) en la cuenta bancaria y/o tarjeta de crédito indicada en la siguiente solicitud, extendiéndose a la tarjeta de crédito que el Banco re emita por renovación, pérdida o robo."]
[]
[]
[]
[null,null,null,null,null,null,null,null,null,null,null,"Acepto",null,null,null,null,null,"No acepto"]
[]
[null,null,"A) TARJETA DE CRÉDITO"]
[]
[null,null,"Entidad",null,null,null,null,null,null,null,null,"VISA",null,null,null,null,null,"MASTERCARD",null,null,null,null,null,null,null,"AMEX",null,null,null,null,"DINNERS"]
[]
[null,null,"Número de tarjeta"]
[]
[]
[]
[null,null,"Fecha de Vencimiento"]
[]
[null,null,null,null,"/",null,null,null,null,null,null,null,null,"Importe",null,null,null,null,null,null,"."]
[null,null,"mes",null,null,"año"]
[]
[null,null,"Nota: Para las tarjetas Ripley Visa, se debe marcar VISA. Para las tarjetas Ripley Mastercard, se debe marcar Mastercard."]
[]
[null,null,"B) CUENTA BANCARIA"]
[]
[null,null,"N° de Cuenta",null,null,null,null,null,null,null,"D","C"]
[null,null,null,null,null,null,null,null,null,null,null,null,null,null,null,null,null,null,null,null,null,null,null,null,"Moneda:",null,null,"Soles",null,null,null,null,"Dólares"]
[null,null,null,null,null,null,null,null,null,null,9,10,null,12,13,14]
[]
[null,null,"BCP Cta. Cte. de Ahorros (14)",null,null,null,null,null,null,null,null,null,"Interbank Cta. Corriente (13)",null,null,null,null,null,null,null,null,null,null,null,"Scotiabank Cta. Ahorros (12)"]
[]
[null,null,"BCP Cta. Corriente (13)",null,null,null,null,null,null,null,null,null,"Interbank Cta. De Ahorros (13)",null,null,null,null,null,null,null,null,null,null,null,"Continental Cta. Corriente Nuevo (20)"]
[]
[null,null,"BCP Cta. Maestro (13)",null,null,null,null,null,null,null,null,null,"Scotiabank Cta. Corriente (12)",null,null,null,null,null,null,null,null,null,null,null,"Continental Cta. Ahorro Nuevo (20)"]
[]
[null,null,"Nota: En caso de haber elegido una Cuenta Bancaria, favor llenar en “N° de Cuenta” hasta el número indicado en el paréntesis correspondiente. Para cuentas del Continental, los digitos de control van en los casilleros 9 y 10."]
[]
[]
[null,null,"LA ACEPTACIÓN DEL CONTRATANTE AUTORIZA A PACÍFICO SEGUROS CARGARLE EN SU TARJETA DE CRÉDITO O CUENTA, DE ESTAR ÉSTAS VENCIDAS HASTA 3 CUOTAS."]
[]
[]
[null,null,"(*) El depósito inicial será imputado a la(s) prima(s) de seguro en caso se apruebe(n) su(s) solicitud(es) de seguro. En caso de rechazo, la Compañía reembolsará al Solicitante el importe total del depósito inicial en la Cuenta Bancaria declarada para el Débito Automático para Cobranzas Futuras o extornará a la Tarjeta de Crédito de la cual se realizó el cargo del depósito inicial."]
[]
[]
[]
[null,null,"PACÍFICO SEGUROS NO AUTORIZA A SU PERSONAL A RECIBIR SUMA ALGUNA DE DINERO EN FORMA PERSONAL. En este sentido, no se hace responsable por cualquier monto entregado al asesor o cualquier funcionario."]
[]
[]
[null,null,"EL CARGO EN TARJETA DE CRÉDITO SE EFECTUARÁ en moneda nacional de acuerdo al tipo de cambio del día de operación. Pacífico Seguros emitirá Facturas o boletas de venta. VISANET y Mastercard quedan excluidas de toda responsabilidad por la continuidad, cantidad y calidad de los bienes y/o servicios que Pacíficos Seguros se obliga a brindar al Usuario."]

{"sheet":"configuracion","index":3,"n_rows":4,"n_cols":10,"rows_kept":4,"cut":false,"hidden":false,"merged":[[1,3,1,4]]}
[null,null,null,null,null,null,"MES Y AÑO VIGENCIA",null,null,"DESCUENTO"]
[null,null,null,"VARIABLES DE CONFIGURACIÓN",null,null,"OCTUBRE 2021",null,null,0.15]
[]
[null,null,null,"Asesor / Corredor","Corredor"]

{"sheet":"Cotizador","index":4,"n_rows":171,"n_cols":30,"rows_kept":171,"cut":false,"hidden":false,"merged":[[55,8,55,10],[55,12,55,14],[55,16,55,18],[111,2,114,15],[70,3,70,5],[55,3,55,5],[53,3,53,5],[28,7,29,7],[36,12,37,12],[76,14,76,18],[36,8,37,8],[57,3,57,5],[72,3,72,5],[74,3,74,5],[63,3,63,5],[65,3,65,5],[47,14,47,18],[36,13,37,13],[61,3,61,5],[30,2,30,4],[36,18,37,18],[71,3,71,5],[1,1,1,8],[9,2,9,6],[10,2,10,6],[11,2,11,6],[12,2,12,6],[5,7,5,8],[7,7,7,8],[13,2,13,6],[36,2,37,4],[36,17,37,17],[21,7,21,8],[28,8,29,8],[36,7,37,7],[14,2,14,6],[16,2,16,6],[15,2,15,6],[28,2,29,4],[0,14,0,18],[19,14,19,18],[2,14,2,18],[21,12,21,13],[28,12,29,12],[5,12,5,13],[5,17,5,18],[28,13,29,13],[21,17,21,18],[28,17,29,17],[28,18,29,18],[7,12,7,13],[7,17,7,18],[127,2,130,18],[131,2,131,18],[137,2,139,18],[120,2,124,18],[125,2,125,18],[134,2,135,18],[170,2,171,18],[141,2,142,18],[144,2,147,18],[155,2,158,18],[150,2,153,18],[159,2,160,18],[162,2,162,13],[163,2,163,13],[166,2,167,18]]}
[0]
[null,{"$f":"\"Cotizador  Seguro Multiriesgo Pyme \" & configuracion!$G$2","v":"Cotizador  Seguro Multiriesgo Pyme OCTUBRE 2021"}]
[]
[null,"Declaración de Bienes"]
[]
[null,null,null,null,null,null,null,"Local 1",null,null,null,null,"Local 2",null,null,null,null,"Local 3"]
[null,null,"Tipo de Moneda:","USD",null,"Endosado al Banco?:",null,null,"NO",null,null,null,null,"NO",null,null,null,null,"NO"]
[null,null,null,null,null,"A quien está endosado?:"]
[null,null,null,null,null,null,null,"Totales","Endosado",null,null,null,"Totales","Endosado",null,null,null,"Totales","Endosado"]
[null,null,"Edificio (sin considerar el valor del terreno)"]
[null,null,"Instalaciones fijas"]
[null,null,"Mobiliario y/o contenido propios del giro"]
[null,null,"Existencias propias del giro del negocio"]
[null,null,"Maquinaria propia del giro del negocio"]
[null,null,"Equipos electrónicos propios del giro del negocio"]
[null,null,"Lucro Cesante"]
[null,null,"TOTAL VALOR DECLARADO (Máximo 2'000,000 USD por local)",null,null,null,null,{"$f":"+IF(OR(SUM(H10:H16)<=0,SUM(H10:H16)>2000000),\"\",SUM(H10:H16))","v":""},{"$f":"+IF(H17=\"\",\"\",IF(I7=\"NO\",\"\",(IF(SUM(I10:I15)>SUM(H10:H15),\"\",SUM(I10:I15)))))","v":""},null,null,null,{"$f":"+IF(OR(SUM(M10:M16)<=0,SUM(M10:M16)>2000000),\"\",SUM(M10:M16))","v":""},{"$f":"+IF(M17=\"\",\"\",IF(N7=\"NO\",\"\",(IF(SUM(N10:N15)>SUM(M10:M15),\"\",SUM(N10:N15)))))","v":""},null,null,null,{"$f":"+IF(OR(SUM(R10:R16)<=0,SUM(R10:R16)>2000000),\"\",SUM(R10:R16))","v":""},{"$f":"+IF(R17=\"\",\"\",IF(S7=\"NO\",\"\",(IF(SUM(S10:S15)>SUM(R10:R15),\"\",SUM(S10:S15)))))","v":""}]
[]
[]
[]
[null,"Coberturas",null,null,null,null,null,null,null,null,null,null,null,null,null,null,null,null,null,null,null,null,null,null,null,null,null,null,null,{"$f":"AD22","v":2}]
[null,null,null,null,null,null,null,"Local 1",null,null,null,null,"Local 2",null,null,null,null,"Local 3",null,null,null,null,null,null,null,null,null,null,null,{"$f":"PagodePrimasLocal1!AD21","v":2}]
[null,null,"Robo y/o Asalto",null,null,"SI",null,"Valor Declarado","Suma Asegurada",null,"NO",null,"Valor Declarado","Suma Asegurada",null,"NO",null,"Valor Declarado","Suma Asegurada"]
[null,null,"Instalaciones fijas",null,null,null,null,{"$f":"+IF(H17=\"\",\"\",IF(F23=\"NO\",\"\",IF(H11>0,H11,\"\")))","v":""},{"$f":"+IF(H24=\"\",\"\",IF(H24>100000*CoberturasaElegirLocal1!$AC$5,100000*CoberturasaElegirLocal1!$AC$5,H24))","v":""},null,null,null,{"$f":"+IF(M17=\"\",\"\",IF(K23=\"NO\",\"\",IF(M11>0,M11,\"\")))","v":""},{"$f":"+IF(M24=\"\",\"\",IF(M24>100000*CoberturasaElegirLocal2!$AC$5,100000*CoberturasaElegirLocal2!$AC$5,M24))","v":""},null,null,null,{"$f":"+IF(R17=\"\",\"\",IF(P23=\"NO\",\"\",IF(R11>0,R11,\"\")))","v":""},{"$f":"+IF(R24=\"\",\"\",IF(R24>100000*CoberturasaElegirLocal3!$AC$5,100000*CoberturasaElegirLocal3!$AC$5,R24))","v":""}]
[null,null,"Mobiliario y/o contenido propios del giro del negocio",null,null,null,null,{"$f":"+IF(H17=\"\",\"\",IF(F23=\"NO\",\"\",IF(H12>0,H12,\"\")))","v":""},{"$f":"+IF(H25=\"\",\"\",IF(H25>100000*CoberturasaElegirLocal1!$AC$6,100000*CoberturasaElegirLocal1!$AC$6,H25))","v":""},null,null,null,{"$f":"+IF(M17=\"\",\"\",IF(K23=\"NO\",\"\",IF(M12>0,M12,\"\")))","v":""},{"$f":"+IF(M25=\"\",\"\",IF(M25>100000*CoberturasaElegirLocal2!$AC$6,100000*CoberturasaElegirLocal2!$AC$6,M25))","v":""},null,null,null,{"$f":"+IF(R17=\"\",\"\",IF(P23=\"NO\",\"\",IF(R12>0,R12,\"\")))","v":""},{"$f":"+IF(R25=\"\",\"\",IF(R25>100000*CoberturasaElegirLocal3!$AC$6,100000*CoberturasaElegirLocal3!$AC$6,R25))","v":""}]
[null,null,"Existencias propias del giro del negocio",null,null,null,null,{"$f":"+IF(H17=\"\",\"\",IF(F23=\"NO\",\"\",IF(H13>0,H13,\"\")))","v":""},{"$f":"+IF(H26=\"\",\"\",IF(H26>100000*CoberturasaElegirLocal1!$AC$7,100000*CoberturasaElegirLocal1!$AC$7,H26))","v":""},null,null,null,{"$f":"+IF(M17=\"\",\"\",IF(K23=\"NO\",\"\",IF(M13>0,M13,\"\")))","v":""},{"$f":"+IF(M26=\"\",\"\",IF(M26>100000*CoberturasaElegirLocal2!$AC$7,100000*CoberturasaElegirLocal2!$AC$7,M26))","v":""},null,null,null,{"$f":"+IF(R17=\"\",\"\",IF(P23=\"NO\",\"\",IF(R13>0,R13,\"\")))","v":""},{"$f":"+IF(R26=\"\",\"\",IF(R26>100000*CoberturasaElegirLocal3!$AC$7,100000*CoberturasaElegirLocal3!$AC$7,R26))","v":""}]
[null,null,"Maquinaria propia del giro del negocio",null,null,null,null,{"$f":"+IF(H17=\"\",\"\",IF(F23=\"NO\",\"\",IF(H14>0,H14,\"\")))","v":""},{"$f":"+IF(H27=\"\",\"\",IF(H27>100000*CoberturasaElegirLocal1!$AC$8,100000*CoberturasaElegirLocal1!$AC$8,H27))","v":""},null,null,null,{"$f":"+IF(M17=\"\",\"\",IF(K23=\"NO\",\"\",IF(M14>0,M14,\"\")))","v":""},{"$f":"+IF(M27=\"\",\"\",IF(M27>100000*CoberturasaElegirLocal2!$AC$8,100000*CoberturasaElegirLocal2!$AC$8,M27))","v":""},null,null,null,{"$f":"+IF(R17=\"\",\"\",IF(P23=\"NO\",\"\",IF(R14>0,R14,\"\")))","v":""},{"$f":"+IF(R27=\"\",\"\",IF(R27>100000*CoberturasaElegirLocal3!$AC$8,100000*CoberturasaElegirLocal3!$AC$8,R27))","v":""}]
[null,null,"Equipo electrónico fijo",null,null,null,null,{"$f":"+IF(H17=\"\",\"\",IF(F23=\"NO\",\"\",IF(H15>0,H15,\"\")))","v":""},{"$f":"+IF(H28=\"\",\"\",IF(H28>100000*CoberturasaElegirLocal1!$AC$9,100000*CoberturasaElegirLocal1!$AC$9,H28))","v":""},null,null,null,{"$f":"+IF(M17=\"\",\"\",IF(K23=\"NO\",\"\",IF(M15>0,M15,\"\")))","v":""},{"$f":"+IF(M28=\"\",\"\",IF(M28>100000*CoberturasaElegirLocal2!$AC$9,100000*CoberturasaElegirLocal2!$AC$9,M28))","v":""},null,null,null,{"$f":"+IF(R17=\"\",\"\",IF(P23=\"NO\",\"\",IF(R15>0,R15,\"\")))","v":""},{"$f":"+IF(R28=\"\",\"\",IF(R28>100000*CoberturasaElegirLocal3!$AC$9,100000*CoberturasaElegirLocal3!$AC$9,R28))","v":""}]
[null,null,"Dinero y/o valores dentro del local (caja chica y/o caja\nregistradora)",null,null,"SI",null,"---------",{"$f":"+IF(CoberturasaElegirLocal1!$AB$7=0,\"\",IF(F29=\"NO\",\"\",IF(CoberturasaElegirLocal1!$AB$7<3000,CoberturasaElegirLocal1!$AB$7,3000)))","v":""},null,"NO",null,"---------",{"$f":"+IF(CoberturasaElegirLocal2!$AB$7=0,\"\",IF(K29=\"NO\",\"\",IF(CoberturasaElegirLocal2!$AB$7<3000,CoberturasaElegirLocal2!$AB$7,3000)))","v":""},null,"NO",null,"---------",{"$f":"+IF(CoberturasaElegirLocal3!$AB$7=0,\"\",IF(P29=\"NO\",\"\",IF(CoberturasaElegirLocal3!$AB$7<3000,CoberturasaElegirLocal3!$AB$7,3000)))","v":""}]
[]
[null,null,"Dinero en Tránsito",null,null,"SI",null,"---------",{"$f":"+IF(CoberturasaElegirLocal1!$AB$7=0,\"\",IF(F31=\"NO\",\"\",IF(CoberturasaElegirLocal1!$AB$7<3000,CoberturasaElegirLocal1!$AB$7,3000)))","v":""},null,"NO",null,"---------",{"$f":"+IF(CoberturasaElegirLocal2!$AB$7=0,\"\",IF(K31=\"NO\",\"\",IF(CoberturasaElegirLocal2!$AB$7<3000,CoberturasaElegirLocal2!$AB$7,3000)))","v":""},null,"NO",null,"---------",{"$f":"+IF(CoberturasaElegirLocal3!$AB$7=0,\"\",IF(P31=\"NO\",\"\",IF(CoberturasaElegirLocal3!$AB$7<3000,CoberturasaElegirLocal3!$AB$7,3000)))","v":""}]
[]
[null,null,"Responsabilidad Civil",null,null,"SI","Opción:",1,{"$f":"IF(H17=\"\",\"\",IF(F33=\"NO\",\"\",IF(H33=1,50000,IF(H33=2,100000,IF(H33=3,200000,IF(H33=4,300000,500000))))))","v":""},null,"NO",null,1,{"$f":"IF(M17=\"\",\"\",IF(K33=\"NO\",\"\",IF(M33=1,50000,IF(M33=2,100000,IF(M33=3,200000,IF(M33=4,300000,500000))))))","v":""},null,"NO",null,1,{"$f":"IF(R17=\"\",\"\",IF(P33=\"NO\",\"\",IF(R33=1,50000,IF(R33=2,100000,IF(R33=3,200000,IF(R33=4,300000,500000))))))","v":""}]
[]
[null,null,"Equipo Electrónico"]
[null,null,"Equipos electrónicos propios del giro del negocio",null,null,"NO",null,{"$f":"+IF(H17=\"\",\"\",IF(F36=\"NO\",\"\",IF(H15>0,H15,\"\")))","v":""},{"$f":"+IF(H36=\"\",\"\",IF(H36>50000,50000,H36))","v":""},null,"NO",null,{"$f":"+IF(M17=\"\",\"\",IF(K36=\"NO\",\"\",IF(M15>0,M15,\"\")))","v":""},{"$f":"+IF(M36=\"\",\"\",IF(M36>50000,50000,M36))","v":""},null,"NO",null,{"$f":"+IF(R17=\"\",\"\",IF(P36=\"NO\",\"\",IF(R15>0,R15,\"\")))","v":""},{"$f":"+IF(R36=\"\",\"\",IF(R36>50000,50000,R36))","v":""}]
[null,null,"Equipos móviles y portátiles fuera del predio limitado a laptops y/o notebooks",null,null,"NO",null,{"$f":"+IF(F37=\"NO\",\"\",IF(I36=\"\",\"\",IF(3000>I36,I36,3000)))","v":""},{"$f":"+IF(H37=\"\",\"\",H37)","v":""},null,"NO",null,{"$f":"+IF(K37=\"NO\",\"\",IF(N36=\"\",\"\",IF(3000>N36,N36,3000)))","v":""},{"$f":"+IF(M37=\"\",\"\",M37)","v":""},null,"NO",null,{"$f":"+IF(P37=\"NO\",\"\",IF(S36=\"\",\"\",IF(3000>S36,S36,3000)))","v":""},{"$f":"+IF(R37=\"\",\"\",R37)","v":""}]
[]
[]
[null,null,"Rotura de Maquinaria",null,null,"NO",null,{"$f":"+IF(H17=\"\",\"\",IF(F40=\"NO\",\"\",IF(H14>0,H14,\"\")))","v":""},{"$f":"+IF(H40=\"\",\"\",IF(H40>200000,200000,H40))","v":""},null,"NO",null,{"$f":"+IF(M17=\"\",\"\",IF(K40=\"NO\",\"\",IF(M14>0,M14,\"\")))","v":""},{"$f":"+IF(M40=\"\",\"\",IF(M40>200000,200000,M40))","v":""},null,"NO",null,{"$f":"+IF(R17=\"\",\"\",IF(P40=\"NO\",\"\",IF(R14>0,R14,\"\")))","v":""},{"$f":"+IF(R40=\"\",\"\",IF(R40>200000,200000,R40))","v":""}]
[]
[]
[]
[null,null,"Accidentes Colectivos",null,null,"NO",null,"Nº asegurados: ",{"$f":"IF($F$44=\"SÍ\",ACCO!$E$18,\"\")","v":""},null,"NO",null,null,{"$f":"IF($K$44=\"SÍ\",ACCO!$F$18,\"\")","v":""},null,"NO",null,null,{"$f":"IF($P$44=\"SÍ\",ACCO!$G$18,\"\")","v":""}]
[]
[null,null,"Transporte nacional",null,null,"NO",null,"Movimiento Anual",{"$f":"IF($F$46=\"SÍ\",CuestionarioTransporte!$D$24,\"\")","v":""}]
[]
[]
[null,"Datos del Negocio"]
[]
[null,"Actividad Realizada",null,null,null,null,null,"Dirección de los locales por asegurar:"]
[null,null,null,null,null,null,null,null,"Local 1",null,null,null,"Local 2",null,null,null,"Local 3"]
[null,null,"Actividad y/o Giro:",null,null,null,null,"Departamento"]
[null,null,"Local 1",null,null,null,null,"Provincia"]
[null,null,null,null,null,null,null,"Distrito"]
[null,null,"Local 2",null,null,null,null,"Dirección exacta del riesgo:*:"]
[null,null,null,null,null,null,null,"Nro"]
[null,null,"Local 3"]
[]
[null,"Tipo de Negocio"]
[null,null,"Tipo:"]
[null,null,"Local 1","Comercial y Servicios"]
[]
[null,null,"Local 2","Comercial y Servicios"]
[]
[null,null,"Local 3","Comercial y Servicios"]
[]
[null,"Uso del Local"]
[]
[null,null,"Ocupación:"]
[null,null,"Local 1"]
[]
[null,null,"Local 2"]
[]
[null,null,"Local 3"]
[]
[]
[null,"Pago de Primas"]
[]
[null,null,"Autorizaciones"]
[null,null,null,"Documento Contratante"]
[null,null,null,"Forma de pago",null,null,null,"Emitir Factura?"]
[null,null,null,"Descuento de 15% por afiliación al débito automático y emisión de póliza electrónica"]
[]
[null,null,"Inicio de Vigencia y Pago"]
[]
[null,null,null,"Forma de pago",null,null,null,"Nro. Cuotas:"]
[null,null,null,"Al Contado",null,null,null,"Inicio Vigencia Póliza:"]
[null,null,null,"En cuotas"]
[null,null,null,null,null,null,null,null,"Local 1",null,"Local 2",null,"Local 3",null,null,"Total"]
[null,null,null,null,null,null,null,"Prima Comercial",{"$f":"IF(E82=\"Débito Automático\",PagodePrimasLocal1!$AH$10,IF(AND(PagodePrimasLocal1!$AD$21=1,I87=\"\"),PagodePrimasLocal1!$AH$10,IF(I87=\"\",\"----\",PagodePrimasLocal1!$AH$10)))","v":"----"},null,{"$f":"IF(E82=\"Débito Automático\",PagodePrimasLocal2!$AH$10,IF(AND(PagodePrimasLocal2!$AD$21=1,I87=\"\"),PagodePrimasLocal2!$AH$10,IF(I87=\"\",\"----\",PagodePrimasLocal2!$AH$10)))","v":"----"},null,{"$f":"IF(E82=\"Débito Automático\",PagodePrimasLocal3!$AH$10,IF(AND(PagodePrimasLocal3!$AD$21=1,I87=\"\"),PagodePrimasLocal3!$AH$10,IF(I87=\"\",\"----\",PagodePrimasLocal3!$AH$10)))","v":"----"},null,"Prima Comercial",{"$f":"SUM(I91,K91,M91)","v":0}]
[null,null,null,null,null,null,null,"Intereses (*)",{"$f":"IF(E82=\"Débito Automático\",0,IF(ISERROR(IF(I87=\"\",0,(PagodePrimasLocal1!$AG$12-PagodePrimasLocal1!$AG$10)/1.18)),0,IF(I87=\"\",0,(PagodePrimasLocal1!$AG$12-PagodePrimasLocal1!$AG$10)/1.18)))","v":0},null,{"$f":"IF(E82=\"Débito Automático\",0,IF(ISERROR(IF(I87=\"\",0,(PagodePrimasLocal2!$AG$12-PagodePrimasLocal2!$AG$10)/1.18)),0,IF(I87=\"\",0,(PagodePrimasLocal2!$AG$12-PagodePrimasLocal2!$AG$10)/1.18)))","v":0},null,{"$f":"IF(E82=\"Débito Automático\",0,IF(ISERROR(IF(I87=\"\",0,(PagodePrimasLocal3!$AG$12-PagodePrimasLocal3!$AG$10)/1.18)),0,IF(I87=\"\",0,(PagodePrimasLocal3!$AG$12-PagodePrimasLocal3!$AG$10)/1.18)))","v":0},null,"Intereses (*)",{"$f":"SUM(I92,K92,M92)","v":0},"Dscto","Total"]
[null,null,null,null,null,null,null,"I.G.V.",{"$f":"SUM(I91:I92)*0.18","v":0},null,{"$f":"SUM(K91:K92)*0.18","v":0},null,{"$f":"SUM(M91:M92)*0.18","v":0},null,"I.G.V.",{"$f":"I93+K93+M93","v":0},0.15,"Final"]
[null,null,null,null,null,null,null,"Total a Pagar",{"$f":"SUM(I91:I93)","v":0},null,{"$f":"SUM(K91:K93)","v":0},null,{"$f":"SUM(M91:M93)","v":0},null,"Total a Pagar",{"$f":"I94+K94+M94","v":0},{"$f":"IFERROR(IF($I$94-$I$94*$Q$93<120,0,$I$94*$Q$93)+IF($K$94-$K$94*$Q$93<120,0,$K$94*$Q$93)+IF($M$94-$M$94*$Q$93<120,0,$M$94*$Q$93),0)","v":0},{"$f":"IFERROR(P94-Q94,0)","v":0}]
[null,null,null,null,null,null,null,"Cuota",{"$f":"IFERROR(I94/$I$87,\"\")","v":""},null,{"$f":"IFERROR(K94/$I$87,\"\")","v":""},null,{"$f":"IFERROR(M94/$I$87,\"\")","v":""},null,"Cuota",{"$f":"IFERROR(I95+K95+M95,\"\")","v":""},{"$f":"IFERROR(IF($I$94-$I$94*$Q$93<120,0,$I$95*$Q$93)+IF($K$94-$K$94*$Q$93<120,0,$K$95*$Q$93)+IF($M$94-$M$94*$Q$93<120,0,$M$95*$Q$93),0)","v":0},{"$f":"IFERROR(P95-Q95,0)","v":0}]
[]
[]
[]
[]
[]
[]
[]
[]
[null,null,"(*) Los intereses aplican para la forma de pago con Cupones y para los fraccionamientos en 6 y 10 cuotas. La TEA es de 17.5% para persona natural y de 12% para persona jurídica."]
[]
[]
[]
[]
[]
[]
[]
[null,null,"Se deja constancia expresa que, a potestad de la Compañía, la aceptación final del riesgo por parte de ésta queda sujeta a la realización de la inspección o evaluación, por parte de nuestro Departamento de Ingeniería o la persona autorizada para tal efecto, para verificar el efectivo estado del riesgo, así como el estricto cumplimiento por parte del Asegurado de las garantías que a mérito de dicha inspección establezca el Departamento de Ingeniería de la Compañía."]
[]
[]
[]
[]
[]
[null,"IMPORTANTE"]
[]
[null,null,"Aprobación de la solicitud de seguro"]
[null,null,"PACÍFICO SEGUROS entregará la póliza de seguro al Contratante dentro del plazo de 15 días calendario de haber recibido la solicitud, si es que no es rechazada.\nNo obstante, cuando corresponda, PACÍFICO SEGUROS se obliga a comunicar el rechazo de la solicitud dentro del plazo de 15 días calendario de recibida, salvo que PACÍFICO SEGUROS haya requerido información adicional y/u otros requerimientos adicionales, necesarios para la evaluación del riesgo, dentro del referido plazo. En este caso, el plazo para comunicar el rechazo se contará a partir de la recepción de la información completa solicitada y de cumplidos los requerimientos realizados por PACÍFICO SEGUROS. En el supuesto que el Contratante no complete la información solicitada por PACÍFICO SEGUROS y/o no cumpla con los requerimientos que PACÍFICO SEGUROS haya realizado, se considerará rechazada la solicitud."]
[]
[]
[]
[]
[null,null,"Medios de comunicación pactados: Escritos (correo electrónico o comunicaciones enviadas al domicilio físico) y telefónicas."]
[]
[null,null,"Autorizo a PACÍFICO SEGUROS, a que en el caso de aprobar la presente solicitud, pueda enviar válidamente cualquier comunicación y/o notiﬁcación vinculada con este seguro durante su vigencia por cualquiera de los medios de comunicación arriba indicados, precisándose que las comunicaciones por teléfono se realizarán únicamente en aquellos casos en que la comunicación escrita no sea requerida de forma especíﬁca, conforme al marco normativo vigente. Declaro igualmente conocer y estar de acuerdo con que las comunicaciones y/o notiﬁcaciones que sean dirigidas a mi correo electrónico surtirán efectos y las consideraré recibidas a partir del momento en que éstas sean recibidas en el servidor de mi cuenta del correo electrónico, considerándose igualmente que en ese momento he tomado conocimiento del contenido del documento enviado por dicho medio."]
[]
[]
[]
[null,null,"Se enviará comunicaciones por escrito al domicilio físico del contratante y/o asegurado, en caso la normatividad vigente lo exija o, no se consigne una dirección electrónica."]
[]
[null,null,"PROTECCIÓN DE DATOS PERSONALES"]
[null,null,"Para la correcta ejecución de la relación contractual, EL CONTRATANTE / ASEGURADO (“EL CLIENTE”) se obliga a mantener actualizada su información personal, financiera y crediticia (“LA INFORMACIÓN”) y reconoce que PACÍFICO SEGUROS podrá tratarla, actualizarla, completarla y realizar flujos transfronterizos conforme a ley."]
[]
[]
[null,null,"PACÍFICO SEGUROS conservará, tratará y realizará flujos transfronterizos con LA INFORMACIÓN de EL CLIENTE mientras se mantenga la relación contractual y luego de veinte (20) años de finalizado el contrato.\nPara el tratamiento de La INFORMACIÓN de EL CLIENTE, PACÍFICO SEGUROS utilizará diversos Encargados ubicados en el Perú y el extranjero, los cuales se han puesto a disposición del El cliente y también se encuentran detallados en https://www.pacifico.com.pe/transparencia/politica-privacidad"]
[]
[]
[]
[null,null," Su información será incluida en el banco de datos de Usuarios que se encuentra registrado ante la Autoridad de Protección de Datos Personales bajo el número de registro RNPDP-PJ N.° 774, de titularidad de PACÍFICO SEGUROS, ubicada en Juan de Arona 830, San Isidro, Lima - Perú."]
[]
[]
[null,null,"EL CLIENTE puede ejercer los derechos de acceso, rectificación, cancelación, revocación y oposición, dirigiéndose a PACÍFICO SEGUROS de forma presencial en cualquiera de sus oficinas a nivel nacional en el horario establecido para la atención al público o por teléfono o a través del Chat ubicado en nuestra página web www.pacifico.com.pe.\nEl detalle de nuestra Política de Privacidad se encuentra disponible en: \nhttps://www.pacifico.com.pe/transparencia/politica-privacidad"]
[]
[]
[]
[]
[null,null,"AUTORIZACIONES PARA USOS ADICIONALES"]
[null,null,"EL CLIENTE autoriza que PACÍFICO SEGUROS, de manera directa o a través de sus Encargados:\n- Le oferte cualquiera de nuestros productos de los ramos de Riesgos Generales o de Vida.\n- Le oferte cualquier otro producto o servicio de PACÍFICO SEGUROS o de sus empresas terceras.\n- A transferir su Información a empresas Credicorp (incluyendo subsidiarias, vinculadas y afiliadas) así como socios comerciales (Terceros), para que cada uno de ellos pueda ofertar sus productos o servicios. "]
[]
[]
[]
[]
[null,null,"EL CLIENTE acepta haber tenido a su disposición la lista de Terceros y Encargados que también se encuentra disponible en https://www.pacifico.com.pe/transparencia/politica-privacidad. Dicha lista detalla los posibles usos que los Terceros darán a sus datos personales. El envío de comunicaciones o mensajes con las ofertas y/o publicidades podrá ser remitida a través de medios escritos, verbales (por ejemplo: mensajes, push notification o llamadas telefónicas) o electrónicos/informáticos (por ejemplo correo electrónico)."]
[]
[]
[]
[null,null,"PACÍFICO SEGUROS y los Terceros podrán conservar y tratar LA INFORMACIÓN de EL CLIENTE en los términos establecidos en esta sección, mientras se mantenga la relación contractual y luego de veinte (20) años de finalizado el contrato.\nLa aceptación o no de esta autorización para usos adicionales (ajenos a la ejecución de la relación contractual) no condiciona la prestación del servicio que EL CLIENTE está contratando."]
[]
[]
[null,null,"Sí acepto",null,null,null,null,null,null,null,null,null,null,null,""]
[null,null,"No acepto y prefiero perder la oportunidad de recibir nuevas ofertas",null,null,null,null,null,null,null,null,null,null,null,""]
[]
[null,null,"Cláusulas Abusivas"]
[null,null,"“Las condiciones de la presente póliza se encuentran sujetas a una revisión posterior por parte de la Superintendencia de Banca, Seguros y AFPs, por lo que, en caso se identiﬁquen cláusulas abusivas en el marco de la Ley del Contrato de Seguro y normas reglamentarias, y estas no sean subsanadas por PACÍFICO SEGUROS, la Superintendencia de Banca, Seguros y AFPs,"]
[]
[]
[null,null,"Derecho de arrepentimiento"]
[null,null,"En el caso que este seguro sea ofertado por un comercializador (incluyendo la Bancaseguro), declaro conocer que tengo derecho a arrepentirme de la contratación de este seguro, sin expresión de causa ni penalidad alguna, dentro del plazo de 15 días de recibir la póliza de seguro o el certiﬁcado de seguro, de ser el caso, ya que se me devuelva la prima que hubiere pagado."]

{"sheet":"Solicitud.Manual","index":5,"n_rows":148,"n_cols":12,"rows_kept":148,"cut":false,"hidden":true,"merged":[[113,1,114,12],[117,1,118,12],[74,1,75,12],[77,1,80,12],[82,1,83,12],[85,1,88,12],[91,1,95,12],[141,9,141,10],[1,0,1,12],[10,2,10,4],[10,8,10,12],[11,8,11,9],[12,8,12,9],[5,7,5,12],[8,8,8,12],[5,0,5,3],[37,2,37,3],[38,2,38,3],[31,2,31,3],[28,2,28,3],[32,2,32,3],[33,2,33,3],[8,2,8,4],[147,3,147,6],[36,2,36,3],[35,2,35,3],[36,4,36,7],[70,1,70,7],[46,2,46,4],[37,4,37,7],[38,4,38,7],[60,1,60,7],[62,1,62,7],[61,1,61,7],[63,1,63,7],[71,1,71,7],[97,1,99,12],[101,1,104,12],[106,1,106,12],[143,9,143,12],[145,9,145,12],[147,9,147,12],[18,8,18,9],[19,8,19,9],[46,6,46,8],[69,1,69,7],[59,1,59,7],[64,1,64,7],[65,1,65,7],[66,1,66,7],[67,1,67,7],[68,1,68,7],[46,10,46,12],[20,8,20,12],[40,0,40,1],[26,2,26,3],[31,4,31,7],[20,2,20,4],[32,4,32,7],[33,4,33,7],[25,2,25,3],[26,4,26,7],[27,4,27,7],[28,4,28,7],[30,2,30,3],[27,2,27,3],[9,8,9,9],[13,8,13,9],[15,8,15,9],[16,8,16,9],[17,8,17,9],[14,8,14,9]]}
[]
["Ingreso Manual Solicitud de Seguro Multiriesgo Pyme"]
[]
[]
[]
["Datos Generales -> Informacion del Contratante",null,null,null,null,null,null,"Datos Generales -> Informacion del Asegurado"]
[null,null,null,null,null,null,null,"¿Contratante es diferente de Asegurado?","SI"]
[null,"Tipo de Documento*:",null,"Nro Documento:",null,null,null,"Tipo de Documento*:",null,null,"Nro Documento:"]
[null,"Nombre / Razón Social*:",null,null,null,null,null,"Nombre / Razón Social*:"]
[null,"Apellido Paterno:",null,"Apellido Materno:",null,null,null,"Apellido Paterno:",null,null,"Apellido Materno:"]
[null,"Direccion",null,null,null,null,null,"Direccion"]
[null,"Nro",null,"Cargo:",null,null,null,"Nro",null,null,null,"Cargo:"]
[null,"Dpto/Piso/Int",null,null,null,null,null,"Dpto/Piso/Int"]
[null,"Lt:",null,"Código de cliente:",null,null,null,"Lt:",null,null,null,"Código de cliente:"]
[null,"Mz:",null,"Profesion / Ocupación:",null,null,null,"Mz:",null,null,null,"Profesion / Ocupación:"]
[null,"Distrito:",null,"Nacionalidad:",null,null,null,"Distrito:",null,null,null,"Nacionalidad:"]
[null,"Provincia:",null,"Fecha de Nacimiento:",null,null,null,"Provincia:",null,null,null,"Fecha de Nacimiento:"]
[null,"Departamento:",null,"Estado Civil:",null,null,null,"Departamento:",null,null,null,"Estado Civil:"]
[null,"Teléfono Casa:",null,"Teléfono Trabajo:",null,null,null,"Teléfono Casa:",null,null,null,"Teléfono Trabajo:"]
[null,"Teléfono Móvil:",null,null,null,null,null,"Teléfono Móvil:"]
[null,"Correo Electrónico:",null,null,null,null,null,"Correo Electrónico:"]
[null,"¿Desea recibir información del seguro y otro?",null,null,null,null,null,"¿Desea recibir información del seguro y otro?"]
[null,"¿Desea recibir su póliza de forma electrónica?",null,null,null,null,null,"¿Desea recibir su póliza de forma electrónica?"]
["Datos del Negocio (Datos vienen de la hoja Cotizador)"]
[]
[null,null,"Local 1"]
[null,null,"Actividad y/o Giro:",null,{"$f":"IF(LEN(Cotizador!$D$54)>0,Cotizador!$D$54,\"\")","v":""}]
[null,null,"Tipo:",null,{"$f":"IF(LEN(Cotizador!$D$62)>0,Cotizador!$D$62,\"\")","v":"Comercial y Servicios"}]
[null,null,"Ocupación:",null,{"$f":"IF(LEN(Cotizador!$D$71)>0,Cotizador!$D$71,\"\")","v":""}]
[]
[null,null,"Local 2"]
[null,null,"Actividad y/o Giro:",null,{"$f":"IF(LEN(Cotizador!$D$56)>0,Cotizador!$D$56,\"\")","v":""}]
[null,null,"Tipo:",null,{"$f":"IF(LEN(Cotizador!$D$64)>0,Cotizador!$D$64,\"\")","v":"Comercial y Servicios"}]
[null,null,"Ocupación:",null,{"$f":"IF(LEN(Cotizador!$D$73)>0,Cotizador!$D$73,\"\")","v":""}]
[]
[null,null,"Local 3"]
[null,null,"Actividad y/o Giro:",null,{"$f":"IF(LEN(Cotizador!$D$58)>0,Cotizador!$D$58,\"\")","v":""}]
[null,null,"Tipo:",null,{"$f":"IF(LEN(Cotizador!$D$66)>0,Cotizador!$D$66,\"\")","v":"Comercial y Servicios"}]
[null,null,"Ocupación:",null,{"$f":"IF(LEN(Cotizador!$D$75)>0,Cotizador!$D$75,\"\")","v":""}]
[]
["Declaración Jurada"]
[]
[null,null,"Local 1",null,null,null,"Local 2",null,null,null,"Local 3"]
[null,"Departamento",{"$f":"IF(LEN(Cotizador!$I$53)>0,Cotizador!$I$53,\"\")","v":""},null,null,null,{"$f":"IF(LEN(Cotizador!$M$53)>0,Cotizador!$M$53,\"\")","v":""},null,null,null,{"$f":"IF(LEN(Cotizador!$Q$53)>0,Cotizador!$Q$53,\"\")","v":""}]
[null,"Provincia",{"$f":"IF(LEN(Cotizador!$I$54)>0,Cotizador!$I$54,\"\")","v":""},null,null,null,{"$f":"IF(LEN(Cotizador!$M$54)>0,Cotizador!$M$54,\"\")","v":""},null,null,null,{"$f":"IF(LEN(Cotizador!$Q$54)>0,Cotizador!$Q$54,\"\")","v":""}]
[null,"Distrito",{"$f":"IF(LEN(Cotizador!$I$55)>0,Cotizador!$I$55,\"\")","v":""},null,null,null,{"$f":"IF(LEN(Cotizador!$M$55)>0,Cotizador!$M$55,\"\")","v":""},null,null,null,{"$f":"IF(LEN(Cotizador!$Q$55)>0,Cotizador!$Q$55,\"\")","v":""}]
[null,"Dirección exacta del riesgo:*:",{"$f":"IF(LEN(Cotizador!$I$56)>0,Cotizador!$I$56,\"\")","v":""},null,null,null,{"$f":"IF(LEN(Cotizador!$M$56)>0,Cotizador!$M$56,\"\")","v":""},null,null,null,{"$f":"IF(LEN(Cotizador!$Q$56)>0,Cotizador!$Q$56,\"\")","v":""}]
[null,"Nro",{"$f":"IF(LEN(Cotizador!$I$57)>0,Cotizador!$I$57,\"\")","v":""},null,null,null,{"$f":"IF(LEN(Cotizador!$M$57)>0,Cotizador!$M$57,\"\")","v":""},null,null,null,{"$f":"IF(LEN(Cotizador!$Q$57)>0,Cotizador!$Q$57,\"\")","v":""}]
[]
[]
[]
[]
[null,"Año de construcción"]
[null,"Número de Pisos"]
[null,"Número de Sotanos"]
[]
[]
[]
[null,"Cuestionario",null,null,null,null,null,null,"Local 1","Local 2","Local 3"]
[null,"1. Material de construcción noble"]
[null,"Paredes"]
[null,"Ladrillo y cemento en su totalidad"]
[null,"Techos"]
[null,"Concreto aligerado en su totalidad"]
[null,"2. Instalaciones eléctricas empotradas y/o entubadas en su totalidad"]
[null,"3. Cuenta con uno o más extintores contra incendio"]
[null,"4. Cuenta con vigilantes"]
[null,"5. Puertas exteriores (Rejas de fierro y/o cortina metálica y/o planchas de fierro, en su totalidad)"]
[null,"6. Ventanas protegidas por reja de fierro y/o reja plegadiza y/o cortina metálica, en su totalidad"]
[null,"7. Totalidad de su mercadería se encuentra almacenada en el interior de su local bajo las condiciones antes mencionadas"]
[null,"8. Los productos que almacena o tiene dentro de su local son combustibles y/o inflamables"]
[null,"9. La ubicación del inmueble ¿está a mas de 500 metros de distancia de un río, playa o laguna y a más de 15 metros de altura alguno de estos?"]
[]
[null,"PROTECCIÓN DE DATOS PERSONALES"]
[null,"Para la correcta ejecución de la relación contractual, EL CONTRATANTE / ASEGURADO (“EL CLIENTE”) se obliga a mantener actualizada su información personal, financiera y crediticia (“LA INFORMACIÓN”) y reconoce que PACÍFICO SEGUROS podrá tratarla, actualizarla, completarla y realizar flujos transfronterizos conforme a ley."]
[]
[]
[null,"PACÍFICO SEGUROS conservará, tratará y realizará flujos transfronterizos con LA INFORMACIÓN de EL CLIENTE mientras se mantenga la relación contractual y luego de veinte (20) años de finalizado el contrato.\nPara el tratamiento de La INFORMACIÓN de EL CLIENTE, PACÍFICO SEGUROS utilizará diversos Encargados ubicados en el Perú y el extranjero, los cuales se han puesto a disposición del El cliente y también se encuentran detallados en https://www.pacifico.com.pe/transparencia/politica-privacidad."]
[]
[]
[]
[]
[null," Su información será incluida en el banco de datos de Usuarios que se encuentra registrado ante la Autoridad de Protección de Datos Personales bajo el número de registro RNPDP-PJ N.° 774, de titularidad de PACÍFICO SEGUROS, ubicada en Juan de Arona 830, San Isidro, Lima - Perú."]
[]
[]
[null,"EL CLIENTE puede ejercer los derechos de acceso, rectificación, cancelación, revocación y oposición, dirigiéndose a PACÍFICO SEGUROS de forma presencial en cualquiera de sus oficinas a nivel nacional en el horario establecido para la atención al público o por teléfono o a través del Chat ubicado en nuestra página web www.pacifico.com.pe.\nEl detalle de nuestra Política de Privacidad se encuentra disponible en: \nhttps://www.pacifico.com.pe/transparencia/politica-privacidad"]
[]
[]
[]
[]
[null,"AUTORIZACIONES PARA USOS ADICIONALES"]
[null,"EL CLIENTE autoriza que PACÍFICO SEGUROS, de manera directa o a través de sus Encargados:\n- Le oferte cualquiera de nuestros productos de los ramos de Riesgos Generales o de Vida.\n- Le oferte cualquier otro producto o servicio de PACÍFICO SEGUROS o de sus empresas terceras.\n- A transferir su Información a empresas Credicorp (incluyendo subsidiarias, vinculadas y afiliadas) así como socios comerciales (Terceros), para que cada uno de ellos pueda ofertar sus productos o servicios. \n"]
[]
[]
[]
[]
[]
[null,"EL CLIENTE acepta haber tenido a su disposición la lista de Terceros y Encargados que también se encuentra disponible en https://www.pacifico.com.pe/transparencia/politica-privacidad. Dicha lista detalla los posibles usos que los Terceros darán a sus datos personales. El envío de comunicaciones o mensajes con las ofertas y/o publicidades podrá ser remitida a través de medios escritos, verbales (por ejemplo: mensajes, push notification o llamadas telefónicas) o electrónicos/informáticos (por ejemplo correo electrónico)."]
[]
[]
[]
[null,"PACÍFICO SEGUROS y los Terceros podrán conservar y tratar LA INFORMACIÓN de EL CLIENTE en los términos establecidos en esta sección, mientras se mantenga la relación contractual y luego de veinte (20) años de finalizado el contrato.\nLa aceptación o no de esta autorización para usos adicionales (ajenos a la ejecución de la relación contractual) no condiciona la prestación del servicio que EL CLIENTE está contratando.\n"]
[]
[]
[]
[]
[]
[]
[null,"Sí acepto"]
[null,"No acepto y"]
[null,"prefiero perder la oportunidad de recibir nuevas ofertas"]
[]
[null,"Cláusulas Abusivas"]
[null,"“Las condiciones de la presente póliza se encuentran sujetas a una revisión posterior por parte de la Superintendencia de Banca, Seguros y AFPs, por lo que, en caso se identiﬁquen cláusulas abusivas en el marco de la Ley del Contrato de Seguro y normas reglamentarias, y estas no sean subsanadas por PACÍFICO SEGUROS, la Superintendencia de Banca, Seguros y AFPs,"]
[]
[]
[null,"Derecho de arrepentimiento"]
[null,"En el caso que este seguro sea ofertado por un comercializador (incluyendo la Bancaseguro), declaro conocer que tengo derecho a arrepentirme de la contratación de este seguro, sin expresión de causa ni penalidad alguna, dentro del plazo de 15 días de recibir la póliza de seguro o el certiﬁcado de seguro, de ser el caso, ya que se me devuelva la prima que hubiere pagado."]
[]
[]
[]
["Pago de Primas (Datos vienen de la hoja Cotizador)"]
[]
[null,null,"Autorizaciones"]
[]
[null,null,"Forma de pago",{"$f":"IF(Cotizador!$E$82=0,\"\",Cotizador!$E$82)","v":""},null,null,null,null,null,"Emitir Factura?",{"$f":"IF(Cotizador!$I$82=0,\"\",Cotizador!$I$82)","v":""}]
[]
[]
[null,null,"Inicio de Vigencia y Pago"]
[null,null,null,null,null,null,null,null,null,"Nro. Cuotas:",{"$f":"IF(Cotizador!$I$87=0,\"\",Cotizador!$I$87)","v":""}]
[null,null,"Forma de pago",null,null,null,null,null,null,"Inicio Vigencia Póliza:",{"$f":"IF(Cotizador!$I$88=0,\"\",Cotizador!$I$88)","v":""}]
[null,null,"Al Contado",{"$f":"IF(LEN(D126)>0,IF(Cotizador!$AD$22=1,\"X\",\"\"),\"\")","v":""}]
[null,null,"En cuotas",{"$f":"IF(LEN(D126)>0,IF(Cotizador!$AD$22=2,\"X\",\"\"),\"\")","v":""}]
[null,null,null,null,null,null,null,null,null,"Monto Total a Pagar Anual:",{"$f":"IF(Cotizador!$P$91=0,0,Cotizador!$P$91) + IF(Cotizador!$P$102=0,0,Cotizador!$P$102)","v":0}]
[null,null,null,null,null,null,null,null,null,"Monto Total a Pagar Mensual:",{"$f":"IF(Cotizador!$P$92=0,0,Cotizador!$P$92) + IF(Cotizador!$P$103=0,0,Cotizador!$P$103)","v":0}]
[]
[]
["Datos del Corredor de Seguros"]
[]
[null,null,"Canal"]
[]
[null,null,null,null,null,null,null,null,"Tipo Canal:","Corredores"]
[]
[null,null,null,null,null,null,null,null,"Código o Número:"]
[]
[null,null,null,null,null,null,null,null,"Teléfono Corredor:"]
[]
[null,null,"Nombre del Corredor:",null,null,null,null,null,"Correo electrónico:"]

{"sheet":"PagodePrimasLocal1","index":6,"n_rows":48,"n_cols":40,"rows_kept":48,"cut":false,"hidden":false,"merged":[[1,8,2,12],[21,7,22,7],[7,8,7,9],[7,12,7,14],[9,12,9,14],[10,12,10,14],[11,12,11,14],[12,12,12,14]]}
[null,null,null,null,null,null,null,null,null,null,null,null,null,null,null,null,null,null,null,null,null,null,null,null,null,null,null,null,null,null,null,null,null,null,null,null,null,null,{"$f":"IFERROR(IF(OR(K22=4,K22=12),AM5*VLOOKUP(K22,AD35:AF40,3,0),AM5*SUMPRODUCT(($AD$35:$AD$40=K22)*($AE$35:$AE$40=I17)*($AF$35:$AF$40))),0)","v":0},"<- Fórmula anterior…"]
[]
[]
[]
[null,null,null,null,null,null,null,null,null,null,null,null,null,null,null,null,null,null,null,null,null,null,null,null,null,null,1,"SÍ","Pago contado","Incendio",2.1488271999999999,{"$f":"IF(ISERROR($AE$10*AE5),0,$AE$10*AE5)/1000","v":0},{"$f":"+IF($AE$10>50000,AF5,75)*AE21","v":0},{"$f":"+AG5/(1+$AE$14)","v":0},null,{"$f":"IF(LEN(I10)>0,1,0)+IF(LEN(M8)>0,1,0)+IF(LEN(M10)>0,1,0)+IF(LEN(M11)>0,1,0)+IF(LEN(M12)>0,1,0)+IF(LEN(M13)>0,1,0)+IF(LEN(M17)>0,1,0)+IF(LEN(N22)>0,1,0)","v":1},null,"Accidentes",{"$f":"IF(Cotizador!$F$44=\"SÍ\",ACCO!$E$66,\"\")","v":""},{"$f":"IFERROR(AM5/(1+$AE$14),0)","v":0}]
[null,null,null,null,null,null,"Canal",null,null,null,null,null,null,null,null,null,null,null,null,null,null,null,null,null,null,null,2,"NO","En cuotas","Roma",0.2892652,{"$f":"IF(CoberturasaElegirLocal1!M23=\"\",0,IF(ISERROR($AE$10*AE6),0,($AE$10*AE6)))/1000","v":0},{"$f":"+IF(AF6=0,0,IF($AE$10>50000,AF6,25))*AE21","v":0},{"$f":"+AG6/(1+$AE$14)","v":0},null,null,null,null,{"$f":"IFERROR(IF(OR(K22=12),AM5*VLOOKUP(K22,AD35:AF40,3,0),AM5*SUMPRODUCT(($AD$35:$AD$40=K22)*($AE$35:$AE$40=I17)*($AF$35:$AF$40))),0)","v":0},"<- Fórmula modificada el 06 Mayo 2017"]
[null,null,null,null,null,null,null,null,null,null,null,null,null,null,null,null,null,null,null,null,null,null,null,null,null,null,null,null,null,"Eqel",0.2169489,{"$f":"IF(CoberturasaElegirLocal1!M26=\"\",0,IF(ISERROR($AE$10*AE7),0,($AE$10*AE7)))/1000","v":0},{"$f":"+IF(AF7=0,0,IF($AE$10>50000,AF7,25))*AE21","v":0},{"$f":"+AG7/(1+$AE$14)","v":0},null,null,null,null,{"$f":"IFERROR(IF(K22=4,AM5,(AM6*K22)),0)","v":0},"<- Fórmula modificada el 12 Mayo 2017 y el 18 Mayo 2017"]
[null,null,null,null,null,null,null,"Tipo Canal:",{"$f":"IF(Solicitud.Manual!$J$142=0,\"\",Solicitud.Manual!$J$142)","v":"Corredores"},null,null,"Nombre Canal:",{"$f":"IF(Solicitud.Manual!$J$142=0,\"\",Solicitud.Manual!$J$142)","v":"Corredores"},null,null,null,null,null,null,null,null,null,null,null,null,null,null,null,null,"Robo",0.73774477999999999,{"$f":"IF(CoberturasaElegirLocal1!AB7=0,0,IF(ISERROR($AE$10*AE8),0,($AE$10*AE8)))/1000","v":0},{"$f":"+IF(AF8=0,0,IF($AE$10>50000,AF8,75))*AE21","v":0},{"$f":"+AG8/(1+$AE$14)","v":0}]
[null,null,null,null,null,null,null,null,null,null,null,null,null,null,null,null,null,null,null,null,null,null,null,null,null,null,null,null,null,"Resp",{"$f":"IF(Cotizador!$H$17=\"\",0,CoberturasaElegirLocal1!$N$40)","v":0},{"$f":"IF(DatosdelNegocioLocal1!$I$8=\"HOTELES Y HOSPEDAJES (DE 2 Y 3 ESTRELLAS)\",IF(AE9=50000,99,IF(AE9=100000,197,IF(AE9=200000,394,IF(AE9=300000,591,IF(AE9=500000,985,0))))),IF(AE9=50000,45,IF(AE9=100000,91,IF(AE9=200000,181,IF(AE9=300000,272,IF(AE9=500000,453,0))))))","v":0},{"$f":"+AF9*AE21","v":0},{"$f":"+AG9/(1+$AE$14)","v":0}]
[null,null,null,null,null,null,null,"Código o Número:",{"$f":"IF(Solicitud.Manual!$J$144=0,\"\",Solicitud.Manual!$J$144)","v":""},null,null,"Nombre Corredorr:",{"$f":"IF(Solicitud.Manual!$D$148=0,\"\",Solicitud.Manual!$D$148)","v":""},null,null,null,null,null,null,null,null,null,null,null,null,null,null,null,null,"VD",{"$f":"+CoberturasaElegirLocal1!M18","v":""},null,{"$f":"SUM(AG5:AG9)","v":0},{"$f":"SUM(AH5:AH9)","v":0},{"$f":"AG10","v":0},null,null,"Transportes",{"$f":"IF(Cotizador!$F$46=\"SÍ\",IF(LEN(CuestionarioTransporte!$D$26)>0,CuestionarioTransporte!$D$26,\"\"),\"\")","v":""},{"$f":"IFERROR(AM10/(1+$AE$14),0)","v":0}]
[null,null,null,null,null,null,null,null,null,null,null,"DNI Vendedor:",null,null,null,null,null,null,null,null,null,null,null,null,null,null,null,null,null,null,null,null,{"$f":"IF($AF$33=\"RUC\",IF(OR(K22=4,K22=12),AG10*VLOOKUP(K22,AD35:AG40,4,0),AG10*SUMPRODUCT(($AD$35:$AD$40=K22)*($AE$35:$AE$40=I17)*($AG$35:$AG$40))),IF(OR(K22=4,K22=12),AG10*VLOOKUP(K22,AD35:AF40,3,0),AG10*SUMPRODUCT(($AD$35:$AD$40=K22)*($AE$35:$AE$40=I17)*($AF$35:$AF$40))))","v":0},null,null,null,null,null,{"$f":"IF(K22=4,0,IFERROR(IF(OR(K22=4,K22=12),AM10*VLOOKUP(K22,AD35:AF40,3,0),AM10*SUMPRODUCT(($AD$35:$AD$40=K22)*($AE$35:$AE$40=I17)*($AF$35:$AF$40))),0))","v":0}]
[null,null,null,null,null,null,null,null,null,null,null,"Teléfono Vendedor:",{"$f":"IF(Solicitud.Manual!$J$146=0,\"\",Solicitud.Manual!$J$146)","v":""},null,null,null,null,null,null,null,null,null,null,null,null,null,null,null,null,"Forma de pago",null,null,{"$f":"IF(ISERROR(AG11*K22),0,(AG11*K22))","v":0},null,null,null,null,null,{"$f":"SUM(AM10:AM11)","v":0}]
[null,null,null,null,null,null,null,null,null,null,null,"Correo electrónico:",{"$f":"IF(Solicitud.Manual!$J$148=0,\"\",Solicitud.Manual!$J$148)","v":""},null,null,null,null,null,null,null,null,null,null,null,null,null,null,null,null,{"$f":"IF(LEN(Cotizador!$E$82)=0,\"\",Cotizador!$E$82)","v":""}]
[null,null,null,null,null,null,null,null,null,null,null,null,null,null,null,null,null,null,null,null,null,null,null,null,null,null,null,null,null,"IGV",0.18,"Ptasa","Pcliente","Pcomercial"]
[null,null,null,null,null,null,"Autorizaciones",null,null,null,null,null,null,null,null,null,null,null,null,null,null,null,null,null,null,null,null,null,null,2,{"$f":"IF(LEN(I8)>0,1,0)+IF(LEN(M8)>0,1,0)+IF(LEN(M10)>0,1,0)+IF(LEN(I10)>0,1,0)+IF(LEN(AE42)>0,1,0)+IF(LEN(M17)>0,1,0)+IF(LEN(N22)>0,1,0)+IF(LEN(I22)>0,1,0)+IF(LEN(K22)>0,1,0)+IF(LEN(M11)>0,1,0)+IF(LEN(M12)>0,1,0)+IF(LEN(M13)>0,1,0)","v":4}]
[null,null,null,null,null,null,null,null,null,null,null,null,null,null,null,null,null,null,null,null,null,null,null,null,null,null,null,null,1,"Corredores",{"$f":"+IF(AD21=2,\"\",\"Sin Cuotas\")","v":""},null,null,"FFVV"]
[null,null,null,null,null,null,null,"Forma de pago",{"$f":"IF(Cotizador!$E$82=0,\"\",Cotizador!$E$82)","v":""},null,null,"Emitir Factura?",{"$f":"IF(Cotizador!$I$82=0,\"\",Cotizador!$I$82)","v":""},null,null,null,null,null,null,null,null,null,null,null,null,null,null,null,2,"Fuerza de Ventas",null,{"$f":"+IF($AD$21=2,4,\"\")","v":4},null,{"$f":"+IF($AD$21=2,4,\"\")","v":4}]
[null,null,null,null,null,null,null,null,null,null,null,null,null,null,null,null,null,null,null,null,null,null,null,null,null,null,null,null,3,"Televentas",null,{"$f":"+IF($AD$21=2,6,\"\")","v":6},null,{"$f":"+IF($AD$21=2,6,\"\")","v":6}]
[null,null,null,null,null,null,null,null,null,null,null,null,null,null,null,null,null,null,null,null,null,null,null,null,null,null,null,null,null,null,null,{"$f":"+IF($AD$21=2,10,\"\")","v":10},null,{"$f":"+IF($AD$21=2,12,\"\")","v":12}]
[null,null,null,null,null,null,"Inicio de Vigencia y Pago",null,null,null,null,null,null,null,null,null,null,null,null,null,null,null,null,null,null,null,null,null,null,"Interes:",{"$f":"+AF27","v":1},{"$f":"+IF($AD$21=2,IF($AD$13=\"Cupones\",\"\",12),\"\")","v":12}]
[null,null,null,null,null,null,null,null,null,null,null,null,null,null,null,null,null,null,null,null,null,null,null,null,null,null,null,null,null,2,1]
[null,null,null,null,null,null,null,"Forma de Pago:","Al Contado","Nro. Cuotas:",{"$f":"IF(Cotizador!$I$87=0,\"\",Cotizador!$I$87)","v":""},null,"Inicio Vigencia Póliza:",{"$f":"IF(Cotizador!$I$88=0,\"\",Cotizador!$I$88)","v":""},null,null,null,null,null,null,null,null,null,null,null,null,null,null,null,{"$f":"IF(AND(CoberturasaElegirLocal1!M18>0,CoberturasaElegirLocal1!M18<=50000),\"PLAN PYME HASTA 50 MIL DÓLARES\",IF(AND(CoberturasaElegirLocal1!M18>50000,CoberturasaElegirLocal1!M18<=500000),\"PLAN PYME MAYOR A 50 MIL DÓLARES\",IF(CoberturasaElegirLocal1!M18>500000,\"PLAN PYME MAYOR A 500 MIL DÓLARES\",\"\")))","v":"PLAN PYME MAYOR A 500 MIL DÓLARES"}]
[null,null,null,null,null,null,null,null,"En cuotas"]
[null,null,null,null,null,null,null,null,null,null,null,null,null,null,null,null,null,null,null,null,null,null,null,null,null,null,null,null,null,"Al Contado",0,{"$f":"+IF(AE42=\"SÍ\",\"DA\",IF(AE42=\"NO\",\"C\",\"\"))","v":"C"}]
[null,null,null,null,null,null,null,null,null,"Monto Total a Pagar Anual:",{"$f":"+IF(AND(AD21=1,K22=\"\"),AG10,IF(K22=\"\",\"----\",AG12))","v":"----"},"USD",null,null,null,null,null,null,null,null,null,null,null,null,null,null,null,null,null,"En Cuotas4DA",0,{"$f":"+IF(AD21=1,\"Al Contado\",IF(AD21=2,\"En Cuotas\",\"\"))","v":"En Cuotas"}]
[null,null,null,null,null,null,null,null,null,"Monto Total a Pagar Mensual:",{"$f":"IF(ISERROR(IF(K22=\" \",\"---\",K25/K22)),0,IF(K22=\" \",\"---\",K25/K22))","v":0},"USD",null,null,null,null,null,null,null,null,null,null,null,null,null,null,null,null,null,"En Cuotas4C",0,{"$f":"+AF25&K22&AF24","v":"En CuotasC"}]
[null,null,null,null,null,null,null,null,null,null,null,null,null,null,null,null,null,null,null,null,null,null,null,null,null,null,null,null,null,"En Cuotas6DA",0.12,1]
[null,null,null,null,null,null,null,null,null,null,null,null,null,null,null,null,null,null,null,null,null,null,null,null,null,null,null,null,null,"En Cuotas6C",0.17499999999999999,1]
[null,null,null,null,null,null,null,null,null,null,null,null,null,null,null,null,null,null,null,null,null,null,null,null,null,null,null,null,null,"En Cuotas10DA",0.12,{"$f":"+IF(AE42=\"NO\",2,1)","v":2},"Débito"]
[null,null,null,null,null,null,null,null,null,null,null,null,null,null,null,null,null,null,null,null,null,null,null,null,null,null,null,null,null,"En Cuotas10C",0.17499999999999999,{"$f":"+IF(AE43=\"NO\",2,1)","v":2},"cupones"]
[null,null,null,null,null,null,null,null,null,null,null,null,null,null,null,null,null,null,null,null,null,null,null,null,null,null,null,null,null,"En Cuotas12DA",0.12]
[null,null,null,null,null,null,null,null,null,null,null,null,null,null,null,null,null,null,null,null,null,null,null,null,null,null,null,null,null,"En Cuotas12C",0.17499999999999999]
[null,null,null,null,null,null,null,null,null,null,null,null,null,null,null,null,null,null,null,null,null,null,null,null,null,null,null,null,null,null,"Dcto Contratante",{"$f":"Cotizador!$E$81","v":0}]
[null,null,null,null,null,null,null,null,null,null,null,null,null,null,null,null,null,null,null,null,null,null,null,null,null,null,null,null,null,null,null,"P.Natural","P.Juridica"]
[null,null,null,null,null,null,null,null,null,null,null,null,null,null,null,null,null,null,null,null,null,null,null,null,null,null,null,null,null,4,null,0.25,0.25]
[null,null,null,null,null,null,null,null,null,null,null,null,null,null,null,null,null,null,null,null,null,null,null,null,null,null,null,null,null,6,"Cupones",0.17464738217893,0.17224535521308482]
[null,null,null,null,null,null,null,null,null,null,null,null,null,null,null,null,null,null,null,null,null,null,null,null,null,null,null,null,null,10,"Cupones",0.10759130788909588,0.10529275549614135]
[]
[]
[]
[]
[null,null,null,null,null,null,null,null,null,null,null,null,null,null,null,null,null,null,null,null,null,null,null,null,null,null,null,null,null,"Débito Automático:",{"$f":"+IF($I$17=\"Débito Automático\",\"SÍ\",\"NO\")","v":"NO"}]
[null,null,null,null,null,null,null,null,null,null,null,null,null,null,null,null,null,null,null,null,null,null,null,null,null,null,null,null,null,"Cupones:",{"$f":"+IF($I$17=\"Cupones\",\"SÍ\",\"NO\")","v":"NO"}]
[]
[null,null,null,null,null,null,null,null,null,null,null,null,null,null,null,null,null,null,null,null,null,null,null,null,null,null,null,null,null,"Result",{"$f":"+IF(OR(K22=4,K22=12),VLOOKUP(K22,$AD$35:$AF$40,3,0),SUMPRODUCT(($AD$35:$AD$40=K22)*($AE$35:$AE$40=I17)*$AF$35:$AF$40))","v":0}]
[]
[null,null,null,null,null,null,null,null,null,null,null,null,null,null,null,null,null,null,null,null,null,null,null,null,null,null,null,null,null,1,"Débito Automático",2]
[null,null,null,null,null,null,null,null,null,null,null,null,null,null,null,null,null,null,null,null,null,null,null,null,null,null,null,null,null,2,"Cupones"]

{"sheet":"PagodePrimasLocal2","index":7,"n_rows":48,"n_cols":40,"rows_kept":48,"cut":false,"hidden":false,"merged":[[12,12,12,14],[21,7,22,7],[1,8,2,12],[7,8,7,9],[7,12,7,14],[9,12,9,14],[10,12,10,14],[11,12,11,14]]}
[]
[]
[]
[]
[null,null,null,null,null,null,null,null,null,null,null,null,null,null,null,null,null,null,null,null,null,null,null,null,null,null,1,"SÍ","Pago contado","Incendio",2.1488271999999999,{"$f":"IF(ISERROR($AE$10*AE5),0,$AE$10*AE5)/1000","v":0},{"$f":"+IF($AE$10>50000,AF5,75)*AE21","v":0},{"$f":"+AG5/(1+$AE$14)","v":0},null,{"$f":"IF(LEN(I10)>0,1,0)+IF(LEN(M8)>0,1,0)+IF(LEN(M10)>0,1,0)+IF(LEN(M11)>0,1,0)+IF(LEN(M12)>0,1,0)+IF(LEN(M13)>0,1,0)+IF(LEN(M17)>0,1,0)+IF(LEN(N22)>0,1,0)","v":1},null,"Accidentes",{"$f":"IF(Cotizador!$K$44=\"SÍ\",ACCO!$F$66,\"\")","v":""},{"$f":"IFERROR(AM5/(1+$AE$14),0)","v":0}]
[null,null,null,null,null,null,"Canal",null,null,null,null,null,null,null,null,null,null,null,null,null,null,null,null,null,null,null,2,"NO","En cuotas","Roma",0.2892652,{"$f":"IF(CoberturasaElegirLocal2!M23=\"\",0,IF(ISERROR($AE$10*AE6),0,($AE$10*AE6)))/1000","v":0},{"$f":"+IF(AF6=0,0,IF($AE$10>50000,AF6,25))*AE21","v":0},{"$f":"+AG6/(1+$AE$14)","v":0},null,null,null,null,{"$f":"IFERROR(IF(OR(K22=4,K22=12),AM5*VLOOKUP(K22,AD35:AF40,3,0),AM5*SUMPRODUCT(($AD$35:$AD$40=K22)*($AE$35:$AE$40=I17)*($AF$35:$AF$40))),0)","v":0}]
[null,null,null,null,null,null,null,null,null,null,null,null,null,null,null,null,null,null,null,null,null,null,null,null,null,null,null,null,null,"Eqel",0.2169489,{"$f":"IF(CoberturasaElegirLocal2!M26=\"\",0,IF(ISERROR($AE$10*AE7),0,($AE$10*AE7)))/1000","v":0},{"$f":"+IF(AF7=0,0,IF($AE$10>50000,AF7,25))*AE21","v":0},{"$f":"+AG7/(1+$AE$14)","v":0},null,null,null,null,{"$f":"SUM(AM5:AM6)","v":0}]
[null,null,null,null,null,null,null,"Tipo Canal:",{"$f":"IF(Solicitud.Manual!$J$142=0,\"\",Solicitud.Manual!$J$142)","v":"Corredores"},null,null,"Nombre Canal:",{"$f":"IF(Solicitud.Manual!$J$142=0,\"\",Solicitud.Manual!$J$142)","v":"Corredores"},null,null,null,null,null,null,null,null,null,null,null,null,null,null,null,null,"Robo",0.73774477999999999,{"$f":"IF(CoberturasaElegirLocal2!AB7=0,0,IF(ISERROR($AE$10*AE8),0,($AE$10*AE8)))/1000","v":0},{"$f":"+IF(AF8=0,0,IF($AE$10>50000,AF8,75))*AE21","v":0},{"$f":"+AG8/(1+$AE$14)","v":0},null,null,null,null,"<"]
[null,null,null,null,null,null,null,null,null,null,null,null,null,null,null,null,null,null,null,null,null,null,null,null,null,null,null,null,null,"Resp",{"$f":"IF(Cotizador!$M$17=\"\",0,CoberturasaElegirLocal2!$N$40)","v":0},{"$f":"IF(DatosdelNegocioLocal2!$I$8=\"HOTELES Y HOSPEDAJES (DE 2 Y 3 ESTRELLAS)\",IF(AE9=50000,99,IF(AE9=100000,197,IF(AE9=200000,394,IF(AE9=300000,591,IF(AE9=500000,985,0))))),IF(AE9=50000,45,IF(AE9=100000,91,IF(AE9=200000,181,IF(AE9=300000,272,IF(AE9=500000,453,0))))))","v":0},{"$f":"+AF9*AE21","v":0},{"$f":"+AG9/(1+$AE$14)","v":0}]
[null,null,null,null,null,null,null,"Código o Número:",{"$f":"IF(Solicitud.Manual!$J$144=0,\"\",Solicitud.Manual!$J$144)","v":""},null,null,"Nombre Corredorr:",{"$f":"IF(Solicitud.Manual!$D$148=0,\"\",Solicitud.Manual!$D$148)","v":""},null,null,null,null,null,null,null,null,null,null,null,null,null,null,null,null,"VD",{"$f":"+CoberturasaElegirLocal2!M18","v":""},null,{"$f":"SUM(AG5:AG9)","v":0},{"$f":"SUM(AH5:AH9)","v":0},null,null,null,"Transportes",null,{"$f":"+AM10/(1+$AE$14)","v":0}]
[null,null,null,null,null,null,null,null,null,null,null,"DNI Vendedor:",null,null,null,null,null,null,null,null,null,null,null,null,null,null,null,null,null,null,null,null,{"$f":"IF($AF$33=\"RUC\",IF(OR(K22=4,K22=12),AG10*VLOOKUP(K22,AD35:AG40,4,0),AG10*SUMPRODUCT(($AD$35:$AD$40=K22)*($AE$35:$AE$40=I17)*($AG$35:$AG$40))),IF(OR(K22=4,K22=12),AG10*VLOOKUP(K22,AD35:AF40,3,0),AG10*SUMPRODUCT(($AD$35:$AD$40=K22)*($AE$35:$AE$40=I17)*($AF$35:$AF$40))))","v":0}]
[null,null,null,null,null,null,null,null,null,null,null,"Teléfono Vendedor:",{"$f":"IF(Solicitud.Manual!$J$146=0,\"\",Solicitud.Manual!$J$146)","v":""},null,null,null,null,null,null,null,null,null,null,null,null,null,null,null,null,null,null,null,{"$f":"IF(ISERROR(AG11*K22),0,(AG11*K22))","v":0},null,null,null,null,null,{"$f":"SUM(AM10:AM11)","v":0}]
[null,null,null,null,null,null,null,null,null,null,null,"Correo electrónico:",{"$f":"IF(Solicitud.Manual!$J$148=0,\"\",Solicitud.Manual!$J$148)","v":""}]
[null,null,null,null,null,null,null,null,null,null,null,null,null,null,null,null,null,null,null,null,null,null,null,null,null,null,null,null,null,"IGV",0.18,"Ptasa","Pcliente","Pcomercial"]
[null,null,null,null,null,null,"Autorizaciones",null,null,null,null,null,null,null,null,null,null,null,null,null,null,null,null,null,null,null,null,null,null,2,{"$f":"IF(LEN(I8)>0,1,0)+IF(LEN(M8)>0,1,0)+IF(LEN(M10)>0,1,0)+IF(LEN(I10)>0,1,0)+IF(LEN(AE42)>0,1,0)+IF(LEN(M17)>0,1,0)+IF(LEN(N22)>0,1,0)+IF(LEN(I22)>0,1,0)+IF(LEN(K22)>0,1,0)+IF(LEN(M11)>0,1,0)+IF(LEN(M12)>0,1,0)+IF(LEN(M13)>0,1,0)","v":4}]
[null,null,null,null,null,null,null,null,null,null,null,null,null,null,null,null,null,null,null,null,null,null,null,null,null,null,null,null,1,"Corredores",{"$f":"+IF(AD21=2,\"\",\"Sin Cuotas\")","v":""}]
[null,null,null,null,null,null,null,"Forma de pago",{"$f":"IF(Cotizador!$E$82=0,\"\",Cotizador!$E$82)","v":""},null,null,"Emitir Factura?",{"$f":"IF(Cotizador!$I$82=0,\"\",Cotizador!$I$82)","v":""},null,null,null,null,null,null,null,null,null,null,null,null,null,null,null,2,"Fuerza de Ventas",null,{"$f":"+IF($AD$21=2,4,\"\")","v":4}]
[null,null,null,null,null,null,null,null,null,null,null,null,null,null,null,null,null,null,null,null,null,null,null,null,null,null,null,null,3,"Televentas",null,{"$f":"+IF($AD$21=2,6,\"\")","v":6}]
[null,null,null,null,null,null,null,null,null,null,null,null,null,null,null,null,null,null,null,null,null,null,null,null,null,null,null,null,null,null,null,{"$f":"+IF($AD$21=2,10,\"\")","v":10}]
[null,null,null,null,null,null,"Inicio de Vigencia y Pago",null,null,null,null,null,null,null,null,null,null,null,null,null,null,null,null,null,null,null,null,null,null,"Interes:",{"$f":"+AF27","v":1},{"$f":"+IF($AD$21=2,12,\"\")","v":12}]
[null,null,null,null,null,null,null,null,null,null,null,null,null,null,null,null,null,null,null,null,null,null,null,null,null,null,null,null,null,{"$f":"PagodePrimasLocal1!AD21","v":2},1]
[null,null,null,null,null,null,null,"Forma de Pago:","Al Contado","Nro. Cuotas:",{"$f":"IF(Cotizador!$I$87=0,\"\",Cotizador!$I$87)","v":""},null,"Inicio Vigencia Póliza:",{"$f":"IF(Cotizador!$I$88=0,\"\",Cotizador!$I$88)","v":""},null,null,null,null,null,null,null,null,null,null,null,null,null,null,null,{"$f":"IF(AND(CoberturasaElegirLocal2!M18>0,CoberturasaElegirLocal2!M18<=50000),\"PLAN PYME HASTA 50 MIL DÓLARES\",IF(AND(CoberturasaElegirLocal2!M18>50000,CoberturasaElegirLocal2!M18<=500000),\"PLAN PYME MAYOR A 50 MIL DÓLARES\",IF(CoberturasaElegirLocal2!M18>500000,\"PLAN PYME MAYOR A 500 MIL DÓLARES\",\"\")))","v":"PLAN PYME MAYOR A 500 MIL DÓLARES"}]
[null,null,null,null,null,null,null,null,"En cuotas"]
[null,null,null,null,null,null,null,null,null,null,null,null,null,null,null,null,null,null,null,null,null,null,null,null,null,null,null,null,null,"Al Contado",0,{"$f":"+IF(AE42=\"SÍ\",\"DA\",IF(AE42=\"NO\",\"C\",\"\"))","v":"C"}]
[null,null,null,null,null,null,null,null,null,"Monto Total a Pagar Anual:",{"$f":"+IF(AND(AD21=1,K22=\"\"),AG10,IF(K22=\"\",\"----\",AG12))","v":"----"},"USD",null,null,null,null,null,null,null,null,null,null,null,null,null,null,null,null,null,"En Cuotas4DA",0,{"$f":"+IF(AD21=1,\"Al Contado\",IF(AD21=2,\"En Cuotas\",\"\"))","v":"En Cuotas"}]
[null,null,null,null,null,null,null,null,null,"Monto Total a Pagar Mensual:",{"$f":"IF(ISERROR(IF(K22=\" \",\"---\",K25/K22)),0,IF(K22=\" \",\"---\",K25/K22))","v":0},"USD",null,null,null,null,null,null,null,null,null,null,null,null,null,null,null,null,null,"En Cuotas4C",0,{"$f":"+AF25&K22&AF24","v":"En CuotasC"}]
[null,null,null,null,null,null,null,null,null,null,null,null,null,null,null,null,null,null,null,null,null,null,null,null,null,null,null,null,null,"En Cuotas6DA",0.12,1]
[null,null,null,null,null,null,null,null,null,null,null,null,null,null,null,null,null,null,null,null,null,null,null,null,null,null,null,null,null,"En Cuotas6C",0.17499999999999999,1]
[null,null,null,null,null,null,null,null,null,null,null,null,null,null,null,null,null,null,null,null,null,null,null,null,null,null,null,null,null,"En Cuotas10DA",0.12,{"$f":"+IF(AE42=\"NO\",2,1)","v":2},"Débito"]
[null,null,null,null,null,null,null,null,null,null,null,null,null,null,null,null,null,null,null,null,null,null,null,null,null,null,null,null,null,"En Cuotas10C",0.17499999999999999,{"$f":"+IF(AE43=\"NO\",2,1)","v":2},"cupones"]
[null,null,null,null,null,null,null,null,null,null,null,null,null,null,null,null,null,null,null,null,null,null,null,null,null,null,null,null,null,"En Cuotas12DA",0.12]
[null,null,null,null,null,null,null,null,null,null,null,null,null,null,null,null,null,null,null,null,null,null,null,null,null,null,null,null,null,"En Cuotas12C",0.17499999999999999]
[null,null,null,null,null,null,null,null,null,null,null,null,null,null,null,null,null,null,null,null,null,null,null,null,null,null,null,null,null,null,"Dcto Contratante",{"$f":"Cotizador!$E$81","v":0}]
[null,null,null,null,null,null,null,null,null,null,null,null,null,null,null,null,null,null,null,null,null,null,null,null,null,null,null,null,null,null,null,"P.Natural","P.Juridica"]
[null,null,null,null,null,null,null,null,null,null,null,null,null,null,null,null,null,null,null,null,null,null,null,null,null,null,null,null,null,4,null,0.25,0.25]
[null,null,null,null,null,null,null,null,null,null,null,null,null,null,null,null,null,null,null,null,null,null,null,null,null,null,null,null,null,6,"Cupones",0.17464738217893,0.17224535521308482]
[null,null,null,null,null,null,null,null,null,null,null,null,null,null,null,null,null,null,null,null,null,null,null,null,null,null,null,null,null,10,"Cupones",0.10759130788909588,0.10529275549614135]
[]
[]
[]
[]
[null,null,null,null,null,null,null,null,null,null,null,null,null,null,null,null,null,null,null,null,null,null,null,null,null,null,null,null,null,"Débito Automático:",{"$f":"+IF($I$17=\"Débito Automático\",\"SÍ\",\"NO\")","v":"NO"}]
[null,null,null,null,null,null,null,null,null,null,null,null,null,null,null,null,null,null,null,null,null,null,null,null,null,null,null,null,null,"Cupones:",{"$f":"+IF($I$17=\"Cupones\",\"SÍ\",\"NO\")","v":"NO"}]
[]
[null,null,null,null,null,null,null,null,null,null,null,null,null,null,null,null,null,null,null,null,null,null,null,null,null,null,null,null,null,"Result",{"$f":"+IF(OR(K22=4,K22=12),VLOOKUP(K22,$AD$35:$AF$40,3,0),SUMPRODUCT(($AD$35:$AD$40=K22)*($AE$35:$AE$40=I17)*$AF$35:$AF$40))","v":0}]
[]
[null,null,null,null,null,null,null,null,null,null,null,null,null,null,null,null,null,null,null,null,null,null,null,null,null,null,null,null,null,1,"Débito Automático",2]
[null,null,null,null,null,null,null,null,null,null,null,null,null,null,null,null,null,null,null,null,null,null,null,null,null,null,null,null,null,2,"Cupones"]

{"sheet":"PagodePrimasLocal3","index":8,"n_rows":48,"n_cols":40,"rows_kept":48,"cut":false,"hidden":false,"merged":[[12,12,12,14],[21,7,22,7],[1,8,2,12],[7,8,7,9],[7,12,7,14],[9,12,9,14],[10,12,10,14],[11,12,11,14]]}
[]
[]
[]
[]
[null,null,null,null,null,null,null,null,null,null,null,null,null,null,null,null,null,null,null,null,null,null,null,null,null,null,1,"SÍ","Pago contado","Incendio",2.1488271999999999,{"$f":"IF(ISERROR($AE$10*AE5),0,$AE$10*AE5)/1000","v":0},{"$f":"+IF($AE$10>50000,AF5,75)*AE21","v":0},{"$f":"+AG5/(1+$AE$14)","v":0},null,{"$f":"IF(LEN(I10)>0,1,0)+IF(LEN(M8)>0,1,0)+IF(LEN(M10)>0,1,0)+IF(LEN(M11)>0,1,0)+IF(LEN(M12)>0,1,0)+IF(LEN(M13)>0,1,0)+IF(LEN(M17)>0,1,0)+IF(LEN(N22)>0,1,0)","v":1},null,"Accidentes",{"$f":"IF(Cotizador!$P$44=\"SÍ\",ACCO!$G$66,\"\")","v":""},{"$f":"IFERROR(AM5/(1+$AE$14),0)","v":0}]
[null,null,null,null,null,null,"Canal",null,null,null,null,null,null,null,null,null,null,null,null,null,null,null,null,null,null,null,2,"NO","En cuotas","Roma",0.2892652,{"$f":"IF(CoberturasaElegirLocal3!M23=\"\",0,IF(ISERROR($AE$10*AE6),0,($AE$10*AE6)))/1000","v":0},{"$f":"+IF(AF6=0,0,IF($AE$10>50000,AF6,25))*AE21","v":0},{"$f":"+AG6/(1+$AE$14)","v":0},null,null,null,null,{"$f":"IFERROR(IF(OR(K22=4,K22=12),AM5*VLOOKUP(K22,AD35:AF40,3,0),AM5*SUMPRODUCT(($AD$35:$AD$40=K22)*($AE$35:$AE$40=I17)*($AF$35:$AF$40))),0)","v":0}]
[null,null,null,null,null,null,null,null,null,null,null,null,null,null,null,null,null,null,null,null,null,null,null,null,null,null,null,null,null,"Eqel",0.2169489,{"$f":"IF(CoberturasaElegirLocal3!M26=\"\",0,IF(ISERROR($AE$10*AE7),0,($AE$10*AE7)))/1000","v":0},{"$f":"+IF(AF7=0,0,IF($AE$10>50000,AF7,25))*AE21","v":0},{"$f":"+AG7/(1+$AE$14)","v":0},null,null,null,null,{"$f":"SUM(AM5:AM6)","v":0}]
[null,null,null,null,null,null,null,"Tipo Canal:",{"$f":"IF(Solicitud.Manual!$J$142=0,\"\",Solicitud.Manual!$J$142)","v":"Corredores"},null,null,"Nombre Canal:",{"$f":"IF(Solicitud.Manual!$J$142=0,\"\",Solicitud.Manual!$J$142)","v":"Corredores"},null,null,null,null,null,null,null,null,null,null,null,null,null,null,null,null,"Robo",0.73774477999999999,{"$f":"IF(CoberturasaElegirLocal3!AB7=0,0,IF(ISERROR($AE$10*AE8),0,($AE$10*AE8)))/1000","v":0},{"$f":"+IF(AF8=0,0,IF($AE$10>50000,AF8,75))*AE21","v":0},{"$f":"+AG8/(1+$AE$14)","v":0},null,null,null,null,"<"]
[null,null,null,null,null,null,null,null,null,null,null,null,null,null,null,null,null,null,null,null,null,null,null,null,null,null,null,null,null,"Resp",{"$f":"IF(Cotizador!$R$17=\"\",0,CoberturasaElegirLocal3!$N$40)","v":0},{"$f":"IF(DatosdelNegocioLocal3!$I$8=\"HOTELES Y HOSPEDAJES (DE 2 Y 3 ESTRELLAS)\",IF(AE9=50000,99,IF(AE9=100000,197,IF(AE9=200000,394,IF(AE9=300000,591,IF(AE9=500000,985,0))))),IF(AE9=50000,45,IF(AE9=100000,91,IF(AE9=200000,181,IF(AE9=300000,272,IF(AE9=500000,453,0))))))","v":0},{"$f":"+AF9*AE21","v":0},{"$f":"+AG9/(1+$AE$14)","v":0}]
[null,null,null,null,null,null,null,"Código o Número:",{"$f":"IF(Solicitud.Manual!$J$144=0,\"\",Solicitud.Manual!$J$144)","v":""},null,null,"Nombre Corredorr:",{"$f":"IF(Solicitud.Manual!$D$148=0,\"\",Solicitud.Manual!$D$148)","v":""},null,null,null,null,null,null,null,null,null,null,null,null,null,null,null,null,"VD",{"$f":"+CoberturasaElegirLocal3!M18","v":""},null,{"$f":"SUM(AG5:AG9)","v":0},{"$f":"SUM(AH5:AH9)","v":0},null,null,null,"Transportes",null,{"$f":"+AM10/(1+$AE$14)","v":0}]
[null,null,null,null,null,null,null,null,null,null,null,"DNI Vendedor:",null,null,null,null,null,null,null,null,null,null,null,null,null,null,null,null,null,null,null,null,{"$f":"IF($AF$33=\"RUC\",IF(OR(K22=4,K22=12),AG10*VLOOKUP(K22,AD35:AG40,4,0),AG10*SUMPRODUCT(($AD$35:$AD$40=K22)*($AE$35:$AE$40=I17)*($AG$35:$AG$40))),IF(OR(K22=4,K22=12),AG10*VLOOKUP(K22,AD35:AF40,3,0),AG10*SUMPRODUCT(($AD$35:$AD$40=K22)*($AE$35:$AE$40=I17)*($AF$35:$AF$40))))","v":0}]
[null,null,null,null,null,null,null,null,null,null,null,"Teléfono Vendedor:",{"$f":"IF(Solicitud.Manual!$J$146=0,\"\",Solicitud.Manual!$J$146)","v":""},null,null,null,null,null,null,null,null,null,null,null,null,null,null,null,null,null,null,null,{"$f":"IF(ISERROR(AG11*K22),0,(AG11*K22))","v":0},null,null,null,null,null,{"$f":"SUM(AM10:AM11)","v":0}]
[null,null,null,null,null,null,null,null,null,null,null,"Correo electrónico:",{"$f":"IF(Solicitud.Manual!$J$148=0,\"\",Solicitud.Manual!$J$148)","v":""}]
[null,null,null,null,null,null,null,null,null,null,null,null,null,null,null,null,null,null,null,null,null,null,null,null,null,null,null,null,null,"IGV",0.18,"Ptasa","Pcliente","Pcomercial"]
[null,null,null,null,null,null,"Autorizaciones",null,null,null,null,null,null,null,null,null,null,null,null,null,null,null,null,null,null,null,null,null,null,2,{"$f":"IF(LEN(I8)>0,1,0)+IF(LEN(M8)>0,1,0)+IF(LEN(M10)>0,1,0)+IF(LEN(I10)>0,1,0)+IF(LEN(AE42)>0,1,0)+IF(LEN(M17)>0,1,0)+IF(LEN(N22)>0,1,0)+IF(LEN(I22)>0,1,0)+IF(LEN(K22)>0,1,0)+IF(LEN(M11)>0,1,0)+IF(LEN(M12)>0,1,0)+IF(LEN(M13)>0,1,0)","v":4}]
[null,null,null,null,null,null,null,null,null,null,null,null,null,null,null,null,null,null,null,null,null,null,null,null,null,null,null,null,1,"Corredores",{"$f":"+IF(AD21=2,\"\",\"Sin Cuotas\")","v":""}]
[null,null,null,null,null,null,null,"Forma de pago",{"$f":"IF(Cotizador!$E$82=0,\"\",Cotizador!$E$82)","v":""},null,null,"Emitir Factura?",{"$f":"IF(Cotizador!$I$82=0,\"\",Cotizador!$I$82)","v":""},null,null,null,null,null,null,null,null,null,null,null,null,null,null,null,2,"Fuerza de Ventas",null,{"$f":"+IF($AD$21=2,4,\"\")","v":4}]
[null,null,null,null,null,null,null,null,null,null,null,null,null,null,null,null,null,null,null,null,null,null,null,null,null,null,null,null,3,"Televentas",null,{"$f":"+IF($AD$21=2,6,\"\")","v":6}]
[null,null,null,null,null,null,null,null,null,null,null,null,null,null,null,null,null,null,null,null,null,null,null,null,null,null,null,null,null,null,null,{"$f":"+IF($AD$21=2,10,\"\")","v":10}]
[null,null,null,null,null,null,"Inicio de Vigencia y Pago",null,null,null,null,null,null,null,null,null,null,null,null,null,null,null,null,null,null,null,null,null,null,"Interes:",{"$f":"+AF27","v":1},{"$f":"+IF($AD$21=2,12,\"\")","v":12}]
[null,null,null,null,null,null,null,null,null,null,null,null,null,null,null,null,null,null,null,null,null,null,null,null,null,null,null,null,null,{"$f":"PagodePrimasLocal1!AD21","v":2},1]
[null,null,null,null,null,null,null,"Forma de Pago:","Al Contado","Nro. Cuotas:",{"$f":"IF(Cotizador!$I$87=0,\"\",Cotizador!$I$87)","v":""},null,"Inicio Vigencia Póliza:",{"$f":"IF(Cotizador!$I$88=0,\"\",Cotizador!$I$88)","v":""},null,null,null,null,null,null,null,null,null,null,null,null,null,null,null,{"$f":"IF(AND(CoberturasaElegirLocal3!M18>0,CoberturasaElegirLocal3!M18<=50000),\"PLAN PYME HASTA 50 MIL DÓLARES\",IF(AND(CoberturasaElegirLocal3!M18>50000,CoberturasaElegirLocal3!M18<=500000),\"PLAN PYME MAYOR A 50 MIL DÓLARES\",IF(CoberturasaElegirLocal3!M18>500000,\"PLAN PYME MAYOR A 500 MIL DÓLARES\",\"\")))","v":"PLAN PYME MAYOR A 500 MIL DÓLARES"}]
[null,null,null,null,null,null,null,null,"En cuotas"]
[null,null,null,null,null,null,null,null,null,null,null,null,null,null,null,null,null,null,null,null,null,null,null,null,null,null,null,null,null,"Al Contado",0,{"$f":"+IF(AE42=\"SÍ\",\"DA\",IF(AE42=\"NO\",\"C\",\"\"))","v":"C"}]
[null,null,null,null,null,null,null,null,null,"Monto Total a Pagar Anual:",{"$f":"+IF(AND(AD21=1,K22=\"\"),AG10,IF(K22=\"\",\"----\",AG12))","v":"----"},"USD",null,null,null,null,null,null,null,null,null,null,null,null,null,null,null,null,null,"En Cuotas4DA",0,{"$f":"+IF(AD21=1,\"Al Contado\",IF(AD21=2,\"En Cuotas\",\"\"))","v":"En Cuotas"}]
[null,null,null,null,null,null,null,null,null,"Monto Total a Pagar Mensual:",{"$f":"IF(ISERROR(IF(K22=\" \",\"---\",K25/K22)),0,IF(K22=\" \",\"---\",K25/K22))","v":0},"USD",null,null,null,null,null,null,null,null,null,null,null,null,null,null,null,null,null,"En Cuotas4C",0,{"$f":"+AF25&K22&AF24","v":"En CuotasC"}]
[null,null,null,null,null,null,null,null,null,null,null,null,null,null,null,null,null,null,null,null,null,null,null,null,null,null,null,null,null,"En Cuotas6DA",0.12,1]
[null,null,null,null,null,null,null,null,null,null,null,null,null,null,null,null,null,null,null,null,null,null,null,null,null,null,null,null,null,"En Cuotas6C",0.17499999999999999,1]
[null,null,null,null,null,null,null,null,null,null,null,null,null,null,null,null,null,null,null,null,null,null,null,null,null,null,null,null,null,"En Cuotas10DA",0.12,{"$f":"+IF(AE42=\"NO\",2,1)","v":2},"Débito"]
[null,null,null,null,null,null,null,null,null,null,null,null,null,null,null,null,null,null,null,null,null,null,null,null,null,null,null,null,null,"En Cuotas10C",0.17499999999999999,{"$f":"+IF(AE43=\"NO\",2,1)","v":2},"cupones"]
[null,null,null,null,null,null,null,null,null,null,null,null,null,null,null,null,null,null,null,null,null,null,null,null,null,null,null,null,null,"En Cuotas12DA",0.12]
[null,null,null,null,null,null,null,null,null,null,null,null,null,null,null,null,null,null,null,null,null,null,null,null,null,null,null,null,null,"En Cuotas12C",0.17499999999999999]
[null,null,null,null,null,null,null,null,null,null,null,null,null,null,null,null,null,null,null,null,null,null,null,null,null,null,null,null,null,null,"Dcto Contratante",{"$f":"Cotizador!$E$81","v":0}]
[null,null,null,null,null,null,null,null,null,null,null,null,null,null,null,null,null,null,null,null,null,null,null,null,null,null,null,null,null,null,null,"P.Natural","P.Juridica"]
[null,null,null,null,null,null,null,null,null,null,null,null,null,null,null,null,null,null,null,null,null,null,null,null,null,null,null,null,null,4,null,0.25,0.25]
[null,null,null,null,null,null,null,null,null,null,null,null,null,null,null,null,null,null,null,null,null,null,null,null,null,null,null,null,null,6,"Cupones",0.17464738217893,0.17224535521308482]
[null,null,null,null,null,null,null,null,null,null,null,null,null,null,null,null,null,null,null,null,null,null,null,null,null,null,null,null,null,10,"Cupones",0.10759130788909588,0.10529275549614135]
[]
[]
[]
[]
[null,null,null,null,null,null,null,null,null,null,null,null,null,null,null,null,null,null,null,null,null,null,null,null,null,null,null,null,null,"Débito Automático:",{"$f":"+IF($I$17=\"Débito Automático\",\"SÍ\",\"NO\")","v":"NO"}]
[null,null,null,null,null,null,null,null,null,null,null,null,null,null,null,null,null,null,null,null,null,null,null,null,null,null,null,null,null,"Cupones:",{"$f":"+IF($I$17=\"Cupones\",\"SÍ\",\"NO\")","v":"NO"}]
[]
[null,null,null,null,null,null,null,null,null,null,null,null,null,null,null,null,null,null,null,null,null,null,null,null,null,null,null,null,null,"Result",{"$f":"+IF(OR(K22=4,K22=12),VLOOKUP(K22,$AD$35:$AF$40,3,0),SUMPRODUCT(($AD$35:$AD$40=K22)*($AE$35:$AE$40=I17)*$AF$35:$AF$40))","v":0}]
[]
[null,null,null,null,null,null,null,null,null,null,null,null,null,null,null,null,null,null,null,null,null,null,null,null,null,null,null,null,null,1,"Débito Automático",2]
[null,null,null,null,null,null,null,null,null,null,null,null,null,null,null,null,null,null,null,null,null,null,null,null,null,null,null,null,null,2,"Cupones"]

{"sheet":"CoberturasaElegirLocal1","index":9,"n_rows":40,"n_cols":30,"rows_kept":40,"cut":false,"hidden":false,"merged":[[26,13,27,13],[35,12,36,12],[35,13,36,13],[1,8,2,12],[10,7,10,11],[11,7,11,11],[18,6,18,15],[12,7,12,11],[13,7,13,11],[14,7,14,11],[26,12,27,12],[37,8,37,11],[15,7,15,11],[17,7,17,11],[26,8,27,11],[35,8,36,11]]}
[]
[]
[]
[]
[null,null,null,null,null,null,null,null,null,null,null,null,null,null,null,{"$f":"+YEAR(TODAY())-50","v":1971},null,null,null,null,null,null,null,null,null,null,null,"SÍ",{"$f":"IF(ISERROR($M$31/$AB$7),0,$M$31/$AB$7)","v":0}]
[null,null,null,null,null,null,"Declaración de Bienes",null,null,null,null,null,null,null,null,null,null,null,null,null,null,null,null,null,null,null,null,"NO",{"$f":"IF(ISERROR($M$32/$AB$7),0,$M$32/$AB$7)","v":0}]
[null,null,null,null,null,null,null,null,null,null,null,null,null,null,null,null,null,null,null,null,null,null,null,null,null,null,null,{"$f":"+SUM(M31:M35)","v":0},{"$f":"IF(ISERROR($M$33/$AB$7),0,$M$33/$AB$7)","v":0}]
[null,null,null,null,null,null,null,"Tipo de Moneda:",{"$f":"IF(Cotizador!$D$7=0,\"\",Cotizador!$D$7)","v":"USD"},null,null,null,"Endosado al Banco?:",{"$f":"IF(Cotizador!$I$7=0,\"\",Cotizador!$I$7)","v":"NO"},null,null,null,null,null,null,null,null,null,null,null,1,null,null,{"$f":"IF(ISERROR($M$34/$AB$7),0,$M$34/$AB$7)","v":0}]
[null,null,null,null,null,null,null,null,null,null,null,null,null,null,null,null,null,null,null,null,null,null,null,null,null,2,null,null,{"$f":"IF(ISERROR($M$35/$AB$7),0,$M$35/$AB$7)","v":0}]
[null,null,null,null,null,null,null,null,null,null,null,null,"Totales","Endosado",null,null,null,null,null,null,null,null,null,null,null,3]
[null,null,null,null,null,null,null,"Edificio (sin considerar el valor del terreno)",null,null,null,null,{"$f":"IF(Cotizador!$H$10=0,\"\",Cotizador!$H$10)","v":""},{"$f":"IF(Cotizador!$I$10=0,\"\",Cotizador!$I$10)","v":""},{"$f":"IF(N11=\"\",\"\",IF(OR(AND($N$8=\"NO\",N11>0),AND($N$8=\"SÍ\",M11=\"\")),\"Endosado Invalido\",\"\"))","v":""},null,null,null,null,null,null,null,null,null,null,4]
[null,null,null,null,null,null,null,"Instalaciones fijas",null,null,null,null,{"$f":"IF(Cotizador!$H$11=0,\"\",Cotizador!$H$11)","v":""},{"$f":"IF(Cotizador!$I$11=0,\"\",Cotizador!$I$11)","v":""},"",null,null,null,null,null,null,null,null,null,null,5,null,"RM",1,2]
[null,null,null,null,null,null,null,"Mobiliario y/o contenido propios del giro",null,null,null,null,{"$f":"IF(Cotizador!$H$12=0,\"\",Cotizador!$H$12)","v":""},{"$f":"IF(Cotizador!$I$12=0,\"\",Cotizador!$I$12)","v":""},"",null,null,null,null,null,null,null,null,null,null,null,null,"EQEL",1]
[null,null,null,null,null,null,null,"Existencias propias del giro del negocio",null,null,null,null,{"$f":"IF(Cotizador!$H$13=0,\"\",Cotizador!$H$13)","v":""},{"$f":"IF(Cotizador!$I$13=0,\"\",Cotizador!$I$13)","v":""},"",null,null,null,null,null,null,null,null,null,null,null,null,"EQMOV",1]
[null,null,null,null,null,null,null,"Maquinaria propia del giro del negocio",null,null,null,null,{"$f":"IF(Cotizador!$H$14=0,\"\",Cotizador!$H$14)","v":""},{"$f":"IF(Cotizador!$I$14=0,\"\",Cotizador!$I$14)","v":""},"",null,null,null,null,null,null,null,null,null,null,null,null,"ROBO",1]
[null,null,null,null,null,null,null,"Equipos electrónicos propios del giro del negocio",null,null,null,null,{"$f":"IF(Cotizador!$H$15=0,\"\",Cotizador!$H$15)","v":""},{"$f":"IF(Cotizador!$I$15=0,\"\",Cotizador!$I$15)","v":""},"",null,null,null,null,null,null,null,null,null,null,null,null,"DINERO",1]
[null,null,null,null,null,null,null,"Lucro Cesante",null,null,null,null,{"$f":"IF(Cotizador!$H$16=0,\"\",Cotizador!$H$16)","v":""},{"$f":"IF(Cotizador!$I$16=0,\"\",Cotizador!$I$16)","v":""},null,null,null,null,null,null,null,null,null,null,null,null,null,"RC",1]
[null,null,null,null,null,null,null,"TOTAL VALOR DECLARADO (Máximo 2'000,000 USD)",null,null,null,null,{"$f":"+IF(OR(SUM($M$11:$M$17)<=0,SUM($M$11:$M$17)>2000000),\"\",SUM($M$11:$M$17))","v":""},{"$f":"+IF($M$18=\"\",\"\",IF($N$8=\"NO\",\"\",(IF(SUM($N$11:$N$17)>SUM($M$11:$M$17),\"\",SUM($N$11:$N$17)))))","v":""},null,null,null,null,null,null,null,null,null,null,null,null,null,"DINEROTRANS",1]
[null,null,null,null,null,null,{"$f":"+IF(SUM(M11:M16)>2000000,\"Sus Valores suman \"&SUM(M11:M16)&\" USD, por favor corrija los montos\",\"\")","v":""}]
[null,null,null,null,null,null,"Coberturas"]
[]
[null,null,null,null,null,null,null,null,null,null,null,null,"Valor Declarado","Valor Asegurado"]
[null,null,null,null,null,null,null,{"$f":"IF(Cotizador!$F$40=0,\"\",Cotizador!$F$40)","v":"NO"},"Rotura de Maquinaria",null,null,null,{"$f":"+IF($M$18=\"\",\"\",IF($H$23=\"NO\",\"\",IF($M$15>0,$M$15,\"\")))","v":""},{"$f":"+IF($M$23=\"\",\"\",IF($M$23>200000,200000,$M$23))","v":""}]
[]
[null,null,null,null,null,null,null,null,"Equipo Electrónico"]
[null,null,null,null,null,null,null,{"$f":"IF(Cotizador!$F$36=0,\"\",Cotizador!$F$36)","v":"NO"},"Equipos electrónicos propios del giro del negocio",null,null,null,{"$f":"+IF($M$18=\"\",\"\",IF($H$26=\"NO\",\"\",IF($M$16>0,$M$16,\"\")))","v":""},{"$f":"+IF($M$26=\"\",\"\",IF($M$26>50000,50000,$M$26))","v":""}]
[null,null,null,null,null,null,null,{"$f":"IF(Cotizador!$F$37=0,\"\",Cotizador!$F$37)","v":"NO"},"Equipos móviles y portátiles fuera del predio limitado a laptops y/o notebooks",null,null,null,{"$f":"+IF($H$27=\"NO\",\"\",IF($N$26=\"\",\"\",IF(3000>$N$26,$N$26,3000)))","v":""},{"$f":"+IF($M$27=\"\",\"\",$M$27)","v":""}]
[]
[]
[null,null,null,null,null,null,null,{"$f":"IF(Cotizador!$F$23=0,\"\",Cotizador!$F$23)","v":"SI"},"Robo y/o Asalto"]
[null,null,null,null,null,null,null,null,"Instalaciones fijas",null,null,null,{"$f":"+IF($M$18=\"\",\"\",IF($H$30=\"NO\",\"\",IF($M$12>0,$M$12,\"\")))","v":""},{"$f":"+IF($M$31=\"\",\"\",IF($M$31>100000*AC5,100000*$AC$5,$M$31))","v":""}]
[null,null,null,null,null,null,null,null,"Mobiliario y/o contenido propios del giro del negocio",null,null,null,{"$f":"+IF($M$18=\"\",\"\",IF($H$30=\"NO\",\"\",IF($M$13>0,$M$13,\"\")))","v":""},{"$f":"+IF($M$32=\"\",\"\",IF($M$32>100000*AC6,100000*$AC$6,$M$32))","v":""}]
[null,null,null,null,null,null,null,null,"Existencias propias del giro del negocio",null,null,null,{"$f":"+IF($M$18=\"\",\"\",IF($H$30=\"NO\",\"\",IF($M$14>0,$M$14,\"\")))","v":""},{"$f":"+IF($M$33=\"\",\"\",IF($M$33>100000*$AC$7,100000*$AC$7,$M$33))","v":""}]
[null,null,null,null,null,null,null,null,"Maquinaria propia del giro del negocio",null,null,null,{"$f":"+IF($M$18=\"\",\"\",IF($H$30=\"NO\",\"\",IF($M$15>0,$M$15,\"\")))","v":""},{"$f":"+IF($M$34=\"\",\"\",IF($M$34>100000*$AC$8,100000*$AC$8,$M$34))","v":""}]
[null,null,null,null,null,null,null,null,"Equipo electrónico fijo",null,null,null,{"$f":"+IF($M$18=\"\",\"\",IF($H$30=\"NO\",\"\",IF($M$16>0,$M$16,\"\")))","v":""},{"$f":"+IF($M$35=\"\",\"\",IF($M$35>100000*$AC$9,100000*$AC$9,$M$35))","v":""}]
[null,null,null,null,null,null,null,{"$f":"IF(Cotizador!$F$29=0,\"\",Cotizador!$F$29)","v":"SI"},"Dinero y/o valores dentro del local (caja chica y/o caja\nregistradora)",null,null,null,{"$f":"IF(Cotizador!$H$29=0,\"\",Cotizador!$H$29)","v":"---------"},{"$f":"+IF($AB$7=0,\"\",IF($H$36=\"NO\",\"\",IF($AB$7<3000,$AB$7,3000)))","v":""}]
[]
[null,null,null,null,null,null,null,{"$f":"IF(Cotizador!$F$31=0,\"\",Cotizador!$F$31)","v":"SI"},"Dinero en Tránsito",null,null,null,{"$f":"IF(Cotizador!$H$31=0,\"\",Cotizador!$H$31)","v":"---------"},{"$f":"+IF($AB$7=0,\"\",IF($H$38=\"NO\",\"\",IF($AB$7<3000,$AB$7,3000)))","v":""}]
[]
[null,null,null,null,null,null,null,{"$f":"IF(Cotizador!$F$33=0,\"\",Cotizador!$F$33)","v":"SI"},"Responsabilidad Civil",null,"Opción:",{"$f":"IF(Cotizador!$H$33=0,\"\",Cotizador!$H$33)","v":1},null,{"$f":"IF(H17=\"\",\"\",IF(H40=\"NO\",\"\",IF(L40=1,50000,IF(L40=2,100000,IF(L40=3,200000,IF(L40=4,300000,500000))))))","v":50000}]

{"sheet":"CoberturasaElegirLocal2","index":10,"n_rows":40,"n_cols":30,"rows_kept":40,"cut":false,"hidden":false,"merged":[[14,7,14,11],[1,8,2,12],[10,7,10,11],[11,7,11,11],[12,7,12,11],[13,7,13,11],[35,8,36,11],[35,12,36,12],[35,13,36,13],[37,8,37,11],[15,7,15,11],[17,7,17,11],[18,6,18,15],[26,8,27,11],[26,12,27,12],[26,13,27,13]]}
[]
[]
[]
[]
[null,null,null,null,null,null,null,null,null,null,null,null,null,null,null,null,null,null,null,null,null,null,null,null,null,null,null,"SÍ",{"$f":"IF(ISERROR($M$31/$AB$7),0,$M$31/$AB$7)","v":0}]
[null,null,null,null,null,null,"Declaración de Bienes",null,null,null,null,null,null,null,null,null,null,null,null,null,null,null,null,null,null,null,null,"NO",{"$f":"IF(ISERROR($M$32/$AB$7),0,$M$32/$AB$7)","v":0}]
[null,null,null,null,null,null,null,null,null,null,null,null,null,null,null,null,null,null,null,null,null,null,null,null,null,null,null,{"$f":"+SUM(M31:M35)","v":0},{"$f":"IF(ISERROR($M$33/$AB$7),0,$M$33/$AB$7)","v":0}]
[null,null,null,null,null,null,null,"Tipo de Moneda:",{"$f":"IF(Cotizador!$D$7=0,\"\",Cotizador!$D$7)","v":"USD"},null,null,null,"Endosado al Banco?:",{"$f":"IF(Cotizador!$N$7=0,\"\",Cotizador!$N$7)","v":"NO"},null,null,null,null,null,null,null,null,null,null,null,1,null,null,{"$f":"IF(ISERROR($M$34/$AB$7),0,$M$34/$AB$7)","v":0}]
[null,null,null,null,null,null,null,null,null,null,null,null,null,null,null,null,null,null,null,null,null,null,null,null,null,2,null,null,{"$f":"IF(ISERROR($M$35/$AB$7),0,$M$35/$AB$7)","v":0}]
[null,null,null,null,null,null,null,null,null,null,null,null,"Totales","Endosado",null,null,null,null,null,null,null,null,null,null,null,3]
[null,null,null,null,null,null,null,"Edificio (sin considerar el valor del terreno ni Instalaciones Fijas)",null,null,null,null,{"$f":"IF(Cotizador!$M$10=0,\"\",Cotizador!$M$10)","v":""},{"$f":"IF(Cotizador!$N$10=0,\"\",Cotizador!$N$10)","v":""},{"$f":"IF(N11=\"\",\"\",IF(OR(AND($N$8=\"NO\",N11>0),AND($N$8=\"SÍ\",M11=\"\")),\"Endosado Invalido\",\"\"))","v":""},null,null,null,null,null,null,null,null,null,null,4]
[null,null,null,null,null,null,null,"Instalaciones fijas",null,null,null,null,{"$f":"IF(Cotizador!$M$11=0,\"\",Cotizador!$M$11)","v":""},{"$f":"IF(Cotizador!$N$11=0,\"\",Cotizador!$N$11)","v":""},"",null,null,null,null,null,null,null,null,null,null,5,null,"RM",1,2]
[null,null,null,null,null,null,null,"Mobiliario y/o contenido propios del giro",null,null,null,null,{"$f":"IF(Cotizador!$M$12=0,\"\",Cotizador!$M$12)","v":""},{"$f":"IF(Cotizador!$N$12=0,\"\",Cotizador!$N$12)","v":""},"",null,null,null,null,null,null,null,null,null,null,null,null,"EQEL",1]
[null,null,null,null,null,null,null,"Existencias propias del giro del negocio",null,null,null,null,{"$f":"IF(Cotizador!$M$13=0,\"\",Cotizador!$M$13)","v":""},{"$f":"IF(Cotizador!$N$13=0,\"\",Cotizador!$N$13)","v":""},"",null,null,null,null,null,null,null,null,null,null,null,null,"EQMOV",1]
[null,null,null,null,null,null,null,"Maquinaria propia del giro del negocio",null,null,null,null,{"$f":"IF(Cotizador!$M$14=0,\"\",Cotizador!$M$14)","v":""},{"$f":"IF(Cotizador!$N$14=0,\"\",Cotizador!$N$14)","v":""},"",null,null,null,null,null,null,null,null,null,null,null,null,"ROBO",1]
[null,null,null,null,null,null,null,"Equipos electrónicos propios del giro del negocio",null,null,null,null,{"$f":"IF(Cotizador!$M$15=0,\"\",Cotizador!$M$15)","v":""},{"$f":"IF(Cotizador!$N$15=0,\"\",Cotizador!$N$15)","v":""},"",null,null,null,null,null,null,null,null,null,null,null,null,"DINERO",1]
[null,null,null,null,null,null,null,"Lucro Cesante",null,null,null,null,{"$f":"IF(Cotizador!$M$16=0,\"\",Cotizador!$M$16)","v":""},{"$f":"IF(Cotizador!$N$16=0,\"\",Cotizador!$N$16)","v":""},null,null,null,null,null,null,null,null,null,null,null,null,null,"RC",1]
[null,null,null,null,null,null,null,"TOTAL VALOR DECLARADO (Máximo 2'000,000 USD)",null,null,null,null,{"$f":"+IF(OR(SUM($M$11:$M$17)<=0,SUM($M$11:$M$17)>2000000),\"\",SUM($M$11:$M$17))","v":""},{"$f":"+IF($M$18=\"\",\"\",IF($N$8=\"NO\",\"\",(IF(SUM($N$11:$N$17)>SUM($M$11:$M$17),\"\",SUM($N$11:$N$17)))))","v":""},null,null,null,null,null,null,null,null,null,null,null,null,null,"DINEROTRANS",1]
[null,null,null,null,null,null,{"$f":"+IF(SUM(M11:M16)>2000000,\"Sus Valores suman \"&SUM(M11:M16)&\" USD, por favor corrija los montos\",\"\")","v":""}]
[null,null,null,null,null,null,"Coberturas"]
[]
[null,null,null,null,null,null,null,null,null,null,null,null,"Valor Declarado","Valor Asegurado"]
[null,null,null,null,null,null,null,{"$f":"IF(Cotizador!$K$40=0,\"\",Cotizador!$K$40)","v":"NO"},"Rotura de Maquinaria",null,null,null,{"$f":"+IF($M$18=\"\",\"\",IF($H$23=\"NO\",\"\",IF($M$15>0,$M$15,\"\")))","v":""},{"$f":"+IF($M$23=\"\",\"\",IF($M$23>200000,200000,$M$23))","v":""}]
[]
[null,null,null,null,null,null,null,null,"Equipo Electrónico"]
[null,null,null,null,null,null,null,{"$f":"IF(Cotizador!$K$36=0,\"\",Cotizador!$K$36)","v":"NO"},"Equipos electrónicos propios del giro del negocio",null,null,null,{"$f":"+IF($M$18=\"\",\"\",IF($H$26=\"NO\",\"\",IF($M$16>0,$M$16,\"\")))","v":""},{"$f":"+IF($M$26=\"\",\"\",IF($M$26>50000,50000,$M$26))","v":""}]
[null,null,null,null,null,null,null,{"$f":"IF(Cotizador!$K$37=0,\"\",Cotizador!$K$37)","v":"NO"},"Equipos móviles y portátiles fuera del predio limitado a laptops y/o notebooks",null,null,null,{"$f":"+IF($H$27=\"NO\",\"\",IF($N$26=\"\",\"\",IF(3000>$N$26,$N$26,3000)))","v":""},{"$f":"+IF($M$27=\"\",\"\",$M$27)","v":""}]
[]
[]
[null,null,null,null,null,null,null,{"$f":"IF(Cotizador!$K$23=0,\"\",Cotizador!$K$23)","v":"NO"},"Robo y/o Asalto"]
[null,null,null,null,null,null,null,null,"Instalaciones fijas",null,null,null,{"$f":"+IF($M$18=\"\",\"\",IF($H$30=\"NO\",\"\",IF($M$12>0,$M$12,\"\")))","v":""},{"$f":"+IF($M$31=\"\",\"\",IF($M$31>100000*AC5,100000*$AC$5,$M$31))","v":""}]
[null,null,null,null,null,null,null,null,"Mobiliario y/o contenido propios del giro del negocio",null,null,null,{"$f":"+IF($M$18=\"\",\"\",IF($H$30=\"NO\",\"\",IF($M$13>0,$M$13,\"\")))","v":""},{"$f":"+IF($M$32=\"\",\"\",IF($M$32>100000*AC6,100000*$AC$6,$M$32))","v":""}]
[null,null,null,null,null,null,null,null,"Existencias propias del giro del negocio",null,null,null,{"$f":"+IF($M$18=\"\",\"\",IF($H$30=\"NO\",\"\",IF($M$14>0,$M$14,\"\")))","v":""},{"$f":"+IF($M$33=\"\",\"\",IF($M$33>100000*$AC$7,100000*$AC$7,$M$33))","v":""}]
[null,null,null,null,null,null,null,null,"Maquinaria propia del giro del negocio",null,null,null,{"$f":"+IF($M$18=\"\",\"\",IF($H$30=\"NO\",\"\",IF($M$15>0,$M$15,\"\")))","v":""},{"$f":"+IF($M$34=\"\",\"\",IF($M$34>100000*$AC$8,100000*$AC$8,$M$34))","v":""}]
[null,null,null,null,null,null,null,null,"Equipo electrónico fijo",null,null,null,{"$f":"+IF($M$18=\"\",\"\",IF($H$30=\"NO\",\"\",IF($M$16>0,$M$16,\"\")))","v":""},{"$f":"+IF($M$35=\"\",\"\",IF($M$35>100000*$AC$9,100000*$AC$9,$M$35))","v":""}]
[null,null,null,null,null,null,null,{"$f":"IF(Cotizador!$K$29=0,\"\",Cotizador!$K$29)","v":"NO"},"Dinero y/o valores dentro del local (caja chica y/o caja\nregistradora)",null,null,null,{"$f":"IF(Cotizador!$M$29=0,\"\",Cotizador!$M$29)","v":"---------"},{"$f":"+IF($AB$7=0,\"\",IF($H$36=\"NO\",\"\",IF($AB$7<3000,$AB$7,3000)))","v":""}]
[]
[null,null,null,null,null,null,null,{"$f":"IF(Cotizador!$K$31=0,\"\",Cotizador!$K$31)","v":"NO"},"Dinero en Tránsito",null,null,null,{"$f":"IF(Cotizador!$M$31=0,\"\",Cotizador!$M$31)","v":"---------"},{"$f":"+IF($AB$7=0,\"\",IF($H$38=\"NO\",\"\",IF($AB$7<3000,$AB$7,3000)))","v":""}]
[]
[null,null,null,null,null,null,null,{"$f":"IF(Cotizador!$K$33=0,\"\",Cotizador!$K$33)","v":"NO"},"Responsabilidad Civil",null,"Opción:",{"$f":"IF(Cotizador!$M$33=0,\"\",Cotizador!$M$33)","v":1},null,{"$f":"IF(H17=\"\",\"\",IF(H40=\"NO\",\"\",IF(L40=1,50000,IF(L40=2,100000,IF(L40=3,200000,IF(L40=4,300000,500000))))))","v":""}]

{"sheet":"CoberturasaElegirLocal3","index":11,"n_rows":40,"n_cols":30,"rows_kept":40,"cut":false,"hidden":false,"merged":[[14,7,14,11],[1,8,2,12],[10,7,10,11],[11,7,11,11],[12,7,12,11],[13,7,13,11],[35,8,36,11],[35,12,36,12],[35,13,36,13],[37,8,37,11],[15,7,15,11],[17,7,17,11],[18,6,18,15],[26,8,27,11],[26,12,27,12],[26,13,27,13]]}
[]
[]
[]
[]
[null,null,null,null,null,null,null,null,null,null,null,null,null,null,null,null,null,null,null,null,null,null,null,null,null,null,null,"SÍ",{"$f":"IF(ISERROR($M$31/$AB$7),0,$M$31/$AB$7)","v":0}]
[null,null,null,null,null,null,"Declaración de Bienes",null,null,null,null,null,null,null,null,null,null,null,null,null,null,null,null,null,null,null,null,"NO",{"$f":"IF(ISERROR($M$32/$AB$7),0,$M$32/$AB$7)","v":0}]
[null,null,null,null,null,null,null,null,null,null,null,null,null,null,null,null,null,null,null,null,null,null,null,null,null,null,null,{"$f":"+SUM(M31:M35)","v":0},{"$f":"IF(ISERROR($M$33/$AB$7),0,$M$33/$AB$7)","v":0}]
[null,null,null,null,null,null,null,"Tipo de Moneda:",{"$f":"IF(Cotizador!$D$7=0,\"\",Cotizador!$D$7)","v":"USD"},null,null,null,"Endosado al Banco?:",{"$f":"IF(Cotizador!$S$7=0,\"\",Cotizador!$S$7)","v":"NO"},null,null,null,null,null,null,null,null,null,null,null,1,null,null,{"$f":"IF(ISERROR($M$34/$AB$7),0,$M$34/$AB$7)","v":0}]
[null,null,null,null,null,null,null,null,null,null,null,null,null,null,null,null,null,null,null,null,null,null,null,null,null,2,null,null,{"$f":"IF(ISERROR($M$35/$AB$7),0,$M$35/$AB$7)","v":0}]
[null,null,null,null,null,null,null,null,null,null,null,null,"Totales","Endosado",null,null,null,null,null,null,null,null,null,null,null,3]
[null,null,null,null,null,null,null,"Edificio (sin considerar el valor del terreno ni Instalaciones Fijas)",null,null,null,null,{"$f":"IF(Cotizador!$R$10=0,\"\",Cotizador!$R$10)","v":""},{"$f":"IF(Cotizador!$S$10=0,\"\",Cotizador!$S$10)","v":""},{"$f":"IF(N11=\"\",\"\",IF(OR(AND($N$8=\"NO\",N11>0),AND($N$8=\"SÍ\",M11=\"\")),\"Endosado Invalido\",\"\"))","v":""},null,null,null,null,null,null,null,null,null,null,4]
[null,null,null,null,null,null,null,"Instalaciones fijas",null,null,null,null,{"$f":"IF(Cotizador!$R$11=0,\"\",Cotizador!$R$11)","v":""},{"$f":"IF(Cotizador!$S$11=0,\"\",Cotizador!$S$11)","v":""},"",null,null,null,null,null,null,null,null,null,null,5,null,"RM",1,2]
[null,null,null,null,null,null,null,"Mobiliario y/o contenido propios del giro",null,null,null,null,{"$f":"IF(Cotizador!$R$12=0,\"\",Cotizador!$R$12)","v":""},{"$f":"IF(Cotizador!$S$12=0,\"\",Cotizador!$S$12)","v":""},"",null,null,null,null,null,null,null,null,null,null,null,null,"EQEL",1]
[null,null,null,null,null,null,null,"Existencias propias del giro del negocio",null,null,null,null,{"$f":"IF(Cotizador!$R$13=0,\"\",Cotizador!$R$13)","v":""},{"$f":"IF(Cotizador!$S$13=0,\"\",Cotizador!$S$13)","v":""},"",null,null,null,null,null,null,null,null,null,null,null,null,"EQMOV",1]
[null,null,null,null,null,null,null,"Maquinaria propia del giro del negocio",null,null,null,null,{"$f":"IF(Cotizador!$R$14=0,\"\",Cotizador!$R$14)","v":""},{"$f":"IF(Cotizador!$S$14=0,\"\",Cotizador!$S$14)","v":""},"",null,null,null,null,null,null,null,null,null,null,null,null,"ROBO",1]
[null,null,null,null,null,null,null,"Equipos electrónicos propios del giro del negocio",null,null,null,null,{"$f":"IF(Cotizador!$R$15=0,\"\",Cotizador!$R$15)","v":""},{"$f":"IF(Cotizador!$S$15=0,\"\",Cotizador!$S$15)","v":""},"",null,null,null,null,null,null,null,null,null,null,null,null,"DINERO",1]
[null,null,null,null,null,null,null,"Lucro Cesante",null,null,null,null,{"$f":"IF(Cotizador!$R$16=0,\"\",Cotizador!$R$16)","v":""},{"$f":"IF(Cotizador!$S$16=0,\"\",Cotizador!$S$16)","v":""},null,null,null,null,null,null,null,null,null,null,null,null,null,"RC",1]
[null,null,null,null,null,null,null,"TOTAL VALOR DECLARADO (Máximo 2'000,000 USD)",null,null,null,null,{"$f":"+IF(OR(SUM($M$11:$M$17)<=0,SUM($M$11:$M$17)>2000000),\"\",SUM($M$11:$M$17))","v":""},{"$f":"+IF($M$18=\"\",\"\",IF($N$8=\"NO\",\"\",(IF(SUM($N$11:$N$17)>SUM($M$11:$M$17),\"\",SUM($N$11:$N$17)))))","v":""},null,null,null,null,null,null,null,null,null,null,null,null,null,"DINEROTRANS",1]
[null,null,null,null,null,null,{"$f":"+IF(SUM(M11:M16)>2000000,\"Sus Valores suman \"&SUM(M11:M16)&\" USD, por favor corrija los montos\",\"\")","v":""}]
[null,null,null,null,null,null,"Coberturas"]
[]
[null,null,null,null,null,null,null,null,null,null,null,null,"Valor Declarado","Valor Asegurado"]
[null,null,null,null,null,null,null,{"$f":"IF(Cotizador!$P$40=0,\"\",Cotizador!$P$40)","v":"NO"},"Rotura de Maquinaria",null,null,null,{"$f":"+IF($M$18=\"\",\"\",IF($H$23=\"NO\",\"\",IF($M$15>0,$M$15,\"\")))","v":""},{"$f":"+IF($M$23=\"\",\"\",IF($M$23>200000,200000,$M$23))","v":""}]
[]
[null,null,null,null,null,null,null,null,"Equipo Electrónico"]
[null,null,null,null,null,null,null,{"$f":"IF(Cotizador!$P$36=0,\"\",Cotizador!$P$36)","v":"NO"},"Equipos electrónicos propios del giro del negocio",null,null,null,{"$f":"+IF($M$18=\"\",\"\",IF($H$26=\"NO\",\"\",IF($M$16>0,$M$16,\"\")))","v":""},{"$f":"+IF($M$26=\"\",\"\",IF($M$26>50000,50000,$M$26))","v":""}]
[null,null,null,null,null,null,null,{"$f":"IF(Cotizador!$P$37=0,\"\",Cotizador!$P$37)","v":"NO"},"Equipos móviles y portátiles fuera del predio limitado a laptops y/o notebooks",null,null,null,{"$f":"+IF($H$27=\"NO\",\"\",IF($N$26=\"\",\"\",IF(3000>$N$26,$N$26,3000)))","v":""},{"$f":"+IF($M$27=\"\",\"\",$M$27)","v":""}]
[]
[]
[null,null,null,null,null,null,null,{"$f":"IF(Cotizador!$P$23=0,\"\",Cotizador!$P$23)","v":"NO"},"Robo y/o Asalto"]
[null,null,null,null,null,null,null,null,"Instalaciones fijas",null,null,null,{"$f":"+IF($M$18=\"\",\"\",IF($H$30=\"NO\",\"\",IF($M$12>0,$M$12,\"\")))","v":""},{"$f":"+IF($M$31=\"\",\"\",IF($M$31>100000*AC5,100000*$AC$5,$M$31))","v":""}]
[null,null,null,null,null,null,null,null,"Mobiliario y/o contenido propios del giro del negocio",null,null,null,{"$f":"+IF($M$18=\"\",\"\",IF($H$30=\"NO\",\"\",IF($M$13>0,$M$13,\"\")))","v":""},{"$f":"+IF($M$32=\"\",\"\",IF($M$32>100000*AC6,100000*$AC$6,$M$32))","v":""}]
[null,null,null,null,null,null,null,null,"Existencias propias del giro del negocio",null,null,null,{"$f":"+IF($M$18=\"\",\"\",IF($H$30=\"NO\",\"\",IF($M$14>0,$M$14,\"\")))","v":""},{"$f":"+IF($M$33=\"\",\"\",IF($M$33>100000*$AC$7,100000*$AC$7,$M$33))","v":""}]
[null,null,null,null,null,null,null,null,"Maquinaria propia del giro del negocio",null,null,null,{"$f":"+IF($M$18=\"\",\"\",IF($H$30=\"NO\",\"\",IF($M$15>0,$M$15,\"\")))","v":""},{"$f":"+IF($M$34=\"\",\"\",IF($M$34>100000*$AC$8,100000*$AC$8,$M$34))","v":""}]
[null,null,null,null,null,null,null,null,"Equipo electrónico fijo",null,null,null,{"$f":"+IF($M$18=\"\",\"\",IF($H$30=\"NO\",\"\",IF($M$16>0,$M$16,\"\")))","v":""},{"$f":"+IF($M$35=\"\",\"\",IF($M$35>100000*$AC$9,100000*$AC$9,$M$35))","v":""}]
[null,null,null,null,null,null,null,{"$f":"IF(Cotizador!$P$29=0,\"\",Cotizador!$P$29)","v":"NO"},"Dinero y/o valores dentro del local (caja chica y/o caja\nregistradora)",null,null,null,{"$f":"IF(Cotizador!$R$29=0,\"\",Cotizador!$R$29)","v":"---------"},{"$f":"+IF($AB$7=0,\"\",IF($H$36=\"NO\",\"\",IF($AB$7<3000,$AB$7,3000)))","v":""}]
[]
[null,null,null,null,null,null,null,{"$f":"IF(Cotizador!$P$31=0,\"\",Cotizador!$P$31)","v":"NO"},"Dinero en Tránsito",null,null,null,{"$f":"IF(Cotizador!$R$31=0,\"\",Cotizador!$R$31)","v":"---------"},{"$f":"+IF($AB$7=0,\"\",IF($H$38=\"NO\",\"\",IF($AB$7<3000,$AB$7,3000)))","v":""}]
[]
[null,null,null,null,null,null,null,{"$f":"IF(Cotizador!$P$33=0,\"\",Cotizador!$P$33)","v":"NO"},"Responsabilidad Civil",null,"Opción:",{"$f":"IF(Cotizador!$R$33=0,\"\",Cotizador!$R$33)","v":1},null,{"$f":"IF(H17=\"\",\"\",IF(H40=\"NO\",\"\",IF(L40=1,50000,IF(L40=2,100000,IF(L40=3,200000,IF(L40=4,300000,500000))))))","v":""}]

{"sheet":"Solicitud","index":12,"n_rows":359,"n_cols":34,"rows_kept":359,"cut":false,"hidden":false,"merged":[[269,2,269,33],[177,1,177,12],[145,13,145,15],[145,16,145,18],[145,20,145,22],[146,13,146,15],[146,16,146,18],[145,30,145,32],[146,23,146,25],[146,27,146,29],[147,23,147,25],[147,27,147,29],[154,18,154,20],[154,24,154,26],[154,31,154,33],[147,16,147,18],[146,20,146,22],[147,20,147,22],[147,13,147,15],[176,13,176,33],[163,13,164,33],[165,13,167,33],[178,13,178,33],[145,23,145,25],[90,7,90,22],[90,23,90,25],[143,13,143,15],[141,27,141,29],[142,23,142,25],[143,20,143,22],[107,31,107,33],[140,23,140,25],[140,16,140,18],[140,20,140,22],[142,16,142,18],[139,16,139,18],[139,13,139,15],[141,30,141,32],[142,30,142,32],[141,16,141,18],[141,20,141,22],[142,27,142,29],[141,23,141,25],[142,20,142,22],[143,27,143,29],[102,11,102,12],[98,16,98,20],[98,21,98,23],[85,11,85,12],[138,23,138,25],[96,19,96,23],[107,18,107,20],[143,23,143,25],[58,5,58,33],[66,20,66,33],[56,8,56,33],[60,13,60,18],[60,29,60,33],[84,11,84,12],[90,29,90,31],[78,13,78,18],[78,19,78,23],[76,5,76,33],[78,4,78,11],[80,6,80,7],[139,20,139,22],[141,13,141,15],[142,13,142,15],[143,30,143,32],[96,4,96,11],[102,20,102,33],[121,2,122,13],[54,23,54,25],[72,29,72,31],[74,8,74,33],[62,13,62,14],[60,4,60,11],[62,21,62,23],[54,7,54,22],[62,16,62,20],[62,6,62,7],[66,11,66,12],[96,13,96,18],[137,20,137,25],[138,20,138,22],[137,13,137,18],[103,11,103,12],[137,27,137,32],[107,24,107,26],[139,23,139,25],[124,2,125,13],[140,30,140,32],[130,2,130,12],[133,2,133,34],[132,2,132,12],[138,30,138,32],[139,27,139,29],[139,30,139,32],[138,13,138,15],[138,16,138,18],[140,13,140,15],[138,27,138,29],[140,27,140,29],[358,4,358,11],[276,1,276,33],[270,2,270,33],[357,31,357,32],[274,2,274,33],[273,2,273,33],[271,2,271,33],[272,2,272,33],[344,14,350,33],[305,2,310,12],[312,2,320,12],[327,2,331,12],[337,2,346,12],[279,14,287,33],[296,14,304,33],[321,14,323,33],[333,14,338,33],[291,2,299,12],[300,2,301,12],[278,2,288,12],[312,14,318,33],[7,1,7,33],[14,9,14,33],[23,4,23,11],[23,22,23,28],[23,30,23,33],[22,5,22,33],[12,3,12,10],[21,11,21,24],[19,6,19,11],[10,24,10,33],[15,20,15,23],[17,30,17,33],[12,26,12,27],[19,15,19,20],[19,24,19,25],[19,27,19,32],[23,13,23,17],[12,28,12,33],[15,7,15,19],[12,12,12,18],[23,18,23,21],[20,23,20,24],[20,9,20,21],[21,29,21,33],[15,24,15,33],[60,24,60,26],[60,19,60,23],[96,29,96,33],[98,6,98,7],[98,8,98,12],[98,13,98,14],[96,24,96,26],[127,2,128,13],[42,29,42,33],[33,12,33,18],[33,26,33,27],[33,28,33,33],[35,9,35,33],[36,7,36,19],[36,20,36,23],[25,8,25,33],[24,16,24,24],[24,12,24,15],[41,9,41,21],[24,6,24,11],[24,29,24,33],[31,24,31,33],[33,3,33,10],[36,24,36,33],[38,30,38,33],[40,6,40,11],[40,15,40,20],[40,24,40,25],[40,27,40,32],[41,23,41,24],[42,11,42,24],[43,5,43,33],[44,4,44,11],[44,13,44,17],[44,18,44,21],[44,22,44,28],[92,8,92,33],[94,5,94,33],[44,30,44,33],[80,8,80,12],[80,13,80,14],[80,16,80,20],[80,21,80,23],[78,24,78,26],[72,7,72,22],[45,12,45,15],[45,16,45,24],[78,29,78,33],[84,20,84,33],[72,23,72,25],[67,11,67,12],[45,6,45,11],[45,29,45,33],[46,8,46,33],[54,29,54,31],[62,8,62,12],[183,13,183,33],[147,30,147,32],[146,30,146,32],[144,23,144,25],[180,13,180,33],[180,1,180,12],[181,13,181,33],[182,13,182,33],[163,1,164,12],[165,1,167,12],[168,1,168,12],[169,1,169,12],[170,1,170,12],[171,1,171,12],[172,1,172,12],[173,1,173,12],[174,1,174,12],[168,13,171,33],[172,13,172,33],[173,13,173,33],[175,13,175,33],[145,27,145,29],[144,30,144,32],[144,13,144,15],[144,20,144,22],[143,16,143,18],[181,1,181,12],[182,1,182,12],[179,13,179,33],[150,13,150,18],[150,20,150,25],[150,27,150,32],[177,13,177,33],[175,1,175,12],[178,1,178,12],[144,16,144,18],[144,27,144,29],[268,2,268,33],[254,7,254,13],[255,4,255,10],[255,16,255,24],[217,22,217,25],[213,22,213,25],[210,22,212,25],[214,22,214,25],[210,2,212,5],[213,2,213,5],[214,2,214,5],[226,11,226,12],[231,2,232,33],[217,2,217,5],[215,2,215,5],[215,22,215,25],[261,2,261,9],[216,2,216,5],[216,22,216,25],[254,20,254,24],[255,12,255,15],[225,11,225,16]]}
[]
[]
[]
[]
[]
[]
[]
[null,{"$f":"\"Solicitud de Seguro - Multiriesgo Negocios \" & configuracion!$G$2","v":"Solicitud de Seguro - Multiriesgo Negocios OCTUBRE 2021"}]
[null,null,"Contratante"]
[]
[null,null,"Persona Natural",null,null,null,null,null,{"$f":"IF(OR(Solicitud.Manual!$C$8=\"DNI\",Solicitud.Manual!$C$8=\"CE\"),\"X\",\"\")","v":""},null,null,"Persona Jurídica",null,{"$f":"IF(Solicitud.Manual!$C$8=\"RUC\",\"X\",\"\")","v":""},null,null,null,null,null,"Código de cliente",null,null,null,null,{"$f":"IF(LEN(Solicitud.Manual!$E$14)=0,\"\",Solicitud.Manual!$E$14)","v":""}]
[]
[null,null,"DNI",{"$f":"IF(Solicitud.Manual!$C$8=\"DNI\",Solicitud.Manual!$E$8,\"\")","v":""},null,null,null,null,null,null,null,"RUC",{"$f":"IF(Solicitud.Manual!$C$8=\"RUC\",Solicitud.Manual!$E$8,\"\")","v":""},null,null,null,null,null,null,"Otro (indicar tipo y numero)",null,null,null,null,null,null,{"$f":"IF(Solicitud.Manual!$C$8=\"CE\",Solicitud.Manual!$C$8,\"\")","v":""},null,{"$f":"IF(Solicitud.Manual!$C$8=\"CE\",Solicitud.Manual!$E$8,\"\")","v":""}]
[]
[null,null,"Nombre / Razon Social",null,null,null,null,null,null,{"$f":"IF(LEN(Solicitud.Manual!$C$9)=0,\"\",Solicitud.Manual!$C$9)","v":""}]
[null,null,"Apellido Paterno",null,null,null,null,{"$f":"IF(LEN(Solicitud.Manual!$C$10)=0,\"\",Solicitud.Manual!$C$10)","v":""},null,null,null,null,null,null,null,null,null,null,null,null,"Apellido Materno",null,null,null,{"$f":"IF(LEN(Solicitud.Manual!$E$10)=0,\"\",Solicitud.Manual!$E$10)","v":""}]
[]
[null,null,"Sexo",null,"F","M",null,null,null,null,null,null,null,null,null,null,"Fecha de Nacimiento",null,null,null,null,{"$f":"IF(LEN(Solicitud.Manual!$E$17)=0,\"\",DAY(Solicitud.Manual!$E$17))","v":""},{"$f":"IF(LEN(Solicitud.Manual!$E$17)=0,\"\",TEXT(MONTH(Solicitud.Manual!$E$17),\"00\"))","v":""},{"$f":"IF(LEN(Solicitud.Manual!$E$17)=0,\"\",TEXT(YEAR(Solicitud.Manual!$E$17),\"00\"))","v":""},null,null,null,null,null,"Estado Civil",{"$f":"IF(LEN(Solicitud.Manual!$E$18)=0,\"\",Solicitud.Manual!$E$18)","v":""}]
[null,null,null,null,null,null,null,null,null,null,null,null,null,null,null,null,null,null,null,null,null,"dd/","mm/","aa/"]
[null,null,"Nacionalidad",null,null,null,{"$f":"IF(LEN(Solicitud.Manual!$E$16)=0,\"\",Solicitud.Manual!$E$16)","v":""},null,null,null,null,null,"Profesion / Ocupación",null,null,{"$f":"IF(LEN(Solicitud.Manual!$E$15)=0,\"\",Solicitud.Manual!$E$15)","v":""},null,null,null,null,null,null,null,null,"Cargo",null,null,{"$f":"IF(LEN(Solicitud.Manual!$E$12)=0,\"\",Solicitud.Manual!$E$12)","v":""}]
[null,null,"Dirección (Jr / Cl / Av)",null,null,null,null,null,null,{"$f":"IF(LEN(Solicitud.Manual!$C$11)=0,\"\",Solicitud.Manual!$C$11)","v":""},null,null,null,null,null,null,null,null,null,null,null,null,"Nro",{"$f":"IF(LEN(Solicitud.Manual!$C$12)=0,\"\",Solicitud.Manual!$C$12)","v":""},null,null,null,null,"Dpto/Piso/Int",{"$f":"IF(LEN(Solicitud.Manual!$C$13)=0,\"\",Solicitud.Manual!$C$13)","v":""},"Mz",{"$f":"IF(LEN(Solicitud.Manual!$C$14)=0,\"\",Solicitud.Manual!$C$14)","v":""},"Lt",{"$f":"IF(LEN(Solicitud.Manual!$C$15)=0,\"\",Solicitud.Manual!$C$15)","v":""}]
[null,null,"Urbanización (Urb / AAHH / Coop)",null,null,null,null,null,null,null,null,null,null,null,null,null,null,null,null,null,null,null,null,null,null,null,null,null,"Sec / Etapa / Zona",{"$f":"IF(Solicitud.Manual!C17=\"\",\"\",Solicitud.Manual!C17)","v":""}]
[null,null,"Referencia"]
[null,null,"Distrito",null,{"$f":"IF(LEN(Solicitud.Manual!$C$16)=0,\"\",Solicitud.Manual!$C$16)","v":""},null,null,null,null,null,null,null,"Provincia",{"$f":"IF(LEN(Solicitud.Manual!$C$17)=0,\"\",Solicitud.Manual!$C$17)","v":""},null,null,null,null,"Departamento",null,null,null,{"$f":"IF(LEN(Solicitud.Manual!$C$18)=0,\"\",Solicitud.Manual!$C$18)","v":""},null,null,null,null,null,null,"País"]
[null,null,"Teléfono Casa",null,null,null,{"$f":"IF(LEN(Solicitud.Manual!$C$19)=0,\"\",Solicitud.Manual!$C$19)","v":""},null,null,null,null,null,"Teléfono trabajo",null,null,null,{"$f":"IF(LEN(Solicitud.Manual!$E$19)=0,\"\",Solicitud.Manual!$E$19)","v":""},null,null,null,null,null,null,null,null,null,null,null,"Teléfono Móvil",{"$f":"IF(LEN(Solicitud.Manual!$C$20)=0,\"\",Solicitud.Manual!$C$20)","v":""}]
[null,null,"Correo electrónico(*)",null,null,null,null,null,{"$f":"IF(LEN(Solicitud.Manual!$C$21)=0,\"\",Solicitud.Manual!$C$21)","v":""}]
[null,null,"(*) Para recibir información del contrato de seguro y/o cualquier comunicación necesaria para su ejecucion.",null,null,null,null,null,null,null,null,null,null,null,null,null,null,null,null,null,null,null,null,null,"Acepto",null,null,{"$f":"IF(Solicitud.Manual!$C$22=\"Acepto\",\"X\",\"\")","v":""},null,null,null,"No Acepto",null,{"$f":"IF(Solicitud.Manual!$C$22=\"No Acepto\",\"X\",\"\")","v":""}]
[null,null,"(*) Para recibir su póliza de forma electrónica",null,null,null,null,null,null,null,null,null,null,null,null,null,null,null,null,null,null,null,null,null,"Acepto",null,null,{"$f":"IF(Solicitud.Manual!$C$23=\"Acepto\",\"X\",\"\")","v":""},null,null,null,"No Acepto",null,{"$f":"IF(Solicitud.Manual!$C$23=\"No Acepto\",\"X\",\"\")","v":""}]
[]
[]
[null,null,"Asegurado  titular (llenar solo si es diferente del Contratante)"]
[null,null,"Persona Natural",null,null,null,null,null,{"$f":"IF(Solicitud.Manual!$I$7=\"NO\",\"\",IF(OR(Solicitud.Manual!$I$8=\"DNI\",Solicitud.Manual!$I$8=\"CE\"),\"X\",\"\"))","v":""},null,null,"Persona Jurídica",null,{"$f":"IF(Solicitud.Manual!$I$7=\"NO\",\"\",IF(Solicitud.Manual!$I$8=\"RUC\",\"X\",\"\"))","v":""},null,null,null,null,null,"Código de cliente",null,null,null,null,{"$f":"IF(Solicitud.Manual!$I$7=\"NO\",\"\",IF(Solicitud.Manual!$I$7=\"NO\",\"\",IF(LEN(Solicitud.Manual!$M$14)=0,\"\",Solicitud.Manual!$M$14)))","v":""}]
[]
[null,null,"DNI",{"$f":"IF(Solicitud.Manual!$I$7=\"NO\",\"\",IF(Solicitud.Manual!$I$8=\"DNI\",Solicitud.Manual!$M$8,\"\"))","v":""},null,null,null,null,null,null,null,"RUC",{"$f":"IF(Solicitud.Manual!$I$7=\"NO\",\"\",IF(Solicitud.Manual!$I$8=\"RUC\",Solicitud.Manual!$M$8,\"\"))","v":""},null,null,null,null,null,null,"Otro (indicar tipo y numero)",null,null,null,null,null,null,{"$f":"IF(Solicitud.Manual!$I$8=\"CE\",Solicitud.Manual!$I$8,\"\")","v":""},null,{"$f":"IF(Solicitud.Manual!$I$8=\"CE\",Solicitud.Manual!$M$8,\"\")","v":""}]
[]
[null,null,"Nombre / Razon Social",null,null,null,null,null,null,{"$f":"IF(Solicitud.Manual!$I$7=\"NO\",\"\",IF(LEN(Solicitud.Manual!$I$9)=0,\"\",Solicitud.Manual!$I$9))","v":""}]
[null,null,"Apellido Paterno",null,null,null,null,{"$f":"IF(Solicitud.Manual!$I$7=\"NO\",\"\",IF(LEN(Solicitud.Manual!$I$10)=0,\"\",Solicitud.Manual!$I$10))","v":""},null,null,null,null,null,null,null,null,null,null,null,null,"Apellido Materno",null,null,null,{"$f":"IF(Solicitud.Manual!$I$7=\"NO\",\"\",IF(LEN(Solicitud.Manual!$M$10)=0,\"\",Solicitud.Manual!$M$10))","v":""}]
[]
[null,null,"Sexo",null,"F","M",null,null,null,null,null,null,null,null,null,null,"Fecha de Nacimiento",null,null,null,null,{"$f":"IF(Solicitud.Manual!$I$7=\"NO\",\"\",IF(LEN(Solicitud.Manual!$M$17)=0,\"\",DAY(Solicitud.Manual!$M$17)))","v":""},{"$f":"IF(Solicitud.Manual!$I$7=\"NO\",\"\",IF(LEN(Solicitud.Manual!$M$17)=0,\"\",TEXT(MONTH(Solicitud.Manual!$M$17),\"00\")))","v":""},{"$f":"IF(Solicitud.Manual!$I$7=\"NO\",\"\",IF(LEN(Solicitud.Manual!$M$17)=0,\"\",TEXT(YEAR(Solicitud.Manual!$M$17),\"00\")))","v":""},null,null,null,null,null,"Estado Civil",{"$f":"IF(Solicitud.Manual!$I$7=\"NO\",\"\",IF(LEN(Solicitud.Manual!$M$18)=0,\"\",Solicitud.Manual!$M$18))","v":""}]
[null,null,null,null,null,null,null,null,null,null,null,null,null,null,null,null,null,null,null,null,null,"dd/","mm/","aa/"]
[null,null,"Nacionalidad",null,null,null,{"$f":"IF(Solicitud.Manual!$I$7=\"NO\",\"\",IF(LEN(Solicitud.Manual!$M$16)=0,\"\",Solicitud.Manual!$M$16))","v":""},null,null,null,null,null,"Profesion / Ocupación",null,null,{"$f":"IF(Solicitud.Manual!$I$7=\"NO\",\"\",IF(LEN(Solicitud.Manual!$M$15)=0,\"\",Solicitud.Manual!$M$15))","v":""},null,null,null,null,null,null,null,null,"Cargo",null,null,{"$f":"IF(Solicitud.Manual!$I$7=\"NO\",\"\",IF(LEN(Solicitud.Manual!$M$12)=0,\"\",Solicitud.Manual!$M$12))","v":""}]
[null,null,"Dirección (Jr / Cl / Av)",null,null,null,null,null,null,{"$f":"IF(Solicitud.Manual!$I$7=\"NO\",\"\",IF(LEN(Solicitud.Manual!$I$11)=0,\"\",Solicitud.Manual!$I$11))","v":""},null,null,null,null,null,null,null,null,null,null,null,null,"Nro",{"$f":"IF(Solicitud.Manual!$I$7=\"NO\",\"\",IF(LEN(Solicitud.Manual!$I$12)=0,\"\",Solicitud.Manual!$I$12))","v":""},null,null,null,null,"Dpto/Piso/Int",{"$f":"IF(Solicitud.Manual!$I$7=\"NO\",\"\",IF(LEN(Solicitud.Manual!$I$13)=0,\"\",Solicitud.Manual!$I$13))","v":""},"Mz",{"$f":"IF(Solicitud.Manual!$I$7=\"NO\",\"\",IF(LEN(Solicitud.Manual!$I$14)=0,\"\",Solicitud.Manual!$I$14))","v":""},"Lt",{"$f":"IF(Solicitud.Manual!$I$7=\"NO\",\"\",IF(LEN(Solicitud.Manual!$I$15)=0,\"\",Solicitud.Manual!$I$15))","v":""}]
[null,null,"Urbanización (Urb / AAHH / Coop)",null,null,null,null,null,null,null,null,null,null,null,null,null,null,null,null,null,null,null,null,null,null,null,null,null,"Sec / Etapa / Zona",{"$f":"IF(Solicitud.Manual!I17=\"\",\"\",Solicitud.Manual!I17)","v":""}]
[null,null,"Referencia"]
[null,null,"Distrito",null,{"$f":"IF(Solicitud.Manual!$I$7=\"NO\",\"\",IF(LEN(Solicitud.Manual!$I$16)=0,\"\",Solicitud.Manual!$I$16))","v":""},null,null,null,null,null,null,null,"Provincia",{"$f":"IF(Solicitud.Manual!$I$7=\"NO\",\"\",IF(LEN(Solicitud.Manual!$I$17)=0,\"\",Solicitud.Manual!$I$17))","v":""},null,null,null,null,"Departamento",null,null,null,{"$f":"IF(LEN(Solicitud.Manual!$I$18)=0,\"\",Solicitud.Manual!$I$18)","v":""},null,null,null,null,null,null,"País"]
[null,null,"Teléfono Casa",null,null,null,{"$f":"IF(LEN(Solicitud.Manual!$I$19)=0,\"\",Solicitud.Manual!$I$19)","v":""},null,null,null,null,null,"Teléfono trabajo",null,null,null,{"$f":"IF(Solicitud.Manual!$I$7=\"NO\",\"\",IF(LEN(Solicitud.Manual!$M$19)=0,\"\",Solicitud.Manual!$M$19))","v":""},null,null,null,null,null,null,null,null,null,null,null,"Teléfono Móvil",{"$f":"IF(Solicitud.Manual!$I$7=\"NO\",\"\",IF(LEN(Solicitud.Manual!$I$20)=0,\"\",Solicitud.Manual!$I$20))","v":""}]
[null,null,"Correo electrónico(*)",null,null,null,null,null,{"$f":"IF(Solicitud.Manual!$I$7=\"NO\",\"\",IF(LEN(Solicitud.Manual!$I$21)=0,\"\",Solicitud.Manual!$I$21))","v":""}]
[null,null,"(*) Para recibir información del contrato de seguro y/o cualquier comunicación necesaria para su ejecucion.",null,null,null,null,null,null,null,null,null,null,null,null,null,null,null,null,null,null,null,null,null,"Acepto",null,null,{"$f":"IF(Solicitud.Manual!$I$7=\"NO\",\"\",IF(Solicitud.Manual!$I$22=\"Acepto\",\"X\",\"\"))","v":""},null,null,null,"No Acepto",null,{"$f":"IF(Solicitud.Manual!$I$7=\"NO\",\"\",IF(Solicitud.Manual!$I$22=\"No Acepto\",\"X\",\"\"))","v":""}]
[null,null,"(*) Para recibir su póliza de forma electrónica",null,null,null,null,null,null,null,null,null,null,null,null,null,null,null,null,null,null,null,null,null,"Acepto",null,null,{"$f":"IF(Solicitud.Manual!$I$7=\"NO\",\"\",IF(Solicitud.Manual!$I$23=\"Acepto\",\"X\",\"\"))","v":""},null,null,null,"No Acepto",null,{"$f":"IF(Solicitud.Manual!$I$7=\"NO\",\"\",IF(Solicitud.Manual!$I$23=\"No Acepto\",\"X\",\"\"))","v":""}]
[]
[null,null,"Solicitud.Manual del Negocio a asegurar"]
[]
[null,null,"Local 1"]
[]
[null,null,"Actividad y/o giro",null,null,null,null,{"$f":"IF(LEN(Solicitud.Manual!$E$27)=0,\"\",Solicitud.Manual!$E$27)","v":""},null,null,null,null,null,null,null,null,null,null,null,null,null,null,null,"Comercio",null,null,null,null,null,"Servicio"]
[]
[null,null,"Ocupación del local",null,null,null,null,null,{"$f":"IF(LEN(Solicitud.Manual!$E$29)=0,\"\",Solicitud.Manual!$E$29)","v":""}]
[]
[null,null,"Dirección",null,null,{"$f":"IF(LEN(Solicitud.Manual!$C$47)=0,\"\",Solicitud.Manual!$C$47) & \" \" & IF(LEN(Solicitud.Manual!$C$48)=0,\"\",Solicitud.Manual!$C$48)","v":" "}]
[]
[null,null,"Distrito",null,{"$f":"IF(LEN(Solicitud.Manual!$C$46)=0,\"\",Solicitud.Manual!$C$46)","v":""},null,null,null,null,null,null,null,"Provincia",{"$f":"IF(LEN(Solicitud.Manual!$C$45)=0,\"\",Solicitud.Manual!$C$45)","v":""},null,null,null,null,null,"Departamento",null,null,null,null,{"$f":"IF(LEN(Solicitud.Manual!$C$44)=0,\"\",Solicitud.Manual!$C$44)","v":""},null,null,null,"País","Perú"]
[]
[null,null,"Nro. de pisos",null,null,null,{"$f":"IF(LEN(Solicitud.Manual!$C$54)=0,\"\",Solicitud.Manual!$C$54)","v":""},null,"Nro. de sótanos",null,null,null,null,{"$f":"IF(LEN(Solicitud.Manual!$C$55)=0,\"\",Solicitud.Manual!$C$55)","v":""},null,null,"Año de construcción",null,null,null,null,{"$f":"IF(LEN(Solicitud.Manual!$C$53)=0,\"\",Solicitud.Manual!$C$53)","v":""}]
[]
[null,null,"Material de construcción predominante",null,null,null,null,null,null,null,null,null,"Mamposteria",{"$f":"IF(Solicitud.Manual!$I$61=\"NO\",\"\",\"X\")","v":"X"},null,"Adobe",null,null,null,"Acero Metálico",null,null,null,null,null,null,null,null,"Madera"]
[]
[null,null,null,null,null,null,null,null,null,null,null,"Concreto Armado",null,{"$f":"IF(Solicitud.Manual!$I$63=\"NO\",\"\",\"X\")","v":"X"},null,"Quincha",null,null,null,"Otro"]
[null,null,"Metros construidos:",null,null,null,null,null,null,null,"m2","(Ladrillo y cemento)"]
[]
[]
[null,null,"Local 2"]
[]
[null,null,"Actividad y/o giro",null,null,null,null,{"$f":"IF(LEN(Solicitud.Manual!$E$32)=0,\"\",Solicitud.Manual!$E$32)","v":""},null,null,null,null,null,null,null,null,null,null,null,null,null,null,null,"Comercio",null,null,null,{"$f":"+IF(DatosdelNegocioLocal1!$I$12=\"Comercial\",\"X\",\"\")","v":""},null,"Servicio",null,null,{"$f":"+IF(DatosdelNegocioLocal1!$I$12=\"Servicios\",\"X\",\"\")","v":""}]
[]
[null,null,"Ocupación del local",null,null,null,null,null,{"$f":"IF(LEN(Solicitud.Manual!$E$34)=0,\"\",Solicitud.Manual!$E$34)","v":""}]
[]
[null,null,"Dirección",null,null,{"$f":"IF(LEN(Solicitud.Manual!$G$47)=0,\"\",Solicitud.Manual!$G$47) & \" \" & IF(LEN(Solicitud.Manual!$G$48)=0,\"\",Solicitud.Manual!$G$48)","v":" "}]
[]
[null,null,"Distrito",null,{"$f":"IF(LEN(Solicitud.Manual!$G$46)=0,\"\",Solicitud.Manual!$G$46)","v":""},null,null,null,null,null,null,null,"Provincia",{"$f":"IF(LEN(Solicitud.Manual!$G$45)=0,\"\",Solicitud.Manual!$G$45)","v":""},null,null,null,null,null,"Departamento",null,null,null,null,{"$f":"IF(LEN(Solicitud.Manual!$G$44)=0,\"\",Solicitud.Manual!$G$44)","v":""},null,null,null,"País","Perú"]
[]
[null,null,"Nro. de pisos",null,null,null,{"$f":"IF(LEN(Solicitud.Manual!$G$54)=0,\"\",Solicitud.Manual!$G$54)","v":""},null,"Nro. de sótanos",null,null,null,null,{"$f":"IF(LEN(Solicitud.Manual!$G$55)=0,\"\",Solicitud.Manual!$G$55)","v":""},null,null,"Año de construcción",null,null,null,null,{"$f":"IF(LEN(Solicitud.Manual!$G$53)=0,\"\",Solicitud.Manual!$G$53)","v":""}]
[]
[null,null,"Material de construcción predominante",null,null,null,null,null,null,null,null,null,"Mamposteria",{"$f":"IF(Solicitud.Manual!$J$61=\"NO\",\"\",\"X\")","v":"X"},null,"Adobe",null,null,null,"Acero Metálico",null,null,null,null,null,null,null,null,"Madera"]
[]
[null,null,null,null,null,null,null,null,null,null,null,"Concreto Armado",null,{"$f":"IF(Solicitud.Manual!$J$63=\"NO\",\"\",\"X\")","v":"X"},null,"Quincha",null,null,null,"Otro"]
[null,null,"Metros construidos:",null,null,null,null,null,null,null,"m2","(Ladrillo y cemento)"]
[]
[]
[null,null,"Local 3"]
[]
[null,null,"Actividad y/o giro",null,null,null,null,{"$f":"IF(LEN(Solicitud.Manual!$E$37)=0,\"\",Solicitud.Manual!$E$37)","v":""},null,null,null,null,null,null,null,null,null,null,null,null,null,null,null,"Comercio",null,null,null,{"$f":"+IF(DatosdelNegocioLocal1!$I$12=\"Comercial\",\"X\",\"\")","v":""},null,"Servicio",null,null,{"$f":"+IF(DatosdelNegocioLocal1!$I$12=\"Servicios\",\"X\",\"\")","v":""}]
[]
[null,null,"Ocupación del local",null,null,null,null,null,{"$f":"IF(LEN(Solicitud.Manual!$E$39)=0,\"\",Solicitud.Manual!$E$39)","v":""}]
[]
[null,null,"Dirección",null,null,{"$f":"IF(LEN(Solicitud.Manual!$K$47)=0,\"\",Solicitud.Manual!$K$47) & \" \" & IF(LEN(Solicitud.Manual!$K$48)=0,\"\",Solicitud.Manual!$K$48)","v":" "}]
[]
[null,null,"Distrito",null,{"$f":"IF(LEN(Solicitud.Manual!$K$46)=0,\"\",Solicitud.Manual!$K$46)","v":""},null,null,null,null,null,null,null,"Provincia",{"$f":"IF(LEN(Solicitud.Manual!$K$45)=0,\"\",Solicitud.Manual!$K$45)","v":""},null,null,null,null,null,"Departamento",null,null,null,null,{"$f":"IF(Solicitud.Manual!K44=\"\",\"\",Solicitud.Manual!K44)","v":""},null,null,null,"País","Perú"]
[]
[null,null,"Nro. de pisos",null,null,null,{"$f":"IF(LEN(Solicitud.Manual!$K$54)=0,\"\",Solicitud.Manual!$K$54)","v":""},null,"Nro. de sótanos",null,null,null,null,{"$f":"IF(LEN(Solicitud.Manual!$K$55)=0,\"\",Solicitud.Manual!$K$55)","v":""},null,null,"Año de construcción",null,null,null,null,{"$f":"IF(LEN(Solicitud.Manual!$K$53)=0,\"\",Solicitud.Manual!$K$53)","v":""}]
[]
[null,null,"Material de construcción predominante",null,null,null,null,null,null,null,null,null,"Mamposteria",{"$f":"IF(Solicitud.Manual!$K$61=\"NO\",\"\",\"X\")","v":"X"},null,"Adobe",null,null,null,"Acero Metálico",null,null,null,null,null,null,null,null,"Madera"]
[]
[null,null,null,null,null,null,null,null,null,null,null,"Concreto Armado",null,{"$f":"IF(Solicitud.Manual!$K$63=\"NO\",\"\",\"X\")","v":"X"},null,"Quincha",null,null,null,"Otro"]
[null,null,"Metros construidos:",null,null,null,null,null,null,null,"m2","(Ladrillo y cemento)"]
[]
[]
[]
[null,null,"Declaración Jurada",null,null,null,null,null,null,null,null,null,null,null,null,null,null,null,"Local 1",null,null,null,null,null,"Local 2",null,null,null,null,null,null,"Local 3"]
[]
[null,null,"1. Material de construcción noble"]
[null,null,null,"Paredes"]
[null,null,null,"Ladrillo y cemento en su totalidad",null,null,null,null,null,null,null,null,null,null,null,null,null,"SI",{"$f":"IF(Solicitud.Manual!$I$61=\"SÍ\",\"X\",\"\")","v":""},"No",{"$f":"IF(Solicitud.Manual!$I$61=\"NO\",\"X\",\"\")","v":""},null,null,"SI",{"$f":"IF(Solicitud.Manual!$J$61=\"SÍ\",\"X\",\"\")","v":""},"No",{"$f":"IF(Solicitud.Manual!$J$63=\"NO\",\"X\",\"\")","v":""},null,null,null,"SI",{"$f":"IF(Solicitud.Manual!$K$61=\"SÍ\",\"X\",\"\")","v":""},"No",{"$f":"IF(Solicitud.Manual!$K$61=\"NO\",\"X\",\"\")","v":""}]
[null,null,null,"Techos"]
[null,null,null,"Concreto aligerado en su totalidad",null,null,null,null,null,null,null,null,null,null,null,null,null,"SI",{"$f":"IF(Solicitud.Manual!$I$63=\"SÍ\",\"X\",\"\")","v":""},"No",{"$f":"IF(Solicitud.Manual!$I$63=\"NO\",\"X\",\"\")","v":""},null,null,"SI",{"$f":"IF(Solicitud.Manual!$J$61=\"SÍ\",\"X\",\"\")","v":""},"No",{"$f":"IF(Solicitud.Manual!$J$63=\"NO\",\"X\",\"\")","v":""},null,null,null,"SI",{"$f":"IF(Solicitud.Manual!$K$63=\"SÍ\",\"X\",\"\")","v":""},"No",{"$f":"IF(Solicitud.Manual!$K$63=\"NO\",\"X\",\"\")","v":""}]
[]
[null,null,"2. Instalaciones eléctricas empotradas y/o entubadas en su totalidad",null,null,null,null,null,null,null,null,null,null,null,null,null,null,"SI",{"$f":"IF(Solicitud.Manual!$I$65=\"SÍ\",\"X\",\"\")","v":""},"No",{"$f":"IF(Solicitud.Manual!$I$65=\"NO\",\"X\",\"\")","v":""},null,null,"SI",{"$f":"IF(Solicitud.Manual!$J$65=\"SÍ\",\"X\",\"\")","v":""},"No",{"$f":"IF(Solicitud.Manual!$J$65=\"NO\",\"X\",\"\")","v":""},null,null,null,"SI",{"$f":"IF(Solicitud.Manual!$K$65=\"SÍ\",\"X\",\"\")","v":""},"No",{"$f":"IF(Solicitud.Manual!$K$65=\"NO\",\"X\",\"\")","v":""}]
[]
[null,null,"3. Cuenta con uno o más extintores contra incendio",null,null,null,null,null,null,null,null,null,null,null,null,null,null,"SI",{"$f":"IF(Solicitud.Manual!$I$66=\"SÍ\",\"X\",\"\")","v":""},"No",{"$f":"IF(Solicitud.Manual!$I$66=\"NO\",\"X\",\"\")","v":""},null,null,"SI",{"$f":"IF(Solicitud.Manual!$J$66=\"SÍ\",\"X\",\"\")","v":""},"No",{"$f":"IF(Solicitud.Manual!$J$66=\"NO\",\"X\",\"\")","v":""},null,null,null,"SI",{"$f":"IF(Solicitud.Manual!$K$66=\"SÍ\",\"X\",\"\")","v":""},"No",{"$f":"IF(Solicitud.Manual!$K$66=\"NO\",\"X\",\"\")","v":""}]
[]
[null,null,"4. Cuenta con vigilantes",null,null,null,null,null,null,null,null,null,null,null,null,null,null,"SI",{"$f":"IF(Solicitud.Manual!$I$67=\"SÍ\",\"X\",\"\")","v":""},"No",{"$f":"IF(Solicitud.Manual!$I$67=\"NO\",\"X\",\"\")","v":""},null,null,"SI",{"$f":"IF(Solicitud.Manual!$J$67=\"SÍ\",\"X\",\"\")","v":""},"No",{"$f":"IF(Solicitud.Manual!$J$67=\"NO\",\"X\",\"\")","v":""},null,null,null,"SI",{"$f":"IF(Solicitud.Manual!$K$67=\"SÍ\",\"X\",\"\")","v":""},"No",{"$f":"IF(Solicitud.Manual!$K$67=\"NO\",\"X\",\"\")","v":""}]
[]
[null,null,"5. Puertas exteriores (Rejas de fierro y/o cortina metálica y/o planchas de fierro, en su totalidad)",null,null,null,null,null,null,null,null,null,null,null,null,null,null,"SI",{"$f":"IF(Solicitud.Manual!$I$68=\"SÍ\",\"X\",\"\")","v":""},"No",{"$f":"IF(Solicitud.Manual!$I$68=\"NO\",\"X\",\"\")","v":""},null,null,"SI",{"$f":"IF(Solicitud.Manual!$J$68=\"SÍ\",\"X\",\"\")","v":""},"No",{"$f":"IF(Solicitud.Manual!$J$68=\"NO\",\"X\",\"\")","v":""},null,null,null,"SI",{"$f":"IF(Solicitud.Manual!$K$68=\"SÍ\",\"X\",\"\")","v":""},"No",{"$f":"IF(Solicitud.Manual!$K$68=\"NO\",\"X\",\"\")","v":""}]
[]
[]
[null,null,"6. Ventanas protegidas por reja de fierro y/o reja plegadiza y/o cortina metálica, en su totalidad",null,null,null,null,null,null,null,null,null,null,null,null,null,null,"SI",{"$f":"IF(Solicitud.Manual!$I$69=\"SÍ\",\"X\",\"\")","v":""},"No",{"$f":"IF(Solicitud.Manual!$I$69=\"NO\",\"X\",\"\")","v":""},null,null,"SI",{"$f":"IF(Solicitud.Manual!$J$69=\"SÍ\",\"X\",\"\")","v":""},"No",{"$f":"IF(Solicitud.Manual!$J$69=\"NO\",\"X\",\"\")","v":""},null,null,null,"SI",{"$f":"IF(Solicitud.Manual!$K$69=\"SÍ\",\"X\",\"\")","v":""},"No",{"$f":"IF(Solicitud.Manual!$K$69=\"NO\",\"X\",\"\")","v":""}]
[]
[]
[null,null,"7. Totalidad de su mercadería se encuentra almacenada en el interior de su local bajo las condiciones antes mencionadas",null,null,null,null,null,null,null,null,null,null,null,null,null,null,"SI",{"$f":"IF(Solicitud.Manual!$I$70=\"SÍ\",\"X\",\"\")","v":""},"No",{"$f":"IF(Solicitud.Manual!$I$70=\"NO\",\"X\",\"\")","v":""},null,null,"SI",{"$f":"IF(Solicitud.Manual!$J$70=\"SÍ\",\"X\",\"\")","v":""},"No",{"$f":"IF(Solicitud.Manual!$J$70=\"NO\",\"X\",\"\")","v":""},null,null,null,"SI",{"$f":"IF(Solicitud.Manual!$K$70=\"SÍ\",\"X\",\"\")","v":""},"No",{"$f":"IF(Solicitud.Manual!$K$70=\"NO\",\"X\",\"\")","v":""}]
[]
[]
[null,null,"8. Los productos que almacena o tiene dentro de su local son combustibles y/o inflamables",null,null,null,null,null,null,null,null,null,null,null,null,null,null,"SI",{"$f":"IF(Solicitud.Manual!$I$71=\"SÍ\",\"X\",\"\")","v":""},"No",{"$f":"IF(Solicitud.Manual!$I$71=\"NO\",\"X\",\"\")","v":""},null,null,"SI",{"$f":"IF(Solicitud.Manual!$J$71=\"SÍ\",\"X\",\"\")","v":""},"No",{"$f":"IF(Solicitud.Manual!$J$71=\"NO\",\"X\",\"\")","v":""},null,null,null,"SI",{"$f":"IF(Solicitud.Manual!$K$71=\"SÍ\",\"X\",\"\")","v":""},"No",{"$f":"IF(Solicitud.Manual!$K$71=\"NO\",\"X\",\"\")","v":""}]
[]
[null,null,"9. La ubicación del inmueble ¿está a mas de 500 metros de distancia de un río, playa o laguna y a más de 15 metros de altura alguno de estos?",null,null,null,null,null,null,null,null,null,null,null,null,null,null,"SI",{"$f":"IF(Solicitud.Manual!$I$72=\"SÍ\",\"X\",\"\")","v":""},"No",{"$f":"IF(Solicitud.Manual!$I$72=\"NO\",\"X\",\"\")","v":""},null,null,"SI",{"$f":"IF(Solicitud.Manual!$J$72=\"SÍ\",\"X\",\"\")","v":""},"No",{"$f":"IF(Solicitud.Manual!$J$72=\"NO\",\"X\",\"\")","v":""},null,null,null,"SI",{"$f":"IF(Solicitud.Manual!$K$72=\"SÍ\",\"X\",\"\")","v":""},"No",{"$f":"IF(Solicitud.Manual!$K$72=\"NO\",\"X\",\"\")","v":""}]
[]
[null,null,"Declaración de Bienes"]
[null,null,"Tipo moneda"]
[null,null,"US Dólares",null,null,null,null,{"$f":"+IF(CoberturasaElegirLocal1!$I$8=\"USD\",\"X\",\"\")","v":"X"}]
[null,null,null,null,null,null,null,null,null,null,null,null,null,"Local 1",null,null,null,null,null,null,"Local 2",null,null,null,null,null,null,"Local 3"]
[null,null,null,null,null,null,null,null,null,null,null,null,null,"Valor",null,null,"Valor",null,null,null,"Valor",null,null,"Valor",null,null,null,"Valor",null,null,"Valor"]
[null,null,null,null,null,null,null,null,null,null,null,null,null,"Declarado",null,null,"Endosado",null,null,null,"Declarado",null,null,"Endosado",null,null,null,"Declarado",null,null,"Endosado"]
[null,1,{"$f":"+CoberturasaElegirLocal1!H11","v":"Edificio (sin considerar el valor del terreno)"},null,null,null,null,null,null,null,null,null,null,{"$f":"+IF(CoberturasaElegirLocal1!$M$11=\"\",\"\",CoberturasaElegirLocal1!$M$11)","v":""},null,null,{"$f":"+IF(CoberturasaElegirLocal1!$N$11=\"\",\"\",CoberturasaElegirLocal1!$N$11)","v":""},null,null,null,{"$f":"+IF(CoberturasaElegirLocal2!$M$11=\"\",\"\",CoberturasaElegirLocal2!$M$11)","v":""},null,null,{"$f":"+IF(CoberturasaElegirLocal2!$N$11=\"\",\"\",CoberturasaElegirLocal2!$N$11)","v":""},null,null,null,{"$f":"+IF(CoberturasaElegirLocal3!$M$11=\"\",\"\",CoberturasaElegirLocal3!$M$11)","v":""},null,null,{"$f":"+IF(CoberturasaElegirLocal3!$N$11=\"\",\"\",CoberturasaElegirLocal3!$N$11)","v":""}]
[null,2,{"$f":"+IF(CoberturasaElegirLocal1!H12=\"\",\"\",CoberturasaElegirLocal1!H12)","v":"Instalaciones fijas"},null,null,null,null,null,null,null,null,null,null,{"$f":"+IF(CoberturasaElegirLocal1!$M$12=\"\",\"\",CoberturasaElegirLocal1!$M$12)","v":""},null,null,{"$f":"+IF(CoberturasaElegirLocal1!$N$12=\"\",\"\",CoberturasaElegirLocal1!$N$12)","v":""},null,null,null,{"$f":"+IF(CoberturasaElegirLocal2!$M$12=\"\",\"\",CoberturasaElegirLocal2!$M$12)","v":""},null,null,{"$f":"+IF(CoberturasaElegirLocal2!$N$12=\"\",\"\",CoberturasaElegirLocal2!$N$12)","v":""},null,null,null,{"$f":"+IF(CoberturasaElegirLocal3!$M$12=\"\",\"\",CoberturasaElegirLocal3!$M$12)","v":""},null,null,{"$f":"+IF(CoberturasaElegirLocal3!$N$12=\"\",\"\",CoberturasaElegirLocal3!$N$12)","v":""}]
[null,3,{"$f":"+CoberturasaElegirLocal1!H13","v":"Mobiliario y/o contenido propios del giro"},null,null,null,null,null,null,null,null,null,null,{"$f":"+IF(CoberturasaElegirLocal1!$M$13=\"\",\"\",CoberturasaElegirLocal1!$M$13)","v":""},null,null,{"$f":"+IF(CoberturasaElegirLocal1!$N$13=\"\",\"\",CoberturasaElegirLocal1!$N$13)","v":""},null,null,null,{"$f":"+IF(CoberturasaElegirLocal2!$M$13=\"\",\"\",CoberturasaElegirLocal2!$M$13)","v":""},null,null,{"$f":"+IF(CoberturasaElegirLocal2!$N$13=\"\",\"\",CoberturasaElegirLocal2!$N$13)","v":""},null,null,null,{"$f":"+IF(CoberturasaElegirLocal3!$M$13=\"\",\"\",CoberturasaElegirLocal3!$M$13)","v":""},null,null,{"$f":"+IF(CoberturasaElegirLocal3!$N$13=\"\",\"\",CoberturasaElegirLocal3!$N$13)","v":""}]
[null,4,{"$f":"+CoberturasaElegirLocal1!H14","v":"Existencias propias del giro del negocio"},null,null,null,null,null,null,null,null,null,null,{"$f":"+IF(CoberturasaElegirLocal1!$M$14=\"\",\"\",CoberturasaElegirLocal1!$M$14)","v":""},null,null,{"$f":"+IF(CoberturasaElegirLocal1!$N$14=\"\",\"\",CoberturasaElegirLocal1!$N$14)","v":""},null,null,null,{"$f":"+IF(CoberturasaElegirLocal2!$M$14=\"\",\"\",CoberturasaElegirLocal2!$M$14)","v":""},null,null,{"$f":"+IF(CoberturasaElegirLocal2!$N$14=\"\",\"\",CoberturasaElegirLocal2!$N$14)","v":""},null,null,null,{"$f":"+IF(CoberturasaElegirLocal3!$M$14=\"\",\"\",CoberturasaElegirLocal3!$M$14)","v":""},null,null,{"$f":"+IF(CoberturasaElegirLocal3!$N$14=\"\",\"\",CoberturasaElegirLocal3!$N$14)","v":""}]
[null,5,{"$f":"+CoberturasaElegirLocal1!H15","v":"Maquinaria propia del giro del negocio"},null,null,null,null,null,null,null,null,null,null,{"$f":"+IF(CoberturasaElegirLocal1!$M$15=\"\",\"\",CoberturasaElegirLocal1!$M$15)","v":""},null,null,{"$f":"+IF(CoberturasaElegirLocal1!$N$15=\"\",\"\",CoberturasaElegirLocal1!$N$15)","v":""},null,null,null,{"$f":"+IF(CoberturasaElegirLocal2!$M$15=\"\",\"\",CoberturasaElegirLocal2!$M$15)","v":""},null,null,{"$f":"+IF(CoberturasaElegirLocal2!$N$15=\"\",\"\",CoberturasaElegirLocal2!$N$15)","v":""},null,null,null,{"$f":"+IF(CoberturasaElegirLocal3!$M$15=\"\",\"\",CoberturasaElegirLocal3!$M$15)","v":""},null,null,{"$f":"+IF(CoberturasaElegirLocal3!$N$15=\"\",\"\",CoberturasaElegirLocal3!$N$15)","v":""}]
[null,6,{"$f":"+CoberturasaElegirLocal1!H16","v":"Equipos electrónicos propios del giro del negocio"},null,null,null,null,null,null,null,null,null,null,{"$f":"+IF(CoberturasaElegirLocal1!$M$16=\"\",\"\",CoberturasaElegirLocal1!$M$16)","v":""},null,null,{"$f":"+IF(CoberturasaElegirLocal1!$N$16=\"\",\"\",CoberturasaElegirLocal1!$N$16)","v":""},null,null,null,{"$f":"+IF(CoberturasaElegirLocal2!$M$16=\"\",\"\",CoberturasaElegirLocal2!$M$16)","v":""},null,null,{"$f":"+IF(CoberturasaElegirLocal2!$N$16=\"\",\"\",CoberturasaElegirLocal2!$N$16)","v":""},null,null,null,{"$f":"+IF(CoberturasaElegirLocal3!$M$16=\"\",\"\",CoberturasaElegirLocal3!$M$16)","v":""},null,null,{"$f":"+IF(CoberturasaElegirLocal3!$N$16=\"\",\"\",CoberturasaElegirLocal3!$N$16)","v":""}]
[null,7,{"$f":"+CoberturasaElegirLocal1!H17","v":"Lucro Cesante"},null,null,null,null,null,null,null,null,null,null,{"$f":"+IF(CoberturasaElegirLocal1!$M$17=\"\",\"\",CoberturasaElegirLocal1!$M$17)","v":""},null,null,{"$f":"+IF(CoberturasaElegirLocal1!$N$17=\"\",\"\",CoberturasaElegirLocal1!$N$17)","v":""},null,null,null,{"$f":"+IF(CoberturasaElegirLocal2!$M$17=\"\",\"\",CoberturasaElegirLocal2!$M$17)","v":""},null,null,{"$f":"+IF(CoberturasaElegirLocal2!$N$17=\"\",\"\",CoberturasaElegirLocal2!$N$17)","v":""},null,null,null,{"$f":"+IF(CoberturasaElegirLocal3!$M$17=\"\",\"\",CoberturasaElegirLocal3!$M$17)","v":""},null,null,{"$f":"+IF(CoberturasaElegirLocal3!$N$17=\"\",\"\",CoberturasaElegirLocal3!$N$17)","v":""}]
[null,null,"(*) Valor total declarado por local",null,null,null,null,null,null,null,null,null,null,{"$f":"+IF(CoberturasaElegirLocal1!$M$18=\"\",\"\",CoberturasaElegirLocal1!$M$18)","v":""},null,null,{"$f":"+IF(CoberturasaElegirLocal1!$N$18=\"\",\"\",CoberturasaElegirLocal1!$N$18)","v":""},null,null,null,{"$f":"+IF(CoberturasaElegirLocal2!$M$18=\"\",\"\",CoberturasaElegirLocal2!$M$18)","v":""},null,null,{"$f":"+IF(CoberturasaElegirLocal2!$N$18=\"\",\"\",CoberturasaElegirLocal2!$N$18)","v":""},null,null,null,{"$f":"+IF(CoberturasaElegirLocal3!$M$18=\"\",\"\",CoberturasaElegirLocal3!$M$18)","v":""},null,null,{"$f":"+IF(CoberturasaElegirLocal3!$N$18=\"\",\"\",CoberturasaElegirLocal3!$N$18)","v":""}]
[null,null,"(*) Limitado a US$ 2,000,000 y/o su equivalente en moneda nacional"]
[]
[null,null,null,null,null,null,null,null,null,null,null,null,"Endosado a favor de:",{"$f":"IF(Cotizador!$H$8=0,\"\",Cotizador!$H$8)","v":""},null,null,null,null,null,null,{"$f":"IF(Cotizador!$M$8=0,\"\",Cotizador!$M$8)","v":""},null,null,null,null,null,null,{"$f":"IF(Cotizador!$R$8=0,\"\",Cotizador!$R$8)","v":""}]
[]
[null,null,"Coberturas"]
[]
[null,"1) Sección incendio y líneas aliadas",null,null,null,null,null,null,null,null,null,null,null,null,null,null,null,null,"Local 1",null,null,null,null,null,"Local 2",null,null,null,null,null,null,"Local 3"]
[]
[null,"A valor total",null,null,null,null,null,null,null,null,null,null,null,null,null,null,null,null,null,{"$f":"IF(Cotizador!$H$16 =0,\"X\",\"\")","v":"X"},null,null,null,null,null,{"$f":"IF(Cotizador!$M$16 =0,\"X\",\"\")","v":"X"},null,null,null,null,null,null,{"$f":"IF(Cotizador!$R$16 =0,\"X\",\"\")","v":"X"}]
[null,"A valor total incluido lucro cesante, periodo incial 12 meses ( Limite único combinado)",null,null,null,null,null,null,null,null,null,null,null,null,null,null,null,null,null,{"$f":"IF(Cotizador!$H$16>0,\"X\",\"\")","v":""},null,null,null,null,null,{"$f":"IF(Cotizador!$M$16>0,\"X\",\"\")","v":""},null,null,null,null,null,null,{"$f":"IF(Cotizador!$R$16>0,\"X\",\"\")","v":""}]
[]
[null,"A valor total"]
[null,"Bajo esta modalidad queda convenido que EL ASEGURADO fijará la suma asegurada, la cual debe coincidir con el Valor de"]
[null,"Reposición a Nuevo de la totalidad de los bienes que conforman la materia asegurada."]
[]
[null,"Sub Límites [1]",null,null,null,null,null,null,null,null,null,null,null,"Límite US $"]
[]
[null,"Huelga, Motín, Conmoción Civil, Daño Malicioso, Vandalismo y / o Terrorismo en el agregado por vigencia. (Límite Único y Combinado)",null,null,null,null,null,null,null,null,null,null,null,"Hasta el 100% del valor declarado, límite máximo US$ 2'000,000"]
[]
[]
[null,"Gastos Extraordinarios: (Límite Único y Combinado)",null,null,null,null,null,null,null,null,null,null,null,"Hasta el 20% del valor declarado, límite máximo US$ 400,000.00"]
[null," - Honorarios Arquitectos, topógrafos e Ingenieros"]
[null," - Documentos y Modelos"]
[null," - Remoción de Escombros"]
[null,"Cobertura Automática para Nuevas Adquisiciones, máximo 30 días",null,null,null,null,null,null,null,null,null,null,null,"Hasta el 20% del valor declarado, límite máximo"]
[null,"para declaración a PACÍFICO.",null,null,null,null,null,null,null,null,null,null,null,"US$ 100,000.00"]
[null,"(Aplica sólo si cuenta con contenido, equipos y maquinaria)"]
[null,"Rotura Accidental de Vidrios, Cristales y/o Avisos luminosos. Aplica",null,null,null,null,null,null,null,null,null,null,null,"Hasta el 10% del valor declarado límite máximo"]
[null,"para contenido y edificación.",null,null,null,null,null,null,null,null,null,null,null,"US$ 5,000.00"]
[]
[null,"Gastos extras",null,null,null,null,null,null,null,null,null,null,null,"Hasta el 20% del valor declarado límite máximo"]
[null,null,null,null,null,null,null,null,null,null,null,null,null,"US$ 400,000.00"]
[]
[null,"Refrigeración ( Aplica a Grupo \"A\": restaurantes, hoteles, panaderías,",null,null,null,null,null,null,null,null,null,null,null,"US$5,000 por evento y 20,000 Límite Agregado Anual"]
[null,"heladerías, carnicerías y bodegas)"]
[]
[null,"[1] Forman parte de la Suma Asegurada, no son Adicionales"]
[]
[null,"2) Sección Rotura de Maquinaria"]
[]
[null,null,"Hasta el 100% del valor declarado de la maquinaria fija en la sección de incendio, limitado hasta US$ 200,000 y/o su equivalente"]
[null,null,"en moneda nacional."]
[]
[null,"3) Sección Equipo Electrónico"]
[]
[null,null,"Hasta el 100% del valor declarado de equipo electrónico en la sección de incendio, limitado hasta US$ 50,000 y/o su equivalente"]
[null,null,"en moneda nacional."]
[null,null,"Laptops y/o notebooks hasta el 100% de la suma asegurada de equipo electrónico, limitado hasta US$ 3,000.00 y/o su"]
[null,null,"equivalente en moneda nacional y en límite agregado vigencia."]
[]
[null,"4) Sección Robo y/o Asalto"]
[]
[null,null,"Hasta el 100% del valor declarado total de activos (excepto edificio) limitado hasta US$ 100,000.00 y/o su equivalente en"]
[null,null,"moneda nacional."]
[null,null,"Dinero en tránsito máximo US$ 3,000.00 y/o su equivalente en moderna nacional y en límite agregado por vigencia."]
[null,null,"Dinero dentro del local hasta US$ 3,000.00 y/o su equivalente en moderna nacional y en límite agregado vigencia."]
[]
[null,"5) Sección Responsabilidad Civil"]
[]
[null,null,"Responsabilidad civil extracontractual hasta el 100% del valor declarado de incendio, limitado hasta US$ 200,000.00 en límite"]
[null,null,"agregado vigencia y/o su equivalente en moneda nacional."]
[]
[null,null,"Límite Asegurado (excepto hoteles hasta US$)",null,null,null,null,null,null,null,null,null,null,null,null,null,null,null,null,null,null,null,"Solo hoteles hasta US$"]
[]
[null,null,null,null,null,null,null,"Local 1",null,"Local 2",null,"Local 3",null,null,null,null,null,null,null,null,null,null,null,null,null,null,null,"Local 1",null,"Local 2",null,"Local 3"]
[null,null,50000,null,null,null,null,{"$f":"IF(DatosdelNegocioLocal1!$AH$6<>13, IF($C$214=Cotizador!$I$33,\"X\",\"\"),\"\")","v":""},null,{"$f":"IF(DatosdelNegocioLocal2!$AH$6<>13, IF($C$214=Cotizador!$N$33,\"X\",\"\"),\"\")","v":""},null,{"$f":"IF(DatosdelNegocioLocal3!$AH$6<>13, IF($C$214=Cotizador!$S$33,\"X\",\"\"),\"\")","v":""},null,null,null,null,null,null,null,null,null,null,50000,null,null,null,null,{"$f":"IF(DatosdelNegocioLocal1!$AH$6=13,IF($W$214=Cotizador!$I$33,\"X\",\"\"),\"\")","v":""},null,{"$f":"IF(DatosdelNegocioLocal2!$AH$6=13,IF($W$214=Cotizador!$N$33,\"X\",\"\"),\"\")","v":""},null,{"$f":"IF(DatosdelNegocioLocal3!$AH$6=13,IF($W$214=Cotizador!$S$33,\"X\",\"\"),\"\")","v":""}]
[null,null,100000,null,null,null,null,{"$f":"IF(DatosdelNegocioLocal1!$AH$6<>13, IF($C$215=Cotizador!$I$33,\"X\",\"\"),\"\")","v":""},null,{"$f":"IF(DatosdelNegocioLocal2!$AH$6<>13, IF($C$215=Cotizador!$N$33,\"X\",\"\"),\"\")","v":""},null,{"$f":"IF(DatosdelNegocioLocal3!$AH$6<>13, IF($C$215=Cotizador!$S$33,\"X\",\"\"),\"\")","v":""},null,null,null,null,null,null,null,null,null,null,100000,null,null,null,null,{"$f":"IF(DatosdelNegocioLocal1!$AH$6=13,IF($W$215=Cotizador!$I$33,\"X\",\"\"),\"\")","v":""},null,{"$f":"IF(DatosdelNegocioLocal2!$AH$6=13,IF($W$215=Cotizador!$N$33,\"X\",\"\"),\"\")","v":""},null,{"$f":"IF(DatosdelNegocioLocal3!$AH$6=13,IF($W$215=Cotizador!$S$33,\"X\",\"\"),\"\")","v":""}]
[null,null,200000,null,null,null,null,{"$f":"IF(DatosdelNegocioLocal1!$AH$6<>13, IF($C$216=Cotizador!$I$33,\"X\",\"\"),\"\")","v":""},null,{"$f":"IF(DatosdelNegocioLocal2!$AH$6<>13, IF($C$216=Cotizador!$N$33,\"X\",\"\"),\"\")","v":""},null,{"$f":"IF(DatosdelNegocioLocal3!$AH$6<>13, IF($C$216=Cotizador!$S$33,\"X\",\"\"),\"\")","v":""},null,null,null,null,null,null,null,null,null,null,200000,null,null,null,null,{"$f":"IF(DatosdelNegocioLocal1!$AH$6=13,IF($W$216=Cotizador!$I$33,\"X\",\"\"),\"\")","v":""},null,{"$f":"IF(DatosdelNegocioLocal2!$AH$6=13,IF($W$216=Cotizador!$N$33,\"X\",\"\"),\"\")","v":""},null,{"$f":"IF(DatosdelNegocioLocal3!$AH$6=13,IF($W$216=Cotizador!$S$33,\"X\",\"\"),\"\")","v":""}]
[null,null,300000,null,null,null,null,{"$f":"IF(DatosdelNegocioLocal1!$AH$6<>13, IF($C$217=Cotizador!$I$33,\"X\",\"\"),\"\")","v":""},null,{"$f":"IF(DatosdelNegocioLocal2!$AH$6<>13, IF($C$217=Cotizador!$N$33,\"X\",\"\"),\"\")","v":""},null,{"$f":"IF(DatosdelNegocioLocal3!$AH$6<>13, IF($C$217=Cotizador!$S$33,\"X\",\"\"),\"\")","v":""},null,null,null,null,null,null,null,null,null,null,300000,null,null,null,null,{"$f":"IF(DatosdelNegocioLocal1!$AH$6=13,IF($W$217=Cotizador!$I$33,\"X\",\"\"),\"\")","v":""},null,{"$f":"IF(DatosdelNegocioLocal2!$AH$6=13,IF($W$217=Cotizador!$N$33,\"X\",\"\"),\"\")","v":""},null,{"$f":"IF(DatosdelNegocioLocal3!$AH$6=13,IF($W$217=Cotizador!$S$33,\"X\",\"\"),\"\")","v":""}]
[null,null,500000,null,null,null,null,{"$f":"IF(DatosdelNegocioLocal1!$AH$6<>13, IF($C$218=Cotizador!$I$33,\"X\",\"\"),\"\")","v":""},null,{"$f":"IF(DatosdelNegocioLocal2!$AH$6<>13, IF($C$218=Cotizador!$N$33,\"X\",\"\"),\"\")","v":""},null,{"$f":"IF(DatosdelNegocioLocal3!$AH$6<>13, IF($C$218=Cotizador!$S$33,\"X\",\"\"),\"\")","v":""},null,null,null,null,null,null,null,null,null,null,500000,null,null,null,null,{"$f":"IF(DatosdelNegocioLocal1!$AH$6=13,IF($W$218=Cotizador!$I$33,\"X\",\"\"),\"\")","v":""},null,{"$f":"IF(DatosdelNegocioLocal2!$AH$6=13,IF($W$218=Cotizador!$N$33,\"X\",\"\"),\"\")","v":""},null,{"$f":"IF(DatosdelNegocioLocal3!$AH$6=13,IF($W$218=Cotizador!$S$33,\"X\",\"\"),\"\")","v":""}]
[]
[]
[null,"6) Sección Transporte"]
[null,null,"Hasta el límite máximo por embarque ( Límite agregado anual)"]
[]
[null,null,"Contratacion del Seguros de Transportes",null,null,null,null,null,null,null,null,{"$f":"IF(LEN(CuestionarioTransporte!$C$12)>0,\"X\",\"\")","v":""}]
[]
[null,null,"Tipo de Contratación",null,null,null,null,null,null,null,null,{"$f":"IF(LEN(CuestionarioTransporte!$C$12)>0,CuestionarioTransporte!$C$12,\"\")","v":""}]
[null,null,"Movimiento Estimado Anual (en USD) ",null,null,null,null,null,null,null,null,{"$f":"IF(LEN(CuestionarioTransporte!$D$24)>0,CuestionarioTransporte!$D$24,\"\")","v":""},null,null,null,"Límite Máximo por Embarque ( Limite agregado anual)  :   $ 25, 0000"]
[]
[]
[null,null,"Pago de prima"]
[]
[null,null,"De acuerdo a lo establecido en el art. Nro 3, de la resolucion SBS 3198-2013, reglamento de pago de primas, la cobertura se inicia con la aceptacion de la solicitud y el pago de la prima. La forma de pago se aplicará a las posteriores renovaciones, salvo modificaciones por parte del contratante. La forma de pago es:"]
[]
[]
[]
[null,null,null,null,null,null,null,{"$f":"IF(Cotizador!$E$82=\"Débito Automático\",\"X\",\"\")","v":""},"Débito Automático",null,null,null,null,null,null,null,null,{"$f":"IF(Cotizador!$E$82=\"Cupones\",\"X\",\"\")","v":""},"Cupones",null,null,"Persona Natural"]
[]
[]
[null,null,null,null,null,null,null,null,{"$f":"IF($H$236=\"X\",IF(Cotizador!$AD$22=1,\"X\",\"\"),\"\")","v":""},"Contado",null,null,null,null,null,null,null,null,{"$f":"IF($R$236=\"X\",IF(Cotizador!$AD$22=1,\"X\",\"\"),\"\")","v":""},"Contado"]
[]
[null,null,null,null,null,null,null,null,{"$f":"IF($H$236=\"X\",IF(AND(Cotizador!$AD$22<>1,Cotizador!$I$87=4),\"X\",\"\"),\"\")","v":""},"4 cuotas sin intereses",null,null,null,null,null,null,null,null,{"$f":"IF($R$236=\"X\",IF(AND(Cotizador!$AD$22<>1,Cotizador!$I$87=4),\"X\",\"\"),\"\")","v":""},"4 cuotas"]
[]
[null,null,null,null,null,null,null,null,{"$f":"IF($H$236=\"X\",IF(AND(Cotizador!$AD$22<>1,Cotizador!$I$87=6),\"X\",\"\"),\"\")","v":""},"6 cuotas  sin intereses",null,null,null,null,null,null,null,null,{"$f":"IF($R$236=\"X\",IF(AND(Cotizador!$AD$22<>1,Cotizador!$I$87=6),\"X\",\"\"),\"\")","v":""},"6 cuotas (TCEA 17.5%)"]
[]
[null,null,null,null,null,null,null,null,{"$f":"IF($H$236=\"X\",IF(AND(Cotizador!$AD$22<>1,Cotizador!$I$87=10),\"X\",\"\"),\"\")","v":""},"10 cuotas  sin intereses",null,null,null,null,null,null,null,null,{"$f":"IF($R$236=\"X\",IF(AND(Cotizador!$AD$22<>1,Cotizador!$I$87=10),\"X\",\"\"),\"\")","v":""},"10 cuotas (TCEA 17.5%)"]
[]
[null,null,null,null,null,null,null,null,{"$f":"IF($H$236=\"X\",IF(AND(Cotizador!$AD$22<>1,Cotizador!$I$87=12),\"X\",\"\"),\"\")","v":""},"12 cuotas  sin intereses",null,null,null,null,null,null,null,null,{"$f":"IF($R$236=\"X\",IF(AND(Cotizador!$AD$22<>1,Cotizador!$I$87=12),\"X\",\"\"),\"\")","v":""}]
[]
[]
[null,null,"*Según cuota mínima del producto."]
[]
[]
[null,null,"Datos de asesor de venta"]
[]
[null,null,"Corredor",null,null,null,null,{"$f":"IF(LEN(Solicitud.Manual!$D$148)=0,\"\",Solicitud.Manual!$D$148)","v":""},null,null,null,null,null,null,null,"Código o Número",null,null,null,null,{"$f":"IF(LEN(Solicitud.Manual!$J$144)=0,\"\",Solicitud.Manual!$J$144)","v":""}]
[null,null,"Teléfono",null,{"$f":"IF(LEN(Solicitud.Manual!$J$146)=0,\"\",Solicitud.Manual!$J$146)","v":""},null,null,null,null,null,null,null,"Correo electrónico",null,null,null,{"$f":"IF(LEN(Solicitud.Manual!$J$148)=0,\"\",Solicitud.Manual!$J$148)","v":""}]
[]
[]
[]
[]
[]
[null,null,"Firma del Corredor"]
[]
[]
[null,null,"Declaracion del asegurado"]
[]
[null,null,"DECLARO que:"]
[]
[null,null,"1. Conozco que la veracidad y exactitud de la informacion aquí consignada es esencial para la determinacion de la prima, la cobertura y la decision final de PACIFICO SEGUROS para asegurar el riesgo analizado."]
[null,null,"2. Conozco que la reticencia y/o declaracion inexacta, hecha don dolo o culpa inexcusable(negligencia grave), en llenado de la presente solicitud, genera la nulidad del contrato de seguro."]
[null,null,"3. Conozco que constituye retinencia y/o declaracion inexacta con culpa inexcusable(negligencia grave) o dolo, según el caso, por ejemplo, ocultar o no develar informacion relevante y que era de mi conocimiento al momento de realizarse la inspeccion al riesgo asegurado, omitir dar informacion a PACIFICO SEGUROS al momento de contratar la poliza; y dejar espacios en blanco en la solicitud de seguro."]
[null,null,"4. Conozco que tengo la obligacion de notificar por escrito a PACIFICO SEGUROS los hechos o circunstancias que agraven el riesgo y conozco tambien que esta obligacion se extiende durante la vigencia del Contrato de Seguro; asimismo, en la vigencias de polizas que se negocien sucesiva e ininterrupidamente."]
[null,null,"5. Conozco que tengo la obligacion de informar a PACIFICO SEGUROS sobre cualquier evento o circunstancia que directa o indirectamente pueda ser pertinente para corregir, actualizar y/o complementar la informacion brindada en la solicitud de seguro. Si no actualizo la informacion nuevo que directa o indirectamente sea relevante para corregir, actualizar y/o complementar dicha informacion."]
[null,null,"6. Conozco que estoy facultado para plantear ante la COMPAÑÍA todas las consultas y/o dudas que pueda tener respecto del contenido de la Solicitud de Seguro que consta en el presente documento"]
[null,null,"7. He tenido mi disposicion de manera previa a la contratacion de este seguro las condiciones generales, condiciones particulares, condiciones especiales y demas informacion del seguro que solicito."]
[]
[null,"IMPORTANTE"]
[null,null,"Aprobación de la solicitud de seguro",null,null,null,null,null,null,null,null,null,null,null,"AUTORIZACIONES PARA USOS ADICIONALES"]
[null,null,"PACÍFICO SEGUROS entregará la póliza de seguro al Contratante dentro del plazo de 15 días calendario de haber recibido la solicitud, si es que no es rechazada.\nNo obstante, cuando corresponda, PACÍFICO SEGUROS se obliga a comunicar el rechazo de la solicitud dentro del plazo de 15 días calendario de recibida, salvo que PACÍFICO SEGUROS haya requerido información adicional y/u otros requerimientos adicionales, necesarios para la evaluación del riesgo, dentro del referido plazo. En este caso, el plazo para comunicar el rechazo se contará a partir de la recepción de la información completa solicitada y de cumplidos los requerimientos realizados por PACÍFICO SEGUROS. En el supuesto que el Contratante no complete la información solicitada por PACÍFICO SEGUROS y/o no cumpla con los requerimientos que PACÍFICO SEGUROS haya realizado, se considerará rechazada la solicitud."]
[null,null,null,null,null,null,null,null,null,null,null,null,null,null,"EL CLIENTE autoriza que PACÍFICO SEGUROS, de manera directa o a través de sus Encargados:\n- Le oferte cualquiera de nuestros productos de los ramos de Riesgos Generales o de Vida.\n- Le oferte cualquier otro producto o servicio de PACÍFICO SEGUROS o de sus empresas terceras.\n- A transferir su Información a empresas Credicorp (incluyendo subsidiarias, vinculadas y afiliadas) así como socios comerciales (Terceros), para que cada uno de ellos pueda ofertar sus productos o servicios. \n"]
[]
[]
[]
[]
[]
[]
[]
[]
[]
[]
[null,null,"Medios de comunicación pactados:"]
[null,null,"Autorizo a PACIFICO SEGUROS, a que en el caso de aprobar la presente solicitud, pueda enviar válidamente cualquier comunicación y/o notificación vinculada con este seguro durante su vigencia por cualquiera de los medios de comunicación arriba indicados. Declaro igualmente conocer y estar de acuerdo con que las comunicaciones y/o notificaciones que sean dirigidas a mi correo electrónico surtirán efectos y las consideraré recibidas a partir del momento en que éstas sean recibidas en el servidor de mi cuenta del correo electrónico, considerándose igualmente que en ese momento he tomado conocimiento del contenido del documento enviado por dicho medio."]
[]
[]
[]
[]
[null,null,null,null,null,null,null,null,null,null,null,null,null,null,"EL CLIENTE acepta haber tenido a su disposición la lista de Terceros y Encargados que también se encuentra disponible en https://www.pacifico.com.pe/transparencia/politica-privacidad. Dicha lista detalla los posibles usos que los Terceros darán a sus datos personales. El envío de comunicaciones o mensajes con las ofertas y/o publicidades podrá ser remitida a través de medios escritos, verbales (por ejemplo: mensajes, push notification o llamadas telefónicas) o electrónicos/informáticos (por ejemplo correo electrónico)."]
[]
[]
[]
[null,null,"Se enviará comunicaciones por escrito al domicilio físico del contratante y/o asegurado, en caso la normatividad vigente lo exija o, no se consigne una dirección electrónica."]
[]
[]
[null,null,"PROTECCIÓN DE DATOS PERSONALES"]
[]
[null,null,"Para la correcta ejecución de la relación contractual, EL CONTRATANTE / ASEGURADO (“EL CLIENTE”) se obliga a mantener actualizada su información personal, financiera y crediticia (“LA INFORMACIÓN”) y reconoce que PACÍFICO SEGUROS podrá tratarla, actualizarla, completarla y realizar flujos transfronterizos conforme a ley."]
[]
[]
[]
[]
[]
[]
[null,null,"PACÍFICO SEGUROS conservará, tratará y realizará flujos transfronterizos con LA INFORMACIÓN de EL CLIENTE mientras se mantenga la relación contractual y luego de veinte (20) años de finalizado el contrato.\nPara el tratamiento de La INFORMACIÓN de EL CLIENTE, PACÍFICO SEGUROS utilizará diversos Encargados ubicados en el Perú y el extranjero, los cuales se han puesto a disposición del El cliente y también se encuentran detallados en https://www.pacifico.com.pe/transparencia/politica-privacidad.",null,null,null,null,null,null,null,null,null,null,null,"PACÍFICO SEGUROS y los Terceros podrán conservar y tratar LA INFORMACIÓN de EL CLIENTE en los términos establecidos en esta sección, mientras se mantenga la relación contractual y luego de veinte (20) años de finalizado el contrato.\nLa aceptación o no de esta autorización para usos adicionales (ajenos a la ejecución de la relación contractual) no condiciona la prestación del servicio que EL CLIENTE está contratando.\n"]
[]
[]
[]
[]
[]
[]
[]
[]
[]
[]
[]
[]
[null,null,null,null,null,null,null,null,null,null,null,null,null,null,"Sí acepto",null,null,null,null,null,null,null,null,null,null,null,null,{"$f":"IF(LEN(Solicitud.Manual!$E$109)=0,\"\",Solicitud.Manual!$E$109)","v":""}]
[null,null,null,null,null,null,null,null,null,null,null,null,null,null,"No acepto y"]
[null,null," Su información será incluida en el banco de datos de Usuarios que se encuentra registrado ante la Autoridad de Protección de Datos Personales bajo el número de registro RNPDP-PJ N.° 774, de titularidad de PACÍFICO SEGUROS, ubicada en Juan de Arona 830, San Isidro, Lima - Perú.",null,null,null,null,null,null,null,null,null,null,null,"prefiero perder la oportunidad de recibir nuevas ofertas",null,null,null,null,null,null,null,null,null,null,null,null,{"$f":"IF(LEN(Solicitud.Manual!$E$111)=0,\"\",Solicitud.Manual!$E$111)","v":""}]
[]
[]
[]
[]
[null,null,null,null,null,null,null,null,null,null,null,null,null,null,"Cláusulas Abusivas"]
[null,null,null,null,null,null,null,null,null,null,null,null,null,null,"“Las condiciones de la presente póliza se encuentran sujetas a una revisión posterior por parte de la Superintendencia de Banca, Seguros y AFPs, por lo que, en caso se identiﬁquen cláusulas abusivas en el marco de la Ley del Contrato de Seguro y normas reglamentarias, y estas no sean subsanadas por PACÍFICO SEGUROS, la Superintendencia de Banca, Seguros y AFPs,"]
[]
[]
[]
[null,null,"EL CLIENTE puede ejercer los derechos de acceso, rectificación, cancelación, revocación y oposición, dirigiéndose a PACÍFICO SEGUROS de forma presencial en cualquiera de sus oficinas a nivel nacional en el horario establecido para la atención al público o por teléfono o a través del Chat ubicado en nuestra página web www.pacifico.com.pe.\nEl detalle de nuestra Política de Privacidad se encuentra disponible en: \nhttps://www.pacifico.com.pe/transparencia/politica-privacidad"]
[]
[]
[]
[]
[]
[null,null,null,null,null,null,null,null,null,null,null,null,null,null,"Derecho de arrepentimiento"]
[null,null,null,null,null,null,null,null,null,null,null,null,null,null,"En el caso que este seguro sea ofertado por un comercializador (incluyendo la bancaseguro), declaro conocer que tengo derecho a arrepentirme de la contratación de este seguro, sin expresión de causa ni penalidad alguna, dentro del plazo de 15 días de recibir la póliza de seguro o el certificado de seguro, de ser el caso, y a que se me devuelva la prima que hubiere pagado."]
[]
[]
[]
[]
[]
[]
[]
[]
[]
[]
[]
[]
[null,null,null,null,null,null,null,null,null,null,null,null,null,null,null,null,null,null,null,null,null,null,null,null,null,null,null,"Fecha",null,{"$f":"DAY(Cotizador!$I$88)","v":0},{"$f":"MONTH(Cotizador!$I$88)","v":1},{"$f":"YEAR(Cotizador!$I$88)","v":1900}]
[null,null,null,null,"Firma del Asegurado",null,null,null,null,null,null,null,null,null,null,null,null,null,null,null,null,null,null,null,null,null,null,null,null,"día","mes","año"]

{"sheet":"CartillaVentaPyme","index":13,"n_rows":0,"n_cols":0,"rows_kept":0,"cut":false,"hidden":false,"merged":[]}

{"sheet":"slipcotizador","index":14,"n_rows":0,"n_cols":0,"rows_kept":0,"cut":false,"hidden":false,"merged":[]}

{"sheet":"Slip CONSOLIDADO","index":15,"n_rows":445,"n_cols":15,"rows_kept":445,"cut":false,"hidden":false,"merged":[[171,5,171,6],[110,0,111,12],[67,8,68,9],[67,11,68,12],[65,11,65,12],[66,1,66,4],[66,5,66,6],[66,8,66,9],[66,11,66,12],[165,8,165,9],[170,11,170,12],[165,5,165,6],[165,1,165,4],[114,0,114,6],[124,0,124,12],[166,1,166,4],[76,11,77,12],[141,0,142,12],[69,1,72,4],[69,5,72,6],[65,8,65,9],[285,0,285,4],[373,1,374,4],[373,5,374,6],[373,8,374,9],[373,11,374,12],[282,8,282,9],[282,11,282,12],[270,0,270,12],[277,0,279,12],[371,11,372,12],[359,8,360,9],[364,8,364,9],[368,8,370,9],[359,5,360,6],[358,8,358,9],[284,0,284,4],[364,5,364,6],[365,5,367,6],[359,1,360,4],[365,8,367,9],[368,11,370,12],[286,0,286,4],[368,5,370,6],[357,11,357,12],[283,0,283,4],[224,5,224,6],[224,8,224,9],[224,11,224,12],[237,11,237,12],[282,5,282,6],[225,8,225,9],[273,0,273,12],[233,5,235,6],[233,11,235,12],[236,11,236,12],[232,5,232,6],[231,5,231,6],[231,8,231,9],[231,11,231,12],[232,8,232,9],[233,8,235,9],[236,8,236,9],[226,1,228,4],[233,1,235,4],[225,5,225,6],[226,5,228,6],[226,8,228,9],[225,11,225,12],[226,11,228,12],[237,1,237,4],[232,1,232,4],[225,1,225,4],[172,1,172,4],[237,8,237,9],[236,1,236,4],[232,11,232,12],[215,0,217,12],[211,0,211,12],[203,0,204,12],[172,5,172,6],[173,5,173,6],[208,0,208,12],[173,1,173,4],[236,5,236,6],[237,5,237,6],[172,8,172,9],[173,8,173,9],[191,0,191,12],[193,0,193,6],[192,0,192,6],[1,0,1,12],[6,0,7,6],[25,0,25,12],[21,2,21,12],[22,2,22,12],[10,0,10,1],[9,0,9,1],[11,0,11,12],[5,0,5,1],[5,2,5,12],[8,0,8,1],[8,2,8,12],[16,2,16,12],[17,2,17,12],[13,0,13,1],[13,2,13,12],[18,2,18,12],[266,0,267,6],[49,0,49,4],[73,1,75,4],[73,5,75,6],[73,8,75,9],[73,11,75,12],[40,8,40,9],[79,1,79,4],[79,5,79,6],[79,8,79,9],[79,11,79,12],[78,5,78,6],[67,1,68,4],[67,5,68,6],[55,0,55,4],[54,5,54,6],[54,8,54,9],[54,11,54,12],[78,11,78,12],[78,1,78,4],[69,8,72,9],[69,11,72,12],[65,5,65,6],[78,8,78,9],[62,0,62,12],[365,11,367,12],[112,0,112,6],[131,0,131,6],[181,0,181,3],[118,3,118,6],[184,0,185,12],[137,0,138,12],[171,11,171,12],[172,11,172,12],[173,11,173,12],[166,5,166,6],[154,0,157,12],[165,11,165,12],[132,0,136,6],[170,5,170,6],[164,8,164,9],[164,11,164,12],[147,0,147,12],[150,0,150,12],[114,7,114,8],[170,8,170,9],[258,0,258,6],[260,0,260,6],[55,5,55,6],[55,8,55,9],[55,11,55,12],[36,0,36,6],[56,5,58,6],[56,8,58,9],[56,11,58,12],[40,11,40,12],[39,5,39,6],[48,0,48,4],[40,5,40,6],[47,0,47,4],[42,0,42,4],[43,0,43,4],[44,0,44,4],[45,0,45,4],[46,0,46,4],[39,8,39,9],[39,11,39,12],[438,0,439,6],[418,0,419,12],[414,0,415,12],[416,0,417,12],[292,0,292,4],[312,0,314,12],[319,0,321,12],[358,1,358,4],[344,0,344,12],[333,0,336,12],[347,0,350,12],[357,8,357,9],[364,1,364,4],[365,1,367,4],[368,1,370,4],[371,1,372,4],[358,11,358,12],[371,8,372,9],[371,5,372,6],[359,11,360,12],[358,5,358,6],[357,5,357,6],[409,0,410,12],[364,11,364,12],[411,0,412,12],[413,0,413,12],[403,0,403,12],[23,2,23,12],[171,8,171,9],[171,1,171,4],[265,0,265,12],[262,0,262,12],[287,0,287,4],[290,0,290,4],[291,0,291,4],[289,0,289,4],[288,0,288,4],[166,8,166,9],[113,0,113,8],[166,11,166,12],[164,5,164,6],[76,1,77,4],[76,5,77,6],[76,8,77,9],[329,0,329,12],[341,0,341,12],[27,0,27,12],[30,0,33,12]]}
[]
["PROTECCIÓN PARA NEGOCIO",null,null,null,null,null,null,null,null,null,null,null,null,null,"OK"]
[]
[]
[]
["CONTRATANTE",null,{"$f":"Solicitud.Manual!$C$9 & \" \" &Solicitud.Manual!$C$10 & \" \" & Solicitud.Manual!$E$10","v":"  "}]
[]
[]
["CORREDOR",null,{"$f":"Solicitud.Manual!$D$148","v":0}]
["VIGENCIA",null,{"$f":"PagodePrimasLocal1!$N$22","v":""},"al",{"$f":"+IF(C10=\"\",\"\",IF(DAY(C10)<10,0&DAY(C10),DAY(C10))&\"/\"&IF(MONTH(C10)<10,0&MONTH(C10),MONTH(C10))&\"/\"&YEAR(C10)+1)","v":""},"12:00 Hrs"]
["MONEDA",null,"DÓLARES"]
["CONDICIONES PARTICULARES"]
[]
["ASEGURADO",null,{"$f":"Solicitud.Manual!$I$9 & \" \" & Solicitud.Manual!$I$10 & \" \" & Solicitud.Manual!$M$10","v":"  "}]
[]
["ACTIVIDAD O GIRO DEL NEGOCIO        "]
["Local 1",null,{"$f":"Solicitud.Manual!$E$27","v":""}]
["Local 2",null,{"$f":"Solicitud.Manual!$E$32","v":""}]
["Local 3",null,{"$f":"Solicitud.Manual!$E$37","v":""}]
[]
["DIRECCIÓN DE LOS LOCALES POR ASEGURAR"]
["Local 1",null,{"$f":"Solicitud.Manual!$C$47 & \" \" & Solicitud.Manual!$C$48 & \" \" &Solicitud.Manual!$C$46","v":"  "}]
["Local 2",null,{"$f":"Solicitud.Manual!$G$47 & \" \" & Solicitud.Manual!$G$48 & \" \" &Solicitud.Manual!$G$46","v":"  "}]
["Local 3",null,{"$f":"Solicitud.Manual!$K$47 & \" \" & Solicitud.Manual!$K$48 & \" \" &Solicitud.Manual!$K$46","v":"  "}]
[]
["PROTECCIÓN PARA NEGOCIO",null,null,null,null,null,null,null,null,null,null,null,null,null,"OK"]
[]
["SECCIÓN INCENDIO Y LÍNEAS ALIADAS"]
[]
["A. MATERIA DEL SEGURO"]
["Toda propiedad, , comprendiendo también maquinaria, equipos fijo, equipo móviles dentro y fuera de los predios asegurados, sea de propiedad del ASEGURADO y/o de terceros que se encuentren bajo su responsabilidad, supervisión , control y custodia  siempre que formen parte de los Valores Declarados en la Póliza, en locales propios y/o de terceros señalados en póliza, en forma permanente o temporal incluyendo bienes a la intemperie (siempre que debido a su naturaleza, deban estar bajo esa condición)."]
[]
[]
[]
["B. MODALIDAD DE ASEGURAMIENTO"]
["A Valor Total"]
[]
[]
["C. BIENES ASEGURADOS Y VALORES DECLARADOS"]
[null,null,null,null,null,"Local 1",null,null,"Local 2",null,null,"Local 3",null,null,"OK"]
[null,null,null,null,null,"Valor Declarado",null,null,"Valor Declarado",null,null,"Valor Declarado"]
[null,null,null,null,null,"Total","Endosado",null,"Total","Endosado",null,"Total","Endosado"]
["Edificio y/o Instalaciones fijas (sin considerar el valor del terreno)",null,null,null,null,{"$f":"IF(CoberturasaElegirLocal1!$M$11=\"\",\"\",CoberturasaElegirLocal1!$M$11)","v":""},{"$f":"IF(CoberturasaElegirLocal1!$N$11=\"\",\"\",CoberturasaElegirLocal1!$N$11)","v":""},null,{"$f":"IF(CoberturasaElegirLocal2!$M$11=\"\",\"\",CoberturasaElegirLocal2!$M$11)","v":""},{"$f":"IF(CoberturasaElegirLocal2!$N$11=\"\",\"\",CoberturasaElegirLocal2!$N$11)","v":""},null,{"$f":"IF(CoberturasaElegirLocal3!$M$11=\"\",\"\",CoberturasaElegirLocal3!$M$11)","v":""},{"$f":"IF(CoberturasaElegirLocal3!$N$11=\"\",\"\",CoberturasaElegirLocal3!$N$11)","v":""}]
["Instalaciones Fijas",null,null,null,null,{"$f":"IF(CoberturasaElegirLocal1!$M$12=\"\",\"\",CoberturasaElegirLocal1!$M$12)","v":""},{"$f":"IF(CoberturasaElegirLocal1!$N$12=\"\",\"\",CoberturasaElegirLocal1!$N$12)","v":""},null,{"$f":"IF(CoberturasaElegirLocal2!$M$12=\"\",\"\",CoberturasaElegirLocal2!$M$12)","v":""},{"$f":"IF(CoberturasaElegirLocal2!$N$12=\"\",\"\",CoberturasaElegirLocal2!$N$12)","v":""},null,{"$f":"IF(CoberturasaElegirLocal3!$M$12=\"\",\"\",CoberturasaElegirLocal3!$M$12)","v":""},{"$f":"IF(CoberturasaElegirLocal3!$N$12=\"\",\"\",CoberturasaElegirLocal3!$N$12)","v":""}]
["Mobiliario y/o Contenido propios del giro",null,null,null,null,{"$f":"IF(CoberturasaElegirLocal1!$M$13=\"\",\"\",CoberturasaElegirLocal1!$M$13)","v":""},{"$f":"IF(CoberturasaElegirLocal1!$N$13=\"\",\"\",CoberturasaElegirLocal1!$N$13)","v":""},null,{"$f":"IF(CoberturasaElegirLocal2!$M$13=\"\",\"\",CoberturasaElegirLocal2!$M$13)","v":""},{"$f":"IF(CoberturasaElegirLocal2!$N$13=\"\",\"\",CoberturasaElegirLocal2!$N$13)","v":""},null,{"$f":"IF(CoberturasaElegirLocal3!$M$13=\"\",\"\",CoberturasaElegirLocal3!$M$13)","v":""},{"$f":"IF(CoberturasaElegirLocal3!$N$13=\"\",\"\",CoberturasaElegirLocal3!$N$13)","v":""}]
["Existencias propias del giro del negocio",null,null,null,null,{"$f":"IF(CoberturasaElegirLocal1!$M$14=\"\",\"\",CoberturasaElegirLocal1!$M$14)","v":""},{"$f":"IF(CoberturasaElegirLocal1!$N$14=\"\",\"\",CoberturasaElegirLocal1!$N$14)","v":""},null,{"$f":"IF(CoberturasaElegirLocal2!$M$14=\"\",\"\",CoberturasaElegirLocal2!$M$14)","v":""},{"$f":"IF(CoberturasaElegirLocal2!$N$14=\"\",\"\",CoberturasaElegirLocal2!$N$14)","v":""},null,{"$f":"IF(CoberturasaElegirLocal3!$M$14=\"\",\"\",CoberturasaElegirLocal3!$M$14)","v":""},{"$f":"IF(CoberturasaElegirLocal3!$N$14=\"\",\"\",CoberturasaElegirLocal3!$N$14)","v":""}]
["Maquinaria propia del giro del negocio",null,null,null,null,{"$f":"IF(CoberturasaElegirLocal1!$M$15=\"\",\"\",CoberturasaElegirLocal1!$M$15)","v":""},{"$f":"IF(CoberturasaElegirLocal1!$N$15=\"\",\"\",CoberturasaElegirLocal1!$N$15)","v":""},null,{"$f":"IF(CoberturasaElegirLocal2!$M$15=\"\",\"\",CoberturasaElegirLocal2!$M$15)","v":""},{"$f":"IF(CoberturasaElegirLocal2!$N$15=\"\",\"\",CoberturasaElegirLocal2!$N$15)","v":""},null,{"$f":"IF(CoberturasaElegirLocal3!$M$15=\"\",\"\",CoberturasaElegirLocal3!$M$15)","v":""},{"$f":"IF(CoberturasaElegirLocal3!$N$15=\"\",\"\",CoberturasaElegirLocal3!$N$15)","v":""}]
["Equipos electrónicos propios del giro del negocio",null,null,null,null,{"$f":"IF(CoberturasaElegirLocal1!$M$16=\"\",\"\",CoberturasaElegirLocal1!$M$16)","v":""},{"$f":"IF(CoberturasaElegirLocal1!$N$16=\"\",\"\",CoberturasaElegirLocal1!$N$16)","v":""},null,{"$f":"IF(CoberturasaElegirLocal2!$M$16=\"\",\"\",CoberturasaElegirLocal2!$M$16)","v":""},{"$f":"IF(CoberturasaElegirLocal2!$N$16=\"\",\"\",CoberturasaElegirLocal2!$N$16)","v":""},null,{"$f":"IF(CoberturasaElegirLocal3!$M$16=\"\",\"\",CoberturasaElegirLocal3!$M$16)","v":""},{"$f":"IF(CoberturasaElegirLocal3!$N$16=\"\",\"\",CoberturasaElegirLocal3!$N$16)","v":""}]
["Lucro Cesante – Cédula A - Costos fijos",null,null,null,null,{"$f":"IF(CoberturasaElegirLocal1!$M$17=\"\",\"\",CoberturasaElegirLocal1!$M$17)","v":""},null,null,{"$f":"IF(CoberturasaElegirLocal2!$M$17=\"\",\"\",CoberturasaElegirLocal2!$M$17)","v":""},null,null,{"$f":"IF(CoberturasaElegirLocal3!$M$17=\"\",\"\",CoberturasaElegirLocal3!$M$17)","v":""}]
["TOTAL VALOR DECLARADO (Máximo hasta 2'000,000 USD por local)",null,null,null,null,{"$f":"IF(CoberturasaElegirLocal1!$M$18=\"\",\"\",CoberturasaElegirLocal1!$M$18)","v":""},{"$f":"IF(OR(CoberturasaElegirLocal1!$N$18=\"\",CoberturasaElegirLocal1!$N$18=0),\"\",CoberturasaElegirLocal1!$N$18)","v":""},null,{"$f":"IF(CoberturasaElegirLocal2!$M$18=\"\",\"\",CoberturasaElegirLocal2!$M$18)","v":""},{"$f":"IF(OR(CoberturasaElegirLocal2!$N$18=\"\",CoberturasaElegirLocal2!$N$18=0),\"\",CoberturasaElegirLocal2!$N$18)","v":""},null,{"$f":"IF(CoberturasaElegirLocal3!$M$18=\"\",\"\",CoberturasaElegirLocal3!$M$18)","v":""},{"$f":"IF(OR(CoberturasaElegirLocal3!$N$18=\"\",CoberturasaElegirLocal3!$N$18=0),\"\",CoberturasaElegirLocal3!$N$18)","v":""}]
[]
[]
[]
[]
["D. COBERTURAS Y SUMAS ASEGURADAS",null,null,null,null,"Local 1",null,null,"Local 2",null,null,"Local 3",null,null,"OK"]
["COBERTURA ",null,null,null,null,"Suma Asegurada US$",null,null,"Suma Asegurada US$",null,null,"Suma Asegurada US$"]
["Todo Riesgo Incendio y Líneas Aliadas",null,null,null,null,{"$f":"IF(SUM(F50)<>0,SUM(F50),\"\")","v":""},null,null,{"$f":"IF(SUM(I50)<>0,SUM(I50),\"\")","v":""},null,null,{"$f":"IF(SUM(L50)<>0,SUM(L50),\"\")","v":""}]
["Límite Único, Combinado y en agregado anual para Todo Riesgo Incendio y Líneas Aliadas"]
[]
[]
[]
[]
[null,null,null,null,null,null,null,null,null,null,null,null,null,null,"OK"]
[]
["E. SUBLÍMITES"]
[null,null,null,null,null,"Local 1",null,null,"Local 2",null,null,"Local 3"]
[null,"Sublímite*",null,null,null,"Límite",null,null,"Límite",null,null,"Límite"]
[null,"Huelga, Motín, Conmoción Civil, Daño Malicioso, Vandalismo y /o Terrorismo en el agregado por vigencia.(Límite Único, Combinado y en agregado anual)",null,null,null,{"$f":"F57","v":""},null,null,{"$f":"I57","v":""},null,null,{"$f":"L57","v":""}]
[]
[null,"Gastos Extraordinarios: (Límite Único y Combinado), tales como:\n- Honorarios de Arquitectos, topógrafos e Ingenieros\n- Documentos y Modelos\n- Remoción de Escombros",null,null,null,{"$f":"IF(ISERROR(IF(0.2*F57>400000,400000,0.2*F57)),0,(IF(0.2*F57>400000,400000,0.2*F57)))","v":0},null,null,{"$f":"IF(ISERROR(IF(0.2*I57>400000,400000,0.2*I57)),0,(IF(0.2*I57>400000,400000,0.2*I57)))","v":0},null,null,{"$f":"IF(ISERROR(IF(0.2*L57>400000,400000,0.2*L57)),0,(IF(0.2*L57>400000,400000,0.2*L57)))","v":0}]
[]
[]
[]
[null,"Cobertura Automática para Nuevas Adquisiciones, máximo 30 días para declaración a PACIFICO.\nAplica sólo si cuenta con contenido y equipos y maquinaria",null,null,null,{"$f":"IF(ISERROR(IF(0.2*F57>100000,100000,0.2*F57)),0,IF(0.2*F57>100000,100000,0.2*F57))","v":0},null,null,{"$f":"IF(ISERROR(IF(0.2*I57>100000,100000,0.2*I57)),0,IF(0.2*I57>100000,100000,0.2*I57))","v":0},null,null,{"$f":"IF(ISERROR(IF(0.2*L57>100000,100000,0.2*L57)),0,IF(0.2*L57>100000,100000,0.2*L57))","v":0}]
[]
[]
[null,"Rotura Accidental de Vidrios, Cristales y/o Avisos luminosos. Aplica para contenido y edificación.",null,null,null,{"$f":"IF(ISERROR(IF(0.1*F57>5000,5000,0.1*F57)),0,IF(0.1*F57>5000,5000,0.1*F57))","v":0},null,null,{"$f":"IF(ISERROR(IF(0.1*I57>5000,5000,0.1*I57)),0,IF(0.1*I57>5000,5000,0.1*I57))","v":0},null,null,{"$f":"IF(ISERROR(IF(0.1*L57>5000,5000,0.1*L57)),0,IF(0.1*L57>5000,5000,0.1*L57))","v":0}]
[]
[null,"Gastos Extras",null,null,null,{"$f":"IF(ISERROR(IF(0.2*F57>400000,400000,0.2*F57)),0,IF(0.2*F57>400000,400000,0.2*F57))","v":0},null,null,{"$f":"IF(ISERROR(IF(0.2*I57>400000,400000,0.2*I57)),0,IF(0.2*I57>400000,400000,0.2*I57))","v":0},null,null,{"$f":"IF(ISERROR(IF(0.2*L57>400000,400000,0.2*L57)),0,IF(0.2*L57>400000,400000,0.2*L57))","v":0}]
[null,"Refrigeración (L.A.A.)**",null,null,null,{"$f":"IF(ISERROR(IF(DatosdelNegocioLocal1!$AH$5=\"A\",20000,\"\")),0,(IF(DatosdelNegocioLocal1!$AH$5=\"A\",20000,\"\")))","v":""},null,null,{"$f":"IF(ISERROR(IF(DatosdelNegocioLocal1!$AH$5=\"A\",20000,\"\")),0,(IF(DatosdelNegocioLocal1!$AH$5=\"A\",20000,\"\")))","v":""},null,null,{"$f":"IF(ISERROR(IF(DatosdelNegocioLocal1!$AH$5=\"A\",20000,\"\")),0,(IF(DatosdelNegocioLocal1!$AH$5=\"A\",20000,\"\")))","v":""}]
[null,"*: Foman parte de la Suma Asegurada, no son adicionales"]
[null,"**: $ 5,000 por evento. $ 20,000 en agregado anual."]
[]
["F. CONDICIONADOS Y CLÁUSULAS APLICABLES A ESTA SECCIÓN",null,null,null,null,null,null,null,null,null,null,null,null,null,"OK"]
[]
["990000 - Claúsulas Generales de Contratación para Riesgos Generales"]
["Condicionado General Multi-Riesgo Negocios 2016"]
["010005 - Cláusula Todo Riesgo."]
["010027 - Claúsula para Pérdidas y Daños por Huelga, Motín y Conmoción Civil."]
["010028 - Claúsula para Pérdidas o Daños por Vandalismo, Terrorismo y Daño Malicioso."]
["010029 - Claúsula para Gastos Extras"]
["010024 - Claúsula para Gastos Extraordinarios"]
["010006 - Claúsula de Refrigeración."]
["010010 - Cláusula de cobertura automática por nuevas adquisiciones."]
["010003 - Cláusula de rotura de cristales y/o vidrios."]
["990001 - Cláusula de Terceros."]
["990003 - Cláusula de rehabilitación automática de la suma asegurada (condición PPS)."]
["010038 - Claúsula de reemplazo."]
["010012 - Claúsula de Traslado temporal. "]
["010011 - Claúsula de Propiedades fuera de control del Asegurado. "]
["010013 - Claúsula de Errores u omisiones."]
["010004 -Cláusula de transporte incidental."]
["010037 Cláusula de 72 horas"]
["011000 - Condicionado general de lucro cesante por incendio"]
["011001 – CL. Para lucro cesante forma inglesa cédula A"]
["010025 - Clausula para daños causados por terremoto, temblor, erupción volcánica, y/o  fuego subterráneo, marejada, maremoto y tsunami"]
["Asistencias para el negocio."]
[]
["G. DEDUCIBLES (POR TODA Y CADA PÉRDIDA)",null,null,null,null,null,null,null,null,null,null,null,null,null,"OK"]
[]
["Terremoto, temblor, erupción volcánica, fuego subterráneo, maremoto (tsunami), salida mar, marejada u oleaje: 1% del valor declarado del predio afectado y/o su contenido y/o sus existencias, mínimo US$ 1,000"]
[]
["Otros riesgos de la naturaleza: 1% del valor declarado del predio afectado y/o su contenido y/o sus existencias, mínimo US$ 1,000"]
["Huelga, conmoción civil, asonada, daño malicioso y vandalismo, sabotaje y/o terrorismo: 10% del monto indemnizable mínimo US$  1,000"]
[]
["Rotura Accidental de Vidrios, Cristales y/o Avisos Luminosos: 10% del monto indemnizable mínimo US$ 50.00"]
["Gastos Extras:  3 días"]
["Otros riesgos:  5 % del Monto Indemnizable, mínimo US$ 500.00"]
["Lucro Cesante, 5 días"]
["Transporte Incidental: 10% del monto indemnizable mínimo US$ 100.00"]
["Refrigeración: 10.00% del monto indemnizable, mínimo US$ 200.00"]
[]
[]
[]
["PROTECCIÓN PARA NEGOCIO",null,null,null,null,null,null,null,null,null,null,null,null,null,"OK"]
[]
[]
["H. CONDICIONES ESPECIALES APLICABLES ESTA SECCIÓN"]
[]
["Las coberturas adicionales forman parte del límite principal"]
["La presente sección no cubre Lucro Cesante Contingente en cualquiera de sus modalidades. "]
["Se entiende como costo fijo para la cobertura de Lucro Cesante: Alquileres, sueldos de personal estable en planilla, mantenimiento, servicios de telefonía fija, agua y luz."]
["Las siguientes cláusulas son de aplicación siempre y cuando la presente poliza se encuentre endosada a algún banco y/o entidad financiera:\n- clausula de reemplazo hasta 3 años de antiguedad.\n- traslado temporal. \n- propiedades fuera de control del asegurado. \n- errores u omisiones."]
[]
[]
[]
[]
["La clausula de refrigeración es de aplicacion siempre y cuando corresponda a cualquiera de las siguientes actividades: restaurantes, hoteles,panaderías, heladerías, carnicerías y bodegas."]
[]
["I. GARANTÍAS APLICABLES ESTA SECCIÓN",null,null,null,null,null,null,null,null,null,null,null,null,null,"OK"]
[]
["Queda entendido y convenido bajo pena para el asegurado de perder todo derecho a indemnización procedente de la presente póliza, que este seguro se formaliza en virtud a lo siguiente:\nQue el asegurado debe cumplir con las siguientes garantías mínimas para incendio.\n1. Todas las llaves eléctricas deben estar instaladas en tableros con tapa y nunca al aire libre, deben ser del tipo electro magnéticas y deben estar dimensionadas de acuerdo a las cargas presentes en el local y al correspondiente circuito eléctrico que controlan. deberán ser siempre mediante enchufes adecuados y jamás directamente con cables.\n2. Las instalaciones eléctricas deben ser tendidas dentro de tubos protectores de PVC empotrados, o expuestos debidamente fijados a la pared, piso o techo según corresponda. en caso de tratarse de cables blindados o vulcanizados diseñados especialmente para ser tendidos al aire libre, deben estar sobre canaletas adecuadamente habilitadas.\n3. Contar con extintores vigentes y operativos. asimismo, todo el personal que labora en el local deberá recibir instrucción sobre la utilización de extintores por lo menos una vez al año, la cual se puede realizar al momento de la recarga de los mismos.\n4. Deberá contar con la licencia de funcionamiento vigente."]
[]
[]
[]
[]
[]
["PROTECCIÓN PARA NEGOCIO",null,null,null,null,null,null,null,null,null,null,null,null,null,"OK"]
[]
[]
["SECCIÓN ROTURA DE MAQUINARIA"]
[]
["A. MATERIA DEL SEGURO"]
[]
["Maquinaria y equipo, fijo y estacionario en general de propiedad del ASEGURADO y/o de terceros que guarden relación con el giro del negocio que se encuentren bajo su responsabilidad, supervisión, control y custodia siempre que formen parte de los Valores Declarados en la Póliza, en el local  señalado en póliza, en forma permanente o temporal  y que sea parte  o contribuyan directa o indirectamente con el proceso productivo o actividad del ASEGURADO."]
[]
[]
[]
[]
["B. MODALIDAD DE ASEGURAMIENTO"]
[]
["A PRIMER RIESGO"]
[]
["C. COBERTURAS Y SUMAS ASEGURADAS",null,null,null,null,null,null,null,null,null,null,null,null,null,"OK"]
[null,null,null,null,null,"Local 1",null,null,"Local 2",null,null,"Local 3"]
[null,"Cobertura",null,null,null,"Suma Asegurada",null,null,"Suma Asegurada",null,null,"Suma Asegurada"]
[null,"Daño Material – Básica ",null,null,null,{"$f":"+CoberturasaElegirLocal1!$N$23","v":""},null,null,{"$f":"+CoberturasaElegirLocal2!$N$23","v":""},null,null,{"$f":"+CoberturasaElegirLocal3!$N$23","v":""}]
[]
[]
["D. SUBLÍMITES",null,null,null,null,null,null,null,null,null,null,null,null,null,"OK"]
[null,null,null,null,null,"Local 1",null,null,"Local 2",null,null,"Local 3"]
[null,"Sub Limites",null,null,null,"Límite US$",null,null,"Límite US$",null,null,"Límite US$"]
[null,"Gastos adicionales por horas extras, trabajo nocturno, trabajo en días festivos, flete expreso, Límite Único y Combinado",null,null,null,"Hasta el 100% de Suma Asegurada, Hasta $ 10,000 ",null,null,"Hasta el 100% de Suma Asegurada, Hasta $ 10,000 ",null,null,"Hasta el 100% de Suma Asegurada, Hasta $ 10,000 "]
[null,"Flete aéreo.",null,null,null,"Hasta el 100% de Suma Asegurada, Hasta $ 10,000 ",null,null,"Hasta el 100% de Suma Asegurada, Hasta $ 10,000 ",null,null,"Hasta el 100% de Suma Asegurada, Hasta $ 10,000 "]
[]
["E. CONDICIONADOS Y CLÁUSULAS APLICABLES A ESTA SECCIÓN:",null,null,null,null,null,null,null,null,null,null,null,null,null,"OK"]
[]
["− 330007 CLÁUSULA PARA CUBRIR GASTOS ADICIONALES POR HORAS EXTRA, TRABAJO NOCTURNO, TRABAJO EN DÍAS FESTIVOS Y FLETE EXPRESO"]
["− 330006 CL.PARA CUBRIR GASTOS ADICIONALES PARA FLETE AÉREO"]
["− 330005 CL. DE EXCLUSIÓN DE EXPLOSIONES DE GASES DE ESCAPE EN CALDERAS Y HORNOS "]
["− 330013 CL. DE AJUSTE DE LA DEPRECIACIÓN PARA LA REPARACIÓN DE MOTORES DE COMBUSTIÓN INTERNA"]
["− 330028 CL.  VALOR NUEVO DE REPOSICION-RM "]
["−  990000 - Claúsulas Generales de Contratación para Riesgos Generales"]
["Condicionado General Multi-Riesgo Negocios."]
["330013 - clausula de ajuste de la depreciación para la reparación de motores de combustión  interna (p. ej. motores de gasolina, motores a gas). (obligatorio)"]
[]
[" - 330012 - ajuste de depreciación en rebobinados maquinas eléctricas. (obligatorio)"]
[]
["F. DEDUCIBLES (POR TODA Y CADA PÉRDIDA)",null,null,null,null,null,null,null,null,null,null,null,null,null,"OK"]
[]
["Daño Material,  10% del monto indemnizable mínimo US$ 500."]
["-      Gastos adicionales por horas extras, trabajo nocturno, trabajo en días festivos, flete expreso. 10% del monto indemnizable mínimo US$ 200"]
["-       Flete Aéreo 10% del monto indemnizable mínimo US$ 200"]
[]
[]
["G. CONDICIONES ESPECIALES APLICABLES ESTA SECCIÓN",null,null,null,null,null,null,null,null,null,null,null,null,null,"OK"]
[]
["La presente  póliza se limita a amparar la maquinaria fija dentro del local declarado."]
["El Valor Declarado debe corresponder al valor de reposición a nuevo del equipo asegurado."]
["Valor Nuevo de reemplazo, aplicables para maquinaria hasta 2 años de antigüedad."]
[]
["H. GARANTÍAS APLICABLES ESTA SECCIÓN"]
[]
["Queda entendido y convenido bajo pena para el asegurado de perder  todo derecho a indemnización procedente de la siguiente  póliza, que  este  seguro se formaliza en virtud de que el asegurado se  comprometa  a cumplir lo siguiente:\nSe debe contar, cumplir y documentar con el programa de Mantenimiento Preventivo, según indicaciones del fabricante para todos los equipos."]
[]
[]
[]
[]
["PROTECCIÓN PARA NEGOCIO",null,null,null,null,null,null,null,null,null,null,null,null,null,"OK"]
[]
[]
["SECCIÓN EQUIPO ELECTRONICO"]
[]
["A. MATERIA DEL SEGURO"]
[]
["Equipos eléctricos y electrónicos instalados, de propiedad del ASEGURADO y/o de terceros que guarden relación con el giro del negocio bajo control, cuidado y custodia del ASEGURADO, dentro del local asegurado que formen parte del Valor Declarado y sea parte o contribuyan directa o indirectamente con el proceso productivo o actividad del ASEGURADO."]
[]
[]
[]
["B. MODALIDAD DE ASEGURAMIENTO"]
[]
["A PRIMER RIESGO"]
[]
["C. COBERTURAS Y SUMAS ASEGURADAS",null,null,null,null,null,null,null,null,null,null,null,null,null,"OK"]
[null,null,null,null,null,"Local 1",null,null,"Local 2",null,null,"Local 3"]
[null,"Coberturas",null,null,null,"Sumas Aseguradas",null,null,"Sumas Aseguradas",null,null,"Sumas Aseguradas"]
[null,"Todo Riesgo Equipo Electrónico Secciones I,II y III – Límite Único y Combinado, período de indemnización Sección III: 06 meses",null,null,null,{"$f":"+CoberturasaElegirLocal1!$N$26","v":""},null,null,{"$f":"+CoberturasaElegirLocal2!$N$26","v":""},null,null,{"$f":"+CoberturasaElegirLocal3!$N$26","v":""}]
[]
[]
[]
["D. SUBLÍMITES",null,null,null,null,null,null,null,null,null,null,null,null,null,"OK"]
[null,null,null,null,null,"Local 1",null,null,"Local 2",null,null,"Local 3"]
[null,"Sublímite",null,null,null,"Límite",null,null,"Límite",null,null,"Límite"]
[null,"Equipos Móviles y Portátiles fuera del predio limitado a Laptops y/o notebooks US$ 3,000 por evento y en el Agregado por vigencia.",null,null,null,{"$f":"CoberturasaElegirLocal1!$N$27","v":""},null,null,{"$f":"CoberturasaElegirLocal2!$N$27","v":""},null,null,{"$f":"CoberturasaElegirLocal3!$N$27","v":""}]
[]
[]
[null,"Gastos adicionales por horas extras, trabajo nocturno, trabajo en días festivos, flete expreso – por evento y en el Agregado por vigencia, Límite Único y Combinado",null,null,null,"Hasta el 100% de Suma Asegurada, Hasta $ 5,000 ",null,null,"Hasta el 100% de Suma Asegurada, Hasta $ 5,000 ",null,null,"Hasta el 100% de Suma Asegurada, Hasta $ 5,000 "]
[null,"Flete aéreo – por evento y en el Agregado Vigencia",null,null,null,"Hasta el 100% de Suma Asegurada, Hasta $ 5,000 ",null,null,"Hasta el 100% de Suma Asegurada, Hasta $ 5,000 ",null,null,"Hasta el 100% de Suma Asegurada, Hasta $ 5,000 "]
[]
["E. CONDICIONADOS Y CLÁUSULAS APLICABLES A ESTA SECCIÓN:",null,null,null,null,null,null,null,null,null,null,null,null,null,"OK"]
[]
["990000 - Claúsulas Generales de Contratación para Riesgos Generales"]
["Condicionado General Multi-Riesgo Negocios."]
["360002 - Cláusula de valor nuevo de reposición."]
["360015 - Cláusula sobre celebración de un contrato de mantenimiento."]
["360008 - Cláusula de obligaciones relativas a equipos de climatización."]
["360027 Cláusula para cubrir gastos adicionales para el flete aéreo."]
[{"$f":"+IF(F234=\"\",\"\",\"Cláusula para equipos móviles y portátiles fuera del predio asegurado.\")","v":""}]
["360023 Cláusula de cobertura de equipos móviles y portátiles fuera de los predios asegurados."]
[]
[]
["F. DEDUCIBLES (POR TODA Y CADA PÉRDIDA)",null,null,null,null,null,null,null,null,null,null,null,null,null,"OK"]
[" "]
["Secciones I y II,  10% del monto indemnizable mínimo US$  200"]
["Sección III : 3  días"]
[{"$f":"+IF(F234=\"\",\"\",\"Equipos Móviles y Portátiles fuera de los predios: 20 % del monto indemnizable mínimo US$ 500\")","v":""}]
["Gastos adicionales por horas extras, trabajo nocturno, trabajo en días festivos, flete expreso. 10% del monto indemnizable mínimo US$ 200"]
["Flete Aéreo 10% del monto indemnizable mínimo US$ 200"]
["Equipo móvil: 20.00% del monto indemnizable, mínimo US$ 500.00"]
["G. CONDICIONES ESPECIALES APLICABLES ESTA SECCIÓN",null,null,null,null,null,null,null,null,null,null,null,null,null,"OK"]
["Contar con duplicado de información backup, para efectos de la Sección II portadores externos de datos, en otro local del asegurado."]
["Se excluyen los daños causados por los programas denominados “virus informáticos”."]
["Se excluye la cobertura de robo para equipos electrónicos.\nLas secciones I,II ,III estan expresadas en limite único y combinado y en agregado anual , periodo de indemnización sección III  6 meses.\nSe otorga cobertura de equipo móviles y portatiles fuera del predio asegurado, para laptops y/o notebooks hasta el 50% del valor asegurado de equipo electrónico, limitado hasta us$ 3,000, limite por evento y en agregado vigencia.\nEl valor declarado debe corresponder al valor de reposición a nuevo del equipo asegurado.\nCláusula de valor nuevo de reposición, hasta 2 años de antigüedad.\nLas coberturas adicionales forman parte del limite principal."]
[]
["H. GARANTÍAS APLICABLES ESTA SECCIÓN",null,null,null,null,null,null,null,null,null,null,null,null,null,"OK"]
["Queda entendido y convenido bajo pena para el asegurado de perder todo derecho a indemnizacion procedente de la presente poliza, que este seguro se formaliza en virtud a lo siguiente:\nQue el asegurado debe cumplir con las siguientes garantias minimas para equipo electronico\nTodos los Equipos deberán contar con Estabilizador de Voltaje operativo."]
["Se debe contar, cumplir y documentar con el programa de Mantenimiento Preventivo, según indicaciones del fabricante para todos los equipos."]
[]
[]
[]
["PROTECCIÓN PARA NEGOCIO",null,null,null,null,null,null,null,null,null,null,null,null,null,"OK"]
[]
[]
["SECCIÓN ROBO"]
[]
["A. MATERIA DEL SEGURO"]
[]
["Contenidos en el local asegurado incluyendo maquinaria y equipos, existencias en general y dinero en efectivo de propiedad del ASEGURADO y/o de terceros que guarden relación con el giro del negocio que se encuentren bajo su responsabilidad, supervisión, control y custodia siempre que formen parte de los Valores Declarados en la Póliza."]
[]
[]
[]
["B. BIENES ASEGURADOS Y VALORES DECLARADOS",null,null,null,null,null,null,null,null,null,null,null,null,null,"OK"]
[null,null,null,null,null,"Local 1",null,null,"Local 2",null,null,"Local 3"]
["Detalle",null,null,null,null,"Valor Declarado","Suma Asegurada Máxima",null,"Valor Declarado","Suma Asegurada Máxima",null,"Valor Declarado","Suma Asegurada Máxima"]
["Edificio (sin considerar el valor del terreno)"]
["Instalaciones fijas",null,null,null,null,{"$f":"+CoberturasaElegirLocal1!$M$31","v":""},null,null,{"$f":"+CoberturasaElegirLocal2!$M$31","v":""},null,null,{"$f":"+CoberturasaElegirLocal3!$M$31","v":""}]
["Mobiliario y/o contenido propios del giro del negocio",null,null,null,null,{"$f":"+CoberturasaElegirLocal1!$M$32","v":""},null,null,{"$f":"+CoberturasaElegirLocal2!$M$32","v":""},null,null,{"$f":"+CoberturasaElegirLocal3!$M$32","v":""}]
["Existencias propias del giro del negocio",null,null,null,null,{"$f":"+CoberturasaElegirLocal1!$M$33","v":""},null,null,{"$f":"+CoberturasaElegirLocal2!$M$33","v":""},null,null,{"$f":"+CoberturasaElegirLocal3!$M$33","v":""}]
["Maquinaria propia del giro del negocio",null,null,null,null,{"$f":"+CoberturasaElegirLocal1!$M$34","v":""},null,null,{"$f":"+CoberturasaElegirLocal2!$M$34","v":""},null,null,{"$f":"+CoberturasaElegirLocal3!$M$34","v":""}]
["Equipo electrónico fijo",null,null,null,null,{"$f":"+CoberturasaElegirLocal1!$M$35","v":""},null,null,{"$f":"+CoberturasaElegirLocal2!$M$35","v":""},null,null,{"$f":"+CoberturasaElegirLocal3!$M$35","v":""}]
["Dinero en Tránsito (LAA)",null,null,null,null,"---------",{"$f":"+CoberturasaElegirLocal1!$N$38","v":""},null,"---------",{"$f":"+CoberturasaElegirLocal2!$N$38","v":""},null,"---------",{"$f":"+CoberturasaElegirLocal3!$N$38","v":""}]
["Dinero y/o valores dentro del local (caja chica y/o caja registradora) solo en horas laborables (LAA)",null,null,null,null,{"$f":"+CoberturasaElegirLocal1!$M$36","v":"---------"},{"$f":"+CoberturasaElegirLocal1!$N$36","v":""},null,{"$f":"+CoberturasaElegirLocal2!$M$36","v":"---------"},{"$f":"+CoberturasaElegirLocal2!$N$36","v":""},null,{"$f":"+CoberturasaElegirLocal3!$M$36","v":"---------"},{"$f":"+CoberturasaElegirLocal3!$N$36","v":""}]
["Total:",null,null,null,null,{"$f":"IF(SUM(F286:F290)=0,\"\",SUM(F286:F290))","v":""},{"$f":"IF(LEN(F293)>0,IF(F293>100000,100000,F293),\"\")","v":""},null,{"$f":"IF(SUM(I286:I290)=0,\"\",SUM(I286:I290))","v":""},{"$f":"IF(LEN(I293)>0,IF(I293>100000,100000,I293),\"\")","v":""},null,{"$f":"IF(SUM(L286:L290)=0,\"\",SUM(L286:L290))","v":""},{"$f":"IF(LEN(L293)>0,IF(L293>100000,100000,L293),\"\")","v":""}]
[]
["C. MODALIDAD DE ASEGURAMIENTO",null,null,null,null,null,null,null,null,null,null,null,null,null,"OK"]
[]
["A PRIMER RIESGO"]
[]
["D. CONDICIONADOS Y CLÁUSULAS APLICABLES A ESTA SECCIÓN:"]
[]
["990001 - Cláusula de terceros"]
["410006 - Cláusula de garantía para dinero y valores en tránsito"]
[{"$f":"+IF(G292=\"\",\"\",\"410004 - Cláusula para cubrir dinero en efectivo y o valores dentro del local asegurado, en Agregado por Vigencia.\")","v":""}]
[{"$f":"+IF(G291=\"\",\"\",\"410003 - Cláusula de Dinero en Efectivo y Valores en Tránsito desde Oficinas del Asegurado.\")","v":""}]
[]
["E. DEDUCIBLES (POR TODA Y CADA PÉRDIDA)",null,null,null,null,null,null,null,null,null,null,null,null,null,"OK"]
[]
["Robo y/o Asalto de Activos y/o Existencias: 10.00 % del monto indemnizable, mínimo US$ 500 toda y cada pérdida."]
[{"$f":"+IF(G291=\"\",\"\",\"Dinero en Tránsito y Dinero en Caja Chica: 10% del monto indemnizable mínimo USD250.00\")","v":""}]
[]
["F. CONDICIONES ESPECIALES APLICABLES ESTA SECCIÓN",null,null,null,null,null,null,null,null,null,null,null,null,null,"OK"]
[]
["No se ampara los bienes que se encuentran en patios, jardines, terrazas, azoteas que no tengan más defensa que muros perimétricos o en vitrinas fijas o movibles que se hallen colocadas fuera del edificio o de los ámbitos que constituyen el lugar del seguro."]
[]
[]
["No cubre almacenes de campo."]
[]
["G. GARANTÍAS APLICABLES ESTA SECCIÓN",null,null,null,null,null,null,null,null,null,null,null,null,null,"OK"]
[]
["1. Si la puerta es de una sola hoja, como mínimo dispondrá de una chapa sólida que se reforzará a su base o estará soldada a la misma; debe ser de no menos de 2 golpes.  Adicionalmente, la puerta de reja deberá protegerse con dos (02) candados con media luna protectora de bronce o puente protector metálico.  Si la puerta es de dos hojas; las medidas de seguridad serán las que se han mencionado, agregándole a la reja dos cerrojos verticales (uno al marco superior y otro al inferior) en cada hoja; en los que se colocarán un candado con media luna protectora de bronce."]
[]
[]
[]
[]
[]
[]
[]
[]
[]
["PROTECCIÓN PARA NEGOCIO",null,null,null,null,null,null,null,null,null,null,null,null,null,"OK"]
[]
[]
[]
["2. Cuando el local cuente con cortinas enrollables que den hacia la calle, se deberá cumplir con los siguientes requisitos:\nA. Cada una de las cortinas metálicas enrollables deberá contar como mínimo con dos (2) argollas de fierro ancladas al piso, las cuales se sujetarán interiormente a las cortinas metálicas con un candado media luna protectora de bronce.\nB. Si la cortina dispone de puerta chica, ésta deberá contar como mínimo con dos chapas de tres golpes o más, y adicionalmente dos candados protegidos con puente protector o media luna protectora de bronce:\nC. Los carriles de la cortina enrollable deben estar reforzados tanto por dentro como por fuera, con ángulos de fierro de no menos de 3 pulgadas de ancho y como mínimo 1.50 metros con respecto al nivel del suelo.  Esta medida de seguridad no es necesario adoptarla si la cortina enrollable dispone de una sobre reja de fierro exteriormente."]
[]
[]
[]
[]
[]
[]
[]
["PROTECCIÓN PARA NEGOCIO",null,null,null,null,null,null,null,null,null,null,null,null,null,"OK"]
[]
[]
["SECCIÓN RESPONSABILIDAD CIVIL"]
[]
["A. MATERIA DEL SEGURO"]
["Sujeto a todos los términos y condiciones que forman parte de la presente Póliza, LA COMPAÑÍA cubre al ASEGURADO contra las reclamaciones de Terceros por concepto de Responsabilidad Civil Extracontractual, exclusivamente a consecuencia de Daños Personales y/o Daños Materiales causados involuntariamente a dichos Terceros por un accidente ocurrido durante la vigencia de la Póliza, como resultado directo de las actividades o negocios declarados en las Condiciones Particulares."]
[]
[]
[]
[]
["B. BASE DE COBERTURA"]
[]
["OCURRENCIA"]
[]
["B. COBERTURAS Y SUMAS ASEGURADAS",null,null,null,null,null,null,null,null,null,null,null,null,null,"OK"]
[null,null,null,null,null,"Local 1",null,null,"Local 2",null,null,"Local 3"]
[null,"Cobertura",null,null,null,"Suma Asegurada",null,null,"Suma Asegurada",null,null,"Suma Asegurada"]
[null,"Responsabilidad Civil Extracontractual en Límite Agregado por Vigencia.",null,null,null,{"$f":"+CoberturasaElegirLocal1!$N$40","v":50000},null,null,{"$f":"+CoberturasaElegirLocal2!$N$40","v":""},null,null,{"$f":"+CoberturasaElegirLocal3!$N$40","v":""}]
[]
[]
["C. SUBLÍMITES",null,null,null,null,null,null,null,null,null,null,null,null,null,"OK"]
[]
[null,"Cobertura",null,null,null,"Suma Asegurada",null,null,"Suma Asegurada",null,null,"Suma Asegurada"]
[null,"Alimentos y bebidas USD 5,000 POR EVENTO Y HASTA USD 20,000, como parte del límite principal y en Agregado Anual\nAplica para opción Hoteles y Restaurantes",null,null,null,{"$f":"+IF(F360=\"\",\"\",IF(OR(DatosdelNegocioLocal1!$AH$6=13,DatosdelNegocioLocal1!$AH$6=21),\"Aplica\",\"No Aplica\"))","v":"No Aplica"},null,null,{"$f":"+IF(I360=\"\",\"\",IF(OR(DatosdelNegocioLocal2!$AH$6=13,DatosdelNegocioLocal2!$AH$6=21),\"Aplica\",\"No Aplica\"))","v":""},null,null,{"$f":"+IF(L360=\"\",\"\",IF(OR(DatosdelNegocioLocal3!$AH$6=13,DatosdelNegocioLocal3!$AH$6=21),\"Aplica\",\"No Aplica\"))","v":""}]
[]
[]
[null,"Responsabilidad de Inkeepers USD 5,000 POR EVENTO Y HASTA USD 20,000 como parte del límite principal y en Agregado Anual\nAplica para opción Hoteles",null,null,null,{"$f":"+IF(F360=\"\",\"\",IF(OR(DatosdelNegocioLocal1!$AH$6=13),\"Aplica\",\"No Aplica\"))","v":"No Aplica"},null,null,{"$f":"+IF(I360=\"\",\"\",IF(OR(DatosdelNegocioLocal2!$AH$6=13),\"Aplica\",\"No Aplica\"))","v":""},null,null,{"$f":"+IF(L360=\"\",\"\",IF(OR(DatosdelNegocioLocal3!$AH$6=13),\"Aplica\",\"No Aplica\"))","v":""}]
[]
[]
[null,"Responsabilidad Civil Patronal en exceso de las pólizas de ley, limitado hasta USD 25,000 LUC.",null,null,null,{"$f":"+IF(F360=\"\",\"\",\"Aplica\")","v":"Aplica"},null,null,{"$f":"+IF(I360=\"\",\"\",\"Aplica\")","v":""},null,null,{"$f":"+IF(L360=\"\",\"\",\"Aplica\")","v":""}]
[]
[null,"Responsabilidad Civil Contractual hasta el 100% de la suma asegurada de la RC extracontractual limitado hasta USD 100,000 como parte del limite principal y en Agregado Anual",null,null,null,{"$f":"+IF(F360=\"\",\"\",\"Aplica\")","v":"Aplica"},null,null,{"$f":"+IF(I360=\"\",\"\",\"Aplica\")","v":""},null,null,{"$f":"+IF(L360=\"\",\"\",\"Aplica\")","v":""}]
[]
[]
["D. CONDICIONADOS Y CLÁUSULAS APLICABLES A ESTA SECCIÓN:",null,null,null,null,null,null,null,null,null,null,null,null,null,"OK"]
[]
["990000 - Claúsulas Generales de Contratación para Riesgos Generales"]
["Condicionado General Multi-Riesgo Negocios."]
["530006 - Cláusula de Responsabilidad Civil de locales y operaciones"]
["530010 - Cláusula de Responsabilidad Civil por incendio y/o explosión y/o agua y/o humo. "]
["530017 - Cláusula de Responsabilidad Civil por el empleo de ascensores, montacargas, grúas y escaleras mecánicas."]
["530004 - Claúsula de Responsabilidad Civil de Alimentos y Bebidas."]
["530008 - Claúsula de Responsabilidad Civil para Restaurantes, Bares, Cafés y similares."]
["530011 - Claúsula de Establecimientos de Baños Turcos, Baños públicos, saunas y similares."]
["530030 - Claúsula de Responsabilidad Civil de Oficinas, Bancos, Empresas de Seguros y similares."]
["530027 - Claúsula de Responsabilidad Civil de Hoteleros(Inkeeper´s Liability)"]
["530005 - Claúsula de Responsabilidad Civil de Colegios, universidades e institutos de enseñanza."]
["530015 - Claúsula de Responsabilidad Civil de Peluquerias, Institutos y Salones de belleza."]
["530018 - Claúsula de Responsabilidad Civil durante eventos sociales y culturales."]
["530019 - Cláusula de Responsabilidad Civil Patronal."]
["530022 - Cláusula de Responsabilidad Civil Contractual"]
[]
[]
["E. DEDUCIBLES (POR TODA Y CADA PÉRDIDA)",null,null,null,null,null,null,null,null,null,null,null,null,null,"OK"]
[]
["10% del monto indemnizable mínimo US$ 500 todo y cada reclamo."]
["(Inkeeper´s Liability) 10% del monto indemnizable mínimo US$ 300 todo y cada reclamo."]
[]
["Para hoteles y restaurantes hemos incoporado la Responsabilidad Civil de delivery como parte de la suma asegurada de la Responsabilidad Civil extracontractual."]
["La Responsabilidad Civil para delivery es 20,000 dólares por evento hasta consumir el limite de la Responsabilidad Civil extracontractual."]
[]
["PROTECCIÓN PARA NEGOCIO",null,null,null,null,null,null,null,null,null,null,null,null,null,"OK"]
[]
[]
["F. CONDICIONES ESPECIALES APLICABLES ESTA SECCIÓN"]
[]
["EL LIMITE ASEGURADO ES UNICO EN AGREGADO ANUAL."]
[]
[]
["La “Cláusula de Responsabilidad Civil de Alimentos y bebidas” es de aplicación únicamente para los siguientes rubros: Restaurantes, Hoteles, Panaderías"]
[]
["La “Cláusula de Responsabilidad Civil de Hoteleros” (Inkeeper´s Liability es de aplicación únicamente para el rubro de Hoteles."]
["La Cláusula de Responsabilidad Civil de Oficinas, Bancos, Empresas de Seguros y similares es de aplicación únicamente para el rubro de Oficinas."]
[]
["La “Cláusula de Responsabilidad Civil de Colegios, universidades e Institutos de enseñanza”, es de aplicación únicamente para Colegios."]
[]
["La “Cláusula de Responsabilidad Civil de Peluquerías, Institutos y Salones de Belleza”, es de aplicación únicamente para Peluquerías y Salones de Belleza."]
[]
[]
["G. EXCLUSIONES"]
[]
["RC de productos"]
["RC derivada de actos delictivos cometidos por terceras personas"]
["RC profesional / errores y omisiones "]
["Multas y penalidades"]
["Rehabilitación automática de la suma asegurada"]
["Daños financieros puros"]
["Incumplimientos contractuales y compromiso asumido por contratos"]
["D & O"]
["Reclamaciones por difamación, calumnia, injuria, delitos contra el honor"]
["Fallas de proveedores"]
["Caso fortuito o fuerza mayor"]
["Reclamos y/o demandas provenientes del extranjero"]
["Transporte y almacenamiento de mercadería peligrosa incluyendo hidrocarburos"]
["Bienes de terceros bajo cargo, custodia y control"]
["Daños a los bienes o propiedades de los asegurados"]
["RC derivada y relacionada con la violación de la propiedad intelectual, competencia desleal,\npublicidad adversa o perjudicial contra competidores"]
[]
["RC derivada de errores informáticos, virus, internet"]
["Trabajos terminados."]
["Daños a la carga y al medio transportador"]
["Contaminación gradual"]
["Garantía, retirada e ineficiencia de productos"]

{"sheet":"Slip Final","index":16,"n_rows":79,"n_cols":30,"rows_kept":79,"cut":false,"hidden":false,"merged":[[16,0,17,12],[33,0,34,12],[1,0,1,12],[4,0,4,12],[8,0,9,12],[10,0,10,12],[11,0,12,12],[13,0,14,12],[27,0,27,12],[78,0,78,1],[18,0,19,12],[20,0,20,12],[22,0,22,12],[24,0,24,12],[25,0,25,12],[26,0,26,12],[64,0,66,12],[29,0,29,12],[31,0,32,12],[41,0,41,12],[36,0,36,12],[38,0,39,12],[51,0,51,12],[49,0,50,12],[48,0,48,12],[42,0,44,12],[63,0,63,12],[57,0,60,12],[56,0,56,12],[54,0,55,12],[52,0,53,11]]}
[]
["PROTECCIÓN PARA NEGOCIO",null,null,null,null,null,null,null,null,null,null,null,null,null,"OK"]
[]
[]
["ASISTENCIAS"]
[]
["SERVICIOS MÉDICOS PARA EL NEGOCIO"]
[]
["Servicios de Ambulancia por Emergencia o Accidente, disponible las 24 horas del día todo el año, hasta un máximo de 03 atenciones por año de vigencia de la póliza, hasta S/. 350 por evento."]
[]
["Servicio de “Aló doctor”  para el asegurado y empleados, disponible las 24 horas del día todo el año, sin límite."]
["Servicios de “Doctor a domicilio”, para el asegurado y empleados, disponible las 24 horas del día, todo el año con copago de S/. 35 (no incluye medicinas ni exámenes médicos), sin límite.",null,null,null,null,null,null,null,null,null,null,null,null,null,null,null,null,null,null,null,null,null,null,null,null,null,null,null,null,2]
[]
["Un chequeo preventivo anual gratuito (incluye 02 exámenes básicos al escoger entre: colesterol, glucosa o triglicéridos), al cual podrá acceder comunicándose al  teléfono  Lima y provincias: (01) 415-1515"]
[]
[]
["ASISTENCIAS DE SERVICIOS PARA EL NEGOCIO"]
[]
["Servicios de emergencia de cerrajería, gasfitería, electricidad o vidriería atendidos por  técnicos especializados disponible  las 24 horas del día, todo el año, hasta un máximo de 4 eventos al año por cada servicio y hasta S/300 por evento."]
[]
["Servicio de orientación telefónica para referencia y coordinación del servicio de fumigaciones y mantenimiento en general, sin limite"]
[]
["ASISTENCIA LEGAL Y TRIBUTARIA PARA EL NEGOCIO",null,null,null,null,null,null,null,null,null,null,null,null,null,"OK"]
[]
["Asistencia Legal en caso de Robo del Negocio, disponible las 24 horas del día y  hasta 2 eventos al año."]
["Asistencia Tributaria Vía Telefónica, disponible las 24 horas del día ,  sin limite."]
["Asesoría telefónica en cuanto a materia Tributaria, Legal, Penal y Familiar, sin limite."]
["Asesoría telefónica en temas referentes a Permisos, Trámites y Licencias, disponible las 24 horas del día, sin límite."]
[]
["CONDICIONES APLICABLES A TODAS LAS SECCIONES",null,null,null,null,null,null,null,null,null,null,null,null,null,"OK"]
[]
["Monto Indemnizable: Para efectos de este seguro se entenderá como el monto total de la pérdida amparada por la póliza antes de aplicar el deducible."]
[]
["La Suma Asegurada de cada una de las Secciones adicionales a INCENDIO forman parte integrante de la Suma Asegurada de Incendio, se comportan como sub límite a Primera Perdida."]
[]
[]
["GARANTIAS APLICABLES A TODA LA PÓLIZA"]
[]
["En caso de incumplimiento EL CONTRATANTE y/o ASEGURADO perderán Todo derecho indemnizatorio proveniente de esta Póliza, a partir del momento mismo de la violación quedando En consecuencia liberada LA COMPAÑÍA de toda responsabilidad."]
[]
[]
["CONDICIONES ESPECIALES A TODA LA PÓLIZA",null,null,null,null,null,null,null,null,null,null,null,null,null,"OK"]
["Se deja constancia expresa que, a potestad de la Compañía, la aceptación final del riesgo por parte de ésta queda sujeta a la realización de la inspección o evaluación, por parte de nuestro Departamento de Ingeniería o la persona autorizada para tal efecto, para verificar el efectivo estado del riesgo, así como el estricto cumplimiento por parte del Asegurado de las garantías que a mérito de dicha inspección establezca el Departamento de Ingeniería de la Compañía."]
[]
[]
[]
[]
[]
["CONDICIONES APLICABLES A LA COTIZACIÓN",null,null,null,null,null,null,null,null,null,null,null,null,null,"OK"]
["Se deja constancia expresa que la presente cotización se originó con información brindada por el ASEGURADO y/o CONTRATANTE, así como la no existencia de siniestros conocidos, ocurridos, ni reportados."]
[]
["Las condiciones antes detalladas quedan sujetas al no aumento de la siniestralidad antes del inicio de la vigencia."]
["La presente cotización se ha basado en la información presentada por el cliente, en caso de sufrir modificaciones para la orden de emisión, Pacifico se reserva el derecho de anular, cambiar o ajustar las condiciones y términos presentados."]
[]
["La presente cotización tiene una validez de quince (15) días calendarios, contados a partir de la fecha de presentación por parte de Pacífico."]
[]
["La presente cotización tiene una validez de 15 días"]
["La Compañía, se obliga a entregar la póliza de seguro al contratante y/o asegurado dentro de 15 días calendario de haber recibido la solicitud si no media rechazo previo de ésta. En el supuesto que el contratante y/o asegurado no completen la información y/o no cumplan con las medidas que la compañía requiera, se considerará rechazada la solicitud al vencimiento del plazo indicado. El contratante y/o asegurado podrá presentar una nueva solicitud."]
[]
[]
[]
[]
[]
["PROTECCIÓN PARA NEGOCIO",null,null,null,null,null,null,null,null,null,null,null,null,null,"OK"]
["La COMPAÑÍA informará al Contratante, dentro de los quince (15) días de recibida esta Solicitud, si la misma ha sido rechazada, salvo que se le haya requerido información adicional, necesaria para la evaluación del riesgo, en el referido plazo. En este caso, el plazo para comunicar el rechazo, se contará a partir de la recepción de la información completa solicitada."]
[]
[]
[]
[]
[]
["PRIMA COMERCIAL:",null,{"$f":"PagodePrimasLocal1!$AH$10","v":0},"USD"]
[]
["PRIMA COMERCIAL + IGV:",null,{"$f":"IF(AND(PagodePrimasLocal1!$AD$21=1,Cotizador!$I$87=\"\"),PagodePrimasLocal1!$AG$10,IF(Cotizador!$I$87=\"\",\"----\",PagodePrimasLocal1!$AG$12))","v":"----"},"USD"]
[]
[]
[]
["Cordialmente,"]
[]
[{"$f":"+TODAY()","v":"2021-10-13"}]

{"sheet":"ACCO","index":17,"n_rows":88,"n_cols":15,"rows_kept":88,"cut":false,"hidden":false,"merged":[[87,0,87,1],[83,0,83,12],[3,0,3,12],[48,2,48,12],[49,2,49,12],[50,2,50,12],[51,2,51,12],[52,2,52,12],[4,3,4,9],[20,4,20,8],[21,4,21,8],[6,0,6,12],[25,4,25,8],[22,4,22,8],[35,3,35,4],[38,2,38,3],[33,0,33,12],[39,2,39,3],[40,2,40,3],[28,4,28,8],[31,4,31,8],[60,2,60,5],[61,2,61,5],[41,2,41,3],[42,3,42,4],[43,3,43,4],[47,2,47,8],[46,0,46,12],[53,2,53,8],[55,2,55,8],[56,2,56,8],[58,2,58,8],[59,2,59,5],[69,2,69,8],[71,2,71,3],[71,6,71,7],[82,0,82,12],[62,2,62,5]]}
[]
[]
[]
["ACCIDENTES COLECTIVOS",null,null,null,null,null,null,null,null,null,null,null,null,null,"OK"]
[]
[]
["DATOS GENERALES"]
[]
[null,null,null,"Fecha de la cotización:",{"$f":"TODAY()","v":"2021-10-13"}]
[]
[null,null,null,"Producto:","ACCO"]
[null,null,null,"Plan:","Colectivo"]
[null,null,null,"Moneda:","Dólares"]
[]
[null,null,null,"Vigencia de la Póliza:","12 meses"]
[]
[null,null,null,null,"Local 1","Local 2","Local 3"]
[null,null,null,"Número de asegurados: "]
[null,null,null," (max 20 por Local)"]
[]
[null,null,null,"RUC Contratante",{"$f":"IF(LEN(Solicitud.Manual!$E$8)=0,\"\",Solicitud.Manual!$E$8)","v":""}]
[null,null,null,"Nombre Contratante",{"$f":"IF(LEN(Solicitud.Manual!$C$9)=0,\"\",Solicitud.Manual!$C$9)","v":""}]
[null,null,null,"Broker:",{"$f":"IF(LEN(Solicitud.Manual!$D$148)=0,\"\",Solicitud.Manual!$D$148)","v":""}]
[]
[null,null,null,null,"Local 1"]
[null,null,null,"Actividad:",{"$f":"IF(LEN(E18)>0,IF(LEN(Cotizador!$D$54)=0,\"\",Cotizador!$D$54),\"\")","v":""}]
[]
[null,null,null,null,"Local 2"]
[null,null,null,"Actividad:",{"$f":"IF(LEN(F18)>0,IF(LEN(Cotizador!$D$56)=0,\"\",Cotizador!$D$56),\"\")","v":""}]
[]
[null,null,null,null,"Local 3"]
[null,null,null,"Actividad:",{"$f":"IF(LEN(G18)>0,IF(LEN(Cotizador!$D$58)=0,\"\",Cotizador!$D$58),\"\")","v":""}]
[]
["COBERTURAS (*)",null,null,null,null,null,null,null,null,null,null,null,null,null,"OK"]
[]
[null,null,null,"Moneda:",null,{"$f":"E13","v":"Dólares"}]
[]
[null,null,null,null,"Local 1","Local 2","Local 3"]
[null,null,"Muerte Accidental:","Muerte Accidental:"]
[null,null,"Invalidez Permanente:","Invalidez Permanente:",{"$f":"IF(E39=5000,5000,IF(E39=10000,10000,IF(E39=15000,15000,0)))","v":0},{"$f":"IF(F39=5000,5000,IF(F39=10000,10000,IF(F39=15000,15000,0)))","v":0},{"$f":"IF(G39=5000,5000,IF(G39=10000,10000,IF(G39=15000,15000,0)))","v":0}]
[null,null,"Gastos de Curación:","Gastos de Curación:"]
[null,null,"Gastos de Sepelio:","Gastos de Sepelio:"]
[null,null,null,"Transporte por Evacuación:","Transporte por Evacuación:"]
[null,null,null,"Traslado de Restos:","Traslado de Restos:"]
[]
[]
["CLÁUSULAS ADICIONALES",null,null,null,null,null,null,null,null,null,null,null,null,null,"OK"]
[null,null,"Cláusula de invalidez permanente parcial previa al seguro."]
[null,null,"Cláusula por la cobertura de Terrorismo y otros riesgos. "]
[null,null,"Cláusula por la práctica no profesional de deportes y/o actividades de riesgo."]
[null,null,"Cláusula por la conducción urbana o rural de motocicletas, motonetas y otros vehículos similares."]
[null,null,"Cláusula para pasajeros que usan cualquier medio habitual de transporte público de personas, en vehículos que no recorren itinerarios regulares y fijos. "]
[null,null,"Cláusula para pasajeros de aviones y/o helicópteros particulares y/o de la FAP por viajes eventuales. "]
[null,null,"Cláusula de ampliación del límite máximo de edad, personas mayores de 70 y hasta los 80 años inclusive."]
[]
[null,null,"RECARGOS"]
[null,null,"Por usar y/o portar armas"]
[]
[null,null,"DESCUENTOS"]
[null,null,"Por limitación a horas de trabajo."]
[null,null,"Por cubrir gastos no reembolsables por ESSALUD."]
[null,null,"Por aplicación de franquicia en incapacidad temporal.",null,null,null,"30 días"]
[null,null,"Por aplicación de deducible en gastos de curación.",null,null,null,0.25]
[null,null,null,null,"Local 1","Local 2","Local 3",null,"Total"]
[null,null,null,"Prima Neta Total.",{"$f":"E67*E18","v":0},{"$f":"F67*F18","v":0},{"$f":"G67*G18","v":0},null,{"$f":"SUM(E65:G65)","v":0}]
[null,null,null,"Prima Total (incluye IGV y DE):",{"$f":"E65*1.2154","v":0},{"$f":"F65*1.2154","v":0},{"$f":"G65*1.2154","v":0},null,{"$f":"SUM(E66:G66)","v":0}]
[null,null,null,"Prima neta por Persona:",{"$f":"IF(E39=5000,5,IF(E39=10000,7.5,IF(E39=15000,10,0)))","v":0},{"$f":"IF(F39=5000,5,IF(F39=10000,7.5,IF(F39=15000,10,0)))","v":0},{"$f":"IF(G39=5000,5,IF(G39=10000,7.5,IF(G39=15000,10,0)))","v":0},null,{"$f":"SUM(E67:G67)","v":0}]
[null,null,null,"Prima Total por Persona",{"$f":"E67*1.2154","v":0},{"$f":"F67*1.2154","v":0},{"$f":"G67*1.2154","v":0},null,{"$f":"SUM(E68:G68)","v":0}]
[]
[null,null,"TABLA DE PRIMAS"]
[]
[null,null,"Dias de Seguro",null,"Prima Neta",null,"Meses de Seguro",null,"Prima Neta"]
[null,null,1,0.05,{"$f":"D73*E67","v":0},null,2,0.3,{"$f":"H73*E67","v":0}]
[null,null,2,7.0000000000000007E-2,{"$f":"D74*E67","v":0},null,3,0.4,{"$f":"H74*E67","v":0}]
[null,null,3,0.09,{"$f":"D75*E67","v":0},null,4,0.5,{"$f":"H75*E67","v":0}]
[null,null,4,0.11,{"$f":"D76*E67","v":0},null,5,0.6,{"$f":"H76*E67","v":0}]
[null,null,5,0.13,{"$f":"D77*E67","v":0},null,6,0.7,{"$f":"H77*E67","v":0}]
[null,null,6,0.14000000000000001,{"$f":"D78*E67","v":0},null,7,0.8,{"$f":"H78*E67","v":0}]
[null,null,7,0.15,{"$f":"D79*E67","v":0},null,8,0.9,{"$f":"H79*E67","v":0}]
[null,null,"8 a 15",0.2,{"$f":"D80*E67","v":0},null,"más de 9",1,{"$f":"H80*E67","v":0}]
[null,null,"16 a 30",0.25,{"$f":"D81*E67","v":0}]
[]
["COMENTARIOS",null,null,null,null,null,null,null,null,null,null,null,null,null,"OK"]
["Ingresa aquí tu comentario"]
[]
["Cordialmente,"]
[]
[{"$f":"+TODAY()","v":"2021-10-13"}]

{"sheet":"CuestionarioTransporte","index":18,"n_rows":65,"n_cols":34,"rows_kept":65,"cut":false,"hidden":false,"merged":[[43,1,43,13],[44,1,44,13],[45,1,45,13],[46,1,46,13],[47,1,47,13],[38,1,38,13],[39,1,39,13],[40,1,40,13],[41,1,41,13],[42,1,42,13],[33,1,33,13],[34,1,34,13],[35,1,35,13],[36,1,36,13],[37,1,37,13],[27,1,27,13],[28,1,28,13],[30,1,30,13],[31,1,31,13],[32,1,32,13],[25,1,25,2],[1,1,1,3],[15,1,15,2],[16,1,16,2],[17,1,17,2],[21,1,21,2],[14,1,14,2],[18,1,18,2],[22,1,22,2],[23,1,23,2],[19,1,19,2],[20,1,20,2]]}
[]
[null,"CUESTIONARIO DEL SEGURO DE TRANSPORTE NACIONAL"]
[]
[null,"DATOS DEL CONTRATANTE"]
[null,"NOMBRE O RAZÓN SOCIAL",{"$f":"IF(LEN(Solicitud.Manual!$I$9)=0,\"\",Solicitud.Manual!$I$9)","v":""}]
[null,"RUC",{"$f":"IF(LEN(Solicitud.Manual!$M$8)=0,\"\",Solicitud.Manual!$M$8)","v":""}]
[]
[null,"DATOS DEL ASEGURADO"]
[null,"NOMBRE O RAZÓN SOCIAL",{"$f":"IF(LEN(Solicitud.Manual!$C$9)=0,\"\",Solicitud.Manual!$C$9)","v":""}]
[null,"RUC",{"$f":"IF(LEN(Solicitud.Manual!$E$8)=0,\"\",Solicitud.Manual!$E$8)","v":""}]
[]
[null,"CONTRATACIÓN DE SEGURO"]
[null,"TIPO DE CONTRATACIÓN"]
[]
[null,"PREGUNTAS",null,"RESPUESTA"]
[null,"Experiencia siniestralidad previa"]
[null,"¿El contratante es dueño de la mercadería?"]
[null,"Tipo de mercadería a transportar (Detallar)"]
[null,"Tipo de embalaje"]
[null,"Radio de Acción",null,null,null,null,null,null,null,null,null,null,null,null,null,null,null,null,null,null,null,null,null,null,null,null,null,null,null,"Transportes"]
[null,"Medio de transporte a utilizar",null,null,null,null,null,null,null,null,null,null,null,null,null,null,null,null,null,null,null,null,null,null,null,null,null,null,null,2,null,1436,{"$f":"IFERROR(AF21/(1+$AE$14),0)","v":1436},{"$f":"+IF($AD$21=2,4,\"\")","v":4}]
[null,"Medidas de seguridad utilizadas durante el transporte.",null,null,null,null,null,null,null,null,null,null,null,null,null,null,null,null,null,null,null,null,null,null,null,null,null,null,null,null,null,{"$f":"IFERROR(IF(OR($E$60=4,$E$60=12),$AF$21*VLOOKUP($E$60,PagodePrimasLocal1!$AD$35:$AF$40,3,0),$AF$21*SUMPRODUCT((PagodePrimasLocal1!$AD$35:$AD$40=$E$60)*(PagodePrimasLocal1!$AE$35:$AE$40=$C$55)*(PagodePrimasLocal1!$AF$35:$AF$40))),0)","v":154.50111812874167},null,{"$f":"+IF($AD$21=2,6,\"\")","v":6}]
[null,"Límite Máximo por Embarque (en USD)",null,25000,null,null,null,null,null,null,null,null,null,null,null,null,null,null,null,null,null,null,null,null,null,null,null,null,null,null,null,{"$f":"SUM(AF21:AF22)","v":1590.5011181287416},null,{"$f":"+IF($AD$21=2,10,\"\")","v":10}]
[null,{"$f":"tablaTransportes!$G$2","v":"Movimiento Anual (en USD) Mínimo USD 150,000"},null,null,null,null,null,null,null,null,null,null,null,null,null,null,null,null,null,null,null,null,null,null,null,null,null,null,null,null,null,null,null,{"$f":"+IF($AD$21=2,12,\"\")","v":12}]
[]
[null,"Prima Comercial + IGV",null,345]
[]
[null,"DESCRIPCION DE LA MERCANCIA:"]
[null,"Mercadería de terceros bajo su responsabilidad, custodia o control, excluyendo: "]
[]
[null,"1. Animales vivos"]
[null,"2. Explosivos y productos químicos de naturaleza explosiva o autocombustible y productos fiscalizados."]
[null,"3. Fosforo (cerillas), fulminantes comunes y eléctricos"]
[null,"4. Armas y Municiones"]
[null,"5. Joyas, documentos valorados, valores, obras de arte, pieles, dinero o cualquier papel que lo represente, piedras preciosas y relojes,"]
[null,"6. Menaje de casa y/o equipaje acompañado y/o efectos personales."]
[null,"7. Equipos de cómputo, sus partes y piezas, software no instalado."]
[null,"8. Tarjetas telefónicas, tablets, similares y sus partes y piezas"]
[null,"9. Equipos de telefonía móvil (celulares, smartphones, iphones, modems)"]
[null,"10. CDs, DVDs, Blurays, videojuegos y televisores."]
[null,"11. Todo tipo de productos a granel (granos secos o líquidos)."]
[null,"12. Concentrado de minerales tales como: oro y plata, "]
[null,"13. Cátodos de Cobre, Cableado eléctrico"]
[null,"14. Llantas con neumáticos / sin neumáticos,"]
[null,"15. Productos farmacéuticos"]
[null,"16. Licores, Cigarrillos "]
[null,"17. Artículos para deportes "]
[null,"18. Café en sacos y tipo exportación"]
[]
[]
["Pago de Primas"]
[]
[null,"Autorizaciones"]
[]
[null,"Condición de pago","Cupones","Emitir Factura?","SÍ"]
[]
[]
[null,"Inicio de Vigencia y Pago"]
[]
[null,"Forma de pago",null,"Nro. Cuotas:",10]
[null,null,"Al Contado","Inicio Vigencia Póliza:",{"$f":"TODAY()","v":"2021-10-13"}]
[null,null,"En cuotas"]
[]
[null,null,null,"Monto Total a Pagar Anual (incluye IGV y DE):",{"$f":"IF(AND($AD$21=1,$E$60=\"\"),$AF$21,IF($E$60=\"\",\"----\",$AF$23))","v":1590.5011181287416}]
[null,null,null,"Monto Total a Pagar Mensual:",{"$f":"IF(ISERROR(IF(E60=\" \",\"---\",E64/E60)),0,IF(E60=\" \",\"---\",E64/E60))","v":159.05011181287415}]

{"sheet":"TransportistaTerrestre","index":19,"n_rows":117,"n_cols":15,"rows_kept":117,"cut":false,"hidden":false,"merged":[[116,0,116,1],[90,0,90,12],[92,0,92,12],[94,0,94,12],[95,0,95,12],[96,0,96,12],[99,0,99,12],[101,0,101,12],[102,0,102,12],[65,0,65,12],[63,0,63,12],[67,0,67,12],[69,0,69,12],[51,2,51,12],[57,2,57,12],[58,2,58,12],[59,2,59,12],[60,2,60,12],[52,2,52,12],[53,2,53,12],[54,2,54,12],[55,2,55,12],[56,2,56,12],[1,0,1,12],[14,0,14,12],[15,0,15,12],[17,0,17,12],[7,3,7,12],[9,3,9,12],[11,3,11,12],[2,0,2,12],[3,0,3,12],[50,2,50,12],[40,0,40,12],[43,0,43,12],[45,0,45,12],[48,0,48,12],[35,0,35,12],[36,0,36,12],[37,0,37,12],[38,0,38,12],[39,0,39,12],[71,0,71,12],[73,0,73,12],[75,0,75,12],[97,0,97,12],[98,0,98,12],[83,0,83,12],[84,0,84,12],[85,0,85,12],[86,0,86,12],[87,0,87,12],[88,0,88,12],[77,0,77,12],[79,0,79,12],[81,0,81,12],[82,0,82,12],[31,0,31,12],[32,0,32,12],[33,0,33,12],[34,0,34,12],[18,0,18,12],[20,0,20,12],[21,0,21,12],[23,0,23,12],[24,0,24,12],[25,0,25,12],[26,0,26,12],[27,0,27,12],[28,0,28,12],[29,0,29,12],[30,0,30,12]]}
[]
["SLIP DE COTIZACIÓN PARA EL SEGURO DE CARGA",null,null,null,null,null,null,null,null,null,null,null,null,null,"OK"]
["TRANSPORTE NACIONAL"]
["(TRANSPORTISTAS TERRESTRE)"]
[]
[]
[]
[null,"CONTRATANTE: ",null,{"$f":"IF(LEN(CuestionarioTransporte!$C$5)>0,CuestionarioTransporte!$C$5,\"\")","v":""}]
[]
[null,"RUC: ",null,{"$f":"IF(LEN(CuestionarioTransporte!$C$6)>0,CuestionarioTransporte!$C$6,\"\")","v":""}]
[]
[null,"ASEGURADO",null,{"$f":"IF(LEN(CuestionarioTransporte!$C$9)>0,CuestionarioTransporte!$C$9,\"\")","v":""}]
[null,"Propietario de la mercadería"]
[]
["RADIO DE ACCION "]
["Dentro del Territorio Nacional; excluyendo el tránsito previo de la exportación y el transito posterior de importación, así como el transporte fluvial."]
[]
["MEDIOS DE TRANSPORTE "]
["En vehículos de carga de propiedad del Asegurado y/o de terceros que cuenten con autorización vigente otorgada por las Autoridades competentes para prestar el servicio de transporte terrestre automotor de carga y que se encuentren inscritos en los registros de la Dirección de Transporte Terrestre del Ministerio de Transporte y Comunicaciones. "]
[]
["DESCRIPCION DE LA MERCANCIA:",null,null,null,null,null,null,null,null,null,null,null,null,null,"OK"]
["Mercadería de terceros bajo su responsabilidad, custodia o control, excluyendo: "]
[]
["1. Animales vivos"]
["2. Explosivos y productos químicos de naturaleza explosiva o autocombustible y productos fiscalizados."]
["3. Fosforo (cerillas), fulminantes comunes y eléctricos"]
["4. Armas y Municiones"]
["5. Joyas, documentos valorados, valores, obras de arte, pieles, dinero o cualquier papel que lo represente, piedras preciosas y relojes,"]
["6. Menaje de casa y/o equipaje acompañado y/o efectos personales."]
["7. Equipos de cómputo, sus partes y piezas, software no instalado."]
["8. Tarjetas telefónicas, tablets, similares y sus partes y piezas"]
["9. Equipos de telefonía móvil (celulares, smartphones, iphones, modems)"]
["10. CDs, DVDs, Blurays, videojuegos y televisores."]
["11. Todo tipo de productos a granel (granos secos o líquidos)."]
["12. Concentrado de minerales tales como: oro y plata, "]
["13. Cátodos de Cobre, Cableado eléctrico"]
["14. Llantas con neumáticos / sin neumáticos,"]
["15. Productos farmacéuticos"]
["16. Licores, Cigarrillos "]
["17. Artículos para deportes "]
["18. Café en sacos y tipo exportación"]
[]
[]
["VALORIZACION DE LA MERCANCIA ",null,null,null,null,null,null,null,null,null,null,null,null,null,"OK"]
[]
["Factura Comercial y/o Guía de Remisión excluyendo los Impuestos de Ley"]
[]
[]
["COBERTURAS ",null,null,null,null,null,null,null,null,null,null,null,null,null,"OK"]
[]
[null,"CODIGO","CLAUSULAS"]
[null,107430,"990000 - CLAUSULAS GENERALES CONTRATACIÓN RIESGOS GENERALES"]
[null,107491,"111000 TRANSPORTES CARGA ABIERTA - CONDICIONES GENERALES"]
[null,107209,"CL TRA002 ACCIDENTE AL MEDIO DE TRANSPORTE  "]
[null,107212,"CL TRA012  DE ROBO POR ASALTO"]
[null,107215,"CL TRA013 DE TRANSITO"]
[null,107226,"066 CLAUSULA DE LOCALIDAD DEL INSTITUTO"]
[null,107228,"CL DE TERMINACION DEL TRANSITO (TERRORISMO) "]
[null,107217,"256 CL DEL INST PARA HUELGAS (CARGAMENTOS) "]
[null,107202,"356 CL DEL INST SOBRE EXCLUSION DE CONTAMINACION RADIOACTIVA"]
[null,107214,"CL TRA003  DE CARGA Y DESCARGA"]
[]
[]
["LIMITE MAXIMO DE RESPONSABILIDAD ",null,null,null,null,null,null,null,null,null,null,null,null,null,"OK"]
[]
["HASTA US$50,000.00 Cincuenta mil  dólares americanos "]
[]
["Cualquier exceso en el límite indicado deberá ser puesto en conocimiento de la compañía de seguros para su aprobación antes del inicio del viaje. "]
[]
["Límite agregado anual por Robo: $50,000.00"]
[]
["MOVIMIENTO ESTIMADO ANUAL (MAE)",null,null,null,null,null,null,null,null,null,null,null,null,null,"OK"]
[]
["US$ 500,000.00 Quinientos mil dólares americanos (MINIMO) máximo $5,000,000.00"]
[]
["El Asegurado se compromete en proporcionar a la Compañía después de haber terminado la vigencia de esta Póliza, la suma total definitiva del período de seguro, en base a los libros contables. "]
[]
["CONDICIONES ESPECIALES",null,null,null,null,null,null,null,null,null,null,null,null,null,"OK"]
[]
["Queda entendido y convenido que las operaciones de transporte terrestre de mercadería deben realizarse considerando lo siguiente:"]
[]
["·         Que los transportes realizados por vehículos de terceros deben ser realizados bajo manifiestos / carta de porte (o nombre aplicable al documento) y/o guía de remisión emitida por el Asegurado y/o por el propietario de la mercadería."]
["·         Que los Conductores de los vehículos propios y de terceros son personas debidamente habilitadas y premunidas de una Licencia de conducir vigente y que corresponda a la clase y categoría prevista en el Reglamento de Licencias de Conducir para las características del vehículo que conduce. Los conductores deberán encontrarse identificados en el Registro de Nómina de Conductores del Registro Nacional de Transporte Terrestre del MTC."]
["·         Que los vehículos propios y de terceros a utilizar deberán ser cerrados, evitando que la mercadería se encuentre expuesta a simple vista, salvo aquella carga que por su propia naturaleza y/o dimensiones no pueda ser transportada en vehículos cerrados. "]
["·         Que los vehículos de carga propios y de terceros no deben ser estacionados en sitios o lugares en los cuales no exista iluminación. En caso se tenga que pernoctar por motivos debidamente justificados, la unidad deberá permanecer en un estacionamiento que sea autorizado por el Asegurado, que se encuentre dentro de la ruta establecida para el transporte y que garantice la seguridad de la mercadería a través de medidas de protección y vigilancia policial o privada. "]
["·         Que todos los transportes terrestres deben ser realizados en vehículos propios y de terceros que cuenten con un sistema de posicionamiento global (GPS) que brinde información en tiempo real y que se encuentre en funcionamiento mientras la mercadería se encuentre en el vehículo. Este sistema deberá brindar señales de alarma a un Centro de Control Terrestre en forma automática y a través de un dispositivo o botón de pánico; asimismo, deben contar con cobertura total dentro de las rutas establecidas para el transporte. El seguimiento de la situación de los vehículos durante el servicio debe ser continuo y permanente las 24 horas del día y se debe contar con un plan de contingencias y sistema de respuesta rápida ante ocurrencias, asaltos y/o situaciones de emergencia."]
["·         Que los Conductores deben utilizar medios alternos de comunicación, tales como equipos de radio y/o teléfonos celulares y mantener comunicación permanente con los centros de control durante el traslado de la mercancía."]
["·         Que las unidades transportadoras no deben llevar publicidad o propaganda que indique que están transportando."]
["·         Que los Conductores de vehículos propios y de terceros no deberán realizar jornadas de conducción continúas de más de cinco (05) horas para el servicio diurno o más de cuatro (04) horas en el servicio nocturno. Tras alcanzar el periodo máximo de conducción continua, el Conductor hará una pausa ininterrumpida de por lo menos 45 minutos. La duración acumulada de jornadas de conducción no deberá exceder de diez (10) horas en un periodo de veinte y cuatro (24) horas, contadas desde la hora de inicio de la conducción en un servicio."]
[]
["La inobservancia de estas Condiciones Especiales liberará de toda responsabilidad indemnizatoria a la Compañía de Seguros. "]
[]
["EXCLUSIONES",null,null,null,null,null,null,null,null,null,null,null,null,null,"OK"]
[]
["a)    Actos de deshonestidad cometidos por los empleados del Asegurado cuando la mercancía sea transportada en vehículos de propiedad del Asegurado y/o de terceros bajo su responsabilidad. "]
["b)    Olvido y/o negligencia y/o embriaguez de los empleados y/o personas encargadas del transporte y custodia de acuerdo a la Ley, cuando la mercancía sea transportada en vehículos de propiedad el Asegurado y/o de terceros bajo su responsabilidad. "]
["c)    Robo por escape, ratería, hurto, estafa, engaño, sustracciones sistemáticas, fraude o desaparición, cuando la mercancía sea transportada en vehículos de propiedad del Asegurado y/o de terceros bajo su responsabilidad. "]
["d)    Robo por desaparición mientras los objetos asegurados o el medio transportador se encuentre dentro de algún local o recinto del Asegurado o de terceros, en calidad de depositarios y no como parte del tránsito ordinario. "]
["e)    Pérdidas y/o daños causados a la mercancía asegurada como consecuencia de choques contra puentes y/o túneles durante su traslado terrestre, hasta su destino final."]
["f)     El contratante de la póliza podrá contratar a todos los transportistas que cumplan con las condiciones de la póliza; los Transportistas contratados no podrán subcontratar a otros transportistas"]
[]
["REAJUSTE DE PRIMAS ",null,null,null,null,null,null,null,null,null,null,null,null,null,"OK"]
["La Compañía se reserva el derecho de efectuar revisiones de la Póliza y reajustar las Tasas y deducibles de acuerdo al índice de siniestralidad que presente la Póliza, previo acuerdo con el Asegurado y/o Broker de seguros. "]
[]
[null,"DEDUCIBLES"]
[null,"Para robo por asalto:",null,"20% del monto indemnizable, mínimo US$ 500 por evento"]
[null,"Para otros riesgos: ",null,"10% del monto indemnizable, mínimo US$ 200 por evento"]
[]
[]
[null,"ESQUEMA DE PRIMAS NETAS"]
[]
[null,"·         Prima neta anual USD:",null,null,{"$f":"CuestionarioTransporte!$D$26","v":345}]
[]
[]
["Cordialmente,"]
[]
[{"$f":"+TODAY()","v":"2021-10-13"}]

{"sheet":"PropietarioMercaderia","index":20,"n_rows":117,"n_cols":15,"rows_kept":117,"cut":false,"hidden":false,"merged":[[91,0,91,12],[93,0,93,12],[94,0,94,12],[95,0,95,12],[104,0,104,12],[96,0,96,12],[97,0,97,12],[98,0,98,12],[100,0,100,12],[101,0,101,12],[83,0,83,12],[84,0,84,12],[85,0,85,12],[86,0,86,12],[88,0,88,12],[76,0,76,12],[78,0,78,12],[80,0,80,12],[81,0,81,12],[82,0,82,12],[65,0,65,12],[67,0,67,12],[69,0,69,12],[71,0,71,12],[73,0,73,12],[56,2,56,12],[57,2,57,12],[58,2,58,12],[61,0,61,12],[63,0,63,12],[51,2,51,12],[52,2,52,12],[53,2,53,12],[54,2,54,12],[55,2,55,12],[46,2,46,12],[47,2,47,12],[48,2,48,12],[49,2,49,12],[50,2,50,12],[34,0,34,12],[37,0,37,12],[38,0,38,12],[41,0,41,12],[42,0,42,12],[1,0,1,12],[2,0,2,12],[3,0,3,12],[14,0,14,12],[15,0,15,12],[116,0,116,1],[7,3,7,12],[9,3,9,12],[11,3,11,12],[17,0,17,12],[19,0,19,12],[20,0,20,12],[22,0,22,12],[23,0,23,12],[25,0,25,12],[26,0,26,12],[28,0,28,12],[29,0,29,12],[30,0,30,12],[31,0,31,12],[32,0,32,12]]}
[]
["SLIP DE COTIZACIÓN PARA EL SEGURO DE CARGA",null,null,null,null,null,null,null,null,null,null,null,null,null,"OK"]
["TRANSPORTE NACIONAL"]
["(PROPIETARIO DE MERCADERÍA)"]
[]
[]
[]
[null,"CONTRATANTE: ",null,{"$f":"IF(LEN(CuestionarioTransporte!$C$5)>0,CuestionarioTransporte!$C$5,\"\")","v":""}]
[]
[null,"RUC: ",null,{"$f":"IF(LEN(CuestionarioTransporte!$C$6)>0,CuestionarioTransporte!$C$6,\"\")","v":""}]
[]
[null,"ASEGURADO",null,{"$f":"IF(LEN(CuestionarioTransporte!$C$9)>0,CuestionarioTransporte!$C$9,\"\")","v":""}]
[]
[]
["RADIO DE ACCION "]
["Dentro del Territorio Nacional; excluyendo el tránsito previo de la exportación y el transito posterior de importación."]
[]
["MEDIOS DE TRANSPORTE "]
[]
["Terrestre"]
["En vehículos de carga de propiedad del Asegurado y/o de terceros que cuenten con autorización vigente otorgada por las Autoridades competentes para prestar el servicio de transporte terrestre automotor de carga y que se encuentren inscritos en los registros de la Dirección de Transporte Terrestre del Ministerio de Transporte y Comunicaciones. "]
[]
[]
[]
[]
[]
[]
[]
[]
[]
[]
[]
[]
[]
["La inobservancia de lo antes mencionado, liberará de responsabilidad a la Compañía. "]
[]
[]
["DESCRIPCION DE LA MERCANCIA:",null,null,null,null,null,null,null,null,null,null,null,null,null,"OK"]
["Mercadería de PROPIO DEL GIRO DEL NEGOCIO DEL ASEGURADO"]
[{"$f":"IF(LEN(CuestionarioTransporte!$D$18)>0,CuestionarioTransporte!$D$18,\"\")","v":""}]
[]
["VALORIZACION DE LA MERCANCIA ",null,null,null,null,null,null,null,null,null,null,null,null,null,"OK"]
["Factura Comercial y/o Guía de Remisión excluyendo los Impuestos de Ley más flete."]
[]
[null,"COBERTURAS "]
[]
[null,"CODIGO","CLAUSULAS"]
[null,107430,"990000 - CLAUSULAS GENERALES CONTRATACIÓN RIESGOS GENERALES"]
[null,107491,"111000 TRANSPORTES CARGA ABIERTA - CONDICIONES GENERALES"]
[null,107209,"CL TRA002 ACCIDENTE AL MEDIO DE TRANSPORTE  "]
[null,107212,"CL TRA012  DE ROBO POR ASALTO"]
[null,107215,"CL TRA013 DE TRANSITO"]
[null,107226,"066 CLAUSULA DE LOCALIDAD DEL INSTITUTO"]
[null,107228,"CL DE TERMINACION DEL TRANSITO (TERRORISMO) "]
[null,107217,"256 CL DEL INST PARA HUELGAS (CARGAMENTOS) "]
[null,107202,"356 CL DEL INST SOBRE EXCLUSION DE CONTAMINACION RADIOACTIVA"]
[null,107214,"CL TRA003  DE CARGA Y DESCARGA"]
[null,107213,"CL TRA011 DE ROBO CON FRACTURA"]
[null,105326,"CLAUSULA DE RIESGOS DE LA NATURALEZA"]
[]
[]
["LIMITE MAXIMO DE RESPONSABILIDAD ",null,null,null,null,null,null,null,null,null,null,null,null,null,"OK"]
[]
["HASTA US$25,000.00 Cincuenta mil  dólares americanos "]
[]
["Cualquier exceso en el límite indicado deberá ser puesto en conocimiento de la compañía de seguros para su aprobación antes del inicio del viaje. "]
[]
["Límite agregado anual por Robo: $25,000.00"]
[]
["MOVIMIENTO  ANUAL (MA)",null,null,null,null,null,null,null,null,null,null,null,null,null,"OK"]
[]
["Desde  US$ 150,000.00  dólares americanos hasta  $2,000,000.00"]
[]
["El Asegurado se compromete en proporcionar a la Compañía después de haber terminado la vigencia de esta Póliza, la suma total definitiva del período de seguro, en base a los libros contables. "]
[]
[]
["CONDICIONES ESPECIALES",null,null,null,null,null,null,null,null,null,null,null,null,null,"OK"]
[]
["Queda entendido y convenido que las operaciones de transporte terrestre de mercadería deben realizarse considerando lo siguiente:"]
[]
["·         Que los transportes realizados por vehículos de terceros deben ser realizados bajo manifiestos / carta de porte (o nombre aplicable al documento) y/o guía de remisión emitida por el Asegurado y/o por el propietario de la mercadería."]
["·         Que los Conductores de los vehículos propios y de terceros son personas debidamente habilitadas y premunidas de una Licencia de conducir vigente y que corresponda a la clase y categoría prevista en el Reglamento de Licencias de Conducir para las características del vehículo que conduce. Los conductores deberán encontrarse identificados en el Registro de Nómina de Conductores del Registro Nacional de Transporte Terrestre del MTC."]
["·         Que los vehículos propios y de terceros a utilizar deberán ser cerrados, evitando que la mercadería se encuentre expuesta a simple vista, salvo aquella carga que por su propia naturaleza y/o dimensiones no pueda ser transportada en vehículos cerrados. "]
["·         Que los vehículos de carga propios y de terceros no deben ser estacionados en sitios o lugares en los cuales no exista iluminación. En caso se tenga que pernoctar por motivos debidamente justificados, la unidad deberá permanecer en un estacionamiento que sea autorizado por el Asegurado, que se encuentre dentro de la ruta establecida para el transporte y que garantice la seguridad de la mercadería a través de medidas de protección y vigilancia policial o privada. "]
["·         Que todos los transportes terrestres deben ser realizados en vehículos propios y de terceros que cuenten con un sistema de posicionamiento global (GPS) que brinde información en tiempo real y que se encuentre en funcionamiento mientras la mercadería se encuentre en el vehículo. Este sistema deberá brindar señales de alarma a un Centro de Control Terrestre en forma automática y a través de un dispositivo o botón de pánico; asimismo, deben contar con cobertura total dentro de las rutas establecidas para el transporte. El seguimiento de la situación de los vehículos durante el servicio debe ser continuo y permanente mientras la mercadería esté siendo trasladada y se debe contar con un plan de contingencias y sistema de respuesta rápida ante ocurrencias, asaltos y/o situaciones de emergencia."]
["·         Que los Conductores deben utilizar medios alternos de comunicación, tales como equipos de radio y/o teléfonos celulares y mantener comunicación permanente con los centros de control durante el traslado de la mercancía."]
["·         Que los Conductores de vehículos propios y de terceros no deberán realizar jornadas de conducción continúas de más de cinco (05) horas para el servicio diurno o más de cuatro (04) horas en el servicio nocturno. Tras alcanzar el periodo máximo de conducción continua, el Conductor hará una pausa ininterrumpida de por lo menos 45 minutos. La duración acumulada de jornadas de conducción no deberá exceder de diez (10) horas en un periodo de veinte y cuatro (24) horas, contadas desde la hora de inicio de la conducción en un servicio."]
[]
["La inobservancia de estas Condiciones Especiales liberará de toda responsabilidad indemnizatoria a la Compañía de Seguros. "]
[]
[]
["EXCLUSIONES",null,null,null,null,null,null,null,null,null,null,null,null,null,"OK"]
[]
["a)    Actos de deshonestidad cometidos por los empleados del Asegurado cuando la mercancía sea transportada en vehículos de propiedad del Asegurado y/o de terceros bajo su responsabilidad. "]
["b)    Olvido y/o negligencia y/o embriaguez de los empleados y/o personas encargadas del transporte y custodia de acuerdo a la Ley, cuando la mercancía sea transportada en vehículos de propiedad el Asegurado y/o de terceros bajo su responsabilidad. "]
["c)    Robo por escape, ratería, hurto, estafa, engaño, sustracciones sistemáticas, fraude o desaparición, cuando la mercancía sea transportada en vehículos de propiedad del Asegurado y/o de terceros bajo su responsabilidad. "]
["d)    Robo por desaparición mientras los objetos asegurados o el medio transportador se encuentre dentro de algún local o recinto del Asegurado o de terceros, en calidad de depositarios y no como parte del tránsito ordinario. "]
["e)    Pérdidas y/o daños causados a la mercancía asegurada como consecuencia de choques contra puentes y/o túneles durante su traslado terrestre, hasta su destino final."]
["f)     El contratante de la póliza podrá contratar a todos los transportistas que cumplan con las condiciones de la póliza; los Transportistas contratados no podrán subcontratar a otros transportistas"]
[]
["REAJUSTE DE PRIMAS ",null,null,null,null,null,null,null,null,null,null,null,null,null,"OK"]
["La Compañía se reserva el derecho de efectuar revisiones de la Póliza y reajustar las Tasas y deducibles de acuerdo al índice de siniestralidad que presente la Póliza, previo acuerdo con el Asegurado y/o Broker de seguros. "]
[]
[]
["DEDUCIBLES"]
[null,"Para robo por asalto:",null,"20% del monto indemnizable, mínimo US$ 500"]
[null,"Para otros riesgos: ",null,"10% del monto indemnizable, mínimo US$ 200"]
[]
[]
[null,"ESQUEMA DE PRIMAS NETAS"]
[]
[null,"Prima Comercial + IGV",null,null,{"$f":"TransportistaTerrestre!$E$112","v":345}]
[null,"Movimiento Anual (en USD)",null,null,{"$f":"CuestionarioTransporte!$D$24","v":0}]
[]
["Cordialmente,"]
[]
[{"$f":"+TODAY()","v":"2021-10-13"}]

{"sheet":"tablaTransportes","index":21,"n_rows":4,"n_cols":8,"rows_kept":4,"cut":false,"hidden":false,"merged":[]}
[null,null,null,null,null,null,"CELDA D24"]
[null,null,null,"MAE <= 3MM","MAE > 3 MM y <= 5 MM",null,{"$f":"\"Movimiento Anual (en USD) Mínimo USD \" & TEXT($H$3,\"#,##\")","v":"Movimiento Anual (en USD) Mínimo USD 150,000"}]
[null,null,"TRANSPORTES CON INCENDIO",2.3E-3,8.8000000000000003E-4,null,"Mínimo USD ",150000]
[null,null,"TRANSPORTES SIN INCENDIO",3.5899999999999999E-3,1.3700000000000001E-3,null,"Maximo USD ",2000000]

{"sheet":"Hoja1","index":22,"n_rows":711,"n_cols":30,"rows_kept":711,"cut":false,"hidden":true,"merged":[[0,0,0,12],[3,0,3,12],[7,0,7,1],[7,2,7,12],[8,0,9,6],[10,0,10,1],[10,2,10,12],[20,2,20,12],[23,1,23,12],[24,1,24,12],[25,1,25,12],[27,0,27,12],[29,0,29,12],[11,0,11,1],[13,0,13,12],[15,0,15,1],[15,2,15,12],[18,2,18,12],[19,2,19,12],[44,0,44,4],[45,0,45,4],[46,0,46,4],[47,0,47,4],[48,0,48,4],[49,0,49,4],[32,0,35,12],[38,0,38,6],[41,5,41,6],[41,8,41,9],[41,11,41,12],[42,5,42,6],[42,8,42,9],[42,11,42,12],[58,5,60,6],[58,8,60,9],[58,11,60,12],[64,0,64,12],[67,5,67,6],[67,8,67,9],[67,11,67,12],[50,0,50,4],[51,0,51,4],[56,5,56,6],[56,8,56,9],[56,11,56,12],[57,0,57,4],[57,5,57,6],[57,8,57,9],[57,11,57,12],[71,1,74,4],[71,5,74,6],[71,8,74,9],[71,11,74,12],[75,1,77,4],[75,5,77,6],[75,8,77,9],[75,11,77,12],[68,1,68,4],[68,5,68,6],[68,8,68,9],[68,11,68,12],[69,1,70,4],[69,5,70,6],[69,8,70,9],[69,11,70,12],[81,1,81,4],[81,5,81,6],[81,8,81,9],[81,11,81,12],[103,0,103,3],[112,0,113,12],[78,1,79,4],[78,5,79,6],[78,8,79,9],[78,11,79,12],[80,1,80,4],[80,5,80,6],[80,8,80,9],[80,11,80,12],[134,0,138,6],[139,0,140,12],[147,0,147,12],[150,0,150,12],[154,0,157,12],[164,5,164,6],[164,8,164,9],[164,11,164,12],[114,0,114,6],[115,0,116,6],[120,0,120,2],[120,3,120,6],[126,0,126,12],[132,0,132,7],[170,5,170,6],[170,8,170,9],[170,11,170,12],[171,1,171,4],[171,5,171,6],[171,8,171,9],[171,11,171,12],[165,1,165,4],[165,5,165,6],[165,8,165,9],[165,11,165,12],[166,1,166,4],[166,5,166,6],[166,8,166,9],[166,11,166,12],[181,0,181,3],[184,0,185,12],[191,0,192,12],[193,0,193,6],[203,0,204,12],[207,0,207,12],[172,1,172,4],[172,5,172,6],[172,8,172,9],[172,11,172,12],[173,1,173,4],[173,5,173,6],[173,8,173,9],[173,11,173,12],[225,1,227,4],[225,5,227,6],[225,8,227,9],[225,11,227,12],[230,5,230,6],[230,8,230,9],[230,11,230,12],[210,0,210,12],[214,0,216,12],[223,5,223,6],[223,8,223,9],[223,11,223,12],[224,1,224,4],[224,5,224,6],[224,8,224,9],[224,11,224,12],[235,1,235,4],[235,5,235,6],[235,8,235,9],[235,11,235,12],[236,1,236,4],[236,5,236,6],[236,8,236,9],[236,11,236,12],[231,1,231,4],[231,5,231,6],[231,8,231,9],[231,11,231,12],[232,1,234,4],[232,5,234,6],[232,8,234,9],[232,11,234,12],[281,0,281,4],[282,0,282,4],[283,0,283,4],[284,0,284,4],[285,0,285,4],[286,0,286,4],[259,0,259,6],[265,0,266,6],[268,0,268,12],[271,0,271,12],[275,0,277,12],[280,5,280,6],[280,8,280,9],[280,11,280,12],[327,0,327,12],[331,0,334,12],[337,0,337,12],[340,0,340,12],[343,0,346,12],[353,5,353,6],[353,8,353,9],[353,11,353,12],[287,0,287,4],[288,0,288,4],[289,0,289,4],[290,0,290,4],[310,0,312,12],[317,0,319,12],[360,1,360,4],[360,5,360,6],[360,8,360,9],[360,11,360,12],[361,1,363,4],[361,5,363,6],[361,8,363,9],[361,11,363,12],[354,1,354,4],[354,5,354,6],[354,8,354,9],[354,11,354,12],[355,1,356,4],[355,5,356,6],[355,8,356,9],[355,11,356,12],[369,1,370,4],[369,5,370,6],[369,8,370,9],[369,11,370,12],[399,0,399,12],[405,0,406,12],[364,1,366,4],[364,5,366,6],[364,8,366,9],[364,11,366,12],[367,1,368,4],[367,5,368,6],[367,8,368,9],[367,11,368,12],[442,0,442,12],[445,0,445,12],[449,0,450,12],[451,0,451,12],[452,0,453,12],[454,0,455,12],[407,0,408,12],[409,0,409,12],[410,0,411,12],[412,0,413,12],[414,0,415,12],[434,0,435,6],[467,0,467,12],[470,0,470,12],[472,0,473,12],[474,0,475,12],[477,0,477,12],[479,0,480,12],[457,0,458,12],[459,0,460,12],[461,0,461,12],[463,0,463,12],[465,0,465,12],[466,0,466,12],[493,0,496,12],[501,0,501,12],[505,0,507,12],[511,0,511,12],[512,3,512,9],[514,0,514,12],[482,0,482,12],[484,0,485,12],[486,0,486,12],[487,0,488,11],[489,0,490,12],[491,0,491,12],[541,0,541,12],[543,3,543,4],[546,2,546,3],[547,2,547,3],[548,2,548,3],[549,2,549,3],[528,4,528,8],[529,4,529,8],[530,4,530,8],[533,4,533,8],[536,4,536,8],[539,4,539,8],[558,2,558,12],[559,2,559,12],[560,2,560,12],[561,2,561,8],[563,2,563,8],[564,2,564,8],[550,3,550,4],[551,3,551,4],[554,0,554,12],[555,2,555,8],[556,2,556,12],[557,2,557,12],[579,2,579,3],[579,6,579,7],[590,0,590,12],[591,0,591,12],[595,0,595,12],[596,0,596,12],[566,2,566,8],[567,2,567,5],[568,2,568,5],[569,2,569,5],[570,2,570,5],[577,2,577,8],[611,0,611,12],[612,0,612,12],[614,0,614,12],[615,0,615,12],[617,0,617,12],[618,0,618,12],[597,0,597,12],[601,3,601,12],[603,3,603,12],[605,3,605,12],[608,0,608,12],[609,0,609,12],[625,0,625,12],[626,0,626,12],[627,0,627,12],[628,0,628,12],[629,0,629,12],[630,0,630,12],[619,0,619,12],[620,0,620,12],[621,0,621,12],[622,0,622,12],[623,0,623,12],[624,0,624,12],[642,0,642,12],[644,2,644,12],[645,2,645,12],[646,2,646,12],[647,2,647,12],[648,2,648,12],[631,0,631,12],[632,0,632,12],[633,0,633,12],[634,0,634,12],[637,0,637,12],[639,0,639,12],[657,0,657,12],[659,0,659,12],[661,0,661,12],[663,0,663,12],[665,0,665,12],[667,0,667,12],[649,2,649,12],[650,2,650,12],[651,2,651,12],[652,2,652,12],[653,2,653,12],[654,2,654,12],[678,0,678,12],[679,0,679,12],[680,0,680,12],[681,0,681,12],[682,0,682,12],[684,0,684,12],[669,0,669,12],[671,0,671,12],[673,0,673,12],[675,0,675,12],[676,0,676,12],[677,0,677,12],[693,0,693,12],[695,0,695,12],[696,0,696,12],[710,0,710,1],[686,0,686,12],[688,0,688,12],[689,0,689,12],[690,0,690,12],[691,0,691,12],[692,0,692,12]]}
["SLIP COTIZACIÓN PROTECCIÓN PARA TU NEGOCIO 2016"]
[]
[]
["PROTECCIÓN PARA NEGOCIO"]
[]
[]
[]
["CONTRATANTE",null,{"$f":"Solicitud.Manual!$C$9 & \" \" &Solicitud.Manual!$C$10 & \" \" & Solicitud.Manual!$E$10","v":"  "}]
[]
[]
["CORREDOR",null,{"$f":"Solicitud.Manual!$D$148","v":0}]
["VIGENCIA",null,{"$f":"PagodePrimasLocal1!$N$22","v":""},"al",{"$f":"+IF(C12=\"\",\"\",IF(DAY(C12)<10,0&DAY(C12),DAY(C12))&\"/\"&IF(MONTH(C12)<10,0&MONTH(C12),MONTH(C12))&\"/\"&YEAR(C12)+1)","v":""},"12:00 Hrs"]
[]
["CONDICIONES PARTICULARES"]
[]
["ASEGURADO",null,{"$f":"Solicitud.Manual!$I$9 & \" \" & Solicitud.Manual!$I$10 & \" \" & Solicitud.Manual!$M$10","v":"  "}]
[]
["ACTIVIDAD O GIRO DEL NEGOCIO        "]
["Local 1",null,{"$f":"Solicitud.Manual!$E$27","v":""}]
["Local 2",null,{"$f":"Solicitud.Manual!$E$32","v":""}]
["Local 3",null,{"$f":"Solicitud.Manual!$E$37","v":""}]
[]
["DIRECCIÓN DE LOS LOCALES POR ASEGURAR"]
["Local 1",{"$f":"Solicitud.Manual!$C$47 & \" \" & Solicitud.Manual!$C$48 & \" \" &Solicitud.Manual!$C$46","v":"  "}]
["Local 2",{"$f":"Solicitud.Manual!$G$47 & \" \" & Solicitud.Manual!$G$48 & \" \" &Solicitud.Manual!$G$46","v":"  "}]
["Local 3",{"$f":"Solicitud.Manual!$K$47 & \" \" & Solicitud.Manual!$K$48 & \" \" &Solicitud.Manual!$K$46","v":"  "}]
[]
["PROTECCIÓN PARA NEGOCIO"]
[]
["SECCIÓN INCENDIO Y LÍNEAS ALIADAS"]
[]
["A. MATERIA DEL SEGURO"]
["Toda propiedad, , comprendiendo también maquinaria, equipos fijo, equipo móviles dentro y fuera de los predios asegurados, sea de propiedad del ASEGURADO y/o de terceros que se encuentren bajo su responsabilidad, supervisión , control y custodia  siempre que formen parte de los Valores Declarados en la Póliza, en locales propios y/o de terceros señalados en póliza, en forma permanente o temporal incluyendo bienes a la intemperie (siempre que debido a su naturaleza, deban estar bajo esa condición)."]
[]
[]
[]
[]
["B. MODALIDAD DE "]
[]
[]
["C. BIENES ASEGURADOS Y VALORES DECLARADOS"]
[null,null,null,null,null,"Local 1",null,null,"Local 2",null,null,"Local 3"]
[null,null,null,null,null,"Valor Declarado",null,null,"Valor Declarado",null,null,"Valor Declarado"]
[null,null,null,null,null,"Total","Endosado",null,"Total","Endosado",null,"Total","Endosado"]
["Edificio y/o Instalaciones fijas (sin considerar el valor del terreno ni Instalaciones Fijas)",null,null,null,null,{"$f":"IF(CoberturasaElegirLocal1!$M$11=\"\",\"\",CoberturasaElegirLocal1!$M$11)","v":""},{"$f":"IF(CoberturasaElegirLocal1!$N$11=\"\",\"\",CoberturasaElegirLocal1!$N$11)","v":""},null,{"$f":"IF(CoberturasaElegirLocal2!$M$11=\"\",\"\",CoberturasaElegirLocal2!$M$11)","v":""},{"$f":"IF(CoberturasaElegirLocal2!$N$11=\"\",\"\",CoberturasaElegirLocal2!$N$11)","v":""},null,{"$f":"IF(CoberturasaElegirLocal3!$M$11=\"\",\"\",CoberturasaElegirLocal3!$M$11)","v":""},{"$f":"IF(CoberturasaElegirLocal3!$N$11=\"\",\"\",CoberturasaElegirLocal3!$N$11)","v":""}]
["Instalaciones Fijas",null,null,null,null,{"$f":"IF(CoberturasaElegirLocal1!$M$12=\"\",\"\",CoberturasaElegirLocal1!$M$12)","v":""},{"$f":"IF(CoberturasaElegirLocal1!$N$12=\"\",\"\",CoberturasaElegirLocal1!$N$12)","v":""},null,{"$f":"IF(CoberturasaElegirLocal2!$M$12=\"\",\"\",CoberturasaElegirLocal2!$M$12)","v":""},{"$f":"IF(CoberturasaElegirLocal2!$N$12=\"\",\"\",CoberturasaElegirLocal2!$N$12)","v":""},null,{"$f":"IF(CoberturasaElegirLocal3!$M$12=\"\",\"\",CoberturasaElegirLocal3!$M$12)","v":""},{"$f":"IF(CoberturasaElegirLocal3!$N$12=\"\",\"\",CoberturasaElegirLocal3!$N$12)","v":""}]
["Mobiliario y/o Contenido propios del giro",null,null,null,null,{"$f":"IF(CoberturasaElegirLocal1!$M$13=\"\",\"\",CoberturasaElegirLocal1!$M$13)","v":""},{"$f":"IF(CoberturasaElegirLocal1!$N$13=\"\",\"\",CoberturasaElegirLocal1!$N$13)","v":""},null,{"$f":"IF(CoberturasaElegirLocal2!$M$13=\"\",\"\",CoberturasaElegirLocal2!$M$13)","v":""},{"$f":"IF(CoberturasaElegirLocal2!$N$13=\"\",\"\",CoberturasaElegirLocal2!$N$13)","v":""},null,{"$f":"IF(CoberturasaElegirLocal3!$M$13=\"\",\"\",CoberturasaElegirLocal3!$M$13)","v":""},{"$f":"IF(CoberturasaElegirLocal3!$N$13=\"\",\"\",CoberturasaElegirLocal3!$N$13)","v":""}]
["Existencias propias del giro del negocio",null,null,null,null,{"$f":"IF(CoberturasaElegirLocal1!$M$14=\"\",\"\",CoberturasaElegirLocal1!$M$14)","v":""},{"$f":"IF(CoberturasaElegirLocal1!$N$14=\"\",\"\",CoberturasaElegirLocal1!$N$14)","v":""},null,{"$f":"IF(CoberturasaElegirLocal2!$M$14=\"\",\"\",CoberturasaElegirLocal2!$M$14)","v":""},{"$f":"IF(CoberturasaElegirLocal2!$N$14=\"\",\"\",CoberturasaElegirLocal2!$N$14)","v":""},null,{"$f":"IF(CoberturasaElegirLocal3!$M$14=\"\",\"\",CoberturasaElegirLocal3!$M$14)","v":""},{"$f":"IF(CoberturasaElegirLocal3!$N$14=\"\",\"\",CoberturasaElegirLocal3!$N$14)","v":""}]
["Maquinaria propia del giro del negocio",null,null,null,null,{"$f":"IF(CoberturasaElegirLocal1!$M$15=\"\",\"\",CoberturasaElegirLocal1!$M$15)","v":""},{"$f":"IF(CoberturasaElegirLocal1!$N$15=\"\",\"\",CoberturasaElegirLocal1!$N$15)","v":""},null,{"$f":"IF(CoberturasaElegirLocal2!$M$15=\"\",\"\",CoberturasaElegirLocal2!$M$15)","v":""},{"$f":"IF(CoberturasaElegirLocal2!$N$15=\"\",\"\",CoberturasaElegirLocal2!$N$15)","v":""},null,{"$f":"IF(CoberturasaElegirLocal3!$M$15=\"\",\"\",CoberturasaElegirLocal3!$M$15)","v":""},{"$f":"IF(CoberturasaElegirLocal3!$N$15=\"\",\"\",CoberturasaElegirLocal3!$N$15)","v":""}]
["Equipos electrónicos propios del giro del negocio",null,null,null,null,{"$f":"IF(CoberturasaElegirLocal1!$M$16=\"\",\"\",CoberturasaElegirLocal1!$M$16)","v":""},{"$f":"IF(CoberturasaElegirLocal1!$N$16=\"\",\"\",CoberturasaElegirLocal1!$N$16)","v":""},null,{"$f":"IF(CoberturasaElegirLocal2!$M$16=\"\",\"\",CoberturasaElegirLocal2!$M$16)","v":""},{"$f":"IF(CoberturasaElegirLocal2!$N$16=\"\",\"\",CoberturasaElegirLocal2!$N$16)","v":""},null,{"$f":"IF(CoberturasaElegirLocal3!$M$16=\"\",\"\",CoberturasaElegirLocal3!$M$16)","v":""},{"$f":"IF(CoberturasaElegirLocal3!$N$16=\"\",\"\",CoberturasaElegirLocal3!$N$16)","v":""}]
["Lucro Cesante – Cédula A - Utilidad Bruta Anual ó\nGastos Fijos (Estables)",null,null,null,null,{"$f":"IF(CoberturasaElegirLocal1!$M$17=\"\",\"\",CoberturasaElegirLocal1!$M$17)","v":""},null,null,{"$f":"IF(CoberturasaElegirLocal2!$M$17=\"\",\"\",CoberturasaElegirLocal2!$M$17)","v":""},null,null,{"$f":"IF(CoberturasaElegirLocal3!$M$17=\"\",\"\",CoberturasaElegirLocal3!$M$17)","v":""}]
["TOTAL VALOR DECLARADO (Máximo hasta 2'000,000 USD)",null,null,null,null,{"$f":"IF(CoberturasaElegirLocal1!$M$18=\"\",\"\",CoberturasaElegirLocal1!$M$18)","v":""},{"$f":"IF(OR(CoberturasaElegirLocal1!$N$18=\"\",CoberturasaElegirLocal1!$N$18=0),\"\",CoberturasaElegirLocal1!$N$18)","v":""},null,{"$f":"IF(CoberturasaElegirLocal2!$M$18=\"\",\"\",CoberturasaElegirLocal2!$M$18)","v":""},{"$f":"IF(OR(CoberturasaElegirLocal2!$N$18=\"\",CoberturasaElegirLocal2!$N$18=0),\"\",CoberturasaElegirLocal2!$N$18)","v":""},null,{"$f":"IF(CoberturasaElegirLocal3!$M$18=\"\",\"\",CoberturasaElegirLocal3!$M$18)","v":""},{"$f":"IF(OR(CoberturasaElegirLocal3!$N$18=\"\",CoberturasaElegirLocal3!$N$18=0),\"\",CoberturasaElegirLocal3!$N$18)","v":""}]
[]
["D. MODALIDAD DE ASEGURAMIENTO"]
["A Valor Total"]
[]
["E. COBERTURAS Y SUMAS ASEGURADAS",null,null,null,null,"Local 1",null,null,"Local 2",null,null,"Local 3"]
["COBERTURA ",null,null,null,null,"Suma Asegurada US$",null,null,"Suma Asegurada US$",null,null,"Suma Asegurada US$"]
["Todo Riesgo Incendio y Líneas Aliadas",null,null,null,null,{"$f":"IF(SUM(F52)<>0,SUM(F52),\"\")","v":""},null,null,{"$f":"IF(SUM(I52)<>0,SUM(I52),\"\")","v":""},null,null,{"$f":"IF(SUM(L52)<>0,SUM(L52),\"\")","v":""}]
["Límite Único y Combinado para Todo Riesgo Incendio y Líneas Aliadas"]
["Lucro Cesante periodo de indemnización 12 meses."]
[]
[]
[]
["PROTECCIÓN PARA NEGOCIO"]
[]
["F. SUBLÍMITES"]
[null,null,null,null,null,"Local 1",null,null,"Local 2",null,null,"Local 3"]
[null,"Sublímite*",null,null,null,"Límite",null,null,"Límite",null,null,"Límite"]
[null,"Huelga, Motín, Conmoción Civil, Daño Malicioso, Vandalismo y /o Terrorismo en el agregado por vigencia.(Límite Único y Combinado)",null,null,null,{"$f":"F59","v":""},null,null,{"$f":"I59","v":""},null,null,{"$f":"L59","v":""}]
[]
[null,"Gastos Extraordinarios: (Límite Único y Combinado), tales como:\n- Honorarios de Arquitectos, topógrafos e Ingenieros\n- Documentos y Modelos\n- Remoción de Escombros",null,null,null,{"$f":"IF(ISERROR(IF(0.2*F59>400000,400000,0.2*F59)),0,(IF(0.2*F59>400000,400000,0.2*F59)))","v":0},null,null,{"$f":"IF(ISERROR(IF(0.2*I59>400000,400000,0.2*I59)),0,(IF(0.2*I59>400000,400000,0.2*I59)))","v":0},null,null,{"$f":"IF(ISERROR(IF(0.2*L59>400000,400000,0.2*L59)),0,(IF(0.2*L59>400000,400000,0.2*L59)))","v":0}]
[]
[]
[]
[null,"Cobertura Automática para Nuevas Adquisiciones, máximo 30 días para declaración a PACIFICO.\nAplica sólo si cuenta con contenido y equipos y maquinaria",null,null,null,{"$f":"IF(ISERROR(IF(0.2*F59>100000,100000,0.2*F59)),0,IF(0.2*F59>100000,100000,0.2*F59))","v":0},null,null,{"$f":"IF(ISERROR(IF(0.2*I59>100000,100000,0.2*I59)),0,IF(0.2*I59>100000,100000,0.2*I59))","v":0},null,null,{"$f":"IF(ISERROR(IF(0.2*L59>100000,100000,0.2*L59)),0,IF(0.2*L59>100000,100000,0.2*L59))","v":0}]
[]
[]
[null,"Rotura Accidental de Vidrios, Cristales y/o Avisos luminosos. Aplica para contenido y edificación.",null,null,null,{"$f":"IF(ISERROR(IF(0.1*F59>5000,5000,0.1*F59)),0,IF(0.1*F59>5000,5000,0.1*F59))","v":0},null,null,{"$f":"IF(ISERROR(IF(0.1*I59>5000,5000,0.1*I59)),0,IF(0.1*I59>5000,5000,0.1*I59))","v":0},null,null,{"$f":"IF(ISERROR(IF(0.1*L59>5000,5000,0.1*L59)),0,IF(0.1*L59>5000,5000,0.1*L59))","v":0}]
[]
[null,"Gastos Extras",null,null,null,{"$f":"IF(ISERROR(IF(0.2*F59>400000,400000,0.2*F59)),0,IF(0.2*F59>400000,400000,0.2*F59))","v":0},null,null,{"$f":"IF(ISERROR(IF(0.2*I59>400000,400000,0.2*I59)),0,IF(0.2*I59>400000,400000,0.2*I59))","v":0},null,null,{"$f":"IF(ISERROR(IF(0.2*L59>400000,400000,0.2*L59)),0,IF(0.2*L59>400000,400000,0.2*L59))","v":0}]
[null,"Refrigeración (L.A.A.)**",null,null,null,{"$f":"IF(ISERROR(IF(DatosdelNegocioLocal1!$AH$5=\"A\",20000,\"\")),0,(IF(DatosdelNegocioLocal1!$AH$5=\"A\",20000,\"\")))","v":""},null,null,{"$f":"IF(ISERROR(IF(DatosdelNegocioLocal1!$AH$5=\"A\",20000,\"\")),0,(IF(DatosdelNegocioLocal1!$AH$5=\"A\",20000,\"\")))","v":""},null,null,{"$f":"IF(ISERROR(IF(DatosdelNegocioLocal1!$AH$5=\"A\",20000,\"\")),0,(IF(DatosdelNegocioLocal1!$AH$5=\"A\",20000,\"\")))","v":""}]
[null,"*: Foman parte de la Suma Asegurada, no son adicionales"]
[null,"**: $ 5,000 por evento."]
[]
["G. CONDICIONADOS Y CLÁUSULAS APLICABLES A ESTA SECCIÓN"]
[]
["990000 - Claúsulas Generales de Contratación para Riesgos Generales"]
["Condicionado General Multi-Riesgo Negocios."]
["010005 - Cláusula Todo Riesgo."]
["010027 - Claúsula para Pérdidas y Daños por Huelga, Motín y Conmoción Civil."]
["010028 - Claúsula para Pérdidas o Daños por Vandalismo, Terrorismo y Daño Malicioso."]
["010029 - Claúsula para Gastos Extras"]
["010024 - Claúsula para Gastos Extraordinarios"]
["010006 - Claúsula de Refrigeración."]
["010010 - Cláusula de cobertura automática por nuevas adquisiciones."]
["010003 - Cláusula de rotura de cristales y/o vidrios."]
["990001 - Cláusula de Terceros."]
["990003 - Cláusula de rehabilitación automática de la suma asegurada (condición PPS)."]
["010038 - Claúsula de reemplazo."]
["010012 - Claúsula de Traslado temporal. "]
["010011 - Claúsula de Propiedades fuera de control del Asegurado. "]
["010013 - Claúsula de Errores u omisiones."]
["-      Cláusula de transporte incidental."]
["LUCRO CESANTE"]
["−      011000 CONDICIONADO GENERAL DE LUCRO CESANTE POR INCENDIO"]
["−      011001 – CL. PARA LUCRO CESANTE FORMA INGLESA CÉDULA A"]
["Asistencia para el negocio."]
[{"$f":"+IF(DatosdelNegocioLocal1!$AH$5=\"A\",\"Clausula de refrigeración\",\"\")","v":""}]
[]
["H. DEDUCIBLES (POR TODA Y CADA PÉRDIDA)"]
[]
["Terremoto, temblor, erupción volcánica, fuego subterráneo, maremoto (tsunami), salida mar, marejada u oleaje: 1% del valor declarado del predio afectado y/o su contenido y/o sus existencias, mínimo US$ 1,000"]
[]
["Otros riesgos de la naturaleza: 1% del valor declarado del predio afectado y/o su contenido y/o sus existencias, mínimo US$ 1,000"]
["Huelga, conmoción civil, asonada, daño malicioso y vandalismo, sabotaje y/o terrorismo: 10% del monto indemnizable mínimo US$ 1,000"]
[]
["Rotura Accidental de Vidrios, Cristales y/o Avisos Luminosos: 10% del monto indemnizable mínimo US$ 50.00"]
["Gastos Extras:  3 días"]
["Demás Coberturas:  5 % del Monto Indemnizable, mínimo US$ 500.00"]
["-      Lucro Cesante, 7 días,"]
["Transporte Incidental: 10% del monto indemnizable mínimo US$ 100.00"]
[]
[]
[]
[]
["PROTECCIÓN PARA NEGOCIO"]
[]
[]
["I. CONDICIONES ESPECIALES APLICABLES ESTA SECCIÓN"]
[]
["LAS COBERTURAS ADICIONALES FORMAN PARTE DEL LIMITE PRINCIPAL"]
["-         La presente sección no cubre Lucro Cesante Contingente en cualquiera de sus modalidades. "]
[]
["Las siguientes cláusulas son de aplicación siempre y cuando la presente poliza se encuentre endosada a algún banco y/o entidad financiera:\n- clausula de reemplazo hasta 3 años de antiguedad.\n- traslado temporal. \n- propiedades fuera de control del asegurado. \n- errores u omisiones."]
[]
[]
[]
[]
["La clausula de refrigeración es de aplicacion siempre y cuando corresponda a cualquiera de las siguientes actividades: restaurantes, hoteles,panaderías, heladerías, carnicerías y bodegas."]
[]
["J. GARANTÍAS APLICABLES ESTA SECCIÓN"]
[]
["I. La empresa deberá contar con licencia de funcionamiento vigente."]
["II. El local deberá contar con extintor vigente."]
[]
[]
["PROTECCIÓN PARA NEGOCIO"]
[]
[]
["SECCIÓN ROTURA DE MAQUINARIA"]
[]
["A. MATERIA DEL SEGURO"]
[]
["Maquinaria y equipo, fijo y estacionario en general de propiedad del ASEGURADO y/o de terceros que guarden relación con el giro del negocio que se encuentren bajo su responsabilidad, supervisión, control y custodia siempre que formen parte de los Valores Declarados en la Póliza, en el local  señalado en póliza, en forma permanente o temporal  y que sea parte  o contribuyan directa o indirectamente con el proceso productivo o actividad del ASEGURADO."]
[]
[]
[]
[]
["B. MODALIDAD DE ASEGURAMIENTO"]
[]
["A PRIMER RIESGO"]
[]
["C. COBERTURAS Y SUMAS ASEGURADAS"]
[null,null,null,null,null,"Local 1",null,null,"Local 2",null,null,"Local 3"]
[null,"Cobertura",null,null,null,"Suma Asegurada",null,null,"Suma Asegurada",null,null,"Suma Asegurada"]
[null,"Daño Material – Básica",null,null,null,{"$f":"+CoberturasaElegirLocal1!$N$23","v":""},null,null,{"$f":"+CoberturasaElegirLocal2!$N$23","v":""},null,null,{"$f":"+CoberturasaElegirLocal3!$N$23","v":""}]
[]
[]
["D. SUBLÍMITES"]
[null,null,null,null,null,"Local 1",null,null,"Local 2",null,null,"Local 3"]
[null,"Sub Limites",null,null,null,"Límite US$",null,null,"Límite US$",null,null,"Límite US$"]
[null,"Gastos adicionales por horas extras, trabajo nocturno, trabajo en días festivos, flete expreso, Límite Único y Combinado",null,null,null,"Hasta el 100% de Suma Asegurada, Hasta $ 10,000 ",null,null,"Hasta el 100% de Suma Asegurada, Hasta $ 10,000 ",null,null,"Hasta el 100% de Suma Asegurada, Hasta $ 10,000 "]
[null,"Flete aéreo.",null,null,null,"Hasta el 100% de Suma Asegurada, Hasta $ 10,000 ",null,null,"Hasta el 100% de Suma Asegurada, Hasta $ 10,000 ",null,null,"Hasta el 100% de Suma Asegurada, Hasta $ 10,000 "]
[]
["E. CONDICIONADOS Y CLÁUSULAS APLICABLES A ESTA SECCIÓN:"]
[]
["− 330007 CLÁUSULA PARA CUBRIR GASTOS ADICIONALES POR HORAS EXTRA, TRABAJO NOCTURNO, TRABAJO EN DÍAS FESTIVOS Y FLETE EXPRESO"]
["− 330006 CL.PARA CUBRIR GASTOS ADICIONALES PARA FLETE AÉREO"]
["− 330005 CL. DE EXCLUSIÓN DE EXPLOSIONES DE GASES DE ESCAPE EN CALDERAS Y HORNOS "]
["− 330013 CL. DE AJUSTE DE LA DEPRECIACIÓN PARA LA REPARACIÓN DE MOTORES DE COMBUSTIÓN INTERNA"]
["− 330028 CL.  VALOR NUEVO DE REPOSICION-RM "]
["−  990000 - Claúsulas Generales de Contratación para Riesgos Generales"]
["Condicionado General Multi-Riesgo Negocios."]
["330013 - clausula de ajuste de la depreciación para la reparación de motores de combustión  interna (p. ej. motores de gasolina, motores a gas). (obligatorio)"]
[]
["330012 - ajuste de depreciación en rebobinados maquinas eléctricas. (obligatorio)"]
[]
["F. DEDUCIBLES (POR TODA Y CADA PÉRDIDA)"]
[]
["Daño Material,  10% del monto indemnizable mínimo US$ 500."]
["-      Gastos adicionales por horas extras, trabajo nocturno, trabajo en días festivos, flete expreso. 10% del monto indemnizable mínimo US$ 200"]
[]
["-       Flete Aéreo 10% del monto indemnizable mínimo US$ 200"]
[]
["G. CONDICIONES ESPECIALES APLICABLES ESTA SECCIÓN"]
[]
["La presente  póliza se limita a amparar la maquinaria fija dentro del local declarado."]
["El Valor Declarado debe corresponder al valor de reposición a nuevo del equipo asegurado."]
["Valor Nuevo de reemplazo, aplicables para maquinaria hasta 2 años de antigüedad."]
[]
["H. GARANTÍAS APLICABLES ESTA SECCIÓN"]
[]
["Se debe contar, cumplir y documentar con el programa de Mantenimiento Preventivo, según indicaciones del fabricante para todos los equipos."]
[]
[]
[]
["PROTECCIÓN PARA NEGOCIO"]
[]
[]
["SECCIÓN EQUIPO ELECTRONICO"]
[]
["A. MATERIA DEL SEGURO"]
[]
["Equipos eléctricos y electrónicos instalados, de propiedad del ASEGURADO y/o de terceros que guarden relación con el giro del negocio bajo control, cuidado y custodia del ASEGURADO, dentro del local asegurado que formen parte del Valor Declarado y sea parte o contribuyan directa o indirectamente con el proceso productivo o actividad del ASEGURADO."]
[]
[]
[]
["B. MODALIDAD DE ASEGURAMIENTO"]
[]
["A PRIMER RIESGO"]
[]
["C. COBERTURAS Y SUMAS ASEGURADAS"]
[null,null,null,null,null,"Local 1",null,null,"Local 2",null,null,"Local 3"]
[null,"Coberturas",null,null,null,"Sumas Aseguradas",null,null,"Sumas Aseguradas",null,null,"Sumas Aseguradas"]
[null,"Todo Riesgo Equipo Electrónico Secciones I,II y III – Límite Único y Combinado, período de indemnización Sección III: 06 meses",null,null,null,{"$f":"+CoberturasaElegirLocal1!$N$26","v":""},null,null,{"$f":"+CoberturasaElegirLocal2!$N$26","v":""},null,null,{"$f":"+CoberturasaElegirLocal3!$N$26","v":""}]
[]
[]
[]
["D. SUBLÍMITES"]
[null,null,null,null,null,"Local 1",null,null,"Local 2",null,null,"Local 3"]
[null,"Sublímite",null,null,null,"Límite",null,null,"Límite",null,null,"Límite"]
[null,"Equipos Móviles y Portátiles fuera del predio limitado a Laptops y/o notebooks US$ 3,000 por evento y en el Agregado por vigencia.",null,null,null,{"$f":"CoberturasaElegirLocal1!$N$27","v":""},null,null,{"$f":"CoberturasaElegirLocal2!$N$27","v":""},null,null,{"$f":"CoberturasaElegirLocal3!$N$27","v":""}]
[]
[]
[null,"Gastos adicionales por horas extras, trabajo nocturno, trabajo en días festivos, flete expreso – por evento y en el Agregado por vigencia, Límite Único y Combinado",null,null,null,"Hasta el 100% de Suma Asegurada, Hasta $ 5,000 ",null,null,"Hasta el 100% de Suma Asegurada, Hasta $ 5,000 ",null,null,"Hasta el 100% de Suma Asegurada, Hasta $ 5,000 "]
[null,"Flete aéreo – por evento y en el Agregado Vigencia",null,null,null,"Hasta el 100% de Suma Asegurada, Hasta $ 5,000 ",null,null,"Hasta el 100% de Suma Asegurada, Hasta $ 5,000 ",null,null,"Hasta el 100% de Suma Asegurada, Hasta $ 5,000 "]
[]
["E. CONDICIONADOS Y CLÁUSULAS APLICABLES A ESTA SECCIÓN:"]
[]
["990000 - Claúsulas Generales de Contratación para Riesgos Generales"]
["Condicionado General Multi-Riesgo Negocios."]
["360002 - Cláusula de valor nuevo de reposición."]
["360015 - Cláusula sobre celebración de un contrato de mantenimiento."]
["360008 - Cláusula de obligaciones relativas a equipos de climatización."]
["360015 - Cláusula para servicios de mantenimiento y prestaciones del seguro."]
[{"$f":"+IF(F233=\"\",\"\",\"Cláusula para equipos móviles y portátiles fuera del predio asegurado.\")","v":""}]
["− 360027 CL. PARA CUBRIR GASTOS ADICIONALES PARA EL FLETE AÉREO"]
["− 360023 CL. DE COBERTURA DE EQUIPOS MÓVILES Y PORTÁTILES FUERA DE LOS PREDIOS ASEGURADOS"]
[]
["F. DEDUCIBLES (POR TODA Y CADA PÉRDIDA)"]
[" "]
["Secciones I y II,  10% del monto indemnizable mínimo US$  200"]
["Sección III : 3  días"]
[{"$f":"+IF(F233=\"\",\"\",\"Equipos Móviles y Portátiles fuera de los predios: 20 % del monto indemnizable mínimo US$ 500\")","v":""}]
["Gastos adicionales por horas extras, trabajo nocturno, trabajo en días festivos, flete expreso. 10% del monto indemnizable mínimo US$ 200"]
["Flete Aéreo 10% del monto indemnizable mínimo US$ 200"]
[]
["G. CONDICIONES ESPECIALES APLICABLES ESTA SECCIÓN"]
["Contar con duplicado de información backup, para efectos de la Sección II portadores externos de datos, en otro local del asegurado."]
["Se excluyen los daños causados por los programas denominados “virus informáticos”."]
["Se excluye la cobertura de robo para equipos electrónicos."]
[]
["H. GARANTÍAS APLICABLES ESTA SECCIÓN"]
["Todos los Equipos deberán contar con Estabilizador de Voltaje operativo."]
["Se debe contar, cumplir y documentar con el programa de Mantenimiento Preventivo, según indicaciones del fabricante para todos los equipos."]
[]
[]
["PROTECCIÓN PARA NEGOCIO"]
[]
[]
["SECCIÓN ROBO"]
[]
["A. MATERIA DEL SEGURO"]
[]
["Contenidos en el local asegurado incluyendo maquinaria y equipos, existencias en general y dinero en efectivo de propiedad del ASEGURADO y/o de terceros que guarden relación con el giro del negocio que se encuentren bajo su responsabilidad, supervisión, control y custodia siempre que formen parte de los Valores Declarados en la Póliza."]
[]
[]
[]
["B. BIENES ASEGURADOS Y VALORES DECLARADOS"]
[null,null,null,null,null,"Local 1",null,null,"Local 2",null,null,"Local 3"]
["Detalle",null,null,null,null,"Valor Declarado","Suma Asegurada Máxima",null,"Valor Declarado","Suma Asegurada Máxima",null,"Valor Declarado","Suma Asegurada Máxima"]
["Edificio (sin considerar el valor del terreno ni Instalaciones Fijas)",null,null,null,null,{"$f":"+CoberturasaElegirLocal1!$M$11","v":""},null,null,{"$f":"+CoberturasaElegirLocal2!$M$11","v":""},null,null,{"$f":"+CoberturasaElegirLocal3!$M$11","v":""}]
["Instalaciones fijas",null,null,null,null,{"$f":"+CoberturasaElegirLocal1!$M$31","v":""},null,null,{"$f":"+CoberturasaElegirLocal2!$M$31","v":""},null,null,{"$f":"+CoberturasaElegirLocal3!$M$31","v":""}]
["Mobiliario y/o contenido propios del giro del negocio",null,null,null,null,{"$f":"+CoberturasaElegirLocal1!$M$32","v":""},null,null,{"$f":"+CoberturasaElegirLocal2!$M$32","v":""},null,null,{"$f":"+CoberturasaElegirLocal3!$M$32","v":""}]
["Existencias propias del giro del negocio",null,null,null,null,{"$f":"+CoberturasaElegirLocal1!$M$33","v":""},null,null,{"$f":"+CoberturasaElegirLocal2!$M$33","v":""},null,null,{"$f":"+CoberturasaElegirLocal3!$M$33","v":""}]
["Maquinaria propia del giro del negocio",null,null,null,null,{"$f":"+CoberturasaElegirLocal1!$M$34","v":""},null,null,{"$f":"+CoberturasaElegirLocal2!$M$34","v":""},null,null,{"$f":"+CoberturasaElegirLocal3!$M$34","v":""}]
["Equipo electrónico fijo",null,null,null,null,{"$f":"+CoberturasaElegirLocal1!$M$35","v":""},null,null,{"$f":"+CoberturasaElegirLocal2!$M$35","v":""},null,null,{"$f":"+CoberturasaElegirLocal3!$M$35","v":""}]
["Dinero en Tránsito (LAA)",null,null,null,null,"---------",null,null,"---------",null,null,"---------"]
["Dinero y/o valores dentro del local (caja chica y/o caja registradora) solo en horas laborables (LAA)",null,null,null,null,{"$f":"+CoberturasaElegirLocal1!$M$36","v":"---------"},null,null,{"$f":"+CoberturasaElegirLocal2!$M$36","v":"---------"},null,null,{"$f":"+CoberturasaElegirLocal3!$M$36","v":"---------"}]
["Total:",null,null,null,null,{"$f":"+CoberturasaElegirLocal1!$M$18","v":""},{"$f":"IF(F291>100000,100000,F291)","v":100000},null,{"$f":"+CoberturasaElegirLocal2!$M$18","v":""},{"$f":"IF(I291>100000,100000,I291)","v":100000},null,{"$f":"+CoberturasaElegirLocal3!$M$18","v":""},{"$f":"IF(L291>100000,100000,L291)","v":100000}]
[]
["C. MODALIDAD DE ASEGURAMIENTO"]
[]
["A PRIMER RIESGO"]
[]
["D. CONDICIONADOS Y CLÁUSULAS APLICABLES A ESTA SECCIÓN:"]
[]
["990000 - Claúsulas Generales de Contratación para Riesgos Generales"]
["Condicionado General Multi-Riesgo Negocios."]
[{"$f":"+IF(G290=\"\",\"\",\"Cláusula para cubrir dinero en efectivo y o valores dentro del local asegurado, en Agregado por Vigencia.\")","v":""}]
[{"$f":"+IF(G289=\"\",\"\",\"410003 - Cláusula de Dinero en Efectivo y Valores en Tránsito desde Oficinas del Asegurado.\")","v":""}]
[]
["E. DEDUCIBLES (POR TODA Y CADA PÉRDIDA)"]
[]
["Robo y/o Asalto de Activos y/o Existencias: 10.00 % del monto indemnizable, mínimo US$ 500 toda y cada pérdida."]
[{"$f":"+IF(G289=\"\",\"\",\"Dinero en Tránsito y Dinero en Caja Chica: 10% del monto indemnizable mínimo USD250.00\")","v":""}]
[]
["F. CONDICIONES ESPECIALES APLICABLES ESTA SECCIÓN"]
[]
["No se ampara los bienes que se encuentran en patios, jardines, terrazas, azoteas que no tengan más defensa que muros perimétricos o en vitrinas fijas o movibles que se hallen colocadas fuera del edificio o de los ámbitos que constituyen el lugar del seguro."]
[]
[]
["No cubre almacenes de campo."]
[]
["G. GARANTÍAS APLICABLES ESTA SECCIÓN"]
[]
["1. Si la puerta es de una sola hoja, como mínimo dispondrá de una chapa sólida que se reforzará a su base o estará soldada a la misma; debe ser de no menos de 2 golpes.  Adicionalmente, la puerta de reja deberá protegerse con dos (02) candados con media luna protectora de bronce o puente protector metálico.  Si la puerta es de dos hojas; las medidas de seguridad serán las que se han mencionado, agregándole a la reja dos cerrojos verticales (uno al marco superior y otro al inferior) en cada hoja; en los que se colocarán un candado con media luna protectora de bronce."]
[]
[]
[]
[]
[]
[]
[]
[]
[]
["PROTECCIÓN PARA NEGOCIO"]
[]
[]
["CORTINAS ENROLLABLES"]
["2. Cuando el local cuente con cortinas enrollables que den hacia la calle, se deberá cumplir con los siguientes requisitos:\nA. Cada una de las cortinas metálicas enrollables deberá contar como mínimo con dos (2) argollas de fierro ancladas al piso, las cuales se sujetarán interiormente a las cortinas metálicas con un candado media luna protectora de bronce.\nB. Si la cortina dispone de puerta chica, ésta deberá contar como mínimo con dos chapas de tres golpes o más, y adicionalmente dos candados protegidos con puente protector o media luna protectora de bronce:\nC. Los carriles de la cortina enrollable deben estar reforzados tanto por dentro como por fuera, con ángulos de fierro de no menos de 3 pulgadas de ancho y como mínimo 1.50 metros con respecto al nivel del suelo.  Esta medida de seguridad no es necesario adoptarla si la cortina enrollable dispone de una sobre reja de fierro exteriormente."]
[]
[]
[]
[]
[]
["PROTECCIÓN PARA NEGOCIO"]
[]
[]
["SECCIÓN RESPONSABILIDAD CIVIL"]
[]
["A. MATERIA DEL SEGURO"]
["Sujeto a todos los términos y condiciones que forman parte de la presente Póliza, LA COMPAÑÍA cubre al ASEGURADO contra las reclamaciones de Terceros por concepto de Responsabilidad Civil Extracontractual, exclusivamente a consecuencia de Daños Personales y/o Daños Materiales causados involuntariamente a dichos Terceros por un accidente ocurrido durante la vigencia de la Póliza, como resultado directo de las actividades o negocios declarados en las Condiciones Particulares."]
[]
[]
[]
[]
["B. BASE DE COBERTURA"]
[]
["OCURRENCIA"]
[]
["C. COBERTURAS Y SUMAS ASEGURADAS"]
[null,null,null,null,null,"Local 1",null,null,"Local 2",null,null,"Local 3"]
[null,"Cobertura",null,null,null,"Suma Asegurada",null,null,"Suma Asegurada",null,null,"Suma Asegurada"]
[null,"Responsabilidad Civil Extracontractual en Límite Agregado por Vigencia.",null,null,null,{"$f":"+CoberturasaElegirLocal1!$N$40","v":50000},null,null,{"$f":"+CoberturasaElegirLocal2!$N$40","v":""},null,null,{"$f":"+CoberturasaElegirLocal3!$N$40","v":""}]
[]
[]
["D. SUBLÍMITES"]
[]
[null,"Cobertura",null,null,null,"Suma Asegurada",null,null,"Suma Asegurada",null,null,"Suma Asegurada"]
[null,"Alimentos y bebidas USD 5,000 POR EVENTO Y HASTA USD 20,000, como parte del límite principal y en Agregado Anual\nAplica para opción Hoteles y Restaurantes",null,null,null,{"$f":"+IF(F356=\"\",\"\",IF(OR(DatosdelNegocioLocal1!$AH$6=13,DatosdelNegocioLocal1!$AH$6=21),\"Aplica\",\"No Aplica\"))","v":"No Aplica"},null,null,{"$f":"+IF(I356=\"\",\"\",IF(OR(DatosdelNegocioLocal2!$AH$6=13,DatosdelNegocioLocal2!$AH$6=21),\"Aplica\",\"No Aplica\"))","v":""},null,null,{"$f":"+IF(L356=\"\",\"\",IF(OR(DatosdelNegocioLocal3!$AH$6=13,DatosdelNegocioLocal3!$AH$6=21),\"Aplica\",\"No Aplica\"))","v":""}]
[]
[]
[null,"Responsabilidad de Inkeepers USD 5,000 POR EVENTO Y HASTA USD 20,000 como parte del límite principal y en Agregado Anual\nAplica para opción Hoteles",null,null,null,{"$f":"+IF(F356=\"\",\"\",IF(OR(DatosdelNegocioLocal1!$AH$6=13,DatosdelNegocioLocal1!$AH$6=21),\"Aplica\",\"No Aplica\"))","v":"No Aplica"},null,null,{"$f":"+IF(I356=\"\",\"\",IF(OR(DatosdelNegocioLocal2!$AH$6=13,DatosdelNegocioLocal2!$AH$6=21),\"Aplica\",\"No Aplica\"))","v":""},null,null,{"$f":"+IF(L356=\"\",\"\",IF(OR(DatosdelNegocioLocal3!$AH$6=13,DatosdelNegocioLocal3!$AH$6=21),\"Aplica\",\"No Aplica\"))","v":""}]
[]
[]
[null,"Responsabilidad Civil Patronal en exceso de las pólizas de ley, limitado hasta USD 50,000 LUC.",null,null,null,{"$f":"+IF(F356=\"\",\"\",\"Aplica\")","v":"Aplica"},null,null,{"$f":"+IF(I356=\"\",\"\",\"Aplica\")","v":""},null,null,{"$f":"+IF(L356=\"\",\"\",\"Aplica\")","v":""}]
[]
[null,"Responsabilidad Civil Contractual",null,null,null,{"$f":"+IF(F356=\"\",\"\",\"Aplica\")","v":"Aplica"},null,null,{"$f":"+IF(I356=\"\",\"\",\"Aplica\")","v":""},null,null,{"$f":"+IF(L356=\"\",\"\",\"Aplica\")","v":""}]
[]
[]
["E. CONDICIONADOS Y CLÁUSULAS APLICABLES A ESTA SECCIÓN:"]
[]
["990000 - Claúsulas Generales de Contratación para Riesgos Generales"]
["Condicionado General Multi-Riesgo Negocios."]
["530006 - Cláusula de responsabilidad civil de locales y operaciones"]
["530010 - Cláusula de responsabilidad civil por incendio y/o explosión y/o agua y/o humo. "]
["530017 - Cláusula de responsabilidad civil por el empleo de ascensores, montacargas, grúas y escaleras mecánicas."]
["530016 - Cláusula de responsabilidad civil para playas de estacionamiento hasta USD 20,000 en  Límite Agregado Anual "]
["530004 - Claúsula de Responsabilidad Civil de Alimentos y Bebidas."]
["530008 - Claúsula de Responsabilidad Civil para Restaurantes, Bares, Cafés y similares."]
["530011 - Claúsula de Establecimientos de Baños Turcos, Baños públicos, saunas y similares."]
["530030 - Claúsula de Responsabilidad Civil de Oficinas, Bancos, Empresas de Seguros y similares."]
["530027 - Claúsula de Responsabilidad Civil de Hoteleros(Inkeeper´s Liability)"]
["530005 - Claúsula de Responsabilidad Civil de Colegios, universidades e institutos de enseñanza."]
["530015 - Claúsula de Responsabilidad Civil de Peluquerias, Institutos y Salones de belleza."]
["530018 - Claúsula de Responsabilidad Civil durante eventos sociales y culturales."]
["530019 - Cláusula de Responsabilidad Civil Patronal."]
["530022 - CL DE RESPONSABILIDAD CIVIL CONTRACTUAL"]
[]
["F. DEDUCIBLES (POR TODA Y CADA PÉRDIDA)"]
[]
["10% del monto indemnizable mínimo US$ 500 todo y cada reclamo."]
["(Inkeeper´s Liability) 10% del monto indemnizable mínimo US$ 300 todo y cada reclamo."]
[]
[]
[]
[]
["PROTECCIÓN PARA NEGOCIO"]
[]
[]
["G. CONDICIONES ESPECIALES APLICABLES ESTA SECCIÓN"]
[]
["EL LIMITE ASEGURADO ES UNICO EN AGREGADO ANUAL."]
["La “Cláusula de Responsabilidad Civil de Playas de Estacionamiento” está limitado a US$ 20,000 en Límite Agregado Anual y es aplicable únicamente a los rubros de Restaurantes y Hoteles."]
[]
["La “Cláusula de Responsabilidad Civil de Alimentos y bebidas” es de aplicación únicamente para los siguientes rubros: Restaurantes, Hoteles, Panaderías"]
[]
["La “Cláusula de Responsabilidad Civil de Hoteleros” (Inkeeper´s Liability es de aplicación únicamente para el rubro de Hoteles."]
["La Cláusula de Responsabilidad Civil de Oficinas, Bancos, Empresas de Seguros y similares es de aplicación únicamente para el rubro de Oficinas."]
[]
["La “Cláusula de Responsabilidad Civil de Colegios, universidades e Institutos de enseñanza”, es de aplicación únicamente para Colegios."]
[]
["La “Cláusula de Responsabilidad Civil de Peluquerías, Institutos y Salones de Belleza”, es de aplicación únicamente para Peluquerías y Salones de Belleza."]
[]
[]
["H. EXCLUSIONES"]
[]
["RC de productos"]
["RC derivada de actos delictivos cometidos por terceras personas"]
["RC profesional / errores y omisiones "]
["Multas y penalidades"]
["Rehabilitación automática de la suma asegurada"]
["Daños financieros puros"]
["Incumplimientos contractuales y compromiso asumido por contratos"]
["D & O"]
["Reclamaciones por difamación, calumnia, injuria, delitos contra el honor"]
["Fallas de proveedores"]
["Caso fortuito o fuerza mayor"]
["Reclamos y/o demandas provenientes del extranjero"]
["Transporte y almacenamiento de mercadería peligrosa incluyendo hidrocarburos"]
["Bienes de terceros bajo cargo, custodia y control"]
["Daños a los bienes o propiedades de los asegurados"]
["RC derivada y relacionada con la violación de la propiedad intelectual, competencia desleal,\npublicidad adversa o perjudicial contra competidores"]
[]
["RC derivada de errores informáticos, virus, internet"]
["Trabajos terminados."]
["Daños a la carga y al medio transportador"]
["Contaminación gradual"]
["Garantía, retirada e ineficiencia de productos"]
[]
["PROTECCIÓN PARA NEGOCIO"]
[]
[]
["ASISTENCIAS"]
[]
["SERVICIOS MÉDICOS PARA EL NEGOCIO"]
[]
["Servicios de Ambulancia por Emergencia o Accidente, disponible las 24 horas del día todo el año, hasta un máximo de 03 atenciones por año de vigencia de la póliza, hasta S/. 350 por evento."]
[]
["Servicio de “Aló doctor”  para el asegurado y empleados, disponible las 24 horas del día todo el año, sin límite."]
["Servicios de “Doctor a domicilio”, para el asegurado y empleados, disponible las 24 horas del día, todo el año con copago de S/. 35 (no incluye medicinas ni exámenes médicos), sin límite.",null,null,null,null,null,null,null,null,null,null,null,null,null,null,null,null,null,null,null,null,null,null,null,null,null,null,null,null,2]
[]
["Un chequeo preventivo anual gratuito (incluye 02 exámenes básicos al escoger entre: colesterol, glucosa o triglicéridos), al cual podrá acceder comunicándose al  teléfono  Lima y provincias: (01) 415-1515"]
[]
[]
["ASISTENCIAS DE SERVICIOS PARA EL NEGOCIO"]
[]
["Servicios de emergencia de cerrajería, gasfitería, electricidad o vidriería atendidos por  técnicos especializados disponible  las 24 horas del día, todo el año, hasta un máximo de 4 eventos al año por cada servicio y hasta S/300 por evento."]
[]
["Servicio de orientación telefónica para referencia y coordinación del servicio de fumigaciones y mantenimiento en general, sin limite"]
[]
["ASISTENCIA LEGAL Y TRIBUTARIA PARA EL NEGOCIO"]
[]
["Asistencia Legal en caso de Robo del Negocio, disponible las 24 horas del día y  hasta 2 eventos al año."]
["Asistencia Tributaria Vía Telefónica, disponible las 24 horas del día ,  sin limite."]
["Asesoría telefónica en cuanto a materia Tributaria, Legal, Penal y Familiar, sin limite."]
["Asesoría telefónica en temas referentes a Permisos, Trámites y Licencias, disponible las 24 horas del día, sin límite."]
[]
["CONDICIONES APLICABLES A TODAS LAS SECCIONES"]
[]
["Monto Indemnizable: Para efectos de este seguro se entenderá como el monto total de la pérdida amparada por la póliza antes de aplicar el deducible."]
[]
["La Suma Asegurada de cada una de las Secciones adicionales a INCENDIO forman parte integrante de la Suma Asegurada de Incendio, se comportan como sub límite a Primera Perdida."]
[]
[]
["GARANTIAS APLICABLES A TODA LA PÓLIZA"]
[]
["En caso de incumplimiento EL CONTRATANTE y/o ASEGURADO perderán Todo derecho indemnizatorio proveniente de esta Póliza, a partir del momento mismo de la violación quedando En consecuencia liberada LA COMPAÑÍA de toda responsabilidad."]
[]
[]
["CONDICIONES APLICABLES A LA COTIZACIÓN"]
[]
["Se deja constancia expresa que la presente cotización se originó con información brindada por el ASEGURADO y/o CONTRATANTE, así como la no existencia de siniestros conocidos, ocurridos, ni reportados."]
[]
["Las condiciones antes detalladas quedan sujetas al no aumento de la siniestralidad antes del inicio de la vigencia."]
["La presente cotización se ha basado en la información presentada por el cliente, en caso de sufrir modificaciones para la orden de emisión, Pacifico se reserva el derecho de anular, cambiar o ajustar las condiciones y términos presentados."]
[]
["La presente cotización tiene una validez de quince (15) días calendarios, contados a partir de la fecha de presentación por parte de Pacífico."]
[]
["La presente cotización tiene una validez de 15 días"]
[]
["La Compañía, se obliga a entregar la póliza de seguro al contratante y/o asegurado dentro de 15 días calendario de haber recibido la solicitud si no media rechazo previo de ésta. En el supuesto que el contratante y/o asegurado no completen la información y/o no cumplan con las medidas que la compañía requiera, se considerará rechazada la solicitud al vencimiento del plazo indicado. El contratante y/o asegurado podrá presentar una nueva solicitud."]
[]
[]
[]
[]
[]
[]
[]
["PROTECCIÓN PARA NEGOCIO"]
[]
[]
[]
["La COMPAÑÍA informará al Contratante, dentro de los quince (15) días de recibida esta Solicitud, si la misma ha sido rechazada, salvo que se le haya requerido información adicional, necesaria para la evaluación del riesgo, en el referido plazo. En este caso, el plazo para comunicar el rechazo, se contará a partir de la recepción de la información completa solicitada."]
[]
[]
[]
[]
[]
["ACCIDENTES PERSONALES"]
[]
[]
["DATOS GENERALES"]
[]
[null,null,null,"Fecha de la cotización:",{"$f":"TODAY()","v":"2021-10-13"}]
[]
[null,null,null,"Producto:","ACCO"]
[null,null,null,"Plan:","Colectivo"]
[null,null,null,"Moneda:","Dólares"]
[]
[null,null,null,"Vigencia de la Póliza:","12 meses"]
[]
[null,null,null,null,"Local 1","Local 2","Local 3"]
[null,null,null,"Número de asegurados: ",10,5,15]
[null,null,null," (max 20 por Local)"]
[]
[null,null,null,"RUC Contratante",{"$f":"IF(LEN(Solicitud.Manual!$E$8)=0,\"\",Solicitud.Manual!$E$8)","v":""}]
[null,null,null,"Nombre Contratante",{"$f":"IF(LEN(Solicitud.Manual!$C$9)=0,\"\",Solicitud.Manual!$C$9)","v":""}]
[null,null,null,"Broker:",{"$f":"IF(LEN(Solicitud.Manual!$D$148)=0,\"\",Solicitud.Manual!$D$148)","v":""}]
[]
[null,null,null,null,"Local 1"]
[null,null,null,"Actividad:",{"$f":"IF(LEN(Cotizador!$D$54)=0,\"\",Cotizador!$D$54)","v":""}]
[]
[null,null,null,null,"Local 2"]
[null,null,null,"Actividad:",{"$f":"IF(LEN(Cotizador!$D$56)=0,\"\",Cotizador!$D$56)","v":""}]
[]
[null,null,null,null,"Local 3"]
[null,null,null,"Actividad:",{"$f":"IF(LEN(Cotizador!$D$58)=0,\"\",Cotizador!$D$58)","v":""}]
[]
["COBERTURAS (*)"]
[]
[null,null,null,"Moneda:",null,{"$f":"E521","v":"Dólares"}]
[]
[null,null,null,null,"Local 1","Local 2","Local 3"]
[null,null,"Muerte Accidental:","Muerte Accidental:",10000,10000,15000]
[null,null,"Invalidez Permanente:","Invalidez Permanente:",{"$f":"IF(E547=5000,5000,IF(E547=10000,10000,IF(E547=15000,15000,0)))","v":10000},{"$f":"IF(F547=5000,5000,IF(F547=10000,10000,IF(F547=15000,15000,0)))","v":10000},{"$f":"IF(G547=5000,5000,IF(G547=10000,10000,IF(G547=15000,15000,0)))","v":15000}]
[null,null,"Gastos de Curación:","Gastos de Curación:",1500,1500,1500]
[null,null,"Gastos de Sepelio:","Gastos de Sepelio:",1000,1000,1000]
[null,null,null,"Transporte por Evacuación:","Transporte por Evacuación:"]
[null,null,null,"Traslado de Restos:","Traslado de Restos:"]
[]
[]
["CLÁUSULAS ADICIONALES"]
[null,null,"Cláusula de invalidez permanente parcial previa al seguro."]
[null,null,"Cláusula por la cobertura de Terrorismo y otros riesgos. "]
[null,null,"Cláusula por la práctica no profesional de deportes y/o actividades de riesgo."]
[null,null,"Cláusula por la conducción urbana o rural de motocicletas, motonetas y otros vehículos similares."]
[null,null,"Cláusula para pasajeros que usan cualquier medio habitual de transporte público de personas, en vehículos que no recorren itinerarios regulares y fijos. "]
[null,null,"Cláusula para pasajeros de aviones y/o helicópteros particulares y/o de la FAP por viajes eventuales. "]
[null,null,"Cláusula de ampliación del límite máximo de edad, personas mayores de 70 y hasta los 80 años inclusive."]
[]
[null,null,"RECARGOS"]
[null,null,"Por usar y/o portar armas"]
[]
[null,null,"DESCUENTOS"]
[null,null,"Por limitación a horas de trabajo."]
[null,null,"Por cubrir gastos no reembolsables por ESSALUD."]
[null,null,"Por aplicación de franquicia en incapacidad temporal.",null,null,null,"30 días"]
[null,null,"Por aplicación de deducible en gastos de curación.",null,null,null,0.25]
[null,null,null,null,"Local 1","Local 2","Local 3",null,"Total"]
[null,null,null,"Prima Neta Total.",{"$f":"E575*E526","v":75},{"$f":"F575*F526","v":37.5},{"$f":"G575*G526","v":150},null,{"$f":"SUM(E573:G573)","v":262.5}]
[null,null,null,"Prima Total (incluye IGV y DE):",{"$f":"E573*1.2154","v":91.155000000000001},{"$f":"F573*1.2154","v":45.577500000000001},{"$f":"G573*1.2154","v":182.31},null,{"$f":"SUM(E574:G574)","v":319.04250000000002}]
[null,null,null,"Prima neta por Persona:",{"$f":"IF(E547=5000,5,IF(E547=10000,7.5,IF(E547=15000,10,0)))","v":7.5},{"$f":"IF(F547=5000,5,IF(F547=10000,7.5,IF(F547=15000,10,0)))","v":7.5},{"$f":"IF(G547=5000,5,IF(G547=10000,7.5,IF(G547=15000,10,0)))","v":10},null,{"$f":"SUM(E575:G575)","v":25}]
[null,null,null,"Prima Total por Persona",{"$f":"E575*1.2154","v":9.1155000000000008},{"$f":"F575*1.2154","v":9.1155000000000008},{"$f":"G575*1.2154","v":12.154},null,{"$f":"SUM(E576:G576)","v":30.385000000000002}]
[]
[null,null,"TABLA DE PRIMAS"]
[]
[null,null,"Dias de Seguro",null,"Prima Neta",null,"Meses de Seguro",null,"Prima Neta"]
[null,null,1,0.05,{"$f":"D581*E575","v":0.375},null,2,0.3,{"$f":"H581*E575","v":2.25}]
[null,null,2,7.0000000000000007E-2,{"$f":"D582*E575","v":0.52500000000000002},null,3,0.4,{"$f":"H582*E575","v":3}]
[null,null,3,0.09,{"$f":"D583*E575","v":0.67499999999999993},null,4,0.5,{"$f":"H583*E575","v":3.75}]
[null,null,4,0.11,{"$f":"D584*E575","v":0.82499999999999996},null,5,0.6,{"$f":"H584*E575","v":4.5}]
[null,null,5,0.13,{"$f":"D585*E575","v":0.97500000000000009},null,6,0.7,{"$f":"H585*E575","v":5.25}]
[null,null,6,0.14000000000000001,{"$f":"D586*E575","v":1.05},null,7,0.8,{"$f":"H586*E575","v":6}]
[null,null,7,0.15,{"$f":"D587*E575","v":1.125},null,8,0.9,{"$f":"H587*E575","v":6.75}]
[null,null,"8 a 15",0.2,{"$f":"D588*E575","v":1.5},null,"más de 9",1,{"$f":"H588*E575","v":7.5}]
[null,null,"16 a 30",0.25,{"$f":"D589*E575","v":1.875}]
[]
["COMENTARIOS"]
["Ingresa aquí tu comentario"]
[]
[]
[]
["SLIP DE COTIZACIÓN PARA EL SEGURO DE CARGA"]
["TRANSPORTE NACIONAL"]
["(TRANSPORTISTAS TERRESTRE)"]
[]
[]
[]
[null,"CONTRATANTE: ",null,{"$f":"IF(LEN(CuestionarioTransporte!$C$5)>0,CuestionarioTransporte!$C$5,\"\")","v":""}]
[]
[null,"RUC: ",null,{"$f":"IF(LEN(CuestionarioTransporte!$C$6)>0,CuestionarioTransporte!$C$6,\"\")","v":""}]
[]
[null,"ASEGURADO",null,{"$f":"IF(LEN(CuestionarioTransporte!$C$9)>0,CuestionarioTransporte!$C$9,\"\")","v":""}]
[null,"Propietario de la mercadería"]
[]
["RADIO DE ACCION "]
["Dentro del Territorio Nacional; excluyendo el tránsito previo de la exportación y el transito posterior de importación, así como el transporte fluvial."]
[]
["MEDIOS DE TRANSPORTE "]
["En vehículos de carga de propiedad del Asegurado y/o de terceros que cuenten con autorización vigente otorgada por las Autoridades competentes para prestar el servicio de transporte terrestre automotor de carga y que se encuentren inscritos en los registros de la Dirección de Transporte Terrestre del Ministerio de Transporte y Comunicaciones. "]
[]
["DESCRIPCION DE LA MERCANCIA:"]
["Mercadería de terceros bajo su responsabilidad, custodia o control, excluyendo: "]
[]
["1. Animales vivos"]
["2. Explosivos y productos químicos de naturaleza explosiva o autocombustible y productos fiscalizados."]
["3. Fosforo (cerillas), fulminantes comunes y eléctricos"]
["4. Armas y Municiones"]
["5. Joyas, documentos valorados, valores, obras de arte, pieles, dinero o cualquier papel que lo represente, piedras preciosas y relojes,"]
["6. Menaje de casa y/o equipaje acompañado y/o efectos personales."]
["7. Equipos de cómputo, sus partes y piezas, software no instalado."]
["8. Tarjetas telefónicas, tablets, similares y sus partes y piezas"]
["9. Equipos de telefonía móvil (celulares, smartphones, iphones, modems)"]
["10. CDs, DVDs, Blurays, videojuegos y televisores."]
["11. Todo tipo de productos a granel (granos secos o líquidos)."]
["12. Concentrado de minerales tales como: oro y plata, "]
["13. Cátodos de Cobre, Cableado eléctrico"]
["14. Llantas con neumáticos / sin neumáticos,"]
["15. Productos farmacéuticos"]
["16. Licores, Cigarrillos "]
["17. Artículos para deportes "]
["18. Café en sacos y tipo exportación"]
[]
[]
["VALORIZACION DE LA MERCANCIA "]
[]
["Factura Comercial y/o Guía de Remisión excluyendo los Impuestos de Ley"]
[]
[]
["COBERTURAS "]
[]
[null,"CODIGO","CLAUSULAS"]
[null,107430,"990000 - CLAUSULAS GENERALES CONTRATACIÓN RIESGOS GENERALES"]
[null,107491,"111000 TRANSPORTES CARGA ABIERTA - CONDICIONES GENERALES"]
[null,107209,"CL TRA002 ACCIDENTE AL MEDIO DE TRANSPORTE  "]
[null,107212,"CL TRA012  DE ROBO POR ASALTO"]
[null,107215,"CL TRA013 DE TRANSITO"]
[null,107226,"066 CLAUSULA DE LOCALIDAD DEL INSTITUTO"]
[null,107228,"CL DE TERMINACION DEL TRANSITO (TERRORISMO) "]
[null,107217,"256 CL DEL INST PARA HUELGAS (CARGAMENTOS) "]
[null,107202,"356 CL DEL INST SOBRE EXCLUSION DE CONTAMINACION RADIOACTIVA"]
[null,107214,"CL TRA003  DE CARGA Y DESCARGA"]
[]
[]
["LIMITE MAXIMO DE RESPONSABILIDAD "]
[]
["HASTA US$50,000.00 Cincuenta mil  dólares americanos "]
[]
["Cualquier exceso en el límite indicado deberá ser puesto en conocimiento de la compañía de seguros para su aprobación antes del inicio del viaje. "]
[]
["Límite agregado anual por Robo: $50,000.00"]
[]
["MOVIMIENTO ESTIMADO ANUAL (MAE)"]
[]
["US$ 500,000.00 Quinientos mil dólares americanos (MINIMO) máximo $10,000,000.00"]
[]
["El Asegurado se compromete en proporcionar a la Compañía después de haber terminado la vigencia de esta Póliza, la suma total definitiva del período de seguro, en base a los libros contables. "]
[]
["CONDICIONES ESPECIALES"]
[]
["Queda entendido y convenido que las operaciones de transporte terrestre de mercadería deben realizarse considerando lo siguiente:"]
[]
["·         Que los transportes realizados por vehículos de terceros deben ser realizados bajo manifiestos / carta de porte (o nombre aplicable al documento) y/o guía de remisión emitida por el Asegurado y/o por el propietario de la mercadería."]
["·         Que los Conductores de los vehículos propios y de terceros son personas debidamente habilitadas y premunidas de una Licencia de conducir vigente y que corresponda a la clase y categoría prevista en el Reglamento de Licencias de Conducir para las características del vehículo que conduce. Los conductores deberán encontrarse identificados en el Registro de Nómina de Conductores del Registro Nacional de Transporte Terrestre del MTC."]
["·         Que los vehículos propios y de terceros a utilizar deberán ser cerrados, evitando que la mercadería se encuentre expuesta a simple vista, salvo aquella carga que por su propia naturaleza y/o dimensiones no pueda ser transportada en vehículos cerrados. "]
["·         Que los vehículos de carga propios y de terceros no deben ser estacionados en sitios o lugares en los cuales no exista iluminación. En caso se tenga que pernoctar por motivos debidamente justificados, la unidad deberá permanecer en un estacionamiento que sea autorizado por el Asegurado, que se encuentre dentro de la ruta establecida para el transporte y que garantice la seguridad de la mercadería a través de medidas de protección y vigilancia policial o privada. "]
["·         Que todos los transportes terrestres deben ser realizados en vehículos propios y de terceros que cuenten con un sistema de posicionamiento global (GPS) que brinde información en tiempo real y que se encuentre en funcionamiento mientras la mercadería se encuentre en el vehículo. Este sistema deberá brindar señales de alarma a un Centro de Control Terrestre en forma automática y a través de un dispositivo o botón de pánico; asimismo, deben contar con cobertura total dentro de las rutas establecidas para el transporte. El seguimiento de la situación de los vehículos durante el servicio debe ser continuo y permanente las 24 horas del día y se debe contar con un plan de contingencias y sistema de respuesta rápida ante ocurrencias, asaltos y/o situaciones de emergencia."]
["·         Que los Conductores deben utilizar medios alternos de comunicación, tales como equipos de radio y/o teléfonos celulares y mantener comunicación permanente con los centros de control durante el traslado de la mercancía."]
["·         Que las unidades transportadoras no deben llevar publicidad o propaganda que indique que están transportando."]
["·         Que los Conductores de vehículos propios y de terceros no deberán realizar jornadas de conducción continúas de más de cinco (05) horas para el servicio diurno o más de cuatro (04) horas en el servicio nocturno. Tras alcanzar el periodo máximo de conducción continua, el Conductor hará una pausa ininterrumpida de por lo menos 45 minutos. La duración acumulada de jornadas de conducción no deberá exceder de diez (10) horas en un periodo de veinte y cuatro (24) horas, contadas desde la hora de inicio de la conducción en un servicio."]
[]
["La inobservancia de estas Condiciones Especiales liberará de toda responsabilidad indemnizatoria a la Compañía de Seguros. "]
[]
["EXCLUSIONES"]
[]
["a)    Actos de deshonestidad cometidos por los empleados del Asegurado cuando la mercancía sea transportada en vehículos de propiedad del Asegurado y/o de terceros bajo su responsabilidad. "]
["b)    Olvido y/o negligencia y/o embriaguez de los empleados y/o personas encargadas del transporte y custodia de acuerdo a la Ley, cuando la mercancía sea transportada en vehículos de propiedad el Asegurado y/o de terceros bajo su responsabilidad. "]
["c)    Robo por escape, ratería, hurto, estafa, engaño, sustracciones sistemáticas, fraude o desaparición, cuando la mercancía sea transportada en vehículos de propiedad del Asegurado y/o de terceros bajo su responsabilidad. "]
["d)    Robo por desaparición mientras los objetos asegurados o el medio transportador se encuentre dentro de algún local o recinto del Asegurado o de terceros, en calidad de depositarios y no como parte del tránsito ordinario. "]
["e)    Pérdidas y/o daños causados a la mercancía asegurada como consecuencia de choques contra puentes y/o túneles durante su traslado terrestre, hasta su destino final."]
["f)     El contratante de la póliza podrá contratar a todos los transportistas que cumplan con las condiciones de la póliza; los Transportistas contratados no podrán subcontratar a otros transportistas"]
[]
["REAJUSTE DE PRIMAS "]
["La Compañía se reserva el derecho de efectuar revisiones de la Póliza y reajustar las Tasas y deducibles de acuerdo al índice de siniestralidad que presente la Póliza, previo acuerdo con el Asegurado y/o Broker de seguros. "]
[]
[null,"DEDUCIBLES"]
[null,"Para robo por asalto:",null,"20% del monto indemnizable, mínimo US$ 500"]
[null,"Para otros riesgos: ",null,"10% del monto indemnizable, mínimo US$ 200"]
[]
[]
[null,"ESQUEMA DE PRIMAS NETAS"]
[]
[null,"·         Prima neta anual USD:",null,null,{"$f":"CuestionarioTransporte!$D$26","v":345}]
[]
[]
["Cordialmente,"]
[]
[{"$f":"+TODAY()","v":"2021-10-13"}]

{"sheet":"DatosdelNegocioLocal1","index":23,"n_rows":36,"n_cols":34,"rows_kept":36,"cut":false,"hidden":false,"merged":[[15,8,15,14],[1,8,2,12],[11,8,11,9],[7,8,7,12]]}
[]
[]
[]
[]
[null,null,null,null,null,null,null,null,null,null,null,null,null,null,null,null,null,null,null,null,null,null,null,null,null,null,null,null,"TIPO","CATEG",null,null,"Comercial",{"$f":"IF(ISERROR(VLOOKUP(I8,$AC$6:$AE$36,2,0)),\"\",(VLOOKUP(I8,$AC$6:$AE$36,2,0)))","v":""}]
[null,null,null,null,null,null,"Actividad Realizada",null,null,null,null,null,null,null,null,null,null,null,null,null,null,null,null,null,null,null,null,1,"AGENCIAS DE EMPLEO","C",{"$f":"+AB6","v":1},null,"Servicios",{"$f":"IF(ISERROR(VLOOKUP(I8,$AC$6:$AE$36,3,0)),\"\",VLOOKUP(I8,$AC$6:$AE$36,3,0))","v":""}]
[null,null,null,null,null,null,null,null,null,null,null,null,null,null,null,null,null,null,null,null,null,null,null,null,null,null,null,2,"AGENCIAS DE PUBLICIDAD Y MARKETING","C",{"$f":"+AB7","v":2},null,"Comercial y Servicios"]
[null,null,null,null,null,null,null,"Actividad y/o Giro:",{"$f":"IF(Cotizador!$D$54=0,\"\",Cotizador!$D$54)","v":""},null,null,null,null,null,null,null,null,null,null,null,null,null,null,null,null,null,null,3,"BAZARES","B",3,null,{"$f":"IF(LEN(I8)>0,1,0)+IF(LEN(I16)>0,1,0)+IF(LEN(I12)>0,1,0)","v":1}]
[null,null,null,null,null,null,null,null,null,null,null,null,null,null,null,null,null,null,null,null,null,null,null,null,null,null,null,4,"BODEGAS / MINIMARKETS","A",4]
[null,null,null,null,null,null,"Tipo de Negocio",null,null,null,null,null,null,null,null,null,null,null,null,null,null,null,null,null,null,null,null,5,"CARNICERÍAS","A",5]
[null,null,null,null,null,null,null,null,null,null,null,null,null,null,null,null,null,null,null,null,null,null,null,null,null,null,null,6,"CLUBES, CENTROS DE ESPARCIMIENTO, CENTROS DEPORTIVOS.","C",6]
[null,null,null,null,null,null,null,"Tipo:",{"$f":"IF(Cotizador!$D$62=0,\"\",Cotizador!$D$62)","v":"Comercial y Servicios"},null,null,null,null,null,null,null,null,null,null,null,null,null,null,null,null,null,null,7,"COLEGIOS, ACADEMIAS, INSTITUTOS, CENTROS DE ENSEÑANZA.","C",7]
[null,null,null,null,null,null,null,null,null,null,null,null,null,null,null,null,null,null,null,null,null,null,null,null,null,null,null,8,"CONSULTORIOS MÉDICOS","B",8]
[null,null,null,null,null,null,"Uso del Local",null,null,null,null,null,null,null,null,null,null,null,null,null,null,null,null,null,null,null,null,10,"FERRETERÍAS","B",10]
[null,null,null,null,null,null,null,null,null,null,null,null,null,null,null,null,null,null,null,null,null,null,null,null,null,null,null,11,"GIMNASIOS","C",11]
[null,null,null,null,null,null,null,"Ocupación:",{"$f":"IF(Cotizador!$D$71=0,\"\",Cotizador!$D$71)","v":""},null,null,null,null,null,null,null,null,null,null,null,null,null,null,null,null,null,null,12,"HELADERÍAS (SÓLO VENTA)","A",12]
[null,null,null,null,null,null,null,null,null,null,null,null,null,null,null,null,null,null,null,null,null,null,null,null,null,null,null,13,"HOTELES Y HOSPEDAJES (DE 2 Y 3 ESTRELLAS)","A",13]
[null,null,null,null,null,null,null,null,null,null,null,null,null,null,null,null,null,null,null,null,null,null,null,null,null,null,null,14,"INSTITUCIONES RELIGIOSAS","C",14]
[null,null,null,null,null,null,null,null,null,null,null,null,null,null,null,null,null,null,null,null,null,null,null,null,null,null,null,15,"LAVANDERIAS","B",15]
[null,null,null,null,null,null,null,null,null,null,null,null,null,null,null,null,null,null,null,null,null,null,null,null,null,null,null,16,"LIBRERÍAS","B",16]
[null,null,null,null,null,null,null,null,null,null,null,null,null,null,null,null,null,null,null,null,null,null,null,null,null,null,null,17,"OFICINAS EN GENERAL","C",17]
[null,null,null,null,null,null,null,null,null,null,null,null,null,null,null,null,null,null,null,null,null,null,null,null,null,null,null,18,"ÓPTICAS","B",18]
[null,null,null,null,null,null,null,null,null,null,null,null,null,null,null,null,null,null,null,null,null,null,null,null,null,null,null,19,"PANADERÍAS Y PASTELERÍAS","A",19]
[null,null,null,null,null,null,null,null,null,null,null,null,null,null,null,null,null,null,null,null,null,null,null,null,null,null,null,20,"PELUQUERÍAS","C",20]
[null,null,null,null,null,null,null,null,null,null,null,null,null,null,null,null,null,null,null,null,null,null,null,null,null,null,null,21,"RESTAURANTES / NEGOCIOS DE COMIDA","A",21]
[null,null,null,null,null,null,null,null,null,null,null,null,null,null,null,null,null,null,null,null,null,null,null,null,null,null,null,22,"SALONES DE BELLEZA /SPA","C",22]
[null,null,null,null,null,null,null,null,null,null,null,null,null,null,null,null,null,null,null,null,null,null,null,null,null,null,null,23,"SERVICIOS FUNERARIOS","C",23]
[null,null,null,null,null,null,null,null,null,null,null,null,null,null,null,null,null,null,null,null,null,null,null,null,null,null,null,24,"TALLERES DE METAL MECÁNICA","B",24]
[null,null,null,null,null,null,null,null,null,null,null,null,null,null,null,null,null,null,null,null,null,null,null,null,null,null,null,25,"VENTA DE MAQUINARIA PESADA","B",25]
[null,null,null,null,null,null,null,null,null,null,null,null,null,null,null,null,null,null,null,null,null,null,null,null,null,null,null,26,"VENTA ARTÍCULOS DE LIMPIEZA PARA EL HOGAR","B",26]
[null,null,null,null,null,null,null,null,null,null,null,null,null,null,null,null,null,null,null,null,null,null,null,null,null,null,null,27,"VENTA DE ACCESORIOS (EXCEPTO JOYAS, PIEDRAS PRECIOSAS, CELULARES Y COMPUTADORAS)","B",27]
[null,null,null,null,null,null,null,null,null,null,null,null,null,null,null,null,null,null,null,null,null,null,null,null,null,null,null,28,"VENTA DE ROPA Y VENTA DE TEXTILES (NO FÁBRICA)","B",28]
[null,null,null,null,null,null,null,null,null,null,null,null,null,null,null,null,null,null,null,null,null,null,null,null,null,null,null,29,"VENTA DE VÍVERES EN GENERAL","B",29]
[null,null,null,null,null,null,null,null,null,null,null,null,null,null,null,null,null,null,null,null,null,null,null,null,null,null,null,30,"VETERINARIAS","C",30]
[null,null,null,null,null,null,null,null,null,null,null,null,null,null,null,null,null,null,null,null,null,null,null,null,null,null,null,31,"ZAPATERÍAS (SOLO VENTA)","B",31]
[null,null,null,null,null,null,null,null,null,null,null,null,null,null,null,null,null,null,null,null,null,null,null,null,null,null,null,32,"OTROS","C",1]

{"sheet":"DatosdelNegocioLocal2","index":24,"n_rows":36,"n_cols":34,"rows_kept":36,"cut":false,"hidden":false,"merged":[[1,8,2,12],[7,8,7,12],[11,8,11,9],[15,8,15,14]]}
[]
[]
[]
[]
[null,null,null,null,null,null,null,null,null,null,null,null,null,null,null,null,null,null,null,null,null,null,null,null,null,null,null,null,"TIPO","CATEG",null,null,"Comercial",{"$f":"IF(ISERROR(VLOOKUP(I8,$AC$6:$AE$36,2,0)),\"\",(VLOOKUP(I8,$AC$6:$AE$36,2,0)))","v":""}]
[null,null,null,null,null,null,"Actividad Realizada",null,null,null,null,null,null,null,null,null,null,null,null,null,null,null,null,null,null,null,null,1,"AGENCIAS DE EMPLEO","C",{"$f":"+AB6","v":1},null,"Servicios",{"$f":"IF(ISERROR(VLOOKUP(I8,$AC$6:$AE$36,3,0)),\"\",VLOOKUP(I8,$AC$6:$AE$36,3,0))","v":""}]
[null,null,null,null,null,null,null,null,null,null,null,null,null,null,null,null,null,null,null,null,null,null,null,null,null,null,null,2,"AGENCIAS DE PUBLICIDAD Y MARKETING","C",{"$f":"+AB7","v":2},null,"Comercial y Servicios"]
[null,null,null,null,null,null,null,"Actividad y/o Giro:",{"$f":"IF(Cotizador!$D$56=0,\"\",Cotizador!$D$56)","v":""},null,null,null,null,null,null,null,null,null,null,null,null,null,null,null,null,null,null,3,"BAZARES","B",3,null,{"$f":"IF(LEN(I8)>0,1,0)+IF(LEN(I16)>0,1,0)+IF(LEN(I12)>0,1,0)","v":1}]
[null,null,null,null,null,null,null,null,null,null,null,null,null,null,null,null,null,null,null,null,null,null,null,null,null,null,null,4,"BODEGAS / MINIMARKETS","A",4]
[null,null,null,null,null,null,"Tipo de Negocio",null,null,null,null,null,null,null,null,null,null,null,null,null,null,null,null,null,null,null,null,5,"CARNICERÍAS","A",5]
[null,null,null,null,null,null,null,null,null,null,null,null,null,null,null,null,null,null,null,null,null,null,null,null,null,null,null,6,"CLUBES, CENTROS DE ESPARCIMIENTO, CENTROS DEPORTIVOS.","C",6]
[null,null,null,null,null,null,null,"Tipo:",{"$f":"IF(Cotizador!$D$64=0,\"\",Cotizador!$D$64)","v":"Comercial y Servicios"},null,null,null,null,null,null,null,null,null,null,null,null,null,null,null,null,null,null,7,"COLEGIOS, ACADEMIAS, INSTITUTOS, CENTROS DE ENSEÑANZA.","C",7]
[null,null,null,null,null,null,null,null,null,null,null,null,null,null,null,null,null,null,null,null,null,null,null,null,null,null,null,8,"CONSULTORIOS MÉDICOS","B",8]
[null,null,null,null,null,null,"Uso del Local",null,null,null,null,null,null,null,null,null,null,null,null,null,null,null,null,null,null,null,null,10,"FERRETERÍAS","B",10]
[null,null,null,null,null,null,null,null,null,null,null,null,null,null,null,null,null,null,null,null,null,null,null,null,null,null,null,11,"GIMNASIOS","C",11]
[null,null,null,null,null,null,null,"Ocupación:",{"$f":"IF(Cotizador!$D$73=0,\"\",Cotizador!$D$73)","v":""},null,null,null,null,null,null,null,null,null,null,null,null,null,null,null,null,null,null,12,"HELADERÍAS (SÓLO VENTA)","A",12]
[null,null,null,null,null,null,null,null,null,null,null,null,null,null,null,null,null,null,null,null,null,null,null,null,null,null,null,13,"HOTELES Y HOSPEDAJES (DE 2 Y 3 ESTRELLAS)","A",13]
[null,null,null,null,null,null,null,null,null,null,null,null,null,null,null,null,null,null,null,null,null,null,null,null,null,null,null,14,"INSTITUCIONES RELIGIOSAS","C",14]
[null,null,null,null,null,null,null,null,null,null,null,null,null,null,null,null,null,null,null,null,null,null,null,null,null,null,null,15,"LAVANDERIAS","B",15]
[null,null,null,null,null,null,null,null,null,null,null,null,null,null,null,null,null,null,null,null,null,null,null,null,null,null,null,16,"LIBRERÍAS","B",16]
[null,null,null,null,null,null,null,null,null,null,null,null,null,null,null,null,null,null,null,null,null,null,null,null,null,null,null,17,"OFICINAS EN GENERAL","C",17]
[null,null,null,null,null,null,null,null,null,null,null,null,null,null,null,null,null,null,null,null,null,null,null,null,null,null,null,18,"ÓPTICAS","B",18]
[null,null,null,null,null,null,null,null,null,null,null,null,null,null,null,null,null,null,null,null,null,null,null,null,null,null,null,19,"PANADERÍAS Y PASTELERÍAS","A",19]
[null,null,null,null,null,null,null,null,null,null,null,null,null,null,null,null,null,null,null,null,null,null,null,null,null,null,null,20,"PELUQUERÍAS","C",20]
[null,null,null,null,null,null,null,null,null,null,null,null,null,null,null,null,null,null,null,null,null,null,null,null,null,null,null,21,"RESTAURANTES / NEGOCIOS DE COMIDA","A",21]
[null,null,null,null,null,null,null,null,null,null,null,null,null,null,null,null,null,null,null,null,null,null,null,null,null,null,null,22,"SALONES DE BELLEZA /SPA","C",22]
[null,null,null,null,null,null,null,null,null,null,null,null,null,null,null,null,null,null,null,null,null,null,null,null,null,null,null,23,"SERVICIOS FUNERARIOS","C",23]
[null,null,null,null,null,null,null,null,null,null,null,null,null,null,null,null,null,null,null,null,null,null,null,null,null,null,null,24,"TALLERES DE METAL MECÁNICA","B",24]
[null,null,null,null,null,null,null,null,null,null,null,null,null,null,null,null,null,null,null,null,null,null,null,null,null,null,null,25,"VENTA DE MAQUINARIA PESADA","B",25]
[null,null,null,null,null,null,null,null,null,null,null,null,null,null,null,null,null,null,null,null,null,null,null,null,null,null,null,26,"VENTA ARTÍCULOS DE LIMPIEZA PARA EL HOGAR","B",26]
[null,null,null,null,null,null,null,null,null,null,null,null,null,null,null,null,null,null,null,null,null,null,null,null,null,null,null,27,"VENTA DE ACCESORIOS (EXCEPTO JOYAS, PIEDRAS PRECIOSAS, CELULARES Y COMPUTADORAS)","B",27]
[null,null,null,null,null,null,null,null,null,null,null,null,null,null,null,null,null,null,null,null,null,null,null,null,null,null,null,28,"VENTA DE ROPA Y VENTA DE TEXTILES (NO FÁBRICA)","B",28]
[null,null,null,null,null,null,null,null,null,null,null,null,null,null,null,null,null,null,null,null,null,null,null,null,null,null,null,29,"VENTA DE VÍVERES EN GENERAL","B",29]
[null,null,null,null,null,null,null,null,null,null,null,null,null,null,null,null,null,null,null,null,null,null,null,null,null,null,null,30,"VETERINARIAS","C",30]
[null,null,null,null,null,null,null,null,null,null,null,null,null,null,null,null,null,null,null,null,null,null,null,null,null,null,null,31,"ZAPATERÍAS (SOLO VENTA)","B",31]
[null,null,null,null,null,null,null,null,null,null,null,null,null,null,null,null,null,null,null,null,null,null,null,null,null,null,null,32,"OTROS","C",1]

{"sheet":"DatosdelNegocioLocal3","index":25,"n_rows":36,"n_cols":34,"rows_kept":36,"cut":false,"hidden":false,"merged":[[1,8,2,12],[7,8,7,12],[11,8,11,9],[15,8,15,14]]}
[]
[]
[]
[]
[null,null,null,null,null,null,null,null,null,null,null,null,null,null,null,null,null,null,null,null,null,null,null,null,null,null,null,null,"TIPO","CATEG",null,null,"Comercial",{"$f":"IF(ISERROR(VLOOKUP(I8,$AC$6:$AE$36,2,0)),\"\",(VLOOKUP(I8,$AC$6:$AE$36,2,0)))","v":""}]
[null,null,null,null,null,null,"Actividad Realizada",null,null,null,null,null,null,null,null,null,null,null,null,null,null,null,null,null,null,null,null,1,"AGENCIAS DE EMPLEO","C",{"$f":"+AB6","v":1},null,"Servicios",{"$f":"IF(ISERROR(VLOOKUP(I8,$AC$6:$AE$36,3,0)),\"\",VLOOKUP(I8,$AC$6:$AE$36,3,0))","v":""}]
[null,null,null,null,null,null,null,null,null,null,null,null,null,null,null,null,null,null,null,null,null,null,null,null,null,null,null,2,"AGENCIAS DE PUBLICIDAD Y MARKETING","C",{"$f":"+AB7","v":2},null,"Comercial y Servicios"]
[null,null,null,null,null,null,null,"Actividad y/o Giro:",{"$f":"IF(Cotizador!$D$58=0,\"\",Cotizador!$D$58)","v":""},null,null,null,null,null,null,null,null,null,null,null,null,null,null,null,null,null,null,3,"BAZARES","B",3,null,{"$f":"IF(LEN(I8)>0,1,0)+IF(LEN(I16)>0,1,0)+IF(LEN(I12)>0,1,0)","v":1}]
[null,null,null,null,null,null,null,null,null,null,null,null,null,null,null,null,null,null,null,null,null,null,null,null,null,null,null,4,"BODEGAS / MINIMARKETS","A",4]
[null,null,null,null,null,null,"Tipo de Negocio",null,null,null,null,null,null,null,null,null,null,null,null,null,null,null,null,null,null,null,null,5,"CARNICERÍAS","A",5]
[null,null,null,null,null,null,null,null,null,null,null,null,null,null,null,null,null,null,null,null,null,null,null,null,null,null,null,6,"CLUBES, CENTROS DE ESPARCIMIENTO, CENTROS DEPORTIVOS.","C",6]
[null,null,null,null,null,null,null,"Tipo:",{"$f":"IF(Cotizador!$D$66=0,\"\",Cotizador!$D$66)","v":"Comercial y Servicios"},null,null,null,null,null,null,null,null,null,null,null,null,null,null,null,null,null,null,7,"COLEGIOS, ACADEMIAS, INSTITUTOS, CENTROS DE ENSEÑANZA.","C",7]
[null,null,null,null,null,null,null,null,null,null,null,null,null,null,null,null,null,null,null,null,null,null,null,null,null,null,null,8,"CONSULTORIOS MÉDICOS","B",8]
[null,null,null,null,null,null,"Uso del Local",null,null,null,null,null,null,null,null,null,null,null,null,null,null,null,null,null,null,null,null,10,"FERRETERÍAS","B",10]
[null,null,null,null,null,null,null,null,null,null,null,null,null,null,null,null,null,null,null,null,null,null,null,null,null,null,null,11,"GIMNASIOS","C",11]
[null,null,null,null,null,null,null,"Ocupación:",{"$f":"IF(Cotizador!$D$75=0,\"\",Cotizador!$D$75)","v":""},null,null,null,null,null,null,null,null,null,null,null,null,null,null,null,null,null,null,12,"HELADERÍAS (SÓLO VENTA)","A",12]
[null,null,null,null,null,null,null,null,null,null,null,null,null,null,null,null,null,null,null,null,null,null,null,null,null,null,null,13,"HOTELES Y HOSPEDAJES (DE 2 Y 3 ESTRELLAS)","A",13]
[null,null,null,null,null,null,null,null,null,null,null,null,null,null,null,null,null,null,null,null,null,null,null,null,null,null,null,14,"INSTITUCIONES RELIGIOSAS","C",14]
[null,null,null,null,null,null,null,null,null,null,null,null,null,null,null,null,null,null,null,null,null,null,null,null,null,null,null,15,"LAVANDERIAS","B",15]
[null,null,null,null,null,null,null,null,null,null,null,null,null,null,null,null,null,null,null,null,null,null,null,null,null,null,null,16,"LIBRERÍAS","B",16]
[null,null,null,null,null,null,null,null,null,null,null,null,null,null,null,null,null,null,null,null,null,null,null,null,null,null,null,17,"OFICINAS EN GENERAL","C",17]
[null,null,null,null,null,null,null,null,null,null,null,null,null,null,null,null,null,null,null,null,null,null,null,null,null,null,null,18,"ÓPTICAS","B",18]
[null,null,null,null,null,null,null,null,null,null,null,null,null,null,null,null,null,null,null,null,null,null,null,null,null,null,null,19,"PANADERÍAS Y PASTELERÍAS","A",19]
[null,null,null,null,null,null,null,null,null,null,null,null,null,null,null,null,null,null,null,null,null,null,null,null,null,null,null,20,"PELUQUERÍAS","C",20]
[null,null,null,null,null,null,null,null,null,null,null,null,null,null,null,null,null,null,null,null,null,null,null,null,null,null,null,21,"RESTAURANTES / NEGOCIOS DE COMIDA","A",21]
[null,null,null,null,null,null,null,null,null,null,null,null,null,null,null,null,null,null,null,null,null,null,null,null,null,null,null,22,"SALONES DE BELLEZA /SPA","C",22]
[null,null,null,null,null,null,null,null,null,null,null,null,null,null,null,null,null,null,null,null,null,null,null,null,null,null,null,23,"SERVICIOS FUNERARIOS","C",23]
[null,null,null,null,null,null,null,null,null,null,null,null,null,null,null,null,null,null,null,null,null,null,null,null,null,null,null,24,"TALLERES DE METAL MECÁNICA","B",24]
[null,null,null,null,null,null,null,null,null,null,null,null,null,null,null,null,null,null,null,null,null,null,null,null,null,null,null,25,"VENTA DE MAQUINARIA PESADA","B",25]
[null,null,null,null,null,null,null,null,null,null,null,null,null,null,null,null,null,null,null,null,null,null,null,null,null,null,null,26,"VENTA ARTÍCULOS DE LIMPIEZA PARA EL HOGAR","B",26]
[null,null,null,null,null,null,null,null,null,null,null,null,null,null,null,null,null,null,null,null,null,null,null,null,null,null,null,27,"VENTA DE ACCESORIOS (EXCEPTO JOYAS, PIEDRAS PRECIOSAS, CELULARES Y COMPUTADORAS)","B",27]
[null,null,null,null,null,null,null,null,null,null,null,null,null,null,null,null,null,null,null,null,null,null,null,null,null,null,null,28,"VENTA DE ROPA Y VENTA DE TEXTILES (NO FÁBRICA)","B",28]
[null,null,null,null,null,null,null,null,null,null,null,null,null,null,null,null,null,null,null,null,null,null,null,null,null,null,null,29,"VENTA DE VÍVERES EN GENERAL","B",29]
[null,null,null,null,null,null,null,null,null,null,null,null,null,null,null,null,null,null,null,null,null,null,null,null,null,null,null,30,"VETERINARIAS","C",30]
[null,null,null,null,null,null,null,null,null,null,null,null,null,null,null,null,null,null,null,null,null,null,null,null,null,null,null,31,"ZAPATERÍAS (SOLO VENTA)","B",31]
[null,null,null,null,null,null,null,null,null,null,null,null,null,null,null,null,null,null,null,null,null,null,null,null,null,null,null,32,"OTROS","C",1]